Workbook

Sheet CFR20232024_BenchMarkDataReport (hidden)
B1: 1 | C1: 2 | D1: 3 | E1: 4 | F1: 5 | G1: 6 | H1: 7 | I1: 8 | J1: 9 | K1: 10 | L1: 11 | M1: 12 | N1: 13 | O1: 14 | P1: 15 | Q1: 16 | R1: 17 | S1: 18 | T1: 19 | U1: 20 | V1: 21 | W1: 22 | X1: 23 | Y1: 24 | Z1: 25 | AA1: 26 | AB1: 27 | AC1: 28 | AD1: 29 | AE1: 30 | AF1: 31 | AG1: 32 | AH1: 33 | AI1: 34 | AJ1: 35 | AK1: 36 | AL1: 37 | AM1: 38 | AN1: 39 | AO1: 40 | AP1: 41 | AQ1: 42 | AR1: 43 | AS1: 44 | AT1: 45 | AU1: 46 | AV1: 47 | AW1: 48 | AX1: 49 | AY1: 50 | AZ1: 51 | BA1: 52 | BB1: 53 | BC1: 54 | BD1: 55 | BE1: 56 | BF1: 57 | BG1: 58 | BH1: 59 | BI1: 60 | BJ1: 61 | BK1: 62 | BL1: 63 | BM1: 64 | BN1: 65 | BO1: 66 | BP1: 67 | BQ1: 68 | BR1: 69 | BS1: 70 | BT1: 71 | BU1: 72 | BV1: 73 | BW1: 74 | BX1: 75 | BY1: 76 | BZ1: 77 | CA1: 78 | CB1: 79 | CC1: 80 | CD1: 81 | CE1: 82 | CF1: 83 | CG1: 84 | CH1: 85 | CI1: 86 | CJ1: 87 | CK1: 88 | CL1: 89
A2: CFR 2023-24 Benchmark Data Status Report
A3: LEA Number | B3: Estab Number | C3: School Name | D3: Federated Submission | E3: Federated Schools | F3: Status | G3: Errors | H3: OK Errors | I3: Financial Year | J3: Input System | K3: Data Prep | L3: Data Version | M3: Full Year | N3: Cash Or Accrual | O3: Rates Exempt | P3: Insurance | Q3: OB01 | R3: OB02 | S3: OB03 | T3: I01 | U3: I02 | V3: I03 | W3: I04 | X3: I05 | Y3: I06 | Z3: I07 | AA3: I08a | AB3: I08b | AC3: I09 | AD3: I10 | AE3: I11 | AF3: I12 | AG3: I13 | AH3: I15 | AI3: I16 | AJ3: I17 | AK3: I18a | AL3: I18b | AM3: I18c | AN3: I18d | AO3: E01 | AP3: E02 | AQ3: E03 | AR3: E04 | AS3: E05 | AT3: E06 | AU3: E07 | AV3: E08 | AW3: E09 | AX3: E10 | AY3: E11 | AZ3: E12 | BA3: E13 | BB3: E14 | BC3: E15 | BD3: E16 | BE3: E17 | BF3: E18 | BG3: E19 | BH3: E20 | BI3: E21 | BJ3: E22 | BK3: E23 | BL3: E24 | BM3: E25 | BN3: E26 | BO3: E27 | BP3: E28a | BQ3: E28b | BR3: E29 | BS3: E30 | BT3: E31 | BU3: E32 | BV3: CI01 | BW3: CI03 | BX3: CI04 | BY3: DeMinimis | BZ3: CE01 | CA3: CE02 | CB3: CE03 | CC3: CE04 | CD3: B01 | CE3: B02 | CF3: B03 | CG3: B05 | CH3: B06 | CI3: B07 | CJ3: Total Revenue Outturn | CK3: Total Capital Outturn | CL3: Total Revenue Outturn EXC COMMUNITY FOCUS
A4: 302 | B4: 1000 | C4: Brookhill Nursery School | D4: Yes | E4: 3021001, 3021003 | F4: Authorised | G4: 0 | H4: 1 | I4: 20232024 | J4: XG24 | K4: Y | L4: Final | M4: Y | N4: Accruals | O4: N | P4: N | Q4: -307438 | R4: -35972.01 | S4: 103003 | T4: 1906588.73 | U4: 0 | V4: 154604.78 | W4: 0 | X4: 0 | Y4: 0 | Z4: 13560.89 | AA4: 0 | AB4: 26903.05 | AC4: 0 | AD4: 0 | AE4: 0 | AF4: 602709.4 | AG4: 3440.14 | AH4: 0 | AI4: 164223.41 | AJ4: 21073.67 | AK4: 0 | AL4: 0 | AM4: 0 | AN4: 0 | AO4: 440982.9 | AP4: 0 | AQ4: 1572158.85 | AR4: 65034.54 | AS4: 128440.3 | AT4: 0 | AU4: 76705.15 | AV4: 12009.12 | AW4: 1696.79 | AX4: 0 | AY4: 0 | AZ4: 17508.95 | BA4: 5130 | BB4: 6771.51 | BC4: 5015.9 | BD4: 47138.85 | BE4: 98052.01 | BF4: 17539.2 | BG4: 37270.12 | BH4: 13083.93 | BI4: 0 | BJ4: 35510.68 | BK4: 8993 | BL4: 0 | BM4: 6432.72 | BN4: 0 | BO4: 8241 | BP4: 49922.07 | BQ4: 0 | BR4: 0 | BS4: 0 | BT4: 146572.33 | BU4: 25599.96 | BV4: 14633.85 | BW4: 0 | BX4: 0 | BY4: 6000 | BZ4: 0 | CA4: 46940.34 | CB4: 0 | CC4: 9680 | CD4: 0 | CE4: -253268.6 | CF4: 61016.51 | CG4: 0 | CH4: -22847.22 | CI4: 0 | CJ4: =CD4+CE4+CH4 -> -276115.82 | CK4: =CF4+CG4+CI4 -> 61016.51 | CL4: =CD4+CE4 -> -253268.6
A5: 302 | B5: 1002 | C5: Moss Hall Nursery School | D5: No | F5: Authorised | G5: 0 | H5: 2 | I5: 20232024 | J5: XG24 | K5: Y | L5: Final | M5: Y | N5: Accruals | O5: N | P5: N | Q5: -196121 | R5: 0 | S5: 27403 | T5: 573366 | U5: 0 | V5: 7363.01 | W5: 0 | X5: 0 | Y5: 0 | Z5: 9662.99 | AA5: 0 | AB5: 122.11 | AC5: 15908.14 | AD5: 0 | AE5: 0 | AF5: 294131.05 | AG5: 5928.39 | AH5: 0 | AI5: 0 | AJ5: 0 | AK5: 0 | AL5: 0 | AM5: 0 | AN5: 0 | AO5: 222128.15 | AP5: 0 | AQ5: 338099.47 | AR5: 42146.61 | AS5: 76945.02 | AT5: 0 | AU5: 45154.81 | AV5: 7488.61 | AW5: 3100.58 | AX5: 0 | AY5: 0 | AZ5: 9263.02 | BA5: 1544.25 | BB5: 2178.85 | BC5: 813.54 | BD5: 18161.84 | BE5: 0 | BF5: 3639.78 | BG5: 6753.72 | BH5: 7517.22 | BI5: 0 | BJ5: 8867.68 | BK5: 2070 | BL5: 2061.87 | BM5: 15908.14 | BN5: 640 | BO5: 3786.63 | BP5: 14563.39 | BQ5: 0 | BR5: 0 | BS5: 0 | BT5: 0 | BU5: 0 | BV5: 4850.5 | BW5: 0 | BX5: 0 | BY5: 6000 | BZ5: 0 | CA5: 0 | CB5: 0 | CC5: 0 | CD5: 0 | CE5: -122472.49 | CF5: 32253.5 | CG5: 0 | CH5: 0 | CI5: 0 | CJ5: =CD5+CE5+CH5 -> -122472.49 | CK5: =CF5+CG5+CI5 -> 32253.5 | CL5: =CD5+CE5 -> -122472.49
A6: 302 | B6: 1100 | C6: Pavilion Study Centre | D6: No | F6: Authorised | G6: 0 | H6: 0 | I6: 20232024 | J6: XG24 | K6: Y | L6: Final | M6: Y | N6: Accruals | O6: N | P6: N | Q6: 510786 | R6: 0 | S6: 56714 | T6: 1835544.02 | U6: 0 | V6: 1190293.82 | W6: 0 | X6: 24272.47 | Y6: 0 | Z6: 57026 | AA6: 309.38 | AB6: 273841.36 | AC6: 991.57 | AD6: 7958 | AE6: 3792 | AF6: 0 | AG6: 0 | AH6: 0 | AI6: 0 | AJ6: 0 | AK6: 0 | AL6: 0 | AM6: 0 | AN6: 30134.69 | AO6: 1903429.64 | AP6: 126551.11 | AQ6: 539656.18 | AR6: 41100.08 | AS6: 155353.62 | AT6: 0 | AU6: 0 | AV6: 29523.02 | AW6: 16121.1 | AX6: 38587.56 | AY6: 1794 | AZ6: 5443.55 | BA6: 316.16 | BB6: 45830.81 | BC6: 3071.47 | BD6: 37776.26 | BE6: 0 | BF6: 11051.83 | BG6: 50809.84 | BH6: 23092.86 | BI6: 8971.57 | BJ6: 31808.72 | BK6: 5561 | BL6: 3158.41 | BM6: 24745.41 | BN6: 181824.58 | BO6: 160834.27 | BP6: 46339.32 | BQ6: 0 | BR6: 0 | BS6: 0 | BT6: 0 | BU6: 0 | BV6: 7839.06 | BW6: 0 | BX6: 0 | BY6: 6000 | BZ6: 0 | CA6: 14250 | CB6: 0 | CC6: 0 | CD6: 0 | CE6: 442196.94 | CF6: 50303.06 | CG6: 0 | CH6: 0 | CI6: 0 | CJ6: 442196.94 | CK6: 50303.06 | CL6: 442196.94
A7: 302 | B7: 1102 | C7: Northgate School | D7: No | F7: Authorised | G7: 0 | H7: 1 | I7: 20232024 | J7: XG24 | K7: Y | L7: Final | M7: Y | N7: Accruals | O7: N | P7: N | Q7: 93584 | R7: 0 | S7: 16536 | T7: 512353.73 | U7: 0 | V7: 53743.74 | W7: 0 | X7: 7133.48 | Y7: 0 | Z7: 128613 | AA7: 0 | AB7: 107290.53 | AC7: 0 | AD7: 0 | AE7: 0 | AF7: 314 | AG7: 135 | AH7: 0 | AI7: 0 | AJ7: 0 | AK7: 0 | AL7: 0 | AM7: 7248.43 | AN7: 0 | AO7: 584477.07 | AP7: 0 | AQ7: 42486.62 | AR7: 0 | AS7: 32211.88 | AT7: 0 | AU7: 8687.03 | AV7: 13433.85 | AW7: 7817.91 | AX7: 4202 | AY7: 0 | AZ7: 10667.39 | BA7: 0 | BB7: 8.49 | BC7: 0 | BD7: 0 | BE7: 0 | BF7: 118212.92 | BG7: 14418.29 | BH7: 11068.72 | BI7: 1331.74 | BJ7: 9298.28 | BK7: 621 | BL7: 167.5 | BM7: 1120.1 | BN7: 20700.5 | BO7: 24273.23 | BP7: 41317.77 | BQ7: 1671.44 | BR7: 0 | BS7: 0 | BT7: 0 | BU7: 0 | BV7: 4978.75 | BW7: 0 | BX7: 0 | BY7: 6000 | BZ7: 0 | CA7: 0 | CB7: 0 | CC7: 0 | CD7: 0 | CE7: -37777.82 | CF7: 21514.75 | CG7: 0 | CH7: 0 | CI7: 0 | CJ7: -37777.82 | CK7: 21514.75 | CL7: -37777.82
A8: 302 | B8: 2002 | C8: Barnfield Primary School | D8: No | F8: Authorised | G8: 0 | H8: 0 | I8: 20232024 | J8: XG24 | K8: Y | L8: Final | M8: Y | N8: Accruals | O8: N | P8: N | Q8: 86163 | R8: 0 | S8: 0 | T8: 2515049.1 | U8: 0 | V8: 191510.54 | W8: 0 | X8: 123300.04 | Y8: 200 | Z8: 56742.58 | AA8: 20753.2 | AB8: 17345.66 | AC8: 9653.37 | AD8: 370 | AE8: 870 | AF8: 13280.51 | AG8: 4179.38 | AH8: 0 | AI8: 0 | AJ8: 0 | AK8: 0 | AL8: 0 | AM8: 23221.26 | AN8: 79272 | AO8: 1276952.36 | AP8: 0 | AQ8: 623187.38 | AR8: 25785.81 | AS8: 132173.76 | AT8: 0 | AU8: 45014.24 | AV8: 17404.4 | AW8: 4949.2 | AX8: 4916.9 | AY8: 0 | AZ8: 34712.05 | BA8: 0 | BB8: 73031.04 | BC8: 4372.67 | BD8: 84931.91 | BE8: 30250 | BF8: 17508.46 | BG8: 69183.3 | BH8: 12786.86 | BI8: 0 | BJ8: 25197.79 | BK8: 17087.81 | BL8: 6300.35 | BM8: 140346.59 | BN8: 56506.08 | BO8: 320137.61 | BP8: 74787.57 | BQ8: 0 | BR8: 0 | BS8: 6092 | BT8: 0 | BU8: 0 | BV8: 8891.5 | BW8: 0 | BX8: 6092 | BY8: 6000 | BZ8: 0 | CA8: 0 | CB8: 14983.29 | CC8: 0 | CD8: 0 | CE8: 38294.5 | CF8: 0 | CG8: 0 | CH8: 0 | CI8: 0 | CJ8: 38294.5 | CK8: 0 | CL8: 38294.5
A9: 302 | B9: 2003 | C9: Bell Lane Primary School | D9: No | F9: Authorised | G9: 0 | H9: 1 | I9: 20232024 | J9: XG24 | K9: Y | L9: Final | M9: Y | N9: Accruals | O9: N | P9: N | Q9: -205028 | R9: 105615 | S9: 26328 | T9: 2240084 | U9: 0 | V9: 184473 | W9: 0 | X9: 196130 | Y9: 3544 | Z9: 89448 | AA9: 1458 | AB9: 19822 | AC9: 0 | AD9: 0 | AE9: 0 | AF9: 13892 | AG9: 156 | AH9: 0 | AI9: 125964 | AJ9: 0 | AK9: 0 | AL9: 0 | AM9: 20264 | AN9: 61376 | AO9: 950161 | AP9: 0 | AQ9: 644657 | AR9: 60451 | AS9: 26518 | AT9: 0 | AU9: 128800 | AV9: 18849 | AW9: 6418 | AX9: 574 | AY9: 0 | AZ9: 14289 | BA9: 0 | BB9: 30162 | BC9: 11416 | BD9: 25235 | BE9: 26859 | BF9: 10712 | BG9: 74925 | BH9: 15347 | BI9: 0 | BJ9: 28415 | BK9: 11863 | BL9: 7523 | BM9: 127768 | BN9: 169168 | BO9: 336933 | BP9: 62771 | BQ9: 4585 | BR9: 0 | BS9: 0 | BT9: 114463 | BU9: 12887 | BV9: 8601 | BW9: 0 | BX9: 0 | BY9: 6000 | BZ9: 0 | CA9: 9867 | CB9: 0 | CC9: 0 | CD9: 0 | CE9: -168780 | CF9: 25062 | CG9: 0 | CH9: 104229 | CI9: 0 | CJ9: -64551 | CK9: 25062 | CL9: -168780
A10: 302 | B10: 2007 | C10: Brookland Junior School | D10: No | F10: Authorised | G10: 0 | H10: 0 | I10: 20232024 | J10: XG24 | K10: Y | L10: Final | M10: Y | N10: Accruals | O10: N | P10: N | Q10: 153847 | R10: 0 | S10: 7085 | T10: 1837322.77 | U10: 0 | V10: 166340.73 | W10: 0 | X10: 111275.01 | Y10: 8461.21 | Z10: 109836.37 | AA10: 52986.99 | AB10: 58680.26 | AC10: 33510.95 | AD10: 888 | AE10: 560 | AF10: 69818.91 | AG10: 80274.32 | AH10: 0 | AI10: 0 | AJ10: 0 | AK10: 0 | AL10: 0 | AM10: 19726.88 | AN10: 19559 | AO10: 1051900.11 | AP10: 0 | AQ10: 392131.06 | AR10: 60843 | AS10: 117461.62 | AT10: 0 | AU10: 61627.42 | AV10: 7855.11 | AW10: 5186 | AX10: 22671.2 | AY10: 0 | AZ10: 42882.94 | BA10: 8727.47 | BB10: 34275.94 | BC10: 10256.94 | BD10: 70231.88 | BE10: 20083 | BF10: 11199.33 | BG10: 102699.65 | BH10: 22415.73 | BI10: 0 | BJ10: 22234.15 | BK10: 13961.51 | BL10: 10096.1 | BM10: 112561.67 | BN10: 78653.76 | BO10: 251480.62 | BP10: 24246.1 | BQ10: 0 | BR10: 0 | BS10: 17116 | BT10: 0 | BU10: 0 | BV10: 7971.25 | BW10: 0 | BX10: 17116 | BY10: 6000 | BZ10: 0 | CA10: 19300 | CB10: 0 | CC10: 12872.25 | CD10: 0 | CE10: 150290.09 | CF10: 0 | CG10: 0 | CH10: 0 | CI10: 0 | CJ10: 150290.09 | CK10: 0 | CL10: 150290.09
A11: 302 | B11: 2008 | C11: Brookland Infant and Nursery School | D11: No | F11: Authorised | G11: 0 | H11: 0 | I11: 20232024 | J11: XG24 | K11: Y | L11: Final | M11: Y | N11: Accruals | O11: N | P11: N | Q11: 44779 | R11: 0 | S11: 15293 | T11: 1704054.99 | U11: 0 | V11: 114226.11 | W11: 0 | X11: 60349.98 | Y11: 944.42 | Z11: 0 | AA11: 42197.86 | AB11: 12665.5 | AC11: 14254.56 | AD11: 13917 | AE11: 20755.15 | AF11: 112300.91 | AG11: 38460.45 | AH11: 0 | AI11: 0 | AJ11: 0 | AK11: 0 | AL11: 0 | AM11: 5944.76 | AN11: 124788 | AO11: 929022.52 | AP11: 0 | AQ11: 539133.65 | AR11: 55475.19 | AS11: 41088.2 | AT11: 0 | AU11: 20860.42 | AV11: 19745.41 | AW11: 2827.5 | AX11: 19397.99 | AY11: 0 | AZ11: 19259.63 | BA11: 6019.5 | BB11: 23970.44 | BC11: 4896 | BD11: 53006.27 | BE11: 20083 | BF11: 9682.48 | BG11: 62646.81 | BH11: 14521.76 | BI11: 0 | BJ11: 9291.62 | BK11: 10499.9 | BL11: 13503.94 | BM11: 103963.67 | BN11: 52480.05 | BO11: 206968.42 | BP11: 37215.83 | BQ11: 0 | BR11: 0 | BS11: 0 | BT11: 0 | BU11: 0 | BV11: 7386.25 | BW11: 0 | BX11: 0 | BY11: 6000 | BZ11: 0 | CA11: 21921 | CB11: 0 | CC11: 0 | CD11: 0 | CE11: 34078.49 | CF11: 758.25 | CG11: 0 | CH11: 0 | CI11: 0 | CJ11: 34078.49 | CK11: 758.25 | CL11: 34078.49
A12: 302 | B12: 2009 | C12: Brunswick Park School | D12: Yes | E12: 3022011 , | F12: Authorised | G12: 0 | H12: 2 | I12: 20232024 | J12: XG24 | K12: Y | L12: Final | M12: Y | N12: Accruals | O12: N | P12: N | Q12: -27544 | R12: 0 | S12: 15377 | T12: 2442711.52 | U12: 0 | V12: 213143.52 | W12: 0 | X12: 126900.25 | Y12: 2300 | Z12: 76337.25 | AA12: 9810 | AB12: 233047.56 | AC12: 14047.41 | AD12: 0 | AE12: 0 | AF12: 63440.65 | AG12: 12341.21 | AH12: 0 | AI12: 0 | AJ12: 0 | AK12: 0 | AL12: 0 | AM12: 13774.69 | AN12: 84774 | AO12: 1520070.33 | AP12: 0 | AQ12: 645476.41 | AR12: 47187.2 | AS12: 128506.85 | AT12: 0 | AU12: 132162.95 | AV12: 12865.01 | AW12: 10292.18 | AX12: 702.18 | AY12: 0 | AZ12: 22155.86 | BA12: 23881.84 | BB12: 48702.64 | BC12: 8467.65 | BD12: 50840.4 | BE12: 39900 | BF12: 19903.42 | BG12: 111662.11 | BH12: 12782.84 | BI12: 0 | BJ12: 31335.76 | BK12: 19215.27 | BL12: 32002.16 | BM12: 121055.88 | BN12: 73735.67 | BO12: 226293.05 | BP12: 34565.61 | BQ12: 0 | BR12: 0 | BS12: 4181 | BT12: 0 | BU12: 0 | BV12: 9053.58 | BW12: 0 | BX12: 4181 | BY12: 6000 | BZ12: 0 | CA12: 8650 | CB12: 0 | CC12: 19961.58 | CD12: 0 | CE12: -112860.21 | CF12: 0 | CG12: 0 | CH12: 0 | CI12: 0 | CJ12: -112860.21 | CK12: 0 | CL12: -112860.21
A13: 302 | B13: 2011 | C13: Church Hill School | D13: Yes | E13: 3022009 , | F13: Authorised | G13: 0 | H13: 2 | I13: 20232024 | J13: XG24 | K13: Y | L13: Final | M13: Y | N13: Accruals | O13: N | P13: N | Q13: -166091 | R13: 0 | S13: 23401 | T13: 1161694.86 | U13: 0 | V13: 58311.65 | W13: 0 | X13: 57524.99 | Y13: 4777.68 | Z13: 39451.88 | AA13: 7060.63 | AB13: 65916.97 | AC13: 8725.91 | AD13: 0 | AE13: 0 | AF13: 26707.79 | AG13: 2177.3 | AH13: 0 | AI13: 0 | AJ13: 0 | AK13: 0 | AL13: 0 | AM13: 5183.75 | AN13: 51795 | AO13: 627064.88 | AP13: 0 | AQ13: 278563.26 | AR13: 49400.07 | AS13: 71018.96 | AT13: 0 | AU13: 74198.2 | AV13: 8061.57 | AW13: 2919.03 | AX13: 350.26 | AY13: 0 | AZ13: 20184.68 | BA13: 5302.29 | BB13: 21848.47 | BC13: 2030.17 | BD13: 51631.3 | BE13: 21036.62 | BF13: 10178.96 | BG13: 49645.75 | BH13: 7281.33 | BI13: 0 | BJ13: 14303.22 | BK13: 11124.69 | BL13: 18041.42 | BM13: 66401.02 | BN13: 18907.97 | BO13: 43918.64 | BP13: 21820.11 | BQ13: 0 | BR13: 0 | BS13: 0 | BT13: 0 | BU13: 0 | BV13: 6362.5 | BW13: 7416.07 | BX13: 0 | BY13: 6000 | BZ13: 0 | CA13: 22706.88 | CB13: 0 | CC13: 0 | CD13: 0 | CE13: -171995.46 | CF13: 14472.69 | CG13: 0 | CH13: 0 | CI13: 0 | CJ13: -171995.46 | CK13: 14472.69 | CL13: -171995.46
A14: 302 | B14: 2014 | C14: Colindale Primary School | D14: No | F14: Authorised | G14: 0 | H14: 0 | I14: 20232024 | J14: XG24 | K14: Y | L14: Final | M14: Y | N14: Accruals | O14: N | P14: N | Q14: 196167 | R14: 0 | S14: 4140 | T14: 3871561.24 | U14: 0 | V14: 287539.99 | W14: 0 | X14: 276069.98 | Y14: 9770.4 | Z14: 76276.11 | AA14: 45804.79 | AB14: 18317 | AC14: 14635.96 | AD14: 0 | AE14: 0 | AF14: 91178.44 | AG14: 420 | AH14: 0 | AI14: 0 | AJ14: 0 | AK14: 0 | AL14: 0 | AM14: 50467.38 | AN14: 102212 | AO14: 2095662.94 | AP14: 0 | AQ14: 1135822.36 | AR14: 131537.14 | AS14: 173558.23 | AT14: 0 | AU14: 107155.53 | AV14: 33872.63 | AW14: 4496.34 | AX14: 1039.16 | AY14: 1951 | AZ14: 144542.7 | BA14: 22259.2 | BB14: 33991.4 | BC14: 12885.18 | BD14: 216803.97 | BE14: 111839.8 | BF14: 33837.99 | BG14: 79265.39 | BH14: 34135.37 | BI14: 0 | BJ14: 59621.91 | BK14: 26495.14 | BL14: 7763.08 | BM14: 217199.06 | BN14: 28086.04 | BO14: 168245.63 | BP14: 77640.08 | BQ14: 0 | BR14: 0 | BS14: 0 | BT14: 0 | BU14: 0 | BV14: 11653.83 | BW14: 0 | BX14: 0 | BY14: 6000 | BZ14: 0 | CA14: 2742.33 | CB14: 7153 | CC14: 0 | CD14: 0 | CE14: 80713.02 | CF14: 5898.5 | CG14: 0 | CH14: 0 | CI14: 0 | CJ14: 80713.02 | CK14: 5898.5 | CL14: 80713.02
A15: 302 | B15: 2015 | C15: Coppetts Wood Primary School | D15: No | F15: Authorised | G15: 0 | H15: 1 | I15: 20232024 | J15: XG24 | K15: Y | L15: Final | M15: Y | N15: Accruals | O15: N | P15: N | Q15: -104850 | R15: 45881 | S15: 14819 | T15: 1674802.94 | U15: 0 | V15: 452182.56 | W15: 0 | X15: 116460.98 | Y15: 13805.71 | Z15: 29396.3 | AA15: 21285.06 | AB15: 3546 | AC15: 8755.8 | AD15: 0 | AE15: 0 | AF15: 64729.51 | AG15: 7404.38 | AH15: 0 | AI15: 206786.9 | AJ15: 0 | AK15: 0 | AL15: 0 | AM15: 0 | AN15: 129026.24 | AO15: 631299.55 | AP15: 0 | AQ15: 750211.02 | AR15: 50751.18 | AS15: 75803.29 | AT15: 68923.96 | AU15: 12279.24 | AV15: 13130.59 | AW15: 9558.53 | AX15: 366.86 | AY15: 0 | AZ15: 17565.59 | BA15: 6100.22 | BB15: 38844.87 | BC15: 49982.41 | BD15: 48986.82 | BE15: 42343.05 | BF15: 19061.06 | BG15: 66811.41 | BH15: 5742.6 | BI15: 0 | BJ15: 23281.74 | BK15: 8662.69 | BL15: 8731.12 | BM15: 45577.61 | BN15: 271842.84 | BO15: 212420.16 | BP15: 58011.1 | BQ15: 0 | BR15: 0 | BS15: 0 | BT15: 129911.86 | BU15: 34870.11 | BV15: 6727 | BW15: 0 | BX15: 0 | BY15: 6000 | BZ15: 0 | CA15: 0 | CB15: 0 | CC15: 0 | CD15: 0 | CE15: -119744.03 | CF15: 21546 | CG15: 0 | CH15: 87885.93 | CI15: 0 | CJ15: -31858.1 | CK15: 21546 | CL15: -119744.03
A16: 302 | B16: 2016 | C16: Courtland School | D16: No | F16: Authorised | G16: 0 | H16: 1 | I16: 20232024 | J16: XG24 | K16: Y | L16: Final | M16: Y | N16: Accruals | O16: N | P16: N | Q16: 55752 | R16: 0 | S16: 23974 | T16: 1119617.44 | U16: 0 | V16: 44800.65 | W16: 0 | X16: 46314.98 | Y16: 1000 | Z16: 32844.96 | AA16: 1939 | AB16: 4115.62 | AC16: 5649.98 | AD16: 0 | AE16: 0 | AF16: 20239.26 | AG16: 17993.56 | AH16: 0 | AI16: 0 | AJ16: 0 | AK16: 0 | AL16: 0 | AM16: 0 | AN16: 60977.13 | AO16: 624288.27 | AP16: 5999.7 | AQ16: 240108.35 | AR16: 41596.18 | AS16: 74550.19 | AT16: 0 | AU16: 19402.68 | AV16: 6515.8 | AW16: 489 | AX16: 348.6 | AY16: 0 | AZ16: 5576.8 | BA16: 4982 | BB16: 23921.36 | BC16: 5033.16 | BD16: 28371.46 | BE16: 25001.15 | BF16: 6968.94 | BG16: 61938.07 | BH16: 8198.57 | BI16: 0 | BJ16: 9552.61 | BK16: 8166.9 | BL16: 2515 | BM16: 65607.12 | BN16: 13327.45 | BO16: 112684.72 | BP16: 22225.83 | BQ16: 0 | BR16: 0 | BS16: 0 | BT16: 0 | BU16: 0 | BV16: 6351.25 | BW16: 20000 | BX16: 0 | BY16: 6000 | BZ16: 0 | CA16: 20000 | CB16: 0 | CC16: 0 | CD16: 0 | CE16: -6125.33 | CF16: 30325.25 | CG16: 0 | CH16: 0 | CI16: 0 | CJ16: -6125.33 | CK16: 30325.25 | CL16: -6125.33
A17: 302 | B17: 2017 | C17: Cromer Road Primary School | D17: No | F17: Authorised | G17: 0 | H17: 0 | I17: 20232024 | J17: XG24 | K17: Y | L17: Final | M17: Y | N17: Accruals | O17: N | P17: N | Q17: 149442 | R17: 0 | S17: 10035 | T17: 2159078 | U17: 0 | V17: 136602 | W17: 0 | X17: 130570 | Y17: 19050 | Z17: 53424 | AA17: 108692 | AB17: 193 | AC17: 9225 | AD17: 23898 | AE17: 0 | AF17: 48764 | AG17: 8970 | AH17: 0 | AI17: 0 | AJ17: 0 | AK17: 0 | AL17: 0 | AM17: 0 | AN17: 100356 | AO17: 1218162 | AP17: 0 | AQ17: 678485 | AR17: 23028 | AS17: 88879 | AT17: 0 | AU17: 70308 | AV17: 25518 | AW17: 3292 | AX17: 18411 | AY17: 0 | AZ17: 18176 | BA17: 6182 | BB17: 48135 | BC17: 2187 | BD17: 62777 | BE17: 46603 | BF17: 14800 | BG17: 112784 | BH17: 26701 | BI17: 0 | BJ17: 18318 | BK17: 17459 | BL17: 11278 | BM17: 116358 | BN17: 109528 | BO17: 125368 | BP17: 64650 | BQ17: 350 | BR17: 0 | BS17: 0 | BT17: 0 | BU17: 0 | BV17: 8646 | BW17: 0 | BX17: 0 | BY17: 6000 | BZ17: 0 | CA17: 2969 | CB17: 0 | CC17: 0 | CD17: 0 | CE17: 20527 | CF17: 15712 | CG17: 0 | CH17: 0 | CI17: 0 | CJ17: 20527 | CK17: 15712 | CL17: 20527
A18: 302 | B18: 2019 | C18: Deansbrook Infant School | D18: No | F18: Authorised | G18: 0 | H18: 2 | I18: 20232024 | J18: XG24 | K18: Y | L18: Final | M18: Y | N18: Accruals | O18: N | P18: N | Q18: -428181 | R18: 0 | S18: 4617 | T18: 1790172.79 | U18: 0 | V18: 116284.87 | W18: 0 | X18: 94843.76 | Y18: 0 | Z18: 16579.09 | AA18: 8939.32 | AB18: 26381.9 | AC18: 52.25 | AD18: 0 | AE18: 0 | AF18: 25835.9 | AG18: 2394.18 | AH18: 0 | AI18: 0 | AJ18: 0 | AK18: 0 | AL18: 0 | AM18: 11609.37 | AN18: 86178 | AO18: 760762.41 | AP18: 0 | AQ18: 508676.42 | AR18: 43602.78 | AS18: 94604.67 | AT18: 0 | AU18: 55691.59 | AV18: 8872.22 | AW18: 780.21 | AX18: 389.93 | AY18: 0 | AZ18: 13740.03 | BA18: 10103.18 | BB18: 1654.1 | BC18: 848.35 | BD18: 33123.28 | BE18: 21150 | BF18: 5213.88 | BG18: 24117.81 | BH18: 13896.37 | BI18: 0 | BJ18: 18528.47 | BK18: 8128.01 | BL18: 2419.25 | BM18: 60147.55 | BN18: 11692.67 | BO18: 49942.85 | BP18: 27337.99 | BQ18: 0 | BR18: 0 | BS18: 0 | BT18: 0 | BU18: 0 | BV18: 21772.44 | BW18: 0 | BX18: 0 | BY18: 6000 | BZ18: 0 | CA18: 13328.9 | CB18: 0 | CC18: 11622.2 | CD18: 0 | CE18: -24333.59 | CF18: 1438.34 | CG18: 0 | CH18: 0 | CI18: 0 | CJ18: -24333.59 | CK18: 1438.34 | CL18: -24333.59
A19: 302 | B19: 2021 | C19: Dollis Primary School | D19: No | F19: Authorised | G19: 0 | H19: 0 | I19: 20232024 | J19: XG24 | K19: Y | L19: Final | M19: Y | N19: Accruals | O19: N | P19: N | Q19: 144885 | R19: 0 | S19: 10677 | T19: 2514197.25 | U19: 0 | V19: 160707.44 | W19: 0 | X19: 192275.03 | Y19: 200 | Z19: 81029.47 | AA19: 107047.24 | AB19: 41416.08 | AC19: 16019.75 | AD19: 0 | AE19: 0 | AF19: 13324.33 | AG19: 10939.21 | AH19: 0 | AI19: 0 | AJ19: 0 | AK19: 0 | AL19: 0 | AM19: 33730.01 | AN19: 62836 | AO19: 1166010.02 | AP19: 0 | AQ19: 824636.21 | AR19: 98592.29 | AS19: 134966.63 | AT19: 0 | AU19: 53689.06 | AV19: 16119.83 | AW19: 13166.78 | AX19: 659.02 | AY19: 0 | AZ19: 25912.11 | BA19: 12654.96 | BB19: 70100.87 | BC19: 23784.69 | BD19: 162912 | BE19: 58112 | BF19: 25479.43 | BG19: 79404.96 | BH19: 10136.08 | BI19: 0 | BJ19: 19204 | BK19: 18351.39 | BL19: 10445.07 | BM19: 145187.18 | BN19: 140273.18 | BO19: 160034.32 | BP19: 60465.07 | BQ19: 0 | BR19: 0 | BS19: 0 | BT19: 0 | BU19: 0 | BV19: 9197.5 | BW19: 0 | BX19: 0 | BY19: 6000 | BZ19: 0 | CA19: 7203.7 | CB19: 0 | CC19: 0 | CD19: 0 | CE19: 48309.66 | CF19: 12670.8 | CG19: 0 | CH19: 0 | CI19: 0 | CJ19: 48309.66 | CK19: 12670.8 | CL19: 48309.66
A20: 302 | B20: 2023 | C20: Edgware Primary | D20: No | F20: Authorised | G20: 0 | H20: 0 | I20: 20232024 | J20: XG24 | K20: Y | L20: Final | M20: Y | N20: Accruals | O20: N | P20: N | Q20: 107248 | R20: 0 | S20: 21245 | T20: 2592832.82 | U20: 0 | V20: 187572.47 | W20: 0 | X20: 232800 | Y20: 0 | Z20: 169233.45 | AA20: 6657 | AB20: 11015.56 | AC20: 13122.83 | AD20: 0 | AE20: 0 | AF20: 12795.72 | AG20: 2791.63 | AH20: 0 | AI20: 0 | AJ20: 0 | AK20: 0 | AL20: 0 | AM20: 40402 | AN20: 68912 | AO20: 1258790.81 | AP20: 0 | AQ20: 842110.32 | AR20: 81741.05 | AS20: 236373.54 | AT20: 0 | AU20: 36057.47 | AV20: 19362.02 | AW20: 3803.7 | AX20: 705.5 | AY20: 0 | AZ20: 32322.03 | BA20: 9353 | BB20: 73131.52 | BC20: 15831.77 | BD20: 105818.25 | BE20: 23952 | BF20: 7406.59 | BG20: 100867.25 | BH20: 21233.65 | BI20: 0 | BJ20: 15920.74 | BK20: 16998.62 | BL20: 12666.09 | BM20: 160080.52 | BN20: 92713.63 | BO20: 210425.5 | BP20: 36477.18 | BQ20: 0 | BR20: 0 | BS20: 0 | BT20: 0 | BU20: 0 | BV20: 9339.25 | BW20: 0 | BX20: 0 | BY20: 6000 | BZ20: 0 | CA20: 21883 | CB20: 0 | CC20: 0 | CD20: 0 | CE20: 31240.73 | CF20: 8701.25 | CG20: 0 | CH20: 0 | CI20: 0 | CJ20: 31240.73 | CK20: 8701.25 | CL20: 31240.73
A21: 302 | B21: 2024 | C21: Fairway Primary School and Children's Centre | D21: No | F21: Authorised | G21: 0 | H21: 1 | I21: 20232024 | J21: XG24 | K21: Y | L21: Final | M21: Y | N21: Accruals | O21: N | P21: N | Q21: -168469 | R21: 10888 | S21: 21150 | T21: 1531582.63 | U21: 0 | V21: 104288 | W21: 0 | X21: 126760.52 | Y21: 35200 | Z21: 32621.07 | AA21: 14064.9 | AB21: 4544.58 | AC21: 6258.54 | AD21: 0 | AE21: 0 | AF21: 98926.32 | AG21: 9271.25 | AH21: 0 | AI21: 201514.3 | AJ21: 0 | AK21: 0 | AL21: 0 | AM21: 24074.88 | AN21: 35849 | AO21: 703642.86 | AP21: 0 | AQ21: 356856.37 | AR21: 35977.11 | AS21: 98989.82 | AT21: 0 | AU21: 310231.08 | AV21: 6658.41 | AW21: 1056 | AX21: 335.32 | AY21: 0 | AZ21: 5274.65 | BA21: 2898.26 | BB21: 34908.84 | BC21: 4438.67 | BD21: 65373.85 | BE21: 50714.82 | BF21: 14638.56 | BG21: 36324.5 | BH21: 17502.18 | BI21: 0 | BJ21: 11964.18 | BK21: 8178.28 | BL21: 3188.55 | BM21: 81214.47 | BN21: 8094.5 | BO21: 66678.79 | BP21: 52130.46 | BQ21: 0 | BR21: 0 | BS21: 0 | BT21: 128310.97 | BU21: 30113.84 | BV21: 6663.1 | BW21: 0 | BX21: 0 | BY21: 6000 | BZ21: 0 | CA21: 0 | CB21: 0 | CC21: 0 | CD21: 0 | CE21: -122297.84 | CF21: 27813.1 | CG21: 0 | CH21: 53977.49 | CI21: 0 | CJ21: -68320.35 | CK21: 27813.1 | CL21: -122297.84
A22: 302 | B22: 2025 | C22: Foulds School | D22: No | F22: Authorised | G22: 0 | H22: 0 | I22: 20232024 | J22: XG24 | K22: Y | L22: Final | M22: Y | N22: Accruals | O22: N | P22: N | Q22: 71087 | R22: 0 | S22: 19874 | T22: 1577309.42 | U22: 0 | V22: 62797.4 | W22: 0 | X22: 21589.99 | Y22: 400 | Z22: 61596.99 | AA22: 45806.79 | AB22: 28247.82 | AC22: 13997.26 | AD22: 0 | AE22: 0 | AF22: 78640.59 | AG22: 36388.61 | AH22: 0 | AI22: 0 | AJ22: 0 | AK22: 0 | AL22: 0 | AM22: 2973.12 | AN22: 78960 | AO22: 996204.37 | AP22: 24311.56 | AQ22: 297875.67 | AR22: 86398.76 | AS22: 71246.83 | AT22: 0 | AU22: 44832.6 | AV22: 9014.71 | AW22: 2906.51 | AX22: 532.86 | AY22: 0 | AZ22: 4616.21 | BA22: 0 | BB22: 2444.6 | BC22: 3966.8 | BD22: 56119.84 | BE22: 34048 | BF22: 5529.85 | BG22: 101659.13 | BH22: 7183.78 | BI22: 0 | BJ22: 9364.23 | BK22: 12483.69 | BL22: 6112.92 | BM22: 110761.36 | BN22: 10990.3 | BO22: 69711.88 | BP22: 34484.06 | BQ22: 0 | BR22: 0 | BS22: 23065 | BT22: 0 | BU22: 0 | BV22: 7566.25 | BW22: 0 | BX22: 23065 | BY22: 6000 | BZ22: 0 | CA22: 20999.99 | CB22: 0 | CC22: 6260 | CD22: 0 | CE22: 53929.47 | CF22: 23245.26 | CG22: 0 | CH22: 0 | CI22: 0 | CJ22: 53929.47 | CK22: 23245.26 | CL22: 53929.47
A23: 302 | B23: 2026 | C23: Frith Manor Primary School | D23: No | F23: Authorised | G23: 0 | H23: 1 | I23: 20232024 | J23: XG24 | K23: Y | L23: Final | M23: Y | N23: Accruals | O23: N | P23: N | Q23: -256645 | R23: 0 | S23: 18750 | T23: 2685483.57 | U23: 0 | V23: 109308.82 | W23: 0 | X23: 114879.99 | Y23: 0 | Z23: 79963 | AA23: 62058.93 | AB23: 1270.38 | AC23: 18520.47 | AD23: 0 | AE23: 0 | AF23: 200381.27 | AG23: 13967.73 | AH23: 0 | AI23: 0 | AJ23: 0 | AK23: 0 | AL23: 0 | AM23: 19798.12 | AN23: 79607 | AO23: 1333139.84 | AP23: 914.38 | AQ23: 704942.06 | AR23: 54890.13 | AS23: 151366.29 | AT23: 0 | AU23: 98265.79 | AV23: 17005.88 | AW23: 2641.87 | AX23: 751.98 | AY23: 0 | AZ23: 31228.56 | BA23: 4426.7 | BB23: 66733.16 | BC23: 4905.3 | BD23: 108581.76 | BE23: 42997.34 | BF23: 16305.09 | BG23: 95820.67 | BH23: 17478.85 | BI23: 0 | BJ23: 21069.06 | BK23: 18488.56 | BL23: 717.75 | BM23: 146080.37 | BN23: 79840.06 | BO23: 154387.63 | BP23: 54725.82 | BQ23: 0 | BR23: 0 | BS23: 0 | BT23: 0 | BU23: 0 | BV23: 9672.25 | BW23: 0 | BX23: 0 | BY23: 6000 | BZ23: 0 | CA23: 0 | CB23: 7819 | CC23: 0 | CD23: 0 | CE23: -99110.62 | CF23: 20603.25 | CG23: 0 | CH23: 0 | CI23: 0 | CJ23: -99110.62 | CK23: 20603.25 | CL23: -99110.62
A24: 302 | B24: 2027 | C24: Garden Suburb Junior School | D24: No | F24: Authorised | G24: 0 | H24: 1 | I24: 20232024 | J24: XG24 | K24: Y | L24: Final | M24: Y | N24: Accruals | O24: N | P24: N | Q24: -61244 | R24: 0 | S24: 20032 | T24: 1801594.14 | U24: 0 | V24: 113971.09 | W24: 0 | X24: 137800 | Y24: 4944.42 | Z24: 100689.72 | AA24: 16205 | AB24: 16657.26 | AC24: 22123.32 | AD24: 0 | AE24: 0 | AF24: 37913.85 | AG24: 10557.28 | AH24: 0 | AI24: 0 | AJ24: 0 | AK24: 0 | AL24: 0 | AM24: 22081.87 | AN24: 19293 | AO24: 1121208.48 | AP24: 0 | AQ24: 320429.28 | AR24: 44760.44 | AS24: 106377.67 | AT24: 0 | AU24: 26295.12 | AV24: 10459.95 | AW24: 2024.77 | AX24: 8943.62 | AY24: 0 | AZ24: 13733.69 | BA24: 3286.68 | BB24: 28402.39 | BC24: 3924.81 | BD24: 56323.74 | BE24: 19542.8 | BF24: 11609.49 | BG24: 66610.23 | BH24: 15954.65 | BI24: 0 | BJ24: 17534.93 | BK24: 13314.9 | BL24: 9808.76 | BM24: 99768.35 | BN24: 80392.62 | BO24: 223355.94 | BP24: 32726.96 | BQ24: 0 | BR24: 0 | BS24: 0 | BT24: 0 | BU24: 0 | BV24: 7723.75 | BW24: 0 | BX24: 0 | BY24: 6000 | BZ24: 0 | CA24: 0 | CB24: 0 | CC24: 0 | CD24: 0 | CE24: -94203.32 | CF24: 27755.75 | CG24: 0 | CH24: 0 | CI24: 0 | CJ24: -94203.32 | CK24: 27755.75 | CL24: -94203.32
A25: 302 | B25: 2028 | C25: Garden Suburb Infant School | D25: No | F25: Authorised | G25: 0 | H25: 1 | I25: 20232024 | J25: XG24 | K25: Y | L25: Final | M25: Y | N25: Accruals | O25: N | P25: N | Q25: -174959 | R25: 0 | S25: 14763 | T25: 1410834.31 | U25: 0 | V25: 111300.38 | W25: 0 | X25: 77114.99 | Y25: 4412.99 | Z25: 34963.58 | AA25: 13750 | AB25: 7825.91 | AC25: 492.19 | AD25: 1600 | AE25: 0 | AF25: 7357.95 | AG25: 5680.74 | AH25: 0 | AI25: 0 | AJ25: 0 | AK25: 0 | AL25: 0 | AM25: 11424.37 | AN25: 94132 | AO25: 829220.5 | AP25: 586.2 | AQ25: 233633.82 | AR25: 44588.23 | AS25: 107726.99 | AT25: 0 | AU25: 37889.34 | AV25: 9192.85 | AW25: 1517.8 | AX25: 7987.54 | AY25: 0 | AZ25: 23375.87 | BA25: 2912.74 | BB25: 21316.83 | BC25: 2616.54 | BD25: 39034.33 | BE25: 19542.8 | BF25: 9507.25 | BG25: 20175.82 | BH25: 6712.2 | BI25: 0 | BJ25: 11237.09 | BK25: 9269.13 | BL25: 965.8 | BM25: 83748.24 | BN25: 67711.08 | BO25: 229626.34 | BP25: 33007 | BQ25: 0 | BR25: 0 | BS25: 0 | BT25: 0 | BU25: 0 | BV25: 6475 | BW25: 13664.65 | BX25: 0 | BY25: 6000 | BZ25: 0 | CA25: 0 | CB25: 0 | CC25: 20106.4 | CD25: 0 | CE25: -247171.92 | CF25: 14796.25 | CG25: 0 | CH25: 0 | CI25: 0 | CJ25: -247171.92 | CK25: 14796.25 | CL25: -247171.92
A26: 302 | B26: 2029 | C26: Goldbeaters Primary School | D26: Yes | E26: 3022077 , | F26: Authorised | G26: 0 | H26: 2 | I26: 20232024 | J26: XG24 | K26: Y | L26: Final | M26: Y | N26: Accruals | O26: N | P26: N | Q26: 21927 | R26: 0 | S26: 50711 | T26: 2715656.87 | U26: 0 | V26: 177084.71 | W26: 0 | X26: 232735.02 | Y26: 2812.99 | Z26: 97346.34 | AA26: 0 | AB26: 30400.45 | AC26: 15931.53 | AD26: 0 | AE26: 0 | AF26: 34781.9 | AG26: 7794.14 | AH26: 0 | AI26: 0 | AJ26: 0 | AK26: 0 | AL26: 0 | AM26: 38483.75 | AN26: 66393 | AO26: 1259132.39 | AP26: 0 | AQ26: 1006369.62 | AR26: 198843.33 | AS26: 83908.66 | AT26: 115682.93 | AU26: 269616.62 | AV26: 12302.39 | AW26: 2918.8 | AX26: 693.88 | AY26: 0 | AZ26: 37072.6 | BA26: 4033.28 | BB26: 5197.29 | BC26: 3241.63 | BD26: 51883.47 | BE26: 30600 | BF26: 22216.46 | BG26: 81644 | BH26: 16153.36 | BI26: 0 | BJ26: 26901.71 | BK26: 16256.02 | BL26: 12806.65 | BM26: 87015.26 | BN26: 78562.73 | BO26: 187341.33 | BP26: 43573.2 | BQ26: 0 | BR26: 0 | BS26: 0 | BT26: 0 | BU26: 0 | BV26: 9186.25 | BW26: 0 | BX26: 0 | BY26: 6000 | BZ26: 0 | CA26: 0 | CB26: 0 | CC26: 34835 | CD26: 0 | CE26: -212619.91 | CF26: 25062.25 | CG26: 0 | CH26: 0 | CI26: 0 | CJ26: -212619.91 | CK26: 25062.25 | CL26: -212619.91
A27: 302 | B27: 2031 | C27: Hollickwood Primary School | D27: No | F27: Authorised | G27: 0 | H27: 1 | I27: 20232024 | J27: XG24 | K27: Y | L27: Final | M27: Y | N27: Accruals | O27: N | P27: N | Q27: 18863 | R27: 0 | S27: 30836 | T27: 1298841.52 | U27: 0 | V27: 87477.09 | W27: 0 | X27: 123452.04 | Y27: 12913.03 | Z27: 25418.48 | AA27: 33892.46 | AB27: 10720.35 | AC27: 6474.3 | AD27: 0 | AE27: 0 | AF27: 22051.1 | AG27: 5458.84 | AH27: 0 | AI27: 0 | AJ27: 0 | AK27: 0 | AL27: 0 | AM27: 0 | AN27: 52179.76 | AO27: 664569.84 | AP27: 0 | AQ27: 506639.24 | AR27: 45539.17 | AS27: 86119.61 | AT27: 0 | AU27: 37628.65 | AV27: 3112.83 | AW27: 2216 | AX27: 310.42 | AY27: 0 | AZ27: 9397.39 | BA27: 8521.44 | BB27: 29096.25 | BC27: 4149.45 | BD27: 25322.58 | BE27: 23550 | BF27: 16780.23 | BG27: 46652.2 | BH27: 8387.87 | BI27: 0 | BJ27: 7096.29 | BK27: 8445.22 | BL27: 3024.84 | BM27: 61919.65 | BN27: 62515.06 | BO27: 101156.05 | BP27: 21992.57 | BQ27: 0 | BR27: 0 | BS27: 0 | BT27: 0 | BU27: 0 | BV27: 43546.4 | BW27: 0 | BX27: 0 | BY27: 6000 | BZ27: 0 | CA27: 37264 | CB27: 0 | CC27: 7079.17 | CD27: 0 | CE27: -86400.88 | CF27: 30039.23 | CG27: 0 | CH27: 0 | CI27: 0 | CJ27: -86400.88 | CK27: 30039.23 | CL27: -86400.88
A28: 302 | B28: 2032 | C28: Holly Park Primary School | D28: No | F28: Authorised | G28: 0 | H28: 1 | I28: 20232024 | J28: XG24 | K28: Y | L28: Final | M28: Y | N28: Accruals | O28: N | P28: N | Q28: 2824 | R28: 0 | S28: 0 | T28: 2408705.12 | U28: 0 | V28: 197517.9 | W28: 0 | X28: 144519.02 | Y28: 0 | Z28: 71461.92 | AA28: 101643.28 | AB28: 0 | AC28: 14398.52 | AD28: 0 | AE28: 0 | AF28: 48131.79 | AG28: 20932.78 | AH28: 0 | AI28: 0 | AJ28: 0 | AK28: 0 | AL28: 0 | AM28: 0 | AN28: 102168.76 | AO28: 1401236.76 | AP28: 40317.03 | AQ28: 728214.77 | AR28: 47411.25 | AS28: 53600.54 | AT28: 0 | AU28: 47910.49 | AV28: 10787.55 | AW28: 1212.98 | AX28: 700.52 | AY28: 3127 | AZ28: 19755.89 | BA28: 4066.64 | BB28: 55756.29 | BC28: 4933.58 | BD28: 43778.78 | BE28: 31500 | BF28: 8384.17 | BG28: 130133.36 | BH28: 18812.93 | BI28: 0 | BJ28: 20916.52 | BK28: 13284.58 | BL28: 2700 | BM28: 151858.3 | BN28: 179905.35 | BO28: 69536.08 | BP28: 46753.98 | BQ28: 0 | BR28: 0 | BS28: 1707.75 | BT28: 0 | BU28: 0 | BV28: 9087.25 | BW28: 0 | BX28: 1707.75 | BY28: 6000 | BZ28: 0 | CA28: 10795 | CB28: 0 | CC28: 0 | CD28: 0 | CE28: -26000 | CF28: 0 | CG28: 0 | CH28: 0 | CI28: 0 | CJ28: -26000 | CK28: 0 | CL28: -26000
A29: 302 | B29: 2036 | C29: Livingstone Primary and Nursery School | D29: No | F29: Authorised | G29: 0 | H29: 0 | I29: 20232024 | J29: XG24 | K29: Y | L29: Final | M29: Y | N29: Accruals | O29: N | P29: N | Q29: 762684 | R29: 0 | S29: 0 | T29: 1787815.75 | U29: 0 | V29: 422697.06 | W29: 0 | X29: 108691.48 | Y29: 0 | Z29: 23811.84 | AA29: 7212 | AB29: 65697.15 | AC29: 7110.34 | AD29: 0 | AE29: 0 | AF29: 31109.18 | AG29: 2173.38 | AH29: 0 | AI29: 0 | AJ29: 0 | AK29: 0 | AL29: 0 | AM29: 0 | AN29: 59609.41 | AO29: 1034367.81 | AP29: 0 | AQ29: 673603.48 | AR29: 85433.65 | AS29: 41016.01 | AT29: 0 | AU29: 46826.47 | AV29: 12371.09 | AW29: 1176.82 | AX29: 356.9 | AY29: 0 | AZ29: 31547.83 | BA29: 18146.7 | BB29: 4164.99 | BC29: 2214.01 | BD29: 48377.06 | BE29: 28200 | BF29: 16110.61 | BG29: 80265.58 | BH29: 26735.85 | BI29: 0 | BJ29: 17328.66 | BK29: 11054.29 | BL29: 7043.29 | BM29: 71706.57 | BN29: 1575 | BO29: 115569.55 | BP29: 40952.89 | BQ29: 0 | BR29: 0 | BS29: 20560.87 | BT29: 0 | BU29: 0 | BV29: 6832.3 | BW29: 0 | BX29: 20560.87 | BY29: 6000 | BZ29: 0 | CA29: 27393.17 | CB29: 0 | CC29: 0 | CD29: 0 | CE29: 841905.61 | CF29: 0 | CG29: 0 | CH29: 0 | CI29: 0 | CJ29: 841905.61 | CK29: 0 | CL29: 841905.61
A30: 302 | B30: 2037 | C30: Manorside Primary School | D30: Yes | E30: 3022055 , | F30: Authorised | G30: 0 | H30: 1 | I30: 20232024 | J30: XG24 | K30: Y | L30: Final | M30: Y | N30: Accruals | O30: N | P30: N | Q30: 253709 | R30: 0 | S30: 28803 | T30: 1293199.38 | U30: 0 | V30: 111377.05 | W30: 0 | X30: 50545.02 | Y30: 14384.25 | Z30: 144582.78 | AA30: 24472 | AB30: 41090.37 | AC30: 6785.44 | AD30: 0 | AE30: 0 | AF30: 54934.11 | AG30: 27953.5 | AH30: 0 | AI30: 0 | AJ30: 0 | AK30: 0 | AL30: 0 | AM30: 9059.37 | AN30: 44142 | AO30: 783962.78 | AP30: 0 | AQ30: 440668.44 | AR30: 12605.09 | AS30: 77752.05 | AT30: 0 | AU30: 72939.3 | AV30: 10743.17 | AW30: 1614.4 | AX30: 340.3 | AY30: 0 | AZ30: 21286.51 | BA30: 5243.07 | BB30: 31208.59 | BC30: 2142 | BD30: 77328.27 | BE30: 33177.72 | BF30: 9107.13 | BG30: 56480.29 | BH30: 9634.57 | BI30: 0 | BJ30: 6951.01 | BK30: 3455.33 | BL30: 14260.16 | BM30: 90477.79 | BN30: 12879.25 | BO30: 164579.13 | BP30: 31529.17 | BQ30: 0 | BR30: 0 | BS30: 0 | BT30: 0 | BU30: 0 | BV30: 6989.13 | BW30: 0 | BX30: 0 | BY30: 6000 | BZ30: 0 | CA30: 4641 | CB30: 0 | CC30: 12069 | CD30: 0 | CE30: 105868.75 | CF30: 19082.13 | CG30: 0 | CH30: 0 | CI30: 0 | CJ30: 105868.75 | CK30: 19082.13 | CL30: 105868.75
A31: 302 | B31: 2042 | C31: Monkfrith Primary School | D31: No | F31: Authorised | G31: 0 | H31: 0 | I31: 20232024 | J31: XG24 | K31: Y | L31: Final | M31: Y | N31: Accruals | O31: N | P31: N | Q31: 304390 | R31: 0 | S31: 43169 | T31: 2027101.1 | U31: 0 | V31: 113082.49 | W31: 0 | X31: 35360.02 | Y31: 0 | Z31: 71464.1 | AA31: 21380.08 | AB31: 146936.99 | AC31: 20917.8 | AD31: 3665 | AE31: 0 | AF31: 52183.55 | AG31: 25631.74 | AH31: 0 | AI31: 0 | AJ31: 0 | AK31: 0 | AL31: 0 | AM31: 5953.13 | AN31: 89241 | AO31: 1148670.77 | AP31: 0 | AQ31: 572936.93 | AR31: 40702.79 | AS31: 90799.37 | AT31: 0 | AU31: 187985.43 | AV31: 9817.48 | AW31: 687.5 | AX31: 7468.56 | AY31: 0 | AZ31: 10996.89 | BA31: 3708.6 | BB31: 43657.91 | BC31: 2869.2 | BD31: 45850.39 | BE31: 36600 | BF31: 10975.61 | BG31: 113554.76 | BH31: 9170.18 | BI31: 0 | BJ31: 12267.71 | BK31: 16333.8 | BL31: 11205.82 | BM31: 138879.57 | BN31: 7254.69 | BO31: 101837.41 | BP31: 13385.43 | BQ31: 0 | BR31: 0 | BS31: 0 | BT31: 0 | BU31: 0 | BV31: 8758.75 | BW31: 0 | BX31: 0 | BY31: 6000 | BZ31: 0 | CA31: 10655 | CB31: 15585.48 | CC31: 0 | CD31: 0 | CE31: 279690.2 | CF31: 25687.27 | CG31: 0 | CH31: 0 | CI31: 0 | CJ31: 279690.2 | CK31: 25687.27 | CL31: 279690.2
A32: 302 | B32: 2043 | C32: Moss Hall Junior School | D32: Yes | E32: 3022044 , | F32: Authorised | G32: 0 | H32: 1 | I32: 20232024 | J32: XG24 | K32: Y | L32: Final | M32: Y | N32: Accruals | O32: N | P32: N | Q32: -54210 | R32: 0 | S32: 33421 | T32: 2209424 | U32: 0 | V32: 123544 | W32: 0 | X32: 139995 | Y32: 14378 | Z32: 113992 | AA32: 69307.17 | AB32: 28251 | AC32: 35982 | AD32: 216 | AE32: 0 | AF32: 103179 | AG32: 25642 | AH32: 0 | AI32: 0 | AJ32: 0 | AK32: 0 | AL32: 0 | AM32: 23267 | AN32: 20414 | AO32: 1239321.17 | AP32: 0 | AQ32: 449434.48 | AR32: 38741.44 | AS32: 55802 | AT32: 0 | AU32: 30790.42 | AV32: 10480.23 | AW32: 3533 | AX32: 720 | AY32: 0 | AZ32: 29570 | BA32: 5730 | BB32: 74214 | BC32: 19312 | BD32: 95253 | BE32: 19200 | BF32: 11017 | BG32: 147238.51 | BH32: 10401 | BI32: 0 | BJ32: 37506 | BK32: 16615 | BL32: 0 | BM32: 138152 | BN32: 62990 | BO32: 190601 | BP32: 43632 | BQ32: 0 | BR32: 0 | BS32: 0 | BT32: 0 | BU32: 0 | BV32: 27807 | BW32: 0 | BX32: 0 | BY32: 6000 | BZ32: 0 | CA32: 0 | CB32: 0 | CC32: 8961 | CD32: 0 | CE32: 123126.92 | CF32: 52267 | CG32: 0 | CH32: 0 | CI32: 0 | CJ32: 123126.92 | CK32: 52267 | CL32: 123126.92
A33: 302 | B33: 2044 | C33: Moss Hall Infant School | D33: Yes | E33: 3022043 , | F33: Authorised | G33: 0 | H33: 1 | I33: 20232024 | J33: XG24 | K33: Y | L33: Final | M33: Y | N33: Accruals | O33: N | P33: N | Q33: -59404 | R33: 0 | S33: 24230 | T33: 1922965.98 | U33: 0 | V33: 94076.67 | W33: 0 | X33: 76629.99 | Y33: 10088 | Z33: 0 | AA33: 38155.04 | AB33: 31161.47 | AC33: 0 | AD33: 0 | AE33: 0 | AF33: 28943.02 | AG33: 14396.92 | AH33: 0 | AI33: 0 | AJ33: 0 | AK33: 0 | AL33: 0 | AM33: 11065 | AN33: 161219 | AO33: 873999.91 | AP33: 0 | AQ33: 339230.57 | AR33: 38740.62 | AS33: 120188.96 | AT33: 0 | AU33: 66420.87 | AV33: 7500.78 | AW33: 3155.5 | AX33: 589.3 | AY33: 0 | AZ33: 23052.08 | BA33: 3963.41 | BB33: 40336.92 | BC33: 11836.69 | BD33: 52354.69 | BE33: 19200 | BF33: 10630.33 | BG33: 75767.67 | BH33: 7492.84 | BI33: 0 | BJ33: 21050.74 | BK33: 13883 | BL33: 666.64 | BM33: 127242.96 | BN33: 37055.02 | BO33: 298694 | BP33: 19642.67 | BQ33: 0 | BR33: 0 | BS33: 0 | BT33: 0 | BU33: 0 | BV33: 24899 | BW33: 0 | BX33: 0 | BY33: 6000 | BZ33: 0 | CA33: 0 | CB33: 0 | CC33: 0 | CD33: 0 | CE33: 116600.92 | CF33: 49129 | CG33: 0 | CH33: 0 | CI33: 0 | CJ33: 116600.92 | CK33: 49129 | CL33: 116600.92
A34: 302 | B34: 2045 | C34: Northside Primary School | D34: No | F34: Authorised | G34: 0 | H34: 1 | I34: 20232024 | J34: XG24 | K34: Y | L34: Final | M34: Y | N34: Accruals | O34: N | P34: N | Q34: 25206 | R34: 0 | S34: 22506 | T34: 1456938.82 | U34: 0 | V34: 90291.41 | W34: 0 | X34: 55094.98 | Y34: 7524.42 | Z34: 40331.05 | AA34: 8254.84 | AB34: 88061.76 | AC34: 2673.86 | AD34: 0 | AE34: 0 | AF34: 100400.46 | AG34: 39417.03 | AH34: 0 | AI34: 0 | AJ34: 0 | AK34: 0 | AL34: 0 | AM34: 8563.76 | AN34: 46048 | AO34: 818424.36 | AP34: 0 | AQ34: 503936.99 | AR34: 70319.83 | AS34: 58276.59 | AT34: 0 | AU34: 47071.59 | AV34: 8406.46 | AW34: 2162.97 | AX34: 348.6 | AY34: 0 | AZ34: 8293.71 | BA34: 0 | BB34: 133.02 | BC34: 2890.67 | BD34: 50985.55 | BE34: 30464 | BF34: 9220.81 | BG34: 105667.59 | BH34: 9349.66 | BI34: 0 | BJ34: 8823.24 | BK34: 9336.9 | BL34: 20674.62 | BM34: 70840.46 | BN34: 12674.55 | BO34: 87203.37 | BP34: 35862.49 | BQ34: 0 | BR34: 0 | BS34: 1956.18 | BT34: 0 | BU34: 0 | BV34: 6844 | BW34: 0 | BX34: 1956.18 | BY34: 6000 | BZ34: 0 | CA34: 20759.78 | CB34: 0 | CC34: 10546.4 | CD34: 0 | CE34: -4517.82 | CF34: 0 | CG34: 0 | CH34: 0 | CI34: 0 | CJ34: -4517.82 | CK34: 0 | CL34: -4517.82
A35: 302 | B35: 2053 | C35: Shalom Noam Primary School | D35: No | F35: Authorised | G35: 0 | H35: 1 | I35: 20232024 | J35: XG24 | K35: Y | L35: Final | M35: Y | N35: Accruals | O35: N | P35: N | Q35: 4308 | R35: 0 | S35: 0 | T35: 1256768.61 | U35: 0 | V35: 72024.86 | W35: 0 | X35: 5820.04 | Y35: 59753.3 | Z35: 36232.82 | AA35: 0 | AB35: 6605.28 | AC35: 1496.94 | AD35: 0 | AE35: 0 | AF35: 9115.75 | AG35: 593371.5 | AH35: 0 | AI35: 0 | AJ35: 0 | AK35: 0 | AL35: 0 | AM35: 500 | AN35: 60248.5 | AO35: 719365.27 | AP35: 0 | AQ35: 774930.92 | AR35: 30173.48 | AS35: 159067.59 | AT35: 0 | AU35: 0 | AV35: 8440.82 | AW35: 7832.5 | AX35: 346.94 | AY35: 0 | AZ35: 17195.85 | BA35: 23026.01 | BB35: 36554.62 | BC35: 3020.48 | BD35: 21666.89 | BE35: 5406 | BF35: 71668.32 | BG35: 68124.74 | BH35: 8561.38 | BI35: 0 | BJ35: 24024.28 | BK35: 5811.01 | BL35: 392.72 | BM35: 78606.44 | BN35: 3354.82 | BO35: 52618.84 | BP35: 17240.12 | BQ35: 0 | BR35: 0 | BS35: 0 | BT35: 0 | BU35: 0 | BV35: 0 | BW35: 0 | BX35: 0 | BY35: 6000 | BZ35: 0 | CA35: 0 | CB35: 0 | CC35: 0 | CD35: 0 | CE35: -31184.44 | CF35: 0 | CG35: 0 | CH35: 0 | CI35: 0 | CJ35: -31184.44 | CK35: 0 | CL35: -31184.44
A36: 302 | B36: 2054 | C36: Woodridge Primary School | D36: No | F36: Authorised | G36: 0 | H36: 0 | I36: 20232024 | J36: XG24 | K36: Y | L36: Final | M36: Y | N36: Accruals | O36: N | P36: N | Q36: 74277 | R36: 0 | S36: 30508 | T36: 1071535.17 | U36: 0 | V36: 75512.41 | W36: 0 | X36: 18490.02 | Y36: 1260 | Z36: 41178.12 | AA36: 38487.14 | AB36: 29207.02 | AC36: 11257.72 | AD36: 2015.5 | AE36: 0 | AF36: 29192.95 | AG36: 24701.18 | AH36: 0 | AI36: 0 | AJ36: 0 | AK36: 0 | AL36: 0 | AM36: 3275.63 | AN36: 52063 | AO36: 632051.6 | AP36: 0 | AQ36: 174028.75 | AR36: 44326.6 | AS36: 65187.2 | AT36: 0 | AU36: 48199.13 | AV36: 4545.54 | AW36: 927 | AX36: 2731.93 | AY36: 0 | AZ36: 22915.3 | BA36: 196.64 | BB36: 19019.57 | BC36: 4534.3 | BD36: 18823.09 | BE36: 19086.75 | BF36: 11094.87 | BG36: 41167.16 | BH36: 13590 | BI36: 0 | BJ36: 11283.57 | BK36: 7933.56 | BL36: 11896.91 | BM36: 74169.73 | BN36: 11627.21 | BO36: 152045.88 | BP36: 15803.4 | BQ36: 0 | BR36: 0 | BS36: 0 | BT36: 0 | BU36: 0 | BV36: 6328.75 | BW36: 0 | BX36: 0 | BY36: 6000 | BZ36: 0 | CA36: 23773 | CB36: 0 | CC36: 6109.5 | CD36: 0 | CE36: 65267.17 | CF36: 6954.25 | CG36: 0 | CH36: 0 | CI36: 0 | CJ36: 65267.17 | CK36: 6954.25 | CL36: 65267.17
A37: 302 | B37: 2055 | C37: Tudor Primary School | D37: Yes | E37: 3022037 , | F37: Authorised | G37: 0 | H37: 2 | I37: 20232024 | J37: XG24 | K37: Y | L37: Final | M37: Y | N37: Accruals | O37: N | P37: N | Q37: -134832 | R37: 0 | S37: 32761 | T37: 1404475.28 | U37: 0 | V37: 79423.39 | W37: 0 | X37: 89482.47 | Y37: 15296.54 | Z37: 94212.12 | AA37: 2356.65 | AB37: 18621.73 | AC37: 8198.41 | AD37: 0 | AE37: 0 | AF37: 23839.05 | AG37: 7091.06 | AH37: 0 | AI37: 0 | AJ37: 0 | AK37: 0 | AL37: 0 | AM37: 16776.01 | AN37: 44041 | AO37: 813302.76 | AP37: 0 | AQ37: 430093.98 | AR37: 34785.3 | AS37: 41602.37 | AT37: 0 | AU37: 46913.55 | AV37: 6161.76 | AW37: 1045 | AX37: 368.52 | AY37: 0 | AZ37: 18034.93 | BA37: 4258.4 | BB37: 33739.27 | BC37: 12191.33 | BD37: 48154.69 | BE37: 32448.73 | BF37: 10053.27 | BG37: 91713.95 | BH37: 6282.45 | BI37: 0 | BJ37: 10646.9 | BK37: 3248.38 | BL37: 3675.58 | BM37: 66230.55 | BN37: 39072.07 | BO37: 212513.79 | BP37: 35007.21 | BQ37: 200 | BR37: 0 | BS37: 0 | BT37: 0 | BU37: 0 | BV37: 6589.75 | BW37: 0 | BX37: 0 | BY37: 6000 | BZ37: 0 | CA37: 0 | CB37: 0 | CC37: 15730.72 | CD37: 0 | CE37: -332763.03 | CF37: 23620.03 | CG37: 0 | CH37: 0 | CI37: 0 | CJ37: -332763.03 | CK37: 23620.03 | CL37: -332763.03
A38: 302 | B38: 2057 | C38: Underhill School | D38: No | F38: Authorised | G38: 0 | H38: 0 | I38: 20232024 | J38: XG24 | K38: Y | L38: Final | M38: Y | N38: Accruals | O38: N | P38: N | Q38: 234098 | R38: 12537 | S38: 48620 | T38: 3054511.95 | U38: 0 | V38: 209531.15 | W38: 0 | X38: 291115.03 | Y38: 7300 | Z38: 100875.63 | AA38: 13327.5 | AB38: 62022.03 | AC38: 9629.72 | AD38: 0 | AE38: 8063 | AF38: 31029.93 | AG38: 15292.22 | AH38: 0 | AI38: 232107.6 | AJ38: 2074 | AK38: 0 | AL38: 0 | AM38: 29108.5 | AN38: 87765 | AO38: 1498759.13 | AP38: 0 | AQ38: 858538.86 | AR38: 71654.41 | AS38: 117895.83 | AT38: 0 | AU38: 92617.01 | AV38: 14326.94 | AW38: 7154.59 | AX38: 836.64 | AY38: 0 | AZ38: 23149.06 | BA38: 11013.98 | BB38: 24679.01 | BC38: 13685.83 | BD38: 73020.48 | BE38: 53000 | BF38: 19359.61 | BG38: 92034.58 | BH38: 10496.37 | BI38: 0 | BJ38: 20642.29 | BK38: 17861.76 | BL38: 22320.57 | BM38: 140239.94 | BN38: 202213.65 | BO38: 282831.85 | BP38: 32329.17 | BQ38: 0 | BR38: 0 | BS38: 0 | BT38: 167216.91 | BU38: 62115.76 | BV38: 9773.95 | BW38: 0 | BX38: 0 | BY38: 6000 | BZ38: 0 | CA38: 0 | CB38: 0 | CC38: 35194.56 | CD38: 0 | CE38: 453008.1 | CF38: 23199.39 | CG38: 0 | CH38: 17385.93 | CI38: 0 | CJ38: 470394.03 | CK38: 23199.39 | CL38: 453008.1
A39: 302 | B39: 2060 | C39: Whitings Hill Primary School | D39: No | F39: Authorised | G39: 0 | H39: 0 | I39: 20232024 | J39: XG24 | K39: Y | L39: Final | M39: Y | N39: Accruals | O39: N | P39: N | Q39: 222904 | R39: 0 | S39: 34699 | T39: 2860467.13 | U39: 0 | V39: 181528.21 | W39: 0 | X39: 186330.01 | Y39: 1600 | Z39: 68148.99 | AA39: 103368.96 | AB39: 63037.35 | AC39: 9497.4 | AD39: 0 | AE39: 0 | AF39: 41722.02 | AG39: 6451.25 | AH39: 0 | AI39: 0 | AJ39: 0 | AK39: 0 | AL39: 0 | AM39: 22172.5 | AN39: 88763 | AO39: 1326283.43 | AP39: 0 | AQ39: 958232.6 | AR39: 72989.32 | AS39: 104032.24 | AT39: 0 | AU39: 119989.17 | AV39: 16021.99 | AW39: 2126.71 | AX39: 700.52 | AY39: 0 | AZ39: 53296.97 | BA39: 9307 | BB39: 46469.05 | BC39: 9473.96 | BD39: 191518.35 | BE39: 93100 | BF39: 16544.95 | BG39: 85422.37 | BH39: 19053.1 | BI39: 0 | BJ39: 14660.94 | BK39: 17731.58 | BL39: 10914.52 | BM39: 144492.89 | BN39: 56506.59 | BO39: 119168.43 | BP39: 55929.87 | BQ39: 0 | BR39: 0 | BS39: 0 | BT39: 0 | BU39: 0 | BV39: 9087.25 | BW39: 49189.37 | BX39: 0 | BY39: 6000 | BZ39: 0 | CA39: 8239 | CB39: 61001.47 | CC39: 7668 | CD39: 0 | CE39: 312024.27 | CF39: 16067.15 | CG39: 0 | CH39: 0 | CI39: 0 | CJ39: 312024.27 | CK39: 16067.15 | CL39: 312024.27
A40: 302 | B40: 2067 | C40: Chalgrove Primary School | D40: No | F40: Authorised | G40: 0 | H40: 1 | I40: 20232024 | J40: XG24 | K40: Y | L40: Final | M40: Y | N40: Accruals | O40: N | P40: N | Q40: 27365 | R40: 0 | S40: 20908 | T40: 1349076.67 | U40: 0 | V40: 389581.82 | W40: 0 | X40: 58200 | Y40: 8060 | Z40: 79617.34 | AA40: 11678.8 | AB40: 22563.21 | AC40: 7643.41 | AD40: 0 | AE40: 0 | AF40: 21549.49 | AG40: 4055.42 | AH40: 0 | AI40: 0 | AJ40: 0 | AK40: 0 | AL40: 0 | AM40: 0 | AN40: 62891.43 | AO40: 906372 | AP40: 0 | AQ40: 372008.81 | AR40: 35810.34 | AS40: 83985.74 | AT40: 0 | AU40: 9898.72 | AV40: 6752.79 | AW40: 930 | AX40: 363.54 | AY40: 34.85 | AZ40: 20285.04 | BA40: 9426.54 | BB40: 37884.36 | BC40: 2378.07 | BD40: 40869.3 | BE40: 29785.87 | BF40: 12816 | BG40: 67012.82 | BH40: 20570 | BI40: 0 | BJ40: 12241.4 | BK40: 8516.91 | BL40: 6247.07 | BM40: 75812.68 | BN40: 49478.62 | BO40: 247559.57 | BP40: 25256.18 | BQ40: 0 | BR40: 0 | BS40: 0 | BT40: 0 | BU40: 0 | BV40: 6508.75 | BW40: 0 | BX40: 0 | BY40: 6000 | BZ40: 0 | CA40: 14568.55 | CB40: 0 | CC40: 0 | CD40: 0 | CE40: -40014.63 | CF40: 12848.2 | CG40: 0 | CH40: 0 | CI40: 0 | CJ40: -40014.63 | CK40: 12848.2 | CL40: -40014.63
A41: 302 | B41: 2070 | C41: Sunnyfields Primary School | D41: No | F41: Authorised | G41: 0 | H41: 0 | I41: 20232024 | J41: XG24 | K41: Y | L41: Final | M41: Y | N41: Accruals | O41: N | P41: N | Q41: 308372 | R41: 0 | S41: 18368 | T41: 1445214.34 | U41: 0 | V41: 102072.2 | W41: 0 | X41: 110580.04 | Y41: 6931.43 | Z41: 33739.75 | AA41: 13530.05 | AB41: 13042.83 | AC41: 7888.52 | AD41: 0 | AE41: 0 | AF41: 31801.24 | AG41: 2219.07 | AH41: 0 | AI41: 0 | AJ41: 0 | AK41: 0 | AL41: 0 | AM41: 18934.38 | AN41: 48422 | AO41: 837676.54 | AP41: 352.79 | AQ41: 336590.7 | AR41: 59358.82 | AS41: 127104.26 | AT41: 0 | AU41: 38130 | AV41: 75159.51 | AW41: 3615 | AX41: 345.28 | AY41: 0 | AZ41: 11826.9 | BA41: 1537.99 | BB41: 1729.52 | BC41: 5865.02 | BD41: 27337.27 | BE41: 25199.5 | BF41: 6949.23 | BG41: 67327.21 | BH41: 14097.3 | BI41: 0 | BJ41: 13954.64 | BK41: 8791.52 | BL41: 5789.4 | BM41: 76687.3 | BN41: 7192.6 | BO41: 40626.63 | BP41: 20639.83 | BQ41: 0 | BR41: 0 | BS41: 30240 | BT41: 0 | BU41: 0 | BV41: 6724.75 | BW41: 0 | BX41: 30240 | BY41: 6000 | BZ41: 0 | CA41: 0 | CB41: 45831.33 | CC41: 9500.9 | CD41: 0 | CE41: 298623.09 | CF41: 0.52 | CG41: 0 | CH41: 0 | CI41: 0 | CJ41: 298623.09 | CK41: 0.52 | CL41: 298623.09
A42: 302 | B42: 2072 | C42: Queenswell Junior School | D42: Yes | E42: 3022071 , | F42: Authorised | G42: 0 | H42: 0 | I42: 20232024 | J42: XG24 | K42: Y | L42: Final | M42: Y | N42: Accruals | O42: N | P42: N | Q42: 93855 | R42: 0 | S42: 31494 | T42: 2901785.86 | U42: 0 | V42: 543651.44 | W42: 0 | X42: 217794.97 | Y42: 3430 | Z42: 130420.87 | AA42: 42371.49 | AB42: 93795.07 | AC42: 17589.53 | AD42: 7200 | AE42: 23433.94 | AF42: 49046.4 | AG42: 18215.04 | AH42: 0 | AI42: 0 | AJ42: 0 | AK42: 0 | AL42: 0 | AM42: 21550.49 | AN42: 78525 | AO42: 1708812.99 | AP42: 0 | AQ42: 1038760.3 | AR42: 75330.75 | AS42: 192344.18 | AT42: 0 | AU42: 80296.71 | AV42: 19937.24 | AW42: 5933 | AX42: 10262.64 | AY42: 9538.87 | AZ42: 45055.84 | BA42: 13826.75 | BB42: 75729.23 | BC42: 14879.36 | BD42: 63491.66 | BE42: 46825.74 | BF42: 21598.5 | BG42: 83964.06 | BH42: 14694.29 | BI42: 0 | BJ42: 26699.91 | BK42: 16966.04 | BL42: 16170.13 | BM42: 114165.48 | BN42: 93114.23 | BO42: 286355.56 | BP42: 20822.49 | BQ42: 0 | BR42: 0 | BS42: 66977 | BT42: 0 | BU42: 0 | BV42: 52898.25 | BW42: 0 | BX42: 66977 | BY42: 6000 | BZ42: 0 | CA42: 105730.33 | CB42: 0 | CC42: 14595 | CD42: 0 | CE42: 80112.15 | CF42: 31043.92 | CG42: 0 | CH42: 0 | CI42: 0 | CJ42: 80112.15 | CK42: 31043.92 | CL42: 80112.15
A43: 302 | B43: 2073 | C43: Danegrove Primary School | D43: No | F43: Authorised | G43: 0 | H43: 1 | I43: 20232024 | J43: XG24 | K43: Y | L43: Final | M43: Y | N43: Accruals | O43: N | P43: N | Q43: -68537 | R43: -1965 | S43: 31781 | T43: 3360428.46 | U43: 0 | V43: 344137.19 | W43: 0 | X43: 296841.98 | Y43: 13870.4 | Z43: 82120.32 | AA43: 5200.25 | AB43: 126957.08 | AC43: 26342.67 | AD43: 0 | AE43: 0 | AF43: 40086.25 | AG43: 17499.98 | AH43: 0 | AI43: 0 | AJ43: 0 | AK43: 0 | AL43: 0 | AM43: 46590.01 | AN43: 91258 | AO43: 1795658.13 | AP43: 0 | AQ43: 1105366.45 | AR43: 195053.02 | AS43: 131470.14 | AT43: 14617.67 | AU43: 219507.08 | AV43: 16216.68 | AW43: 5822.19 | AX43: 1039.16 | AY43: 0 | AZ43: 18491.6 | BA43: 18047.82 | BB43: 4648.32 | BC43: 5983.56 | BD43: 146240.63 | BE43: 52298.4 | BF43: 26815.41 | BG43: 91040.22 | BH43: 24747.55 | BI43: 0 | BJ43: 36694.4 | BK43: 28521.14 | BL43: 17683.22 | BM43: 260963.27 | BN43: 0 | BO43: 178497.24 | BP43: 44204.32 | BQ43: 0 | BR43: 0 | BS43: 0 | BT43: 0 | BU43: 0 | BV43: 21373.92 | BW43: 0 | BX43: 0 | BY43: 6000 | BZ43: 0 | CA43: 27608.85 | CB43: 0 | CC43: 13490 | CD43: 0 | CE43: -56832.03 | CF43: 12056.07 | CG43: 0 | CH43: -1965 | CI43: 0 | CJ43: -58797.03 | CK43: 12056.07 | CL43: -56832.03
A44: 302 | B44: 2076 | C44: Wessex Gardens Primary School | D44: No | F44: Authorised | G44: 0 | H44: 0 | I44: 20232024 | J44: XG24 | K44: Y | L44: Final | M44: Y | N44: Accruals | O44: N | P44: N | Q44: 157115 | R44: 0 | S44: 24093 | T44: 1964786.15 | U44: 0 | V44: 140890.43 | W44: 0 | X44: 164415.03 | Y44: 200 | Z44: 98702.84 | AA44: 79205.5 | AB44: 29458.83 | AC44: 11223.29 | AD44: 0 | AE44: 890 | AF44: 8531.5 | AG44: 4224.54 | AH44: 0 | AI44: 0 | AJ44: 0 | AK44: 0 | AL44: 0 | AM44: 27691.26 | AN44: 57699 | AO44: 1008286.01 | AP44: 2478.45 | AQ44: 423943.89 | AR44: 9880.16 | AS44: 216622.98 | AT44: 0 | AU44: 49178.07 | AV44: 10714.41 | AW44: 5610.18 | AX44: 534.52 | AY44: 0 | AZ44: 23134.69 | BA44: 3456.86 | BB44: 80433.55 | BC44: 9494.76 | BD44: 99735.23 | BE44: 31250 | BF44: 10850.02 | BG44: 44780.4 | BH44: 28386.64 | BI44: 0 | BJ44: 15094.03 | BK44: 13758.07 | BL44: 7778.01 | BM44: 103567.79 | BN44: 67328 | BO44: 242556.53 | BP44: 30618.19 | BQ44: 0 | BR44: 0 | BS44: 25003 | BT44: 0 | BU44: 0 | BV44: 7998.25 | BW44: 20375 | BX44: 25003 | BY44: 6000 | BZ44: 0 | CA44: 41237.6 | CB44: 7875 | CC44: 7949.6 | CD44: 0 | CE44: 180558.93 | CF44: 20407.05 | CG44: 0 | CH44: 0 | CI44: 0 | CJ44: 180558.93 | CK44: 20407.05 | CL44: 180558.93
A45: 302 | B45: 2077 | C45: The Orion Primary School | D45: Yes | E45: 3022029 , | F45: Authorised | G45: 0 | H45: 2 | I45: 20232024 | J45: XG24 | K45: Y | L45: Final | M45: Y | N45: Accruals | O45: N | P45: N | Q45: -147250 | R45: 0 | S45: 51626 | T45: 5883581.48 | U45: 0 | V45: 785217.2 | W45: 0 | X45: 598544 | Y45: 1874.42 | Z45: 106116.99 | AA45: 14647.5 | AB45: 139971.35 | AC45: 36872.89 | AD45: 0 | AE45: 0 | AF45: 91826.3 | AG45: 30257.93 | AH45: 0 | AI45: 0 | AJ45: 0 | AK45: 0 | AL45: 0 | AM45: 78736.93 | AN45: 143551 | AO45: 3507231.71 | AP45: 0 | AQ45: 2104772.04 | AR45: 360597.77 | AS45: 283316.15 | AT45: 156877.79 | AU45: 350810.71 | AV45: 32168.3 | AW45: 7283.19 | AX45: 1392.74 | AY45: 0 | AZ45: 130253.71 | BA45: 21197.12 | BB45: 14736 | BC45: 45726.33 | BD45: 201165.75 | BE45: 0 | BF45: 19696.91 | BG45: 298826.54 | BH45: 21880.01 | BI45: 0 | BJ45: 98513.2 | BK45: 34794.67 | BL45: 53030.73 | BM45: 252883.83 | BN45: 140725.13 | BO45: 430324.98 | BP45: 84679.84 | BQ45: 0 | BR45: 0 | BS45: 0 | BT45: 0 | BU45: 796.15 | BV45: 14386 | BW45: 0 | BX45: 0 | BY45: 6000 | BZ45: 0 | CA45: 39034.95 | CB45: 22545 | CC45: 0 | CD45: 0 | CE45: -888937.16 | CF45: 4432.05 | CG45: 0 | CH45: -796.15 | CI45: 0 | CJ45: -889733.31 | CK45: 4432.05 | CL45: -888937.16
A46: 302 | B46: 2078 | C46: Pardes House Primary School | D46: No | F46: Authorised | G46: 0 | H46: 1 | I46: 20232024 | J46: XG24 | K46: Y | L46: Final | M46: Y | N46: Accruals | O46: N | P46: N | Q46: -220285 | R46: 0 | S46: 1378 | T46: 1691229.41 | U46: 0 | V46: 78425.28 | W46: 0 | X46: 30554.99 | Y46: 61937.33 | Z46: 83328 | AA46: 0 | AB46: 7919.99 | AC46: 9.85 | AD46: 9800 | AE46: 1976 | AF46: 27418.51 | AG46: 125630.82 | AH46: 0 | AI46: 0 | AJ46: 0 | AK46: 0 | AL46: 0 | AM46: 0 | AN46: 58783.63 | AO46: 1055097.33 | AP46: 0 | AQ46: 328136.76 | AR46: 35509.15 | AS46: 182071.35 | AT46: 0 | AU46: 37911.4 | AV46: 5438.7 | AW46: 2276.25 | AX46: 8053.03 | AY46: 0 | AZ46: 60449.96 | BA46: 0 | BB46: 45433.08 | BC46: 6474.31 | BD46: 35748.39 | BE46: 0 | BF46: 80620.97 | BG46: 92572.76 | BH46: 7463.98 | BI46: 0 | BJ46: 9677.1 | BK46: 5656.84 | BL46: 7958.4 | BM46: 59160.12 | BN46: 70450.6 | BO46: 76811.5 | BP46: 0 | BQ46: 0 | BR46: 0 | BS46: 0 | BT46: 0 | BU46: 0 | BV46: 0 | BW46: 0 | BX46: 0 | BY46: 6000 | BZ46: 0 | CA46: 0 | CB46: 0 | CC46: 0 | CD46: 0 | CE46: -256243.17 | CF46: 1378 | CG46: 0 | CH46: 0 | CI46: 0 | CJ46: -256243.17 | CK46: 1378 | CL46: -256243.17
A47: 302 | B47: 2079 | C47: Beis Yaakov Primary School | D47: No | F47: Authorised | G47: 0 | H47: 0 | I47: 20232024 | J47: XG24 | K47: Y | L47: Final | M47: Y | N47: Accruals | O47: N | P47: N | Q47: -56282 | R47: 0 | S47: 0 | T47: 2213022.24 | U47: 0 | V47: 31374.68 | W47: 0 | X47: 20370.02 | Y47: 0 | Z47: 92971.85 | AA47: 0 | AB47: 0 | AC47: 0 | AD47: 0 | AE47: 0 | AF47: 4941.35 | AG47: 0 | AH47: 0 | AI47: 0 | AJ47: 0 | AK47: 0 | AL47: 0 | AM47: 0 | AN47: 111121.08 | AO47: 1486837.4 | AP47: 0 | AQ47: 192759.3 | AR47: 15784.59 | AS47: 127878.6 | AT47: 0 | AU47: 51701.71 | AV47: 11708.38 | AW47: 3332.5 | AX47: 687.24 | AY47: 0 | AZ47: 42113.61 | BA47: 0 | BB47: 69472.78 | BC47: 13243.24 | BD47: 43163.93 | BE47: 34473.6 | BF47: 21630.77 | BG47: 18943.87 | BH47: 22277 | BI47: 0 | BJ47: 19856.03 | BK47: 17411.46 | BL47: 84992.57 | BM47: 41046.29 | BN47: 0 | BO47: 39498.27 | BP47: 46986.89 | BQ47: 0 | BR47: 0 | BS47: 0 | BT47: 0 | BU47: 0 | BV47: 0 | BW47: 0 | BX47: 0 | BY47: 6000 | BZ47: 0 | CA47: 0 | CB47: 0 | CC47: 0 | CD47: 0 | CE47: 11719.19 | CF47: 0 | CG47: 0 | CH47: 0 | CI47: 0 | CJ47: 11719.19 | CK47: 0 | CL47: 11719.19
A48: 302 | B48: 3300 | C48: All Saints' CE NW2 | D48: No | F48: Authorised | G48: 0 | H48: 0 | I48: 20232024 | J48: XG24 | K48: Y | L48: Final | M48: Y | N48: Accruals | O48: N | P48: N | Q48: 94219 | R48: 0 | S48: 0 | T48: 1084094.58 | U48: 0 | V48: 76068.61 | W48: 0 | X48: 133860.04 | Y48: 400 | Z48: 18960.22 | AA48: 0 | AB48: 17490.57 | AC48: 3049.45 | AD48: 0 | AE48: 0 | AF48: 8501.5 | AG48: 5747.92 | AH48: 0 | AI48: 0 | AJ48: 0 | AK48: 0 | AL48: 0 | AM48: 13195 | AN48: 30051 | AO48: 565161.04 | AP48: 0 | AQ48: 150424.55 | AR48: 42614.59 | AS48: 28069.94 | AT48: 0 | AU48: 17284.06 | AV48: 627 | AW48: 1805.89 | AX48: 268.92 | AY48: 0 | AZ48: 11365.95 | BA48: 1994.28 | BB48: 24888.25 | BC48: 5101.65 | BD48: 29133.69 | BE48: 3068 | BF48: 6097.94 | BG48: 62150.66 | BH48: 15343.99 | BI48: 0 | BJ48: 10354.57 | BK48: 6300.18 | BL48: 1561.95 | BM48: 56186.37 | BN48: 64451.07 | BO48: 223355.8 | BP48: 37119.68 | BQ48: 0 | BR48: 0 | BS48: 0 | BT48: 0 | BU48: 0 | BV48: 0 | BW48: 0 | BX48: 0 | BY48: 6000 | BZ48: 0 | CA48: 0 | CB48: 0 | CC48: 0 | CD48: 0 | CE48: 120907.87 | CF48: 0 | CG48: 0 | CH48: 0 | CI48: 0 | CJ48: 120907.87 | CK48: 0 | CL48: 120907.87
A49: 302 | B49: 3302 | C49: Christ Church Primary School | D49: No | F49: Authorised | G49: 0 | H49: 0 | I49: 20232024 | J49: XG24 | K49: Y | L49: Final | M49: Y | N49: Accruals | O49: N | P49: N | Q49: 367095 | R49: 0 | S49: 0 | T49: 1171653.19 | U49: 0 | V49: 74150.7 | W49: 0 | X49: 41054.97 | Y49: 19072.99 | Z49: 32638.56 | AA49: 8077.75 | AB49: 50022.11 | AC49: 13466.5 | AD49: 0 | AE49: 5040 | AF49: 54861.46 | AG49: 34874.95 | AH49: 0 | AI49: 0 | AJ49: 0 | AK49: 0 | AL49: 0 | AM49: 6023.75 | AN49: 57977 | AO49: 750594.82 | AP49: 0 | AQ49: 312595.24 | AR49: 44784.42 | AS49: 62848.02 | AT49: 0 | AU49: 42733.02 | AV49: 2378.3 | AW49: 3591.91 | AX49: 8508.69 | AY49: 0 | AZ49: 18303.42 | BA49: 639.03 | BB49: 19985.32 | BC49: 1552.05 | BD49: 35969.66 | BE49: 4710.29 | BF49: 2672.54 | BG49: 97798.98 | BH49: 13883.04 | BI49: 0 | BJ49: 7031.76 | BK49: 11258.15 | BL49: 13881.66 | BM49: 82913.44 | BN49: 179 | BO49: 25796.32 | BP49: 23763.95 | BQ49: 0 | BR49: 0 | BS49: 0 | BT49: 0 | BU49: 0 | BV49: 0 | BW49: 0 | BX49: 0 | BY49: 6000 | BZ49: 0 | CA49: 0 | CB49: 0 | CC49: 0 | CD49: 0 | CE49: 347635.9 | CF49: 0 | CG49: 0 | CH49: 0 | CI49: 0 | CJ49: 347635.9 | CK49: 0 | CL49: 347635.9
A50: 302 | B50: 3304 | C50: Holy Trinity CofE Primary School | D50: No | F50: Authorised | G50: 0 | H50: 0 | I50: 20232024 | J50: XG24 | K50: Y | L50: Final | M50: Y | N50: Accruals | O50: N | P50: N | Q50: -84418 | R50: 0 | S50: 0 | T50: 1215853.76 | U50: 0 | V50: 146180.91 | W50: 0 | X50: 66550.03 | Y50: 7881.56 | Z50: 33388.56 | AA50: 0 | AB50: 53840.15 | AC50: 9174.71 | AD50: 0 | AE50: 0 | AF50: 12704.25 | AG50: 14176.48 | AH50: 0 | AI50: 0 | AJ50: 0 | AK50: 0 | AL50: 0 | AM50: 11482.51 | AN50: 49507 | AO50: 554974.27 | AP50: 3791.41 | AQ50: 302075.87 | AR50: 41036.57 | AS50: 69042.15 | AT50: 0 | AU50: 30265.69 | AV50: 16917.96 | AW50: 11037.26 | AX50: 330.34 | AY50: 0 | AZ50: 15426.21 | BA50: 0 | BB50: 28031.72 | BC50: 3114.77 | BD50: 35707.89 | BE50: 3614 | BF50: 11377.62 | BG50: 38573.27 | BH50: 5917.9 | BI50: 0 | BJ50: 9007.24 | BK50: 8026.61 | BL50: 4321.87 | BM50: 75226.95 | BN50: 83923.49 | BO50: 84468.83 | BP50: 58874.37 | BQ50: 0 | BR50: 0 | BS50: 0 | BT50: 0 | BU50: 0 | BV50: 0 | BW50: 0 | BX50: 0 | BY50: 6000 | BZ50: 0 | CA50: 0 | CB50: 0 | CC50: 0 | CD50: 0 | CE50: 41237.66 | CF50: 0 | CG50: 0 | CH50: 0 | CI50: 0 | CJ50: 41237.66 | CK50: 0 | CL50: 41237.66
A51: 302 | B51: 3305 | C51: Monken Hadley CofE Primary School | D51: No | F51: Authorised | G51: 0 | H51: 0 | I51: 20232024 | J51: XG24 | K51: Y | L51: Final | M51: Y | N51: Accruals | O51: N | P51: N | Q51: 43774 | R51: 0 | S51: 0 | T51: 812445.33 | U51: 0 | V51: 23145.27 | W51: 0 | X51: 24354.99 | Y51: 200 | Z51: 71161.67 | AA51: 5370 | AB51: 7936.26 | AC51: 6843.12 | AD51: 0 | AE51: 476 | AF51: 19677.19 | AG51: 5178.07 | AH51: 0 | AI51: 0 | AJ51: 0 | AK51: 0 | AL51: 0 | AM51: 4055.01 | AN51: 40979 | AO51: 534768.46 | AP51: 0 | AQ51: 143477.19 | AR51: 46793.15 | AS51: 41925.07 | AT51: 0 | AU51: 35577.51 | AV51: 4671.68 | AW51: 1553 | AX51: 245.68 | AY51: 0 | AZ51: 11499.82 | BA51: 0 | BB51: 1021.88 | BC51: 1059.09 | BD51: 14042.08 | BE51: 1587.2 | BF51: 5470.2 | BG51: 39240.2 | BH51: 4894.12 | BI51: 0 | BJ51: 9616.76 | BK51: 4719.72 | BL51: 4812.78 | BM51: 50405.47 | BN51: 1000 | BO51: 20380.15 | BP51: 29358.82 | BQ51: 0 | BR51: 0 | BS51: 0 | BT51: 0 | BU51: 0 | BV51: 0 | BW51: 0 | BX51: 0 | BY51: 6000 | BZ51: 0 | CA51: 0 | CB51: 0 | CC51: 0 | CD51: 0 | CE51: 57475.88 | CF51: 0 | CG51: 0 | CH51: 0 | CI51: 0 | CJ51: 57475.88 | CK51: 0 | CL51: 57475.88
A52: 302 | B52: 3307 | C52: St John's CofE Junior Mixed and Infant School N11 | D52: No | F52: Authorised | G52: 0 | H52: 0 | I52: 20232024 | J52: XG24 | K52: Y | L52: Final | M52: Y | N52: Accruals | O52: N | P52: N | Q52: 57845 | R52: 0 | S52: 0 | T52: 1232447.27 | U52: 0 | V52: 46407.08 | W52: 0 | X52: 40360 | Y52: 3644.42 | Z52: 37295.65 | AA52: 65702.3 | AB52: 5027.79 | AC52: 9903.13 | AD52: 0 | AE52: 0 | AF52: 51641 | AG52: 103001.65 | AH52: 0 | AI52: 0 | AJ52: 0 | AK52: 0 | AL52: 0 | AM52: 0 | AN52: 56574.75 | AO52: 494172.53 | AP52: 0 | AQ52: 308535.01 | AR52: 74739.7 | AS52: 67264.12 | AT52: 0 | AU52: 22365.85 | AV52: 1725.46 | AW52: 1786.67 | AX52: 348.6 | AY52: 0 | AZ52: 58659.69 | BA52: 1579.46 | BB52: 7850.88 | BC52: 1704.86 | BD52: 55141.66 | BE52: 4187.39 | BF52: 10484.64 | BG52: 59199.95 | BH52: 12651.24 | BI52: 0 | BJ52: 8505.8 | BK52: 14727.16 | BL52: 1422.5 | BM52: 76420.72 | BN52: 147076.12 | BO52: 75556.79 | BP52: 38358.04 | BQ52: 0 | BR52: 0 | BS52: 0 | BT52: 0 | BU52: 0 | BV52: 0 | BW52: 0 | BX52: 0 | BY52: 6000 | BZ52: 0 | CA52: 0 | CB52: 0 | CC52: 0 | CD52: 0 | CE52: 165385.2 | CF52: 0 | CG52: 0 | CH52: 0 | CI52: 0 | CJ52: 165385.2 | CK52: 0 | CL52: 165385.2
A53: 302 | B53: 3309 | C53: St John's CofE Primary and Nursery School N20 | D53: No | F53: Authorised | G53: 0 | H53: 0 | I53: 20232024 | J53: XG24 | K53: Y | L53: Final | M53: Y | N53: Accruals | O53: N | P53: N | Q53: 140989 | R53: 0 | S53: 0 | T53: 1168255.5 | U53: 0 | V53: 60427.68 | W53: 0 | X53: 41054.97 | Y53: 800 | Z53: 38280.38 | AA53: 11982 | AB53: 83796.48 | AC53: 13673.01 | AD53: 0 | AE53: 0 | AF53: 65863.53 | AG53: 12954.75 | AH53: 0 | AI53: 0 | AJ53: 0 | AK53: 0 | AL53: 0 | AM53: 3697.25 | AN53: 54413 | AO53: 635124.75 | AP53: 0 | AQ53: 264608.04 | AR53: 40169.66 | AS53: 50298.71 | AT53: 0 | AU53: 65426.44 | AV53: 3305.74 | AW53: 6889.35 | AX53: 348.6 | AY53: 0 | AZ53: 11913.59 | BA53: 3325.25 | BB53: 23599.67 | BC53: 4586.31 | BD53: 36294.25 | BE53: 4745.36 | BF53: 8931.9 | BG53: 93721.65 | BH53: 14293.08 | BI53: 0 | BJ53: 9441.28 | BK53: 8603.9 | BL53: 4835.18 | BM53: 78228.62 | BN53: 63123.01 | BO53: 77398.67 | BP53: 31969.55 | BQ53: 0 | BR53: 0 | BS53: 0 | BT53: 0 | BU53: 0 | BV53: 0 | BW53: 0 | BX53: 0 | BY53: 6000 | BZ53: 0 | CA53: 0 | CB53: 0 | CC53: 0 | CD53: 0 | CE53: 155004.99 | CF53: 0 | CG53: 0 | CH53: 0 | CI53: 0 | CJ53: 155004.99 | CK53: 0 | CL53: 155004.99
A54: 302 | B54: 3311 | C54: St Mary's CofE Primary School N3 | D54: No | F54: Authorised | G54: 0 | H54: 1 | I54: 20232024 | J54: XG24 | K54: Y | L54: Final | M54: Y | N54: Accruals | O54: N | P54: N | Q54: 100162 | R54: 0 | S54: 0 | T54: 2304685.84 | U54: 0 | V54: 71344.42 | W54: 0 | X54: 108679.99 | Y54: 1344.42 | Z54: 83573.48 | AA54: 42487.9 | AB54: 1483.29 | AC54: 24419.71 | AD54: 0 | AE54: 0 | AF54: 102981.07 | AG54: 45758.45 | AH54: 0 | AI54: 0 | AJ54: 0 | AK54: 0 | AL54: 0 | AM54: 17474.51 | AN54: 69598.5 | AO54: 1299646.44 | AP54: 0 | AQ54: 576450.03 | AR54: 26201.33 | AS54: 99327.34 | AT54: 0 | AU54: 35883.73 | AV54: 17301.07 | AW54: 4705.58 | AX54: 678.94 | AY54: 0 | AZ54: 95571.13 | BA54: 4019.68 | BB54: 60108.34 | BC54: 1862.67 | BD54: 73963.63 | BE54: 24259.2 | BF54: 20241.33 | BG54: 159422.08 | BH54: 24032.62 | BI54: 0 | BJ54: 14815.6 | BK54: 16734.01 | BL54: 929.43 | BM54: 137346.49 | BN54: 75815.96 | BO54: 187916.62 | BP54: 39206.61 | BQ54: 0 | BR54: 0 | BS54: 0 | BT54: 0 | BU54: 0 | BV54: 0 | BW54: 0 | BX54: 0 | BY54: 6000 | BZ54: 0 | CA54: 0 | CB54: 0 | CC54: 0 | CD54: 0 | CE54: -22446.28 | CF54: 0 | CG54: 0 | CH54: 0 | CI54: 0 | CJ54: -22446.28 | CK54: 0 | CL54: -22446.28
A55: 302 | B55: 3312 | C55: St Mary's CofE Primary School, East Barnet | D55: No | F55: Authorised | G55: 0 | H55: 0 | I55: 20232024 | J55: XG24 | K55: Y | L55: Final | M55: Y | N55: Accruals | O55: N | P55: N | Q55: 91857 | R55: 0 | S55: 0 | T55: 1125928.16 | U55: 0 | V55: 52595.69 | W55: 0 | X55: 38524.98 | Y55: 5662.99 | Z55: 33930.8 | AA55: 130 | AB55: 14612.55 | AC55: 11715 | AD55: 0 | AE55: 624 | AF55: 37414.79 | AG55: 11702.37 | AH55: 0 | AI55: 0 | AJ55: 0 | AK55: 0 | AL55: 0 | AM55: 5421.26 | AN55: 56814 | AO55: 620530.31 | AP55: 0 | AQ55: 308346.3 | AR55: 42953.29 | AS55: 67624.55 | AT55: 0 | AU55: 1287.73 | AV55: 1210.7 | AW55: 4889.18 | AX55: 358.56 | AY55: 5293.6 | AZ55: 11911.43 | BA55: 3745.12 | BB55: 18763.7 | BC55: 6508.81 | BD55: 19913.65 | BE55: 3614 | BF55: 9328.41 | BG55: 70092.51 | BH55: 8061.36 | BI55: 0 | BJ55: 10102.26 | BK55: 8400.24 | BL55: 2496.43 | BM55: 73202.59 | BN55: 0 | BO55: 27893.39 | BP55: 28560.2 | BQ55: 2709.8 | BR55: 0 | BS55: 0 | BT55: 0 | BU55: 0 | BV55: 0 | BW55: 0 | BX55: 0 | BY55: 6000 | BZ55: 0 | CA55: 0 | CB55: 0 | CC55: 0 | CD55: 0 | CE55: 129135.47 | CF55: 0 | CG55: 0 | CH55: 0 | CI55: 0 | CJ55: 129135.47 | CK55: 0 | CL55: 129135.47
A56: 302 | B56: 3313 | C56: St Paul's CofE Primary School N11 | D56: No | F56: Authorised | G56: 0 | H56: 0 | I56: 20232024 | J56: XG24 | K56: Y | L56: Final | M56: Y | N56: Accruals | O56: N | P56: N | Q56: 168719 | R56: 0 | S56: 0 | T56: 1243134.72 | U56: 0 | V56: 90228.18 | W56: 0 | X56: 85084.98 | Y56: 3439 | Z56: 36628.56 | AA56: 713.87 | AB56: 15099.87 | AC56: 7342.46 | AD56: 5000 | AE56: 0 | AF56: 28573.76 | AG56: 6066.6 | AH56: 0 | AI56: 0 | AJ56: 0 | AK56: 0 | AL56: 0 | AM56: 14490.62 | AN56: 44002 | AO56: 645134.65 | AP56: 19440.49 | AQ56: 361440.5 | AR56: 44249.66 | AS56: 69504.86 | AT56: 0 | AU56: 13487.05 | AV56: 3340.16 | AW56: 7568 | AX56: 317.06 | AY56: 0 | AZ56: 31542.66 | BA56: 4796.96 | BB56: 22494.01 | BC56: 2278.42 | BD56: 38112.94 | BE56: 3328 | BF56: 8325.68 | BG56: 49863.39 | BH56: 5791.48 | BI56: 0 | BJ56: 12819.33 | BK56: 8319.1 | BL56: 4836.2 | BM56: 70686.43 | BN56: 11323.75 | BO56: 94767.24 | BP56: 32974.7 | BQ56: 0 | BR56: 0 | BS56: 0 | BT56: 0 | BU56: 0 | BV56: 0 | BW56: 0 | BX56: 0 | BY56: 6000 | BZ56: 0 | CA56: 0 | CB56: 0 | CC56: 0 | CD56: 0 | CE56: 181780.9 | CF56: 0 | CG56: 0 | CH56: 0 | CI56: 0 | CJ56: 181780.9 | CK56: 0 | CL56: 181780.9
A57: 302 | B57: 3314 | C57: St Paul's CofE Primary School NW7 | D57: No | F57: Authorised | G57: 0 | H57: 0 | I57: 20232024 | J57: XG24 | K57: Y | L57: Final | M57: Y | N57: Accruals | O57: N | P57: N | Q57: 37325 | R57: 0 | S57: 0 | T57: 1113834.34 | U57: 0 | V57: 78231.51 | W57: 0 | X57: 64309.99 | Y57: 400 | Z57: 143645.2 | AA57: 0 | AB57: 44002.35 | AC57: 6242.79 | AD57: 58 | AE57: 0 | AF57: 27579.35 | AG57: 7067.09 | AH57: 0 | AI57: 0 | AJ57: 0 | AK57: 0 | AL57: 0 | AM57: 10156.26 | AN57: 45734 | AO57: 724996.93 | AP57: 0 | AQ57: 256788.69 | AR57: 36847.02 | AS57: 61386.93 | AT57: 0 | AU57: 74032.2 | AV57: 8076.52 | AW57: 3426.76 | AX57: 346.94 | AY57: 0 | AZ57: 9874.17 | BA57: 129.32 | BB57: 10630.49 | BC57: 3360.2 | BD57: 41730.59 | BE57: 3681.2 | BF57: 10338.55 | BG57: 61047.34 | BH57: 13774.65 | BI57: 0 | BJ57: 14915.29 | BK57: 8387.85 | BL57: 13482.91 | BM57: 74927.06 | BN57: 13554.59 | BO57: 58140.6 | BP57: 38312.98 | BQ57: 0 | BR57: 0 | BS57: 0 | BT57: 0 | BU57: 0 | BV57: 0 | BW57: 0 | BX57: 0 | BY57: 6000 | BZ57: 0 | CA57: 0 | CB57: 0 | CC57: 0 | CD57: 0 | CE57: 36396.1 | CF57: 0 | CG57: 0 | CH57: 0 | CI57: 0 | CJ57: 36396.1 | CK57: 0 | CL57: 36396.1
A58: 302 | B58: 3315 | C58: St Andrew's CofE Voluntary Aided Primary School, Totteridge | D58: No | F58: Authorised | G58: 0 | H58: 0 | I58: 20232024 | J58: XG24 | K58: Y | L58: Final | M58: Y | N58: Accruals | O58: N | P58: N | Q58: 66443 | R58: 0 | S58: 0 | T58: 1076634.49 | U58: 0 | V58: 26345.02 | W58: 0 | X58: 17460.04 | Y58: 4935 | Z58: 35044.92 | AA58: 78601.89 | AB58: 0 | AC58: 11206.19 | AD58: 0 | AE58: 0 | AF58: 22945.8 | AG58: 114539.88 | AH58: 0 | AI58: 0 | AJ58: 0 | AK58: 0 | AL58: 0 | AM58: 0 | AN58: 58401.62 | AO58: 664170.95 | AP58: 0 | AQ58: 226871.88 | AR58: 45073.35 | AS58: 76266.6 | AT58: 0 | AU58: 52675.64 | AV58: 535.73 | AW58: 2153.67 | AX58: 2047.81 | AY58: 3216.78 | AZ58: 57089.4 | BA58: 0 | BB58: 3475.98 | BC58: 1134.48 | BD58: 15341.55 | BE58: 4180.8 | BF58: 6844.37 | BG58: 66950.51 | BH58: 9152.87 | BI58: 0 | BJ58: 8447.62 | BK58: 6633.12 | BL58: 6758.94 | BM58: 84882.07 | BN58: 10891.49 | BO58: 22954.9 | BP58: 32495.62 | BQ58: 0 | BR58: 0 | BS58: 0 | BT58: 0 | BU58: 0 | BV58: 0 | BW58: 0 | BX58: 0 | BY58: 6000 | BZ58: 0 | CA58: 0 | CB58: 0 | CC58: 0 | CD58: 0 | CE58: 102311.72 | CF58: 0 | CG58: 0 | CH58: 0 | CI58: 0 | CJ58: 102311.72 | CK58: 0 | CL58: 102311.72
A59: 302 | B59: 3316 | C59: Trent CofE Primary School | D59: No | F59: Authorised | G59: 0 | H59: 1 | I59: 20232024 | J59: XG24 | K59: Y | L59: Final | M59: Y | N59: Accruals | O59: N | P59: N | Q59: -34610 | R59: 0 | S59: 0 | T59: 1112684.73 | U59: 0 | V59: 85754.6 | W59: 0 | X59: 28650.03 | Y59: 5346 | Z59: 16628.92 | AA59: 0 | AB59: 42040.66 | AC59: 15911.7 | AD59: 0 | AE59: 0 | AF59: 28518.01 | AG59: 16631.79 | AH59: 0 | AI59: 0 | AJ59: 0 | AK59: 0 | AL59: 0 | AM59: 4675.63 | AN59: 54738 | AO59: 701385.62 | AP59: 0 | AQ59: 225366.49 | AR59: 34995.72 | AS59: 53397.75 | AT59: 0 | AU59: 53880.12 | AV59: 10038.12 | AW59: 3987.65 | AX59: 0 | AY59: 0 | AZ59: 5167.09 | BA59: 1606.58 | BB59: 11018.71 | BC59: 2103.51 | BD59: 22990.33 | BE59: 4160 | BF59: 8887.83 | BG59: 54324.97 | BH59: 10005.15 | BI59: 0 | BJ59: 12152.29 | BK59: 6674 | BL59: 13439.38 | BM59: 80180.95 | BN59: 5289.52 | BO59: 32532.17 | BP59: 62706.82 | BQ59: 0 | BR59: 0 | BS59: 0 | BT59: 0 | BU59: 0 | BV59: 0 | BW59: 0 | BX59: 0 | BY59: 6000 | BZ59: 0 | CA59: 0 | CB59: 0 | CC59: 0 | CD59: 0 | CE59: -39320.7 | CF59: 0 | CG59: 0 | CH59: 0 | CI59: 0 | CJ59: -39320.7 | CK59: 0 | CL59: -39320.7
A60: 302 | B60: 3317 | C60: All Saints' CE N20 | D60: No | F60: Authorised | G60: 0 | H60: 0 | I60: 20232024 | J60: XG24 | K60: Y | L60: Final | M60: Y | N60: Accruals | O60: N | P60: N | Q60: 35945 | R60: -2791 | S60: 0 | T60: 1269589.12 | U60: 0 | V60: 113460.28 | W60: 0 | X60: 76124.97 | Y60: 27614.41 | Z60: 35175.51 | AA60: 40735.8 | AB60: 20172.24 | AC60: 13035.55 | AD60: 13140 | AE60: 0 | AF60: 38913.46 | AG60: 30395.8 | AH60: 0 | AI60: 0 | AJ60: 0 | AK60: 0 | AL60: 0 | AM60: 0 | AN60: 58030.01 | AO60: 691634.45 | AP60: 28258.45 | AQ60: 394568.25 | AR60: 42904.55 | AS60: 66235.53 | AT60: 0 | AU60: 40616.6 | AV60: 1563.24 | AW60: 601.45 | AX60: 7429.89 | AY60: 0 | AZ60: 17995.16 | BA60: 2145.03 | BB60: 34242.65 | BC60: 3699.39 | BD60: 51904.25 | BE60: 4680 | BF60: 9647.24 | BG60: 44466.99 | BH60: 16748.94 | BI60: 0 | BJ60: 10231.26 | BK60: 9988.79 | BL60: 10552.46 | BM60: 90587.09 | BN60: 35144.66 | BO60: 46478.99 | BP60: 25878.62 | BQ60: 0 | BR60: 0 | BS60: 0 | BT60: 0 | BU60: 0 | BV60: 0 | BW60: 0 | BX60: 0 | BY60: 6000 | BZ60: 0 | CA60: 0 | CB60: 0 | CC60: 0 | CD60: 0 | CE60: 84128.22 | CF60: 0 | CG60: 0 | CH60: -2791 | CI60: 0 | CJ60: 81337.22 | CK60: 0 | CL60: 84128.22
A61: 302 | B61: 3500 | C61: The Annunciation Catholic Infant School | D61: No | F61: Authorised | G61: 0 | H61: 0 | I61: 20232024 | J61: XG24 | K61: Y | L61: Final | M61: Y | N61: Accruals | O61: N | P61: N | Q61: -108295 | R61: 0 | S61: 0 | T61: 1045665.94 | U61: 0 | V61: 55625.53 | W61: 0 | X61: 38164.99 | Y61: 14567.89 | Z61: 0 | AA61: 0 | AB61: 10165.15 | AC61: 0 | AD61: 0 | AE61: 0 | AF61: 10933 | AG61: 2169.16 | AH61: 0 | AI61: 0 | AJ61: 0 | AK61: 0 | AL61: 0 | AM61: 5308.12 | AN61: 70047 | AO61: 428968.11 | AP61: 8875.24 | AQ61: 175602.29 | AR61: 43106.69 | AS61: 45576.74 | AT61: 0 | AU61: 14004.06 | AV61: 289 | AW61: 2866.15 | AX61: 239.04 | AY61: 0 | AZ61: 8895.21 | BA61: 90 | BB61: 10737.15 | BC61: 1485.45 | BD61: 20871.04 | BE61: 2501.18 | BF61: 3316.85 | BG61: 15085.35 | BH61: 5877.02 | BI61: 0 | BJ61: 8272.57 | BK61: 9309.43 | BL61: 5676.3 | BM61: 54177.55 | BN61: 131994 | BO61: 126940.73 | BP61: 16308.31 | BQ61: 0 | BR61: 0 | BS61: 0 | BT61: 0 | BU61: 0 | BV61: 0 | BW61: 29610.71 | BX61: 0 | BY61: 6000 | BZ61: 0 | CA61: 0 | CB61: 0 | CC61: 29610.71 | CD61: 0 | CE61: 3286.32 | CF61: 0 | CG61: 0 | CH61: 0 | CI61: 0 | CJ61: 3286.32 | CK61: 0 | CL61: 3286.32
A62: 302 | B62: 3501 | C62: Our Lady Of Lourdes RC School | D62: Yes | E62: 3023507 , | F62: Authorised | G62: 0 | H62: 2 | I62: 20232024 | J62: XG24 | K62: Y | L62: Final | M62: Y | N62: Accruals | O62: N | P62: N | Q62: -126538 | R62: 0 | S62: 0 | T62: 1243100 | U62: 0 | V62: 80553 | W62: 0 | X62: 58515 | Y62: 8826 | Z62: 39715 | AA62: 1825 | AB62: 13003 | AC62: 10074 | AD62: 0 | AE62: 0 | AF62: 54017 | AG62: 16356 | AH62: 0 | AI62: 0 | AJ62: 0 | AK62: 0 | AL62: 0 | AM62: 9101 | AN62: 41571 | AO62: 645659 | AP62: 0 | AQ62: 209758 | AR62: 77970 | AS62: 77297 | AT62: 0 | AU62: 39956 | AV62: 1261 | AW62: 7413 | AX62: 345 | AY62: 0 | AZ62: 27875 | BA62: 474 | BB62: 2290 | BC62: 3786 | BD62: 63192 | BE62: 817 | BF62: 7601 | BG62: 60497 | BH62: 10507 | BI62: 0 | BJ62: 19765 | BK62: 13538 | BL62: 3890 | BM62: 59778 | BN62: 105047 | BO62: 167516 | BP62: 38493 | BQ62: 0 | BR62: 0 | BS62: 0 | BT62: 0 | BU62: 0 | BV62: 0 | BW62: 0 | BX62: 0 | BY62: 6000 | BZ62: 0 | CA62: 0 | CB62: 0 | CC62: 0 | CD62: 0 | CE62: -194607 | CF62: 0 | CG62: 0 | CH62: 0 | CI62: 0 | CJ62: -194607 | CK62: 0 | CL62: -194607
A63: 302 | B63: 3502 | C63: St Agnes' Catholic Primary School | D63: No | F63: Authorised | G63: 0 | H63: 0 | I63: 20232024 | J63: XG24 | K63: Y | L63: Final | M63: Y | N63: Accruals | O63: N | P63: N | Q63: 877601 | R63: 0 | S63: 0 | T63: 2363853.86 | U63: 0 | V63: 154673.86 | W63: 0 | X63: 173459.98 | Y63: 3777.68 | Z63: 46597.56 | AA63: 2394.5 | AB63: 37856.55 | AC63: 12528.49 | AD63: 0 | AE63: 0 | AF63: 33445.41 | AG63: 5359.58 | AH63: 0 | AI63: 0 | AJ63: 0 | AK63: 0 | AL63: 0 | AM63: 0 | AN63: 88909.01 | AO63: 1180039.18 | AP63: 0 | AQ63: 668073.22 | AR63: 93055.89 | AS63: 66784.85 | AT63: 0 | AU63: 29268.2 | AV63: 1982.3 | AW63: 1599.17 | AX63: 667.32 | AY63: 0 | AZ63: 152628.12 | BA63: 2333.92 | BB63: 6827.46 | BC63: 15246.07 | BD63: 36803.23 | BE63: 7425.6 | BF63: 11412.98 | BG63: 93825.22 | BH63: 35674.07 | BI63: 0 | BJ63: 15571.2 | BK63: 19838.56 | BL63: 7508.6 | BM63: 129395.57 | BN63: 27251.5 | BO63: 180998.08 | BP63: 50561.46 | BQ63: 0 | BR63: 0 | BS63: 0 | BT63: 0 | BU63: 0 | BV63: 0 | BW63: 0 | BX63: 0 | BY63: 6000 | BZ63: 0 | CA63: 0 | CB63: 0 | CC63: 0 | CD63: 0 | CE63: 965685.71 | CF63: 0 | CG63: 0 | CH63: 0 | CI63: 0 | CJ63: 965685.71 | CK63: 0 | CL63: 965685.71
A64: 302 | B64: 3504 | C64: St Catherine's RC School | D64: No | F64: Authorised | G64: 0 | H64: 0 | I64: 20232024 | J64: XG24 | K64: Y | L64: Final | M64: Y | N64: Accruals | O64: N | P64: N | Q64: 122678 | R64: 0 | S64: 0 | T64: 2295503.46 | U64: 0 | V64: 77066.86 | W64: 0 | X64: 56335.02 | Y64: 4434.42 | Z64: 69440.48 | AA64: 2295 | AB64: 170250.8 | AC64: 20722.51 | AD64: 9990 | AE64: 0 | AF64: 153567.45 | AG64: 18620.08 | AH64: 0 | AI64: 0 | AJ64: 0 | AK64: 0 | AL64: 0 | AM64: 9815.01 | AN64: 94574 | AO64: 1350059.47 | AP64: 291.76 | AQ64: 606879.92 | AR64: 90274.99 | AS64: 162420.25 | AT64: 0 | AU64: 78609.94 | AV64: 16628.63 | AW64: 5681.32 | AX64: 15059.38 | AY64: 0 | AZ64: 43327.96 | BA64: 17934.9 | BB64: 8514.7 | BC64: 4617.09 | BD64: 49183.51 | BE64: 6746.1 | BF64: 13988.09 | BG64: 87301.4 | BH64: 24155.56 | BI64: 0 | BJ64: 14441.19 | BK64: 22380.73 | BL64: 50578.91 | BM64: 164311.72 | BN64: 0 | BO64: 78980.63 | BP64: 61528.9 | BQ64: 0 | BR64: 0 | BS64: 0 | BT64: 0 | BU64: 0 | BV64: 0 | BW64: 0 | BX64: 0 | BY64: 6000 | BZ64: 0 | CA64: 0 | CB64: 0 | CC64: 0 | CD64: 0 | CE64: 131396.04 | CF64: 0 | CG64: 0 | CH64: 0 | CI64: 0 | CJ64: 131396.04 | CK64: 0 | CL64: 131396.04
A65: 302 | B65: 3506 | C65: St Vincent's Catholic Primary School | D65: No | F65: Authorised | G65: 0 | H65: 1 | I65: 20232024 | J65: XG24 | K65: Y | L65: Final | M65: Y | N65: Accruals | O65: N | P65: N | Q65: 57528 | R65: 0 | S65: 0 | T65: 1428994.17 | U65: 0 | V65: 146143.02 | W65: 0 | X65: 25809.99 | Y65: 44392.41 | Z65: 49588.12 | AA65: 39328.25 | AB65: 31237.35 | AC65: 8612.43 | AD65: 0 | AE65: 0 | AF65: 46578 | AG65: 46688.25 | AH65: 0 | AI65: 0 | AJ65: 0 | AK65: 0 | AL65: 0 | AM65: 4250.63 | AN65: 67136 | AO65: 921995.9 | AP65: 0 | AQ65: 468491.73 | AR65: 85854.72 | AS65: 57444.81 | AT65: 0 | AU65: 0 | AV65: 4434.89 | AW65: 4087.65 | AX65: 466.46 | AY65: 0 | AZ65: 35777.18 | BA65: 7187 | BB65: 4448.6 | BC65: 809.15 | BD65: 44123.91 | BE65: 4243.2 | BF65: 12219.74 | BG65: 77040.79 | BH65: 11318.62 | BI65: 0 | BJ65: 9934.97 | BK65: 15384.25 | BL65: 18141.15 | BM65: 92695.23 | BN65: 21869.36 | BO65: 64864.22 | BP65: 49609.12 | BQ65: 0 | BR65: 0 | BS65: 0 | BT65: 0 | BU65: 0 | BV65: 0 | BW65: 0 | BX65: 0 | BY65: 6000 | BZ65: 0 | CA65: 0 | CB65: 0 | CC65: 0 | CD65: 0 | CE65: -16156.03 | CF65: 0 | CG65: 0 | CH65: 0 | CI65: 0 | CJ65: -16156.03 | CK65: 0 | CL65: -16156.03
A66: 302 | B66: 3507 | C66: St Theresa's Catholic Primary School | D66: Yes | E66: 3023501 , | F66: Authorised | G66: 0 | H66: 3 | I66: 20232024 | J66: XG24 | K66: Y | L66: Final | M66: Y | N66: Accruals | O66: N | P66: N | Q66: -222860 | R66: 0 | S66: 0 | T66: 1014960 | U66: 0 | V66: 92989 | W66: 0 | X66: 62285 | Y66: 3469 | Z66: 27714 | AA66: 315 | AB66: 7786 | AC66: 4597.12 | AD66: 0 | AE66: 0 | AF66: 30002.85 | AG66: 18055 | AH66: 0 | AI66: 0 | AJ66: 0 | AK66: 0 | AL66: 0 | AM66: 5401 | AN66: 40987 | AO66: 596903 | AP66: 0 | AQ66: 189057 | AR66: 38620 | AS66: 50195 | AT66: 0 | AU66: 23924 | AV66: 1238 | AW66: 6677 | AX66: 290 | AY66: 0 | AZ66: 15406 | BA66: 212 | BB66: 20772 | BC66: 2072 | BD66: 29227 | BE66: 4618 | BF66: 8207 | BG66: 66482 | BH66: 15343 | BI66: 0 | BJ66: 15817 | BK66: 10679 | BL66: 4405 | BM66: 49024 | BN66: 146628 | BO66: 170803 | BP66: 24211 | BQ66: 0 | BR66: 0 | BS66: 0 | BT66: 0 | BU66: 0 | BV66: 0 | BW66: 0 | BX66: 0 | BY66: 6000 | BZ66: 0 | CA66: 0 | CB66: 0 | CC66: 0 | CD66: 0 | CE66: -405109.03 | CF66: 0 | CG66: 0 | CH66: 0 | CI66: 0 | CJ66: -405109.03 | CK66: 0 | CL66: -405109.03
A67: 302 | B67: 3509 | C67: St Joseph's Catholic Primary School | D67: No | F67: Authorised | G67: 0 | H67: 1 | I67: 20232024 | J67: XG24 | K67: Y | L67: Final | M67: Y | N67: Accruals | O67: N | P67: N | Q67: -664834 | R67: 0 | S67: 0 | T67: 2530727.16 | U67: 0 | V67: 198410.09 | W67: 0 | X67: 176530.9 | Y67: 200 | Z67: 64027.18 | AA67: 0 | AB67: 23995.55 | AC67: 19276.22 | AD67: 4500 | AE67: 0 | AF67: 36828 | AG67: 3000.6 | AH67: 0 | AI67: 0 | AJ67: 0 | AK67: 0 | AL67: 0 | AM67: 0 | AN67: 93420.28 | AO67: 1282726.95 | AP67: 0 | AQ67: 646467.78 | AR67: 150396.26 | AS67: 125335.99 | AT67: 0 | AU67: 96583.99 | AV67: 4809.4 | AW67: 1494.56 | AX67: 10287.61 | AY67: 0 | AZ67: 33541.9 | BA67: 300 | BB67: 2567.63 | BC67: 3742.36 | BD67: 95721.93 | BE67: 14476.8 | BF67: 19274.18 | BG67: 105956.92 | BH67: 11050.49 | BI67: 0 | BJ67: 19979.36 | BK67: 45631.14 | BL67: 9493.58 | BM67: 149534.3 | BN67: 147389.04 | BO67: 168873.63 | BP67: 37532.12 | BQ67: 0 | BR67: 0 | BS67: 0 | BT67: 0 | BU67: 0 | BV67: 0 | BW67: 0 | BX67: 0 | BY67: 6000 | BZ67: 0 | CA67: 0 | CB67: 0 | CC67: 0 | CD67: 0 | CE67: -697085.94 | CF67: 0 | CG67: 0 | CH67: 0 | CI67: 0 | CJ67: -697085.94 | CK67: 0 | CL67: -697085.94
A68: 302 | B68: 3510 | C68: Sacred Heart Roman Catholic Primary School | D68: No | F68: Authorised | G68: 0 | H68: 0 | I68: 20232024 | J68: XG24 | K68: Y | L68: Final | M68: Y | N68: Accruals | O68: N | P68: N | Q68: 245406 | R68: 0 | S68: 0 | T68: 1985780.51 | U68: 0 | V68: 44066.64 | W68: 0 | X68: 80144.99 | Y68: 1900 | Z68: 69157.3 | AA68: 19200 | AB68: 6084.2 | AC68: 17778.3 | AD68: 0 | AE68: 0 | AF68: 11000.6 | AG68: 60504.09 | AH68: 0 | AI68: 0 | AJ68: 0 | AK68: 0 | AL68: 0 | AM68: 12625.63 | AN68: 76536 | AO68: 1102274.81 | AP68: 8802.85 | AQ68: 385799.99 | AR68: 38183.67 | AS68: 113020.31 | AT68: 0 | AU68: 3076.04 | AV68: 12903.46 | AW68: 4791.78 | AX68: 678.94 | AY68: 0 | AZ68: 19212.56 | BA68: 2194.92 | BB68: 33287.94 | BC68: 3103.2 | BD68: 62259.54 | BE68: 4862 | BF68: 10904.91 | BG68: 92684.12 | BH68: 16321.85 | BI68: 0 | BJ68: 46667.89 | BK68: 22777.41 | BL68: 2825.07 | BM68: 148535.9 | BN68: 66652.01 | BO68: 139085.91 | BP68: 33674.17 | BQ68: 0 | BR68: 0 | BS68: 0 | BT68: 0 | BU68: 0 | BV68: 0 | BW68: 0 | BX68: 0 | BY68: 6000 | BZ68: 0 | CA68: 0 | CB68: 0 | CC68: 0 | CD68: 0 | CE68: 255603.01 | CF68: 0 | CG68: 0 | CH68: 0 | CI68: 0 | CJ68: 255603.01 | CK68: 0 | CL68: 255603.01
A69: 302 | B69: 3511 | C69: Blessed Dominic Catholic Primary School | D69: No | F69: Authorised | G69: 0 | H69: 0 | I69: 20232024 | J69: XG24 | K69: Y | L69: Final | M69: Y | N69: Accruals | O69: N | P69: N | Q69: 366454 | R69: 0 | S69: 0 | T69: 2475700.33 | U69: 0 | V69: 109950.14 | W69: 0 | X69: 145189.97 | Y69: 9770.4 | Z69: 69788.58 | AA69: 0 | AB69: 52819.85 | AC69: 13971.23 | AD69: 3000 | AE69: 0 | AF69: 28181.23 | AG69: 4879.87 | AH69: 0 | AI69: 0 | AJ69: 0 | AK69: 0 | AL69: 0 | AM69: 23899.38 | AN69: 79713 | AO69: 1245249.98 | AP69: 2765.52 | AQ69: 640043.96 | AR69: 49493.02 | AS69: 169884.25 | AT69: 0 | AU69: 13954.45 | AV69: 15117.83 | AW69: 6214.22 | AX69: 8600.6 | AY69: 0 | AZ69: 17473.03 | BA69: 4258.49 | BB69: 51186.94 | BC69: 0 | BD69: 34610.75 | BE69: 0 | BF69: 1541.3 | BG69: 117106.4 | BH69: 25335.19 | BI69: 0 | BJ69: 23537.17 | BK69: 23215.29 | BL69: 59810.64 | BM69: 150649.48 | BN69: 118917.66 | BO69: 274798.83 | BP69: 33696.29 | BQ69: 0 | BR69: 0 | BS69: 0 | BT69: 0 | BU69: 0 | BV69: 0 | BW69: 0 | BX69: 0 | BY69: 6000 | BZ69: 0 | CA69: 0 | CB69: 0 | CC69: 0 | CD69: 0 | CE69: 295856.69 | CF69: 0 | CG69: 0 | CH69: 0 | CI69: 0 | CJ69: =CD69+CE69+CH69 -> 295856.69 | CK69: =CF69+CG69+CI69 -> 0 | CL69: =CD69+CE69 -> 295856.69
A70: 302 | B70: 3512 | C70: Rosh Pinah Primary School | D70: No | F70: Authorised | G70: 0 | H70: 1 | I70: 20232024 | J70: XG24 | K70: Y | L70: Final | M70: Y | N70: Accruals | O70: N | P70: N | Q70: 184711 | R70: 0 | S70: 0 | T70: 1718905.83 | U70: 0 | V70: 36767.75 | W70: 0 | X70: 5819.97 | Y70: 9081.56 | Z70: 89600 | AA70: 4775 | AB70: 45316.59 | AC70: 82734.79 | AD70: 14683 | AE70: 14344.5 | AF70: 130952.5 | AG70: 348279.13 | AH70: 0 | AI70: 0 | AJ70: 0 | AK70: 0 | AL70: 0 | AM70: 0 | AN70: 88124.12 | AO70: 1268637.25 | AP70: 13733.02 | AQ70: 355328.12 | AR70: 78723.96 | AS70: 211683.03 | AT70: 0 | AU70: 57010.84 | AV70: 4999.11 | AW70: 11436.29 | AX70: 22709.95 | AY70: 0 | AZ70: 31364.84 | BA70: 0 | BB70: 49813.72 | BC70: 2663.19 | BD70: 59337.03 | BE70: 13000 | BF70: 9540.68 | BG70: 92988.91 | BH70: 15831.65 | BI70: 0 | BJ70: 13805.26 | BK70: 13300.38 | BL70: 14587.21 | BM70: 214154.89 | BN70: 36500.32 | BO70: 132191.19 | BP70: 44715.64 | BQ70: 0 | BR70: 0 | BS70: 10950 | BT70: 0 | BU70: 0 | BV70: 0 | BW70: 0 | BX70: 10950 | BY70: 6000 | BZ70: 0 | CA70: 0 | CB70: 0 | CC70: 10950 | CD70: 0 | CE70: -4910.74 | CF70: 0 | CG70: 0 | CH70: 0 | CI70: 0 | CJ70: -4910.74 | CK70: 0 | CL70: -4910.74
A71: 302 | B71: 3513 | C71: Menorah Primary School for Girls | D71: Yes | E71: 3022061 , | F71: Authorised | G71: 0 | H71: 3 | I71: 20232024 | J71: XG24 | K71: Y | L71: Final | M71: Y | N71: Accruals | O71: N | P71: N | Q71: 9109 | R71: 0 | S71: 0 | T71: 1969209.58 | U71: 0 | V71: 76054.59 | W71: 0 | X71: 14549.98 | Y71: 80490 | Z71: 94528 | AA71: 0 | AB71: 1664.44 | AC71: 9770.55 | AD71: 0 | AE71: 0 | AF71: 29714.41 | AG71: 492773.3 | AH71: 0 | AI71: 0 | AJ71: 0 | AK71: 0 | AL71: 0 | AM71: 3346.26 | AN71: 112052 | AO71: 1470868.42 | AP71: 0 | AQ71: 169078.55 | AR71: 40811.77 | AS71: 112009.61 | AT71: 0 | AU71: 46449.76 | AV71: 3541.1 | AW71: 1520 | AX71: 627.48 | AY71: 0 | AZ71: 20804.43 | BA71: 105 | BB71: 41720.82 | BC71: 6022.19 | BD71: 111821.57 | BE71: 5771.86 | BF71: 113098.76 | BG71: 118847.3 | BH71: 13500.03 | BI71: 0 | BJ71: 14889.3 | BK71: 6006.42 | BL71: 53549.94 | BM71: 72553.59 | BN71: 0 | BO71: 377923.53 | BP71: 25843.1 | BQ71: 0 | BR71: 0 | BS71: 0 | BT71: 0 | BU71: 0 | BV71: 0 | BW71: 0 | BX71: 0 | BY71: 6000 | BZ71: 0 | CA71: 0 | CB71: 0 | CC71: 0 | CD71: 0 | CE71: 65897.58 | CF71: 0 | CG71: 0 | CH71: 0 | CI71: 0 | CJ71: 65897.58 | CK71: 0 | CL71: 65897.58
A72: 302 | B72: 3514 | C72: The Annunciation RC Junior School | D72: No | F72: Authorised | G72: 0 | H72: 1 | I72: 20232024 | J72: XG24 | K72: Y | L72: Final | M72: Y | N72: Accruals | O72: N | P72: N | Q72: 35983 | R72: 0 | S72: 0 | T72: 1049866.08 | U72: 0 | V72: 20455.56 | W72: 0 | X72: 99039.67 | Y72: 5412.99 | Z72: 24250.37 | AA72: 8198.97 | AB72: 39.5 | AC72: 12150.09 | AD72: 0 | AE72: 0 | AF72: 16931.84 | AG72: 1640.23 | AH72: 0 | AI72: 0 | AJ72: 0 | AK72: 0 | AL72: 0 | AM72: 0 | AN72: 29026.87 | AO72: 627145.63 | AP72: 0 | AQ72: 107808.92 | AR72: 44286.55 | AS72: 47915.35 | AT72: 0 | AU72: 4178.46 | AV72: 2113.83 | AW72: 1614.71 | AX72: 300.46 | AY72: 0 | AZ72: 6556.05 | BA72: 3168 | BB72: 12295.53 | BC72: 4417.07 | BD72: 30927.13 | BE72: 3478.56 | BF72: 7561.6 | BG72: 75886 | BH72: 11203.59 | BI72: 0 | BJ72: 14604.11 | BK72: 3224.09 | BL72: 19662.05 | BM72: 61139.05 | BN72: 67693.51 | BO72: 124765.77 | BP72: 29632.82 | BQ72: 0 | BR72: 0 | BS72: 0 | BT72: 0 | BU72: 0 | BV72: 0 | BW72: 0 | BX72: 0 | BY72: 6000 | BZ72: 0 | CA72: 0 | CB72: 0 | CC72: 0 | CD72: 0 | CE72: -8583.67 | CF72: 0 | CG72: 0 | CH72: 0 | CI72: 0 | CJ72: -8583.67 | CK72: 0 | CL72: -8583.67
A73: 302 | B73: 3516 | C73: Hasmonean Primary School | D73: No | F73: Authorised | G73: 0 | H73: 1 | I73: 20232024 | J73: XG24 | K73: Y | L73: Final | M73: Y | N73: Accruals | O73: N | P73: N | Q73: 10134 | R73: 0 | S73: 0 | T73: 1201221.87 | U73: 0 | V73: 130960.47 | W73: 0 | X73: 52380.04 | Y73: 64968.18 | Z73: 47536.42 | AA73: 0 | AB73: 4298 | AC73: 10626.45 | AD73: 9700 | AE73: 0 | AF73: 12817 | AG73: 215106.83 | AH73: 0 | AI73: 0 | AJ73: 0 | AK73: 0 | AL73: 0 | AM73: 8014.37 | AN73: 43061 | AO73: 973482.04 | AP73: 0 | AQ73: 250091.78 | AR73: 76062.33 | AS73: 158009.47 | AT73: 0 | AU73: 31613.66 | AV73: 2529.27 | AW73: 1909 | AX73: 9277.41 | AY73: 720 | AZ73: 6971.68 | BA73: 204.94 | BB73: 1260.02 | BC73: 3354.19 | BD73: 18665.31 | BE73: 19918.08 | BF73: 64652.78 | BG73: 61846.81 | BH73: 11325.63 | BI73: 0 | BJ73: 9116.07 | BK73: 7479.11 | BL73: 815.56 | BM73: 40433.74 | BN73: 22202.27 | BO73: 43589.57 | BP73: 14742.52 | BQ73: 0 | BR73: 0 | BS73: 0 | BT73: 0 | BU73: 0 | BV73: 0 | BW73: 0 | BX73: 0 | BY73: 6000 | BZ73: 0 | CA73: 0 | CB73: 0 | CC73: 0 | CD73: 0 | CE73: -19448.61 | CF73: 0 | CG73: 0 | CH73: 0 | CI73: 0 | CJ73: -19448.61 | CK73: 0 | CL73: -19448.61
A74: 302 | B74: 3518 | C74: Woodcroft Primary School | D74: No | F74: Authorised | G74: 0 | H74: 1 | I74: 20232024 | J74: XG24 | K74: Y | L74: Final | M74: Y | N74: Accruals | O74: N | P74: N | Q74: -58318 | R74: 0 | S74: 21324 | T74: 2425306.7 | U74: 0 | V74: 73101.82 | W74: 0 | X74: 229841.01 | Y74: 31004.43 | Z74: 41736.4 | AA74: 2831.18 | AB74: 20452.75 | AC74: 7603.18 | AD74: 0 | AE74: 0 | AF74: 21093 | AG74: 555 | AH74: 0 | AI74: 0 | AJ74: 0 | AK74: 0 | AL74: 0 | AM74: 36762.5 | AN74: 52436 | AO74: 1355891.22 | AP74: 0 | AQ74: 703753.06 | AR74: 15788.48 | AS74: 52340.71 | AT74: 0 | AU74: 162382.97 | AV74: 23741.05 | AW74: 2715.38 | AX74: 639.1 | AY74: 0 | AZ74: 20859.96 | BA74: 3468.58 | BB74: 62584.29 | BC74: 4752.05 | BD74: 80895.99 | BE74: 34500 | BF74: 4019.44 | BG74: 40127.2 | BH74: 18102.53 | BI74: 0 | BJ74: 25301.55 | BK74: 14972.45 | BL74: 8115.14 | BM74: 141496.56 | BN74: 78997.13 | BO74: 183042.81 | BP74: 58508.52 | BQ74: 0 | BR74: 0 | BS74: 0 | BT74: 0 | BU74: 0 | BV74: 8828.5 | BW74: 0 | BX74: 0 | BY74: 6000 | BZ74: 0 | CA74: 0 | CB74: 0 | CC74: 2153.66 | CD74: 0 | CE74: -212590.2 | CF74: 27998.84 | CG74: 0 | CH74: 0 | CI74: 0 | CJ74: -212590.2 | CK74: 27998.84 | CL74: -212590.2
A75: 302 | B75: 3520 | C75: Akiva | D75: No | F75: Authorised | G75: 0 | H75: 0 | I75: 20232024 | J75: XG24 | K75: Y | L75: Final | M75: Y | N75: Accruals | O75: N | P75: N | Q75: 160996 | R75: 0 | S75: 0 | T75: 1947907.64 | U75: 0 | V75: 105978.51 | W75: 0 | X75: 4365.01 | Y75: 33460.54 | Z75: 108162.67 | AA75: 38358.64 | AB75: 15914.68 | AC75: 55283.39 | AD75: 0 | AE75: 0 | AF75: 55445.62 | AG75: 644041.84 | AH75: 0 | AI75: 0 | AJ75: 0 | AK75: 0 | AL75: 0 | AM75: 2320.62 | AN75: 99219 | AO75: 1422295.99 | AP75: 3414.48 | AQ75: 584904.06 | AR75: 41209.32 | AS75: 156538.16 | AT75: 0 | AU75: 28130.76 | AV75: 3639.06 | AW75: 4194.55 | AX75: 698.86 | AY75: 0 | AZ75: 45104.75 | BA75: 1260 | BB75: 47957.91 | BC75: 12726.75 | BD75: 26410.11 | BE75: 14601.6 | BF75: 119981.36 | BG75: 155327.82 | BH75: 12828.59 | BI75: 0 | BJ75: 11539.8 | BK75: 53822.98 | BL75: 6704 | BM75: 186646.6 | BN75: 29248.55 | BO75: 168409.47 | BP75: 53054 | BQ75: 0 | BR75: 0 | BS75: 0 | BT75: 0 | BU75: 0 | BV75: 0 | BW75: 0 | BX75: 0 | BY75: 6000 | BZ75: 0 | CA75: 0 | CB75: 0 | CC75: 0 | CD75: 0 | CE75: 80804.63 | CF75: 0 | CG75: 0 | CH75: 0 | CI75: 0 | CJ75: 80804.63 | CK75: 0 | CL75: 80804.63
A76: 302 | B76: 3521 | C76: St Mary's and St John's CofE School | D76: No | F76: Authorised | G76: 0 | H76: 2 | I76: 20232024 | J76: XG24 | K76: Y | L76: Final | M76: Y | N76: Accruals | O76: N | P76: N | Q76: 1222190 | R76: 0 | S76: 0 | T76: 9777687.43 | U76: 607960.68 | V76: 265129.17 | W76: 0 | X76: 548723.49 | Y76: 10009.9 | Z76: 197787.32 | AA76: 75981.65 | AB76: 61350.07 | AC76: 194747.77 | AD76: 0 | AE76: 6801 | AF76: 199563.37 | AG76: 39341.87 | AH76: 0 | AI76: 0 | AJ76: 0 | AK76: 0 | AL76: 0 | AM76: 156827.12 | AN76: 116441 | AO76: 5937565.59 | AP76: 0 | AQ76: 1297530.38 | AR76: 227420.64 | AS76: 738383.55 | AT76: 0 | AU76: 112487.23 | AV76: 117137.6 | AW76: 22936.17 | AX76: 2269.96 | AY76: 0 | AZ76: 84117.72 | BA76: 14485.82 | BB76: 179136.31 | BC76: 27467.43 | BD76: 310157.97 | BE76: 60817.64 | BF76: 55059.11 | BG76: 475685.61 | BH76: 130251.65 | BI76: 113399.57 | BJ76: 110163.99 | BK76: 61802.86 | BL76: 16518.5 | BM76: 455930.86 | BN76: 432142.43 | BO76: 653712.45 | BP76: 322245.96 | BQ76: 0 | BR76: 0 | BS76: 47173.99 | BT76: 0 | BU76: 0 | BV76: 0 | BW76: 0 | BX76: 0 | BY76: 6000 | BZ76: 0 | CA76: 0 | CB76: 0 | CC76: 0 | CD76: 0 | CE76: 1474540.85 | CF76: 0 | CG76: 0 | CH76: 0 | CI76: 0 | CJ76: 1474540.85 | CK76: 0 | CL76: 1474540.85
A77: 302 | B77: 3523 | C77: Martin Primary School | D77: No | F77: Authorised | G77: 0 | H77: 0 | I77: 20232024 | J77: XG24 | K77: Y | L77: Final | M77: Y | N77: Accruals | O77: N | P77: N | Q77: 223997 | R77: 0 | S77: 50055 | T77: 3608771.68 | U77: 0 | V77: 190379.46 | W77: 0 | X77: 244027.54 | Y77: 3144.42 | Z77: 77836.77 | AA77: 107547.06 | AB77: 17162.12 | AC77: 29095.54 | AD77: 9700 | AE77: 0 | AF77: 155215.54 | AG77: 24149.13 | AH77: 0 | AI77: 0 | AJ77: 0 | AK77: 0 | AL77: 0 | AM77: 38481.01 | AN77: 106750 | AO77: 1921331.42 | AP77: 0 | AQ77: 1002546.25 | AR77: 219049.42 | AS77: 149170.08 | AT77: 0 | AU77: 157189.29 | AV77: 24430.54 | AW77: 4084.73 | AX77: 12110.4 | AY77: 0 | AZ77: 12575.87 | BA77: 1848.22 | BB77: 10764.36 | BC77: 10055.66 | BD77: 71419.55 | BE77: 56924.4 | BF77: 15630.27 | BG77: 122654.96 | BH77: 16114.51 | BI77: 0 | BJ77: 15211.09 | BK77: 24072.91 | BL77: 640.3 | BM77: 234299.26 | BN77: 38006.02 | BO77: 350047.95 | BP77: 43972.82 | BQ77: 0 | BR77: 0 | BS77: 0 | BT77: 0 | BU77: 0 | BV77: 11542 | BW77: 0 | BX77: 0 | BY77: 6000 | BZ77: 0 | CA77: 26489.76 | CB77: 0 | CC77: 14352 | CD77: 0 | CE77: 322106.99 | CF77: 20755.24 | CG77: 0 | CH77: 0 | CI77: 0 | CJ77: 322106.99 | CK77: 20755.24 | CL77: 322106.99
A78: 302 | B78: 3524 | C78: Beit Shvidler Primary School | D78: No | F78: Authorised | G78: 0 | H78: 0 | I78: 20232024 | J78: XG24 | K78: Y | L78: Final | M78: Y | N78: Accruals | O78: N | P78: N | Q78: 80347 | R78: 0 | S78: 0 | T78: 1208155.35 | U78: 0 | V78: 76697.05 | W78: 0 | X78: 17459.72 | Y78: 81730.25 | Z78: 49280 | AA78: 0 | AB78: 9849.82 | AC78: 3.4 | AD78: 0 | AE78: 0 | AF78: 67425.84 | AG78: 428373 | AH78: 0 | AI78: 0 | AJ78: 0 | AK78: 0 | AL78: 0 | AM78: 3243.12 | AN78: 59483 | AO78: 960029.06 | AP78: 0 | AQ78: 409737.2 | AR78: 40180.35 | AS78: 120146.82 | AT78: 0 | AU78: 3110.89 | AV78: 2973.56 | AW78: 2100.73 | AX78: 340.3 | AY78: 0 | AZ78: 53613.6 | BA78: 2187.46 | BB78: 39107.27 | BC78: 3675.86 | BD78: 52676.68 | BE78: 9591.72 | BF78: 64194.54 | BG78: 95705.71 | BH78: 15611.78 | BI78: 0 | BJ78: 11453.46 | BK78: 8963.14 | BL78: 0 | BM78: 27207.11 | BN78: 135 | BO78: 44595.37 | BP78: 23007.72 | BQ78: 0 | BR78: 0 | BS78: 0 | BT78: 0 | BU78: 0 | BV78: 0 | BW78: 0 | BX78: 0 | BY78: 6000 | BZ78: 0 | CA78: 0 | CB78: 0 | CC78: 0 | CD78: 0 | CE78: 91702.22 | CF78: 0 | CG78: 0 | CH78: 0 | CI78: 0 | CJ78: 91702.22 | CK78: 0 | CL78: 91702.22
A79: 302 | B79: 4003 | C79: Friern Barnet School | D79: No | F79: Authorised | G79: 0 | H79: 0 | I79: 20232024 | J79: XG24 | K79: Y | L79: Final | M79: Y | N79: Accruals | O79: N | P79: N | Q79: 232723 | R79: 0 | S79: 53678 | T79: 5871339.57 | U79: 0 | V79: 437663.84 | W79: 0 | X79: 337128.48 | Y79: 1050 | Z79: 184634.05 | AA79: 14400 | AB79: 2791.65 | AC79: 145982.9 | AD79: 0 | AE79: 0 | AF79: 59144.32 | AG79: 53242.31 | AH79: 0 | AI79: 0 | AJ79: 0 | AK79: 0 | AL79: 0 | AM79: 122686.25 | AN79: 0 | AO79: 3837104.82 | AP79: 0 | AQ79: 1051130.23 | AR79: 89226.89 | AS79: 508195.99 | AT79: 0 | AU79: 46041.64 | AV79: 54583.67 | AW79: 12921.45 | AX79: 1065.6 | AY79: 0 | AZ79: 157461.72 | BA79: 9377.56 | BB79: 94771.94 | BC79: 4469.59 | BD79: 119979.95 | BE79: 72777.6 | BF79: 38510.09 | BG79: 144777.8 | BH79: 151519.44 | BI79: 68197.45 | BJ79: 47522.8 | BK79: 30486.2 | BL79: 0 | BM79: 211873.89 | BN79: 167038.28 | BO79: 137182.39 | BP79: 16264.33 | BQ79: 0 | BR79: 0 | BS79: 0 | BT79: 0 | BU79: 0 | BV79: 16209.06 | BW79: 0 | BX79: 0 | BY79: 6000 | BZ79: 0 | CA79: 0 | CB79: 0 | CC79: 53150 | CD79: 0 | CE79: 390305.05 | CF79: 16737.06 | CG79: 0 | CH79: 0 | CI79: 0 | CJ79: 390305.05 | CK79: 16737.06 | CL79: 390305.05
A80: 302 | B80: 4004 | C80: Menorah High School for Girls | D80: No | F80: Authorised | G80: 0 | H80: 0 | I80: 20232024 | J80: XG24 | K80: Y | L80: Final | M80: Y | N80: Accruals | O80: N | P80: N | Q80: 59512 | R80: 0 | S80: 0 | T80: 2069171.07 | U80: 426593.36 | V80: 101746.27 | W80: 0 | X80: 6210.02 | Y80: 62944.32 | Z80: 0 | AA80: 0 | AB80: 0 | AC80: 0 | AD80: 0 | AE80: 0 | AF80: 0 | AG80: 606990 | AH80: 0 | AI80: 0 | AJ80: 0 | AK80: 0 | AL80: 0 | AM80: 7451.26 | AN80: 0 | AO80: 2259150.9 | AP80: 0 | AQ80: 232818.12 | AR80: 58265.58 | AS80: 172714.74 | AT80: 0 | AU80: 0 | AV80: 8794.8 | AW80: 17807.45 | AX80: 447.84 | AY80: 0 | AZ80: 82201.38 | BA80: 0 | BB80: 62200.44 | BC80: 578.76 | BD80: 34349.94 | BE80: 7168 | BF80: 84791.13 | BG80: 52344.92 | BH80: 10021.06 | BI80: 43860.17 | BJ80: 49111.58 | BK80: 13496.93 | BL80: 0 | BM80: 4349.25 | BN80: 0 | BO80: 22337.46 | BP80: 72548.21 | BQ80: 0 | BR80: 0 | BS80: 16767 | BT80: 0 | BU80: 0 | BV80: 0 | BW80: 0 | BX80: 16767 | BY80: 6000 | BZ80: 0 | CA80: 0 | CB80: 16767 | CC80: 0 | CD80: 0 | CE80: 34492.64 | CF80: 0 | CG80: 0 | CH80: 0 | CI80: 0 | CJ80: 34492.64 | CK80: 0 | CL80: 34492.64
A81: 302 | B81: 5201 | C81: Osidge Primary School | D81: No | F81: Authorised | G81: 0 | H81: 0 | I81: 20232024 | J81: XG24 | K81: Y | L81: Final | M81: Y | N81: Accruals | O81: N | P81: N | Q81: 364307 | R81: 0 | S81: 17934 | T81: 2180247.83 | U81: 0 | V81: 232006.6 | W81: 0 | X81: 130949.98 | Y81: 2080 | Z81: 59112.53 | AA81: 3961.1 | AB81: 91304.22 | AC81: 16510.72 | AD81: 0 | AE81: 317 | AF81: 39265.65 | AG81: 2221.52 | AH81: 0 | AI81: 0 | AJ81: 0 | AK81: 0 | AL81: 0 | AM81: 22117.5 | AN81: 74975 | AO81: 1200317.63 | AP81: 0 | AQ81: 640827.81 | AR81: 75446.41 | AS81: 146813.81 | AT81: 0 | AU81: 41127.94 | AV81: 2439.43 | AW81: 9420.58 | AX81: 670.64 | AY81: 0 | AZ81: 21577.75 | BA81: 39015.13 | BB81: 40536.59 | BC81: 5096.15 | BD81: 82452.17 | BE81: 7014.4 | BF81: 10970.95 | BG81: 88253.37 | BH81: 12885.27 | BI81: 0 | BJ81: 16383 | BK81: 17557.72 | BL81: 7863.66 | BM81: 149564.81 | BN81: 6682 | BO81: 109131.79 | BP81: 35689.73 | BQ81: 0 | BR81: 0 | BS81: 0 | BT81: 0 | BU81: 0 | BV81: 8629.38 | BW81: 0 | BX81: 0 | BY81: 6000 | BZ81: 0 | CA81: 0 | CB81: 0 | CC81: 0 | CD81: 0 | CE81: 451637.91 | CF81: 26563.38 | CG81: 0 | CH81: 0 | CI81: 0 | CJ81: 451637.91 | CK81: 26563.38 | CL81: 451637.91
A82: 302 | B82: 5404 | C82: St Michael's Catholic Grammar School | D82: No | F82: Authorised | G82: 0 | H82: 0 | I82: 20232024 | J82: XG24 | K82: Y | L82: Final | M82: Y | N82: Accruals | O82: N | P82: N | Q82: 377429 | R82: 0 | S82: 0 | T82: 4063046.05 | U82: 1531685.72 | V82: 16986.33 | W82: 0 | X82: 67610 | Y82: 0 | Z82: 6989.52 | AA82: 32278.57 | AB82: 0 | AC82: 220149.62 | AD82: 0 | AE82: 3204 | AF82: 20000 | AG82: 259018.98 | AH82: 0 | AI82: 0 | AJ82: 0 | AK82: 0 | AL82: 0 | AM82: 21646.88 | AN82: 4954.38 | AO82: 3932839.07 | AP82: 0 | AQ82: 431195.96 | AR82: 103276.49 | AS82: 460344.25 | AT82: 82797.12 | AU82: 2212.73 | AV82: 32208.9 | AW82: 26326.68 | AX82: 872.64 | AY82: 0 | AZ82: 198470.07 | BA82: 3586.11 | BB82: 92108.91 | BC82: 25516.85 | BD82: 181117.77 | BE82: 23353.07 | BF82: 44225.34 | BG82: 170834.65 | BH82: 73496.77 | BI82: 104751.82 | BJ82: 89810.57 | BK82: 12151.39 | BL82: 8399.6 | BM82: 144901.9 | BN82: 2116.8 | BO82: 113124.82 | BP82: 117003.66 | BQ82: 0 | BR82: 0 | BS82: 0 | BT82: 0 | BU82: 0 | BV82: 43114.36 | BW82: 0 | BX82: 0 | BY82: 6000 | BZ82: 0 | CA82: 43114.36 | CB82: 0 | CC82: 0 | CD82: 0 | CE82: 147955.11 | CF82: 0 | CG82: 0 | CH82: 0 | CI82: 0 | CJ82: 147955.11 | CK82: 0 | CL82: 147955.11
A83: 302 | B83: 5405 | C83: Finchley Catholic High School | D83: No | F83: Authorised | G83: 0 | H83: 0 | I83: 20232024 | J83: XG24 | K83: Y | L83: Final | M83: Y | N83: Accruals | O83: N | P83: N | Q83: 961936 | R83: -4590 | S83: 0 | T83: 6068398.12 | U83: 1720519.96 | V83: 223912.28 | W83: 0 | X83: 148780.02 | Y83: 18068.35 | Z83: 8807.39 | AA83: 7093.6 | AB83: 60056.49 | AC83: 418229.01 | AD83: 0 | AE83: 11450 | AF83: 71201.29 | AG83: 0 | AH83: 0 | AI83: 0 | AJ83: 0 | AK83: 0 | AL83: 0 | AM83: 42215.5 | AN83: 0 | AO83: 5084545.94 | AP83: 0 | AQ83: 812512.61 | AR83: 148953.41 | AS83: 703742.25 | AT83: 194058.63 | AU83: 0 | AV83: 73575.76 | AW83: 9294.8 | AX83: 1288.8 | AY83: 0 | AZ83: 77912.51 | BA83: 45569.21 | BB83: 137750.63 | BC83: 13546.77 | BD83: 210474.83 | BE83: 25998.26 | BF83: 59961.6 | BG83: 230813.55 | BH83: 66257.87 | BI83: 147256.79 | BJ83: 51579.53 | BK83: 73478.91 | BL83: 0 | BM83: 316502.37 | BN83: 47729.47 | BO83: 141330.25 | BP83: 56643.96 | BQ83: 0 | BR83: 0 | BS83: 0 | BT83: 0 | BU83: 0 | BV83: 0 | BW83: 0 | BX83: 0 | BY83: 6000 | BZ83: 0 | CA83: 0 | CB83: 0 | CC83: 0 | CD83: 0 | CE83: 1029889.3 | CF83: 0 | CG83: 0 | CH83: -4590 | CI83: 0 | CJ83: 1025299.3 | CK83: 0 | CL83: 1029889.3
A84: 302 | B84: 5407 | C84: St James' Catholic High School | D84: No | F84: Authorised | G84: 0 | H84: 0 | I84: 20232024 | J84: XG24 | K84: Y | L84: Final | M84: Y | N84: Accruals | O84: N | P84: N | Q84: 724053 | R84: 0 | S84: 0 | T84: 7835638.43 | U84: 1054562.68 | V84: 228163.13 | W84: 0 | X84: 292795 | Y84: 35874.32 | Z84: 23200.09 | AA84: 0 | AB84: 29749.36 | AC84: 0 | AD84: 0 | AE84: 0 | AF84: 52914.66 | AG84: 79350.12 | AH84: 0 | AI84: 0 | AJ84: 0 | AK84: 0 | AL84: 0 | AM84: 106821.76 | AN84: 0 | AO84: 5201992.67 | AP84: 0 | AQ84: 1138769.17 | AR84: 156684.28 | AS84: 470125.06 | AT84: 0 | AU84: 66888.07 | AV84: 205796.3 | AW84: 19610.22 | AX84: 1548 | AY84: 4761.45 | AZ84: 49515.15 | BA84: 10548.29 | BB84: 178699.78 | BC84: 14454.34 | BD84: 477834.7 | BE84: 36442 | BF84: 107039.09 | BG84: 209738.25 | BH84: 84284.17 | BI84: 146246.75 | BJ84: 191870.63 | BK84: 54549.03 | BL84: 2038.96 | BM84: 84434.57 | BN84: 231514.1 | BO84: 467282.49 | BP84: 133696.66 | BQ84: 0 | BR84: 0 | BS84: 200000 | BT84: 0 | BU84: 0 | BV84: 0 | BW84: 0 | BX84: 0 | BY84: 6000 | BZ84: 0 | CA84: 0 | CB84: 0 | CC84: 0 | CD84: 0 | CE84: 516758.37 | CF84: 0 | CG84: 0 | CH84: 0 | CI84: 0 | CJ84: 516758.37 | CK84: 0 | CL84: 516758.37
A85: 302 | B85: 5427 | C85: JCoSS | D85: No | F85: Authorised | G85: 0 | H85: 1 | I85: 20232024 | J85: XG24 | K85: Y | L85: Final | M85: Y | N85: Accruals | O85: N | P85: N | Q85: 7936 | R85: 0 | S85: 0 | T85: 7573684.88 | U85: 1896856.04 | V85: 1610769.05 | W85: 0 | X85: 70150 | Y85: 204742.84 | Z85: 1888.84 | AA85: 17286.5 | AB85: 0 | AC85: 48000 | AD85: 0 | AE85: 0 | AF85: 1431076.06 | AG85: 1833225.64 | AH85: 0 | AI85: 0 | AJ85: 0 | AK85: 0 | AL85: 0 | AM85: 0 | AN85: 45747.75 | AO85: 7677563.94 | AP85: 34566.65 | AQ85: 2099025.05 | AR85: 184282.98 | AS85: 970778.99 | AT85: 0 | AU85: 157439.03 | AV85: 79318.07 | AW85: 18074.57 | AX85: 1429.92 | AY85: 0 | AZ85: 222873.94 | BA85: 23581.91 | BB85: 186040.25 | BC85: 13636.05 | BD85: 172106.27 | BE85: 53560 | BF85: 165451.21 | BG85: 607114.54 | BH85: 168494.54 | BI85: 262640.22 | BJ85: 72130.09 | BK85: 9503.83 | BL85: 0 | BM85: 21563.34 | BN85: 77803.62 | BO85: 499650.73 | BP85: 901411.84 | BQ85: 0 | BR85: 0 | BS85: 0 | BT85: 0 | BU85: 0 | BV85: 0 | BW85: 0 | BX85: 0 | BY85: 6000 | BZ85: 0 | CA85: 0 | CB85: 0 | CC85: 0 | CD85: 0 | CE85: 61322.02 | CF85: 0 | CG85: 0 | CH85: 0 | CI85: 0 | CJ85: 61322.02 | CK85: 0 | CL85: 61322.02
A86: 302 | B86: 5948 | C86: Mathilda Marks Kennedy Jewish Primary School | D86: No | F86: Authorised | G86: 0 | H86: 0 | I86: 20232024 | J86: XG24 | K86: Y | L86: Final | M86: Y | N86: Accruals | O86: N | P86: N | Q86: -52450 | R86: 0 | S86: 0 | T86: 1157696.45 | U86: 0 | V86: 23548.07 | W86: 0 | X86: 5820.04 | Y86: 52227.94 | Z86: 0 | AA86: 0 | AB86: 94941.59 | AC86: 0 | AD86: 4468.66 | AE86: 0 | AF86: 54177.41 | AG86: 270673.57 | AH86: 0 | AI86: 0 | AJ86: 0 | AK86: 0 | AL86: 0 | AM86: 0 | AN86: 86961.04 | AO86: 813218.9 | AP86: 0 | AQ86: 289880.38 | AR86: 21276.03 | AS86: 92351.55 | AT86: 0 | AU86: 9002.23 | AV86: 958.4 | AW86: 7513.45 | AX86: 0 | AY86: 9001.33 | AZ86: 16662.85 | BA86: 0 | BB86: 32150.13 | BC86: 8694.59 | BD86: 30113 | BE86: 16972.8 | BF86: 73675.44 | BG86: 79192.09 | BH86: 37185.56 | BI86: 0 | BJ86: 17257.66 | BK86: 7509.17 | BL86: 6003.21 | BM86: 77409.15 | BN86: 0 | BO86: 15642.11 | BP86: 30142.21 | BQ86: 0 | BR86: 0 | BS86: 0 | BT86: 0 | BU86: 0 | BV86: 0 | BW86: 0 | BX86: 0 | BY86: 6000 | BZ86: 0 | CA86: 0 | CB86: 0 | CC86: 0 | CD86: 0 | CE86: 6252.53 | CF86: 0 | CG86: 0 | CH86: 0 | CI86: 0 | CJ86: 6252.53 | CK86: 0 | CL86: 6252.53
A87: 302 | B87: 5949 | C87: Menorah Foundation School | D87: No | F87: Authorised | G87: 0 | H87: 1 | I87: 20232024 | J87: XG24 | K87: Y | L87: Final | M87: Y | N87: Accruals | O87: N | P87: N | Q87: -33328 | R87: 0 | S87: 0 | T87: 1793647.68 | U87: 0 | V87: 35903.77 | W87: 0 | X87: 20370.02 | Y87: 0 | Z87: 95239.71 | AA87: 0 | AB87: 0 | AC87: 2863.13 | AD87: 0 | AE87: 0 | AF87: 16102.1 | AG87: 1128517.94 | AH87: 0 | AI87: 0 | AJ87: 0 | AK87: 0 | AL87: 0 | AM87: 3170 | AN87: 80384 | AO87: 1086138.59 | AP87: 0 | AQ87: 1148530.73 | AR87: 59962.09 | AS87: 115836.9 | AT87: 0 | AU87: 11298.86 | AV87: 17478.98 | AW87: 38154.51 | AX87: 569.38 | AY87: 0 | AZ87: 17175.21 | BA87: 0 | BB87: 83947.92 | BC87: 3299.26 | BD87: 63052.65 | BE87: 38376 | BF87: 11202.7 | BG87: 136392.53 | BH87: 16686.28 | BI87: 0 | BJ87: 13775.56 | BK87: 22149.01 | BL87: 330 | BM87: 36486.86 | BN87: 63643 | BO87: 34567.98 | BP87: 0 | BQ87: 143688.7 | BR87: 0 | BS87: 0 | BT87: 0 | BU87: 0 | BV87: 0 | BW87: 0 | BX87: 0 | BY87: 6000 | BZ87: 0 | CA87: 0 | CB87: 0 | CC87: 0 | CD87: 0 | CE87: -19873.35 | CF87: 0 | CG87: 0 | CH87: 0 | CI87: 0 | CJ87: -19873.35 | CK87: 0 | CL87: -19873.35
A88: 302 | B88: 7005 | C88: Northway School | D88: No | F88: Authorised | G88: 0 | H88: 0 | I88: 20232024 | J88: XG24 | K88: Y | L88: Final | M88: Y | N88: Accruals | O88: N | P88: N | Q88: 343065 | R88: 0 | S88: 0 | T88: 1766125.01 | U88: 0 | V88: 1997116.79 | W88: 0 | X88: 76890.02 | Y88: 10645 | Z88: 13432.32 | AA88: 26138 | AB88: 21806.08 | AC88: 4101.9 | AD88: 0 | AE88: 0 | AF88: 230 | AG88: 15627.73 | AH88: 0 | AI88: 0 | AJ88: 0 | AK88: 0 | AL88: 0 | AM88: 83661.56 | AN88: 35379 | AO88: 1375854.72 | AP88: 0 | AQ88: 1234680.09 | AR88: 54971.98 | AS88: 148173.51 | AT88: 0 | AU88: 25014.87 | AV88: 13707.76 | AW88: 16697.06 | AX88: 0 | AY88: 0 | AZ88: 67798.15 | BA88: 6666.31 | BB88: 52937.74 | BC88: 7400.6 | BD88: 141688.84 | BE88: 0 | BF88: 18234.29 | BG88: 86076.94 | BH88: 23416.76 | BI88: 0 | BJ88: 13116.67 | BK88: 6412 | BL88: 0 | BM88: 66699.57 | BN88: 45118 | BO88: 827377.81 | BP88: 49947.92 | BQ88: 0 | BR88: 0 | BS88: 17965.5 | BT88: 0 | BU88: 0 | BV88: 10277.5 | BW88: 33500 | BX88: 17965.5 | BY88: 6000 | BZ88: 0 | CA88: 21667 | CB88: 33500 | CC88: 6576 | CD88: 0 | CE88: 94261.32 | CF88: 0 | CG88: 0 | CH88: 0 | CI88: 0 | CJ88: 94261.32 | CK88: 0 | CL88: 94261.32
A89: 302 | B89: 7009 | C89: Oakleigh School & Acorn Assessment Centre | D89: No | F89: Authorised | G89: 0 | H89: 1 | I89: 20232024 | J89: XG24 | K89: Y | L89: Final | M89: Y | N89: Accruals | O89: N | P89: N | Q89: 228591 | R89: 0 | S89: 52315 | T89: 1883688.04 | U89: 0 | V89: 2720830.54 | W89: 0 | X89: 94774.98 | Y89: 1200 | Z89: 15432 | AA89: 4837.85 | AB89: 731008 | AC89: 2185.59 | AD89: 0 | AE89: 0 | AF89: 1900.95 | AG89: 25134.48 | AH89: 0 | AI89: 0 | AJ89: 0 | AK89: 0 | AL89: 0 | AM89: 43263.44 | AN89: 25525 | AO89: 2079122.33 | AP89: 3274.17 | AQ89: 2155255.17 | AR89: 45946.27 | AS89: 112468.63 | AT89: 0 | AU89: 167375.32 | AV89: 38859.61 | AW89: 21440.48 | AX89: 0 | AY89: 0 | AZ89: 63957.79 | BA89: 10406.64 | BB89: 34293.19 | BC89: 6655.98 | BD89: 74735.14 | BE89: 0 | BF89: 26762.64 | BG89: 89944.63 | BH89: 35603.89 | BI89: 0 | BJ89: 27951.89 | BK89: 12240 | BL89: 72669.7 | BM89: 37262.39 | BN89: 12011.8 | BO89: 514902.18 | BP89: 48496.3 | BQ89: 0 | BR89: 0 | BS89: 22841 | BT89: 0 | BU89: 0 | BV89: 11178.63 | BW89: 20550 | BX89: 22841 | BY89: 6000 | BZ89: 0 | CA89: 39045 | CB89: 48923 | CC89: 18916.6 | CD89: 0 | CE89: 63894.73 | CF89: 0.03 | CG89: 0 | CH89: 0 | CI89: 0 | CJ89: 63894.73 | CK89: 0.03 | CL89: 63894.73
A90: 302 | B90: 7010 | C90: Mapledown School | D90: No | F90: Authorised | G90: 0 | H90: 1 | I90: 20232024 | J90: XG24 | K90: Y | L90: Final | M90: Y | N90: Accruals | O90: N | P90: N | Q90: 621555 | R90: 0 | S90: 48935 | T90: 981557.03 | U90: 310200 | V90: 2777515.97 | W90: 0 | X90: 43534.98 | Y90: 67900.39 | Z90: 24927.1 | AA90: 945.4 | AB90: 0 | AC90: 14675.2 | AD90: 0 | AE90: 3900 | AF90: 690 | AG90: 6859.18 | AH90: 0 | AI90: 0 | AJ90: 0 | AK90: 0 | AL90: 0 | AM90: 54937.88 | AN90: 0 | AO90: 1536360.9 | AP90: 0 | AQ90: 1719184.25 | AR90: 109670.73 | AS90: 166636.93 | AT90: 0 | AU90: 95326.76 | AV90: 26690.39 | AW90: 16899.93 | AX90: 0 | AY90: 0 | AZ90: 60072.12 | BA90: 18220.3 | BB90: 4757.01 | BC90: 5686.71 | BD90: 70293.04 | BE90: 0 | BF90: 19960.09 | BG90: 64594.6 | BH90: 17126.72 | BI90: 1277.45 | BJ90: 9695.11 | BK90: 8950.59 | BL90: 67492.4 | BM90: 33713.1 | BN90: 50270.4 | BO90: 331632.48 | BP90: 34512.8 | BQ90: 0 | BR90: 0 | BS90: 0 | BT90: 0 | BU90: 0 | BV90: 9265 | BW90: 0 | BX90: 0 | BY90: 6000 | BZ90: 0 | CA90: 10609.81 | CB90: 8928 | CC90: 0 | CD90: 0 | CE90: 440173.32 | CF90: 38662.19 | CG90: 0 | CH90: 0 | CI90: 0 | CJ90: 440173.32 | CK90: 38662.19 | CL90: 440173.32
Q91: =SUM(Q4:Q90) -> 8625230 | R91: 129602.99 | S91: 1279369 | T91: 189502166.3 | U91: 7548378.44 | V91: 21957390.32 | W91: 0 | X91: 9423653.4 | Y91: 1300738.96 | Z91: 5202133 | AA91: 1879109.58 | AB91: 3951115.55 | AC91: 2012126.25 | AD91: 145767.16 | AE91: 106496.59 | AF91: 6123087.48 | AG91: 8351131.33 | AH91: 0 | AI91: 930596.21 | AJ91: 23147.67 | AK91: 0 | AL91: 0 | AM91: 1591692.21 | AN91: 5386815.96 | AO91: 118421629.8 | AP91: 328725.26 | AQ91: 52484844.46 | AR91: 5926291.88 | AS91: 12319733.94 | AT91: 632958.1 | AU91: 5426824.45 | AV91: 1505946.41 | AW91: 541121.84 | AX91: 285795.78 | AY91: 39438.88 | AZ91: 3237711.89 | BA91: 557454.12 | BB91: 3356237.53 | BC91: 638382.37 | BD91: 6251998.18 | BE91: 2043248.01 | BF91: 2165765.1 | BG91: 8218108.36 | BH91: 1904893.41 | BI91: 897933.53 | BJ91: 2062407.56 | BK91: 1326316.33 | BL91: 1021749.16 | BM91: 9126070.76 | BN91: 5449958.08 | BO91: 14686617.32 | BP91: 4625547.28 | BQ91: 153204.94 | BR91: 0 | BS91: 512596.29 | BT91: 686475.07 | BU91: 166382.82 | BV91: 597019.99 | BW91: 194305.8 | BX91: 265422.3 | BY91: 522000 | BZ91: 0 | CA91: 745388.3 | CB91: 290911.57 | CC91: =SUM(CC4:CC90) -> 399940.25 | CD91: 0 | CE91: 6957521.6 | CF91: 899876.76 | CG91: 0 | CH91: 230488.98 | CI91: 0 | CJ91: 7188010.58 | CK91: 899876.76 | CL91: 6957521.6

Sheet Front sheet
B8: School Outturn Statements certified by the Head Teacher must be submitted by Thursday 3rd July 2025
A12: ó | B12: Click on the School Name to view your School Report
A13: ó | B13: The print settings are already set up for you to print your report
B15: If you have any problems/queries please do not hesitate to contact the Schools Accountancy Section below :
B16: Schools.Accountancy@barnet.gov.uk
A20: Click onto your schools name for your schools Budget Monitoring Report
A23: Primary Schools | G23: Nursery Schools
A24: School Name | B24: DCSF No | C24: Cost Centre | G24: School Name | H24: DfE No | I24: Cost Centre
A25: Akiva School | B25: 3520 | C25: E11094 | G25: BEYA | H25: 1000 | I25: E10135
A26: All Saints' CE Primary School NW2 | B26: 3300 | C26: E10040 | G26: Moss Hall Nursery | H26: 1002 | I26: E10132
A27: All Saints' CE Primary School, N20 | B27: 3317 | C27: E10042
A28: Annunciation Catholic Infant School | B28: 3500 | C28: E10043
A29: Annunciation Catholic Junior School | B29: 3514 | C29: E10117
A30: Barnfield School | B30: 2002 | C30: E10044 | G30: Secondary Schools
A31: Beis Yaakov | B31: 2079 | C31: E10128 | G31: School Name | H31: DCSF No | I31: Cost Centre
A32: Beit Shvidler Primary School | B32: 3524 | C32: E11278 | G32: Finchley Catholic High | H32: 5405 | I32: E10145
A33: Bell Lane | B33: 2003 | C33: E10045 | G33: Friern Barnet | H33: 4003 | I33: E10139
A34: Blessed Dominic School | B34: 3511 | C34: E10115 | G34: JCoSS | H34: 5427 | I34: E11174
A35: Brookland Infant & Nursery School | B35: 2008 | C35: E10047 | G35: Menorah High School | H35: 4004 | I35: E11513
A36: Brookland Junior School | B36: 2007 | C36: E10046 | G36: St Mary's & St John's All through | H36: 3521 | I36: E10698
A37: Brunswick Park Primary & Nursery School | B37: 2009 | C37: E10048 | G37: St James' Catholic High | H37: 5407 | I37: E10142
A38: Chalgrove Primary School | B38: 2067 | C38: E10118 | G38: St Michael's Cath Gram | H38: 5404 | I38: E10148
A39: Christ Church CE Primary School | B39: 3302 | C39: E10050
A40: Church Hill Primary School | B40: 2011 | C40: E10051
A41: Colindale School | B41: 2014 | C41: E10054
A42: Coppetts Wood | B42: 2015 | C42: E10055
A43: Courtland School | B43: 2016 | C43: E10056 | G43: Special Schools
A44: Cromer Road Primary School | B44: 2017 | C44: E10057 | G44: School Name | H44: DCSF No | I44: Cost Centre
A45: Danegrove JMI School | B45: 2073 | C45: E10083 | G45: Mapledown | H45: 7010 | I45: E10159
A46: Deansbrook Infant School | B46: 2019 | C46: E10059 | G46: Northway | H46: 7005 | I46: E10157
A47: Dollis Primary School | B47: 2021 | C47: E10061 | G47: Oakleigh | H47: 7009 | I47: E10158
A48: Edgware Primary School | B48: 2023 | C48: E10063
A49: Fairway Primary School | B49: 2024 | C49: E10064
A50: Foulds | B50: 2025 | C50: E10065
A51: Frith Manor School | B51: 2026 | C51: E10066
A52: Garden Suburb Infant School | B52: 2028 | C52: E10068 | G52: PUPIL REFERRAL UNITS
A53: Garden Suburb Junior | B53: 2027 | C53: E10067 | G53: School Name | H53: DCSF No | I53: Cost Centre
A54: Goldbeaters Primary School | B54: 2029 | C54: E10069 | G54: Northgate | H54: 1102 | I54: E10185
A55: Hasmonean Primary School | B55: 3516 | C55: E10121 | G55: Pavilion | H55: 1100 | I55: E10188
A56: Hollickwood JMI School | B56: 2031 | C56: E10071
A57: Holly Park School | B57: 2032 | C57: E10072
A58: Holy Trinity School | B58: 3304 | C58: E10073
A59: Livingstone School | B59: 2036 | C59: E10074
A60: Manorside Primary School | B60: 2037 | C60: E10075
A61: Martin Primary School | B61: 3523 | C61: E11093
A62: Mathilda Marks-Kennedy School | B62: 5948 | C62: E10125
A63: Menorah Foundation School | B63: 5949 | C63: E10126
A64: Menorah Primary School | B64: 3513 | C64: E10114
A65: Monken Hadley C E Primary School | B65: 3305 | C65: E10078
A66: Monkfrith School | B66: 2042 | C66: E10079
A67: Moss Hall Infant School | B67: 2044 | C67: E10081
A68: Moss Hall Junior School | B68: 2043 | C68: E10080
A69: Northside School | B69: 2045 | C69: E10082
A70: Orion Primary School | B70: 2077 | C70: E10127
A71: Osidge School | B71: 5201 | C71: E10084
A72: Our Lady of Lourdes School | B72: 3501 | C72: E10085
A73: Pardes House School | B73: 2078 | C73: E10129
A74: Queenswell Schools | B74: 2072 | C74: E10086
A75: Rosh Pinah | B75: 3512 | C75: E10112
A76: Sacred Heart School | B76: 3510 | C76: E10110
A77: Shalom Noam Primary School | B77: 2053 | C77: E10113
A78: St Agnes RC Primary School | B78: 3502 | C78: E10087
A79: St Andrew's C E | B79: 3315 | C79: E10099
A80: St Catherine's R C Primary | B80: 3504 | C80: E10088
A81: St John's CE N20 | B81: 3309 | C81: E10116
A82: St John's CE School N11 | B82: 3307 | C82: E10089
A83: St Joseph's Primary School | B83: 3509 | C83: E10107
A84: St Mary's C E Primary School N3 | B84: 3311 | C84: E10092
A85: St Mary's School EN4 | B85: 3312 | C85: E10093
A86: St Paul's CE Primary, NW7 | B86: 3314 | C86: E10095
A87: St Paul's School, N11 | B87: 3313 | C87: E10094
A88: St Theresa's R.C. Primary School | B88: 3507 | C88: E10108
A89: St Vincent's Catholic Primary School | B89: 3506 | C89: E10096
A90: Sunnyfields Primary School | B90: 2070 | C90: E10097
A91: Trent C of E Primary School | B91: 3316 | C91: E10100
A92: Tudor School | B92: 2055 | C92: E10101
A93: Underhill School | B93: 2057 | C93: E10103
A94: Wessex Gardens Primary School | B94: 2076 | C94: E10124
A95: Whitings Hill Primary School | B95: 2060 | C95: E10105
A96: Woodcroft Primary School | B96: 3518 | C96: E10123
A97: Woodridge Primary School | B97: 2054 | C97: E10109
C197: Choose your school
C198: Akiva
C199: All Saints N20
C200: All Saints NW2
C201: Annunciation Inf
C202: Annunciation Jun | D202: DfE No | E202: Cost Centre
C203: Barnfield | D203: 3520 | E203: 11094
C204: Beis Yaakov | D204: 3317 | E204: 10042
C205: Beit Shvidler School | D205: 3300 | E205: 10040
C206: Bell Lane | D206: 3500 | E206: 10043
C207: BEYA | D207: 3514 | E207: 10117
C208: Bishop Douglass | D208: 2002 | E208: 10044
C209: Blessed Dominic | D209: 2079 | E209: 10128
C210: Brookhill Nursery | D210: 3524 | E210: 11278
C211: Brookland Inf | D211: 2003 | E211: 10045
C212: Brookland Jun | E212: 10135
C213: Brunswick Park | D213: 5408 | E213: 10137
C214: Chalgrove | D214: 3511 | E214: 10115
C215: Childs Hill | D215: 1000 | E215: 10130
C216: Christchurch JMI | D216: 2008 | E216: 10047
C217: Church Hill | D217: 2007 | E217: 10046
C218: Colindale | D218: 2009 | E218: 10048
C219: Coppetts Wood | D219: 2067 | E219: 10118
C220: Courtland | D220: 2010 | E220: 10049
C221: Cromer Road | D221: 3302 | E221: 10050
C222: Danegrove | D222: 2011 | E222: 10051
C223: Deansbrook Inf | D223: 2014 | E223: 10054
C224: Dollis Primary | D224: 2015 | E224: 10055
C225: Edgware Primary | D225: 2016 | E225: 10056
C226: Fairway | D226: 2017 | E226: 10057
C227: Finchley Catholic High | D227: 2073 | E227: 10083
C228: Foulds | D228: 2019 | E228: 10059
C229: Friern Barnet | D229: 2021 | E229: 10061
C230: Frith Manor | D230: 2023 | E230: 10063
C231: Garden Suburb Inf | D231: 2024 | E231: 10064
C232: Garden Suburb Jnr | D232: 5405 | E232: 10145
C233: Goldbeaters | D233: 2025 | E233: 10065
C234: Hampden Way Nursery | D234: 4003 | E234: 10139
C235: Hasmonean Primary | D235: 2026 | E235: 10066
C236: Hollickwood | D236: 2028 | E236: 10068
C237: Holly Park | D237: 2027 | E237: 10067
C238: Holy Trinity | D238: 2029 | E238: 10069
C239: JCoSS | D239: 1001 | E239: 10131
C240: Livingstone | D240: 3516 | E240: 10121
C241: Manorside | D241: 2031 | E241: 10071
C242: Mapledown | D242: 2032 | E242: 10072
C243: Martin Primary School | D243: 3304 | E243: 10073
C244: Mathilda Marks Kennedy | D244: 5427 | E244: 11174
C245: Menorah Foundation | D245: 2036 | E245: 10074
C246: Menorah High School | D246: 2037 | E246: 10075
C247: Menorah Primary | D247: 7010 | E247: 10159
C248: Monken Hadley CE | D248: 3523 | E248: 11093
C249: Monkfrith | D249: 5948 | E249: 10125
C250: Moss Hall Inf | D250: 5949 | E250: 10126
C251: Moss Hall Jun | D251: 4004 | E251: 11513
C252: Moss Hall Nursery | D252: 3513 | E252: 10114
C253: Noam Primary | D253: 3305 | E253: 10078
C254: Northgate | D254: 2042 | E254: 10079
C255: Northside | D255: 2044 | E255: 10081
C256: Northway | D256: 2043 | E256: 10080
C257: Oak Lodge | D257: 1002 | E257: 10132
C258: Oakleigh | D258: 2053 | E258: 10113
C259: Orion | D259: 1102 | E259: 10185
C260: Osidge JMI | D260: 2045 | E260: 10082
C261: Our Lady of Lourdes | D261: 7005 | E261: 10157
C262: Pardes House | D262: 7000 | E262: 10156
C263: Pavilion | D263: 7009 | E263: 10158
C264: Queenswell Inf | D264: 2077 | E264: 10127
C265: Queenswell Jun | D265: 5201 | E265: 10084
C266: Rosh Pinah | D266: 3501 | E266: 10085
C267: Sacks Morasha | D267: 2078 | E267: 10129
C268: Sacred Heart | D268: 1100 | E268: 10188
C269: St Agnes RC | D269: 2071 | E269: 10119
C270: St Andrews CE | D270: 2072 | E270: 10086
C271: St Catherines RC | D271: 3512 | E271: 10112
C272: St James' Catholic High | D272: 2041 | E272: 11381
C273: St Johns CE N11 | D273: 3510 | E273: 10110
C274: St Johns CE N20 | D274: 3502 | E274: 10087
C275: St Josephs RC Primary | D275: 3315 | E275: 10099
C276: St Margaret's Nursery | D276: 3504 | E276: 10088
C277: St Mary's C E High | D277: 5407 | E277: 10142
C278: St Marys CE EB | D278: 3307 | E278: 10089
C279: St Marys CE N3 | D279: 3309 | E279: 10116
C280: St Mary's & St Johns All-through | D280: 3509 | E280: 10107
C281: St Michaels Cath Gram | D281: 1003 | E281: 10133
C282: St Pauls CE N11 | D282: 5403 | E282: 10143
C283: St Pauls CE NW7 | D283: 3312 | E283: 10093
C284: St Theresas RC | D284: 3311 | E284: 10092
C285: St Vincents RC | D285: 3521 | E285: 10698
C286: Summerside | D286: 5404 | E286: 10148
C287: Sunnyfields | D287: 3313 | E287: 10094
C288: Trent | D288: 3314 | E288: 10095
C289: Tudor | D289: 3507 | E289: 10108
C290: Underhill School | D290: 3506 | E290: 10096
C291: Wessex Gardens | D291: 2052 | E291: 10098
C292: Whitings Hill | D292: 2070 | E292: 10097
C293: Woodcroft Primary | D293: 3316 | E293: 10100
C294: Woodridge | D294: 2055 | E294: 10101
D295: 2057 | E295: 10103
D296: 2076 | E296: 10124
D297: 2060 | E297: 10105
D298: 3518 | E298: 10123
D299: 2054 | E299: 10109

Sheet ORACLE COST CENTRES (hidden)
A1: 1 | B1: 2 | C1: 3 | D1: 4
A2: Integra Cost Centre | B2: Integra CC Description | C2: Cost Centre | D2: Oracle CC Description | E2: DfE No
A3: 10040 | B3: All Saints' CE NW2 | C3: E10040 | D3: All Saints' CE NW2 | E3: 3300
A4: 10041 | B4: Post16learnfund-MaintainSecond | C4: D10041 | D4: Post16learnfund-MaintainSecond
A5: 10042 | B5: All Saints' CE N20 | C5: E10042 | D5: All Saints' CE N20 | E5: 3317
A6: 10043 | B6: Annunciation RC Infant | C6: E10043 | D6: Annunciation RC Infant | E6: 3500
A7: 10044 | B7: Barnfield School | C7: E10044 | D7: Barnfield School | E7: 2002
A8: 10045 | B8: Bell Lane School | C8: E10045 | D8: Bell Lane School | E8: 2003
A9: 10046 | B9: Brookland Junior School | C9: E10046 | D9: Brookland Junior School | E9: 2007
A10: 10047 | B10: Brookland Infant School | C10: E10047 | D10: Brookland Infant School | E10: 2008
A11: 10048 | B11: Brunswick Park School | C11: E10048 | D11: Brunswick Park School | E11: 2009
A12: 10049 | B12: Childs Hill School | C12: E10049 | D12: Childs Hill School
A13: 10050 | B13: Christ Church CE School | C13: E10050 | D13: Christ Church CE School | E13: 3302
A14: 10051 | B14: Church Hill School | C14: E10051 | D14: Church Hill School | E14: 2011
A15: 10052 | B15: Clitterhouse Junior School | C15: G10052 | D15: Clitterhouse Junior School
A16: 10053 | B16: Out of Hours Service | C16: G10053 | D16: Out of Hours Service
A17: 10054 | B17: Colindale School | C17: E10054 | D17: Colindale School | E17: 2014
A18: 10055 | B18: Coppetts Wood School | C18: E10055 | D18: Coppetts Wood School | E18: 2015
A19: 10056 | B19: Courtland School | C19: E10056 | D19: Courtland School | E19: 2016
A20: 10057 | B20: Cromer Road School | C20: E10057 | D20: Cromer Road School | E20: 2017
A21: 10058 | B21: Deansbrook Junior Sc | C21: E10058 | D21: Deansbrook Junior Sc
A22: 10059 | B22: Deansbrook Infant School | C22: E10059 | D22: Deansbrook Infant School | E22: 2019
A23: 10060 | B23: Dollis Junior School | C23: E10060 | D23: Dollis Junior School
A24: 10061 | B24: Dollis Infant School | C24: E10061 | D24: Dollis Infant School | E24: 2021
A25: 10062 | B25: Edgware Junior schoo | C25: G10062 | D25: Edgware Junior schoo
A26: 10063 | B26: Edgware Primary | C26: E10063 | D26: Edgware Primary | E26: 2023
A27: 10064 | B27: Fairway School | C27: E10064 | D27: Fairway School | E27: 2024
A28: 10065 | B28: Foulds School | C28: E10065 | D28: Foulds School | E28: 2025
A29: 10066 | B29: Frith Manor School | C29: E10066 | D29: Frith Manor School | E29: 2026
A30: 10067 | B30: Garden Suburb Junior | C30: E10067 | D30: Garden Suburb Junior | E30: 2027
A31: 10068 | B31: Garden Suburb Infant | C31: E10068 | D31: Garden Suburb Infant | E31: 2028
A32: 10069 | B32: Goldbeaters School | C32: E10069 | D32: Goldbeaters School | E32: 2029
A33: 10070 | B33: Grasvenor Avenue Inf | C33: G10070 | D33: Grasvenor Avenue Inf
A34: 10071 | B34: Hollickwood School | C34: E10071 | D34: Hollickwood School | E34: 2031
A35: 10072 | B35: Holly Park School | C35: E10072 | D35: Holly Park School | E35: 2032
A36: 10073 | B36: Holy Trinity CE School | C36: E10073 | D36: Holy Trinity CE School | E36: 3304
A37: 10074 | B37: Livingstone School | C37: E10074 | D37: Livingstone School | E37: 2036
A38: 10075 | B38: Manorside School | C38: E10075 | D38: Manorside School | E38: 2037
A39: 10078 | B39: Monken Hadley CE School | C39: E10078 | D39: Monken Hadley CE School | E39: 3305
A40: 10079 | B40: Monkfrith School | C40: E10079 | D40: Monkfrith School | E40: 2042
A41: 10080 | B41: Moss Hall Junior School | C41: E10080 | D41: Moss Hall Junior School | E41: 2043
A42: 10081 | B42: Moss Hall Infant School | C42: E10081 | D42: Moss Hall Infant School | E42: 2044
A43: 10082 | B43: Northside School | C43: E10082 | D43: Northside School | E43: 2045
A44: 10083 | B44: Danegrove School | C44: E10083 | D44: Danegrove School | E44: 2073
A45: 10084 | B45: Osidge School | C45: E10084 | D45: Osidge School | E45: 5201
A46: 10085 | B46: Our Lady Of Lourdes | C46: E10085 | D46: Our Lady Of Lourdes | E46: 3501
A47: 10086 | B47: Queenswell Junior School | C47: E10086 | D47: Queenswell Junior School | E47: 2072
A48: 10087 | B48: St Agnes' RC School | C48: E10087 | D48: St Agnes' RC School | E48: 3502
A49: 10088 | B49: St Catherine's RC School | C49: E10088 | D49: St Catherine's RC School | E49: 3504
A50: 10089 | B50: St John's CE N11 | C50: E10089 | D50: St John's CE N11 | E50: 3307
A51: 10092 | B51: St Mary's CE N3 | C51: E10092 | D51: St Mary's CE N3 | E51: 3311
A52: 10093 | B52: St Mary's CE EN4 | C52: E10093 | D52: St Mary's CE EN4 | E52: 3312
A53: 10094 | B53: St Paul's CE N11 | C53: E10094 | D53: St Paul's CE N11 | E53: 3313
A54: 10095 | B54: St Paul's CE NW7 | C54: E10095 | D54: St Paul's CE NW7 | E54: 3314
A55: 10096 | B55: St Vincent's RC School | C55: E10096 | D55: St Vincent's RC School | E55: 3506
A56: 10097 | B56: Sunnyfields School | C56: E10097 | D56: Sunnyfields School | E56: 2070
A57: 10098 | B57: Summerside School | C57: E10098 | D57: Summerside School
A58: 10099 | B58: St Andrew's CE School | C58: E10099 | D58: St Andrew's CE School | E58: 3315
A59: 10100 | B59: Trent CE School | C59: E10100 | D59: Trent CE School | E59: 3316
A60: 10101 | B60: Tudor School | C60: E10101 | D60: Tudor School | E60: 2055
A61: 10102 | B61: Underhill Junior Sch | C61: E10102 | D61: Underhill Junior Sch
A62: 10103 | B62: Underhill School | C62: E10103 | D62: Underhill School | E62: 2057
A63: 10104 | B63: School Contingency | C63: D10104 | D63: School Contingency
A64: 10105 | B64: Whitings Hill School | C64: E10105 | D64: Whitings Hill School | E64: 2060
A65: 10106 | B65: Sch Contingency(de-delegated) | C65: D10106 | D65: Sch Contingency(de-delegated)
A66: 10107 | B66: St Joseph's RC Primary | C66: E10107 | D66: St Joseph's RC Primary | E66: 3509
A67: 10108 | B67: St Theresa's RC School | C67: E10108 | D67: St Theresa's RC School | E67: 3507
A68: 10109 | B68: Woodridge School | C68: E10109 | D68: Woodridge School | E68: 2054
A69: 10110 | B69: Sacred Heart RC School | C69: E10110 | D69: Sacred Heart RC School | E69: 3510
A70: 10111 | B70: St Joseph's RC Infan | C70: G10111 | D70: St Joseph's RC Infan
A71: 10112 | B71: Rosh Pinah School | C71: E10112 | D71: Rosh Pinah School | E71: 3512
A72: 10113 | B72: Noam Primary School | C72: E10113 | D72: Noam Primary School | E72: 2053
A73: 10114 | B73: Menorah Primary School | C73: E10114 | D73: Menorah Primary School | E73: 3513
A74: 10115 | B74: Blessed Dominic RC | C74: E10115 | D74: Blessed Dominic RC | E74: 3511
A75: 10116 | B75: St John's CE N20 | C75: E10116 | D75: St John's CE N20 | E75: 3309
A76: 10117 | B76: Annunciation RC Junior | C76: E10117 | D76: Annunciation RC Junior | E76: 3514
A77: 10118 | B77: Chalgrove School | C77: E10118 | D77: Chalgrove School | E77: 2067
A78: 10119 | B78: Queenswell Infant School | C78: E10119 | D78: Queenswell Infant School
A79: 10120 | B79: Parkfield School | C79: E10120 | D79: Parkfield School
A80: 10121 | B80: Hasmonean Primary School | C80: E10121 | D80: Hasmonean Primary School | E80: 3516
A81: 10122 | B81: Hyde School | C81: G10122 | D81: Hyde School
A82: 10123 | B82: Woodcroft Primary | C82: E10123 | D82: Woodcroft Primary | E82: 3518
A83: 10124 | B83: Wessex Gardens School | C83: E10124 | D83: Wessex Gardens School | E83: 2076
A84: 10125 | B84: Mathilda Marks Kennedy | C84: E10125 | D84: Mathilda Marks Kennedy | E84: 5948
A85: 10126 | B85: Menorah Foundation | C85: E10126 | D85: Menorah Foundation | E85: 5949
A86: 10127 | B86: Orion School | C86: E10127 | D86: Orion School | E86: 2077
A87: 10128 | B87: Beis Yaakov School | C87: E10128 | D87: Beis Yaakov School | E87: 2079
A88: 10129 | B88: Pardes House School | C88: E10129 | D88: Pardes House School | E88: 2078
A89: 10130 | B89: Brookhill Nursery School | C89: E10130 | D89: Brookhill Nursery School
A90: 10131 | B90: Hampden Way Nursery | C90: E10131 | D90: Hampden Way Nursery
A91: 10132 | B91: Moss Hall Nursery School | C91: E10132 | D91: Moss Hall Nursery School | E91: 1002
A92: 10133 | B92: St Margret's Nursery | C92: E10133 | D92: St Margret's Nursery
A93: 10134 | B93: Broadfields Primary | C93: E10134 | D93: Broadfields Primary
A94: 10135 | B94: Barnet Early Years Alliance | C94: E10135 | D94: Barnet Early Years Alliance | E94: 1000
A95: 10137 | B95: Bishop Douglass RC | C95: E10137 | D95: Bishop Douglass RC
A96: 10139 | B96: Friern Barnet School | C96: E10139 | D96: Friern Barnet School | E96: 4003
A97: 10142 | B97: St James' Catholic | C97: E10142 | D97: St James' Catholic | E97: 5407
A98: 10143 | B98: St Mary's CE High | C98: E10143 | D98: St Mary's CE High
A99: 10145 | B99: Finchley Catholic | C99: E10145 | D99: Finchley Catholic | E99: 5405
A100: 10146 | B100: School | C100: E10146 | D100: School
A101: 10147 | B101: Henrietta Barnett Sc | C101: E10147 | D101: Henrietta Barnett Sc
A102: 10148 | B102: St Michael's Catholic | C102: E10148 | D102: St Michael's Catholic | E102: 5404
A103: 10150 | B103: Hendon School | C103: G10150 | D103: Hendon School
A104: 10152 | B104: Copthall School | C104: E10152 | D104: Copthall School
A105: 10154 | B105: Queen Elizabeth's Gi | C105: E10154 | D105: Queen Elizabeth's Gi
A106: 10156 | B106: Oak Lodge School | C106: E10156 | D106: Oak Lodge School
A107: 10157 | B107: Northway School | C107: E10157 | D107: Northway School | E107: 7005
A108: 10158 | B108: Oakleigh School | C108: E10158 | D108: Oakleigh School | E108: 7009
A109: 10159 | B109: Mapledown School | C109: E10159 | D109: Mapledown School | E109: 7010
A110: 10160 | B110: Excluded Pupils | C110: D10160 | D110: Excluded Pupils
A111: 10161 | B111: SpeSchBudShareEduCFRFundAdvanc | C111: D10161 | D111: SpeSchBudShareEduCFRFundAdvanc
A112: 10162 | B112: Pri Sch Budget Shrs | C112: D10162 | D112: Pri Sch Budget Shrs
A113: 10163 | B113: Sec Sch Budget Shrs | C113: D10163 | D113: Sec Sch Budget Shrs
A114: 10164 | B114: Nur Sch Budget Shrs | C114: D10164 | D114: Nur Sch Budget Shrs
A115: 10165 | B115: SF Grnt Pd-Nur Sch | C115: D10165 | D115: SF Grnt Pd-Nur Sch
A116: 10166 | B116: SF Grnt Pd-Pri Sch | C116: D10166 | D116: SF Grnt Pd-Pri Sch
A117: 10167 | B117: SF Grnt Pd-Sec Sch | C117: D10167 | D117: SF Grnt Pd-Sec Sch
A118: 10168 | B118: SF Grnt Pd-Spec Sch | C118: D10168 | D118: SF Grnt Pd-Spec Sch
A119: 10185 | B119: Northgate PRU | C119: E10185 | D119: Northgate PRU | E119: 1102
A120: 10186 | B120: Discovery Bay | C120: G10186 | D120: Discovery Bay
A121: 10188 | B121: Pavilion StudyCt PRU | C121: E10188 | D121: Pavilion StudyCt PRU | E121: 1100
A122: 10195 | B122: Oakleigh | C122: D10195 | D122: Oakleigh
A123: 10286 | B123: Ret Nursery Sch Budg | C123: G10286 | D123: Ret Nursery Sch Budg
A124: 10287 | B124: Ret Primary Sch Budj | C124: D10287 | D124: Ret Primary Sch Budj
A125: 10288 | B125: Ret Scndry Sch Budj | C125: G10288 | D125: Ret Scndry Sch Budj
A126: 10698 | B126: St Marys and St Johns Primary | C126: E10698 | D126: St Marys and St Johns Primary | E126: 3521
A127: 10865 | B127: Schls l-t Sick & Mat | C127: O10865 | D127: Schls l-t Sick & Mat
A128: 10866 | B128: Schls Med Term Sick | C128: O19999 | D128: Unused Revenue CCs
A129: 10931 | B129: Dedicated Schools Grant | C129: D10931 | D129: Dedicated Schools Grant
A130: 10932 | B130: Schools Forum | C130: D10932 | D130: Schools Forum
A131: 10953 | B131: Claremont Primary | C131: E10953 | D131: Claremont Primary
A132: 11093 | B132: Martin Primary | C132: E11093 | D132: Martin Primary | E132: 3523
A133: 11094 | B133: Akiva | C133: E11094 | D133: Akiva | E133: 3520
A134: 11174 | B134: JCOSS | C134: E11174 | D134: JCOSS | E134: 5427
A135: 11278 | B135: Beit Schvidler | C135: E11278 | D135: Beit Schvidler | E135: 3524
A136: 11298 | B136: Pupil Premium income from EFA | C136: D11298 | D136: Pupil Premium income from EFA
A137: 11299 | B137: DSG Trade Union Facility Time | C137: D11299 | D137: DSG Trade Union Facility Time
A138: 11327 | B138: DFC Grnt Pd-Nur Sch | C138: D11327 | D138: DFC Grnt Pd-Nur Sch
A139: 11328 | B139: DFC Grnt Inc - PfS | C139: D11328 | D139: DFC Grnt Inc - PfS
A140: 11329 | B140: SF Grnt Pd-All thru | C140: D11329 | D140: SF Grnt Pd-All thru
A141: 11330 | B141: DFC Grants Paid To Academies | C141: G11330 | D141: DFC Grants Paid To Academies
A142: 11331 | B142: DFC Grnt Pd-Pri Sch | C142: D11331 | D142: DFC Grnt Pd-Pri Sch
A143: 11332 | B143: Pupil Premium Specia | C143: D11332 | D143: Pupil Premium Specia
A144: 11333 | B144: Pupil Premium Second | C144: D11333 | D144: Pupil Premium Second
A145: 11334 | B145: Pupil Premium Primar | C145: D11334 | D145: Pupil Premium Primar
A146: 11381 | B146: Sacks Morasha | C146: E11381 | D146: Sacks Morasha
A147: 11513 | B147: Menorah High School | C147: E11513 | D147: Menorah High School | E147: 4004
A148: 90040 | B148: Balances - All Saints' CE NW2 | C148: B99995 | D148: Schools Balance Sheet
A149: 90042 | B149: Balances - All Saints' CE N20 | C149: B99995 | D149: Schools Balance Sheet
A150: 90043 | B150: Balances - Annunciation RC Inf | C150: B99995 | D150: Schools Balance Sheet
A151: 90044 | B151: Balances - Barnfield School | C151: B99995 | D151: Schools Balance Sheet
A152: 90045 | B152: Balances - Bell Lane School | C152: B99995 | D152: Schools Balance Sheet
A153: 90046 | B153: Balances - Brookland Junior Sc | C153: B99995 | D153: Schools Balance Sheet
A154: 90047 | B154: Balances - Brookland Infant Sc | C154: B99995 | D154: Schools Balance Sheet
A155: 90048 | B155: Balances - Brunswick Park Scho | C155: B99995 | D155: Schools Balance Sheet
A156: 90049 | B156: Balances - Childs Hill School | C156: B99995 | D156: Schools Balance Sheet
A157: 90050 | B157: Balances - Christ Church CE Sc | C157: B99995 | D157: Schools Balance Sheet
A158: 90051 | B158: Balances - Church Hill School | C158: B99995 | D158: Schools Balance Sheet
A159: 90054 | B159: Balances - Colindale School | C159: B99995 | D159: Schools Balance Sheet
A160: 90055 | B160: Balances - Coppetts Wood Schoo | C160: B99995 | D160: Schools Balance Sheet
A161: 90056 | B161: Balances - Courtland School | C161: B99995 | D161: Schools Balance Sheet
A162: 90057 | B162: Balances - Cromer Road School | C162: B99995 | D162: Schools Balance Sheet
A163: 90059 | B163: Balances - Deansbrook Infant S | C163: B99995 | D163: Schools Balance Sheet
A164: 90061 | B164: Balances - Dollis Infant Schoo | C164: B99995 | D164: Schools Balance Sheet
A165: 90063 | B165: Balances - Edgware Primary | C165: B99995 | D165: Schools Balance Sheet
A166: 90064 | B166: Balances - Fairway School | C166: B99995 | D166: Schools Balance Sheet
A167: 90065 | B167: Balances - Foulds School | C167: B99995 | D167: Schools Balance Sheet
A168: 90066 | B168: Balances - Frith Manor School | C168: B99995 | D168: Schools Balance Sheet
A169: 90067 | B169: Balances - Garden Suburb Junio | C169: B99995 | D169: Schools Balance Sheet
A170: 90068 | B170: Balances - Garden Suburb Infan | C170: B99995 | D170: Schools Balance Sheet
A171: 90069 | B171: Balances - Goldbeaters School | C171: B99995 | D171: Schools Balance Sheet
A172: 90071 | B172: Balances - Hollickwood School | C172: B99995 | D172: Schools Balance Sheet
A173: 90072 | B173: Balances - Holly Park School | C173: B99995 | D173: Schools Balance Sheet
A174: 90073 | B174: Balances - Holy Trinity CE Sch | C174: B99995 | D174: Schools Balance Sheet
A175: 90074 | B175: Balances - Livingstone School | C175: B99995 | D175: Schools Balance Sheet
A176: 90075 | B176: Balances - Manorside School | C176: B99995 | D176: Schools Balance Sheet
A177: 90078 | B177: Balances - Monken Hadley CE Sc | C177: B99995 | D177: Schools Balance Sheet
A178: 90079 | B178: Balances - Monkfrith School | C178: B99995 | D178: Schools Balance Sheet
A179: 90080 | B179: Balances - Moss Hall Junior Sc | C179: B99995 | D179: Schools Balance Sheet
A180: 90081 | B180: Balances - Moss Hall Infant Sc | C180: B99995 | D180: Schools Balance Sheet
A181: 90082 | B181: Balances - Northside School | C181: B99995 | D181: Schools Balance Sheet
A182: 90083 | B182: Balances - Danegrove School | C182: B99995 | D182: Schools Balance Sheet
A183: 90084 | B183: Balances - Osidge School | C183: B99995 | D183: Schools Balance Sheet
A184: 90085 | B184: Balances - Our Lady Of Lourdes | C184: B99995 | D184: Schools Balance Sheet
A185: 90086 | B185: Balances - Queenswell Junior S | C185: B99995 | D185: Schools Balance Sheet
A186: 90087 | B186: Balances - St Agnes' RC School | C186: B99995 | D186: Schools Balance Sheet
A187: 90088 | B187: Balances - St Catherine's RC S | C187: B99995 | D187: Schools Balance Sheet
A188: 90089 | B188: Balances - St John's CE N11 | C188: B99995 | D188: Schools Balance Sheet
A189: 90092 | B189: Balances - St Mary's CE N3 | C189: B99995 | D189: Schools Balance Sheet
A190: 90093 | B190: Balances - St Mary's CE EN4 | C190: B99995 | D190: Schools Balance Sheet
A191: 90094 | B191: Balances - St Paul's CE N11 | C191: B99995 | D191: Schools Balance Sheet
A192: 90095 | B192: Balances - St Paul's CE NW7 | C192: B99995 | D192: Schools Balance Sheet
A193: 90096 | B193: Balances - St Vincent's RC Sch | C193: B99995 | D193: Schools Balance Sheet
A194: 90097 | B194: Balances - Sunnyfields School | C194: B99995 | D194: Schools Balance Sheet
A195: 90099 | B195: Balances - St Andrew's CE Scho | C195: B99995 | D195: Schools Balance Sheet
A196: 90100 | B196: Balances - Trent CE School | C196: B99995 | D196: Schools Balance Sheet
A197: 90101 | B197: Balances - Tudor School | C197: B99995 | D197: Schools Balance Sheet
A198: 90103 | B198: Balances - Underhill School | C198: B99995 | D198: Schools Balance Sheet
A199: 90105 | B199: Balances - Whitings Hill Schoo | C199: B99995 | D199: Schools Balance Sheet
A200: 90107 | B200: Balances - St Joseph's RC Prim | C200: B99995 | D200: Schools Balance Sheet
... 42 more rows

Sheet Report Tab (hidden)
B1: Header Description | C1: (Multiple Items)
B2: Cost Centre | C2: E10059 | F2: I08
F3: E20
B4: Row Labels | F4: CE01
B5: CE01
A6: =B5 -> CE01 | B6: Schools Capital Cost Clearing Control Account | C6: =-(SUMIFS(Data!AQ:AQ, Data!AB:AB, 'Report Tab'!$C$2, Data!AE:AE, 'Report Tab'!B5,Data!AU:AU, "Q4")) -> -8832.87
B7: CI01
A8: =B7 -> CI01 | B8: Capital Income CI01 | C8: =-(SUMIFS(Data!AQ:AQ, Data!AB:AB, 'Report Tab'!$C$2, Data!AE:AE, 'Report Tab'!B7,Data!AU:AU, "Q4")) -> 6776.5
B9: CI04
A10: =B9 -> CI04 | B10: Education CFR Direct Revenue CI04 | C10: =-(SUMIFS(Data!AQ:AQ, Data!AB:AB, 'Report Tab'!$C$2, Data!AE:AE, 'Report Tab'!B9,Data!AU:AU, "Q4")) -> 618
B11: E01
A12: =B11 -> E01 | B12: Teaching Staff Gross Pay E01 | C12: =-(SUMIFS(Data!AQ:AQ, Data!AB:AB, 'Report Tab'!$C$2, Data!AE:AE, 'Report Tab'!B11,Data!AU:AU, "Q4")) -> -821591.34
B13: E03
A14: =B13 -> E03 | B14: Education CFR Staff Education | C14: =-(SUMIFS(Data!AQ:AQ, Data!AB:AB, 'Report Tab'!$C$2, Data!AE:AE, 'Report Tab'!B13,Data!AU:AU, "Q4")) -> -449566.68
B15: E04
A16: =B15 -> E04 | B16: Premises Staff Gross Pay E04 | C16: =-(SUMIFS(Data!AQ:AQ, Data!AB:AB, 'Report Tab'!$C$2, Data!AE:AE, 'Report Tab'!B15,Data!AU:AU, "Q4")) -> -52650.96
B17: E05
A18: =B17 -> E05 | B18: Education CFR Staff Admin & Clerical | C18: =-(SUMIFS(Data!AQ:AQ, Data!AB:AB, 'Report Tab'!$C$2, Data!AE:AE, 'Report Tab'!B17,Data!AU:AU, "Q4")) -> -91824.59
B19: E07
A20: =B19 -> E07 | B20: Salaries | C20: =-(SUMIFS(Data!AQ:AQ, Data!AB:AB, 'Report Tab'!$C$2, Data!AE:AE, 'Report Tab'!B19,Data!AU:AU, "Q4")) -> -40688.77
B21: E08
A22: =B21 -> E08 | B22: Early Retirement Service Contr | C22: =-(SUMIFS(Data!AQ:AQ, Data!AB:AB, 'Report Tab'!$C$2, Data!AE:AE, 'Report Tab'!B21,Data!AU:AU, "Q4")) -> -38785.99
B23: E09
A24: =B23 -> E09 | B24: Staff Development and Training | C24: =-(SUMIFS(Data!AQ:AQ, Data!AB:AB, 'Report Tab'!$C$2, Data!AE:AE, 'Report Tab'!B23,Data!AU:AU, "Q4")) -> -2280.98
B25: E10
A26: =B25 -> E10 | B26: Education CFR Supply Teacher | C26: =-(SUMIFS(Data!AQ:AQ, Data!AB:AB, 'Report Tab'!$C$2, Data!AE:AE, 'Report Tab'!B25,Data!AU:AU, "Q4")) -> -280.54
B27: E12
A28: =B27 -> E12 | B28: Building Repairs and Maintenance | C28: =-(SUMIFS(Data!AQ:AQ, Data!AB:AB, 'Report Tab'!$C$2, Data!AE:AE, 'Report Tab'!B27,Data!AU:AU, "Q4")) -> -15224.7
B29: E13
A30: =B29 -> E13 | B30: Grounds Maintenance Costs | C30: =-(SUMIFS(Data!AQ:AQ, Data!AB:AB, 'Report Tab'!$C$2, Data!AE:AE, 'Report Tab'!B29,Data!AU:AU, "Q4")) -> -5311
B31: E14
A32: =B31 -> E14 | B32: Cleaning Services | C32: =-(SUMIFS(Data!AQ:AQ, Data!AB:AB, 'Report Tab'!$C$2, Data!AE:AE, 'Report Tab'!B31,Data!AU:AU, "Q4")) -> -2060.44
B33: E15
A34: =B33 -> E15 | B34: Water and Sewerage | C34: =-(SUMIFS(Data!AQ:AQ, Data!AB:AB, 'Report Tab'!$C$2, Data!AE:AE, 'Report Tab'!B33,Data!AU:AU, "Q4")) -> -12665.28
B35: E16
A36: =B35 -> E16 | B36: Other Energy Costs | C36: =-(SUMIFS(Data!AQ:AQ, Data!AB:AB, 'Report Tab'!$C$2, Data!AE:AE, 'Report Tab'!B35,Data!AU:AU, "Q4")) -> -45232.13
B37: E17
A38: =B37 -> E17 | B38: Business Rates Payable | C38: =-(SUMIFS(Data!AQ:AQ, Data!AB:AB, 'Report Tab'!$C$2, Data!AE:AE, 'Report Tab'!B37,Data!AU:AU, "Q4")) -> -21150
B39: E18
A40: =B39 -> E18 | B40: Education CFR Other Occupation | C40: =-(SUMIFS(Data!AQ:AQ, Data!AB:AB, 'Report Tab'!$C$2, Data!AE:AE, 'Report Tab'!B39,Data!AU:AU, "Q4")) -> -6651.9
B41: E19
A42: =B41 -> E19 | B42: Learning Resources E19 | C42: =-(SUMIFS(Data!AQ:AQ, Data!AB:AB, 'Report Tab'!$C$2, Data!AE:AE, 'Report Tab'!B41,Data!AU:AU, "Q4")) -> -23514.91
B43: E20
A44: =B43 -> E20 | B44: Education CFR ICT Learning Resources | C44: =-(SUMIFS(Data!AQ:AQ, Data!AB:AB, 'Report Tab'!$C$2, Data!AE:AE, 'Report Tab'!B43,Data!AU:AU, "Q4")) -> -38591.34
B45: E22
A46: =B45 -> E22 | B46: Education CFR Administrative School | C46: =-(SUMIFS(Data!AQ:AQ, Data!AB:AB, 'Report Tab'!$C$2, Data!AE:AE, 'Report Tab'!B45,Data!AU:AU, "Q4")) -> -10011.4
B47: E23
A48: =B47 -> E23 | B48: Premises Insurance | C48: =-(SUMIFS(Data!AQ:AQ, Data!AB:AB, 'Report Tab'!$C$2, Data!AE:AE, 'Report Tab'!B47,Data!AU:AU, "Q4")) -> -6910.41
B49: E24
A50: =B49 -> E24 | B50: Special Facilities E24 | C50: =-(SUMIFS(Data!AQ:AQ, Data!AB:AB, 'Report Tab'!$C$2, Data!AE:AE, 'Report Tab'!B49,Data!AU:AU, "Q4")) -> -4394.5
B51: E25
A52: =B51 -> E25 | B52: Catering Supplies E25 | C52: =-(SUMIFS(Data!AQ:AQ, Data!AB:AB, 'Report Tab'!$C$2, Data!AE:AE, 'Report Tab'!B51,Data!AU:AU, "Q4")) -> -66449.76
B53: E26
A54: =B53 -> E26 | B54: Agency Supply Teachers E26 | C54: =-(SUMIFS(Data!AQ:AQ, Data!AB:AB, 'Report Tab'!$C$2, Data!AE:AE, 'Report Tab'!B53,Data!AU:AU, "Q4")) -> -12521.8
B55: E27
A56: =B55 -> E27 | B56: Education CFR Curriculum Proffessional | C56: =-(SUMIFS(Data!AQ:AQ, Data!AB:AB, 'Report Tab'!$C$2, Data!AE:AE, 'Report Tab'!B55,Data!AU:AU, "Q4")) -> -44609.81
B57: E28a
A58: =B57 -> E28a | B58: Proffessional Services Other (exc PFI) E28a | C58: =-(SUMIFS(Data!AQ:AQ, Data!AB:AB, 'Report Tab'!$C$2, Data!AE:AE, 'Report Tab'!B57,Data!AU:AU, "Q4")) -> -22383.6
B59: E30
A60: =B59 -> E30 | B60: Education CFR Direct Revenue E30 | C60: =-(SUMIFS(Data!AQ:AQ, Data!AB:AB, 'Report Tab'!$C$2, Data!AE:AE, 'Report Tab'!B59,Data!AU:AU, "Q4")) -> -618
B61: I01
A62: =B61 -> I01 | B62: Education CFR Funds Delegated | C62: =-(SUMIFS(Data!AQ:AQ, Data!AB:AB, 'Report Tab'!$C$2, Data!AE:AE, 'Report Tab'!B61,Data!AU:AU, "Q4")) -> 1349798.22
B63: I03
A64: =B63 -> I03 | B64: SEN Funding I03 | C64: =-(SUMIFS(Data!AQ:AQ, Data!AB:AB, 'Report Tab'!$C$2, Data!AE:AE, 'Report Tab'!B63,Data!AU:AU, "Q4")) -> 87419.5
B65: I05
A66: =B65 -> I05 | B66: Education CFR Pupil Premium School | C66: =-(SUMIFS(Data!AQ:AQ, Data!AB:AB, 'Report Tab'!$C$2, Data!AE:AE, 'Report Tab'!B65,Data!AU:AU, "Q4")) -> 59200
B67: I06
A68: =B67 -> I06 | B68: Schools Other Government Grants I06 | C68: =-(SUMIFS(Data!AQ:AQ, Data!AB:AB, 'Report Tab'!$C$2, Data!AE:AE, 'Report Tab'!B67,Data!AU:AU, "Q4")) -> 1723.5
B69: I07
A70: =B69 -> I07 | B70: Education CFR Other Grants | C70: =-(SUMIFS(Data!AQ:AQ, Data!AB:AB, 'Report Tab'!$C$2, Data!AE:AE, 'Report Tab'!B69,Data!AU:AU, "Q4")) -> 2150
B71: I09
A72: =B71 -> I09 | B72: Catering Sales - Schools | C72: =-(SUMIFS(Data!AQ:AQ, Data!AB:AB, 'Report Tab'!$C$2, Data!AE:AE, 'Report Tab'!B71,Data!AU:AU, "Q4")) -> 94.58
B73: I11
A74: =B73 -> I11 | B74: Education CFR Reports Supply Other Insurance | C74: =-(SUMIFS(Data!AQ:AQ, Data!AB:AB, 'Report Tab'!$C$2, Data!AE:AE, 'Report Tab'!B73,Data!AU:AU, "Q4")) -> 2500
B75: I12
A76: =B75 -> I12 | B76: Education CFR Income from Contribution | C76: =-(SUMIFS(Data!AQ:AQ, Data!AB:AB, 'Report Tab'!$C$2, Data!AE:AE, 'Report Tab'!B75,Data!AU:AU, "Q4")) -> 26201.5
B77: I13
A78: =B77 -> I13 | B78: Education CFR Donations and Voluntary | C78: =-(SUMIFS(Data!AQ:AQ, Data!AB:AB, 'Report Tab'!$C$2, Data!AE:AE, 'Report Tab'!B77,Data!AU:AU, "Q4")) -> 8743.7
B79: I18c
A80: =B79 -> I18c | B80: COVID-19 catch-up package I18c | C80: =-SUMIFS(Data!AQ:AQ, Data!AB:AB, 'Report Tab'!$C$2, Data!AE:AE, 'Report Tab'!B79,Data!AU:AU, "Q4") -> 1871.88
B81: I18d
A82: I18d | B82: Income from Other Education Additional Grants I18d | C82: =-SUMIFS(Data!AQ:AQ, Data!AB:AB, 'Report Tab'!$C$2, Data!AE:AE, 'Report Tab'!B81,Data!AU:AU, "Q4") -> 74806
B83: I08
A84: I08 | B84: Hire of Rooms and Halls Income | C84: =-SUMIFS(Data!AQ:AQ, Data!AB:AB, 'Report Tab'!$C$2, Data!AE:AE, 'Report Tab'!B83,Data!AU:AU, "Q4") -> 33171.97
B85: Grand Total
A86: Grand Total | C86: =SUMIFS(Data!AQ:AQ, Data!AB:AB, 'Report Tab'!$C$2, Data!AE:AE, 'Report Tab'!B85,Data!AU:AU, "Q4") -> 0
A88: 0 | C88: =SUMIFS(Data!AQ:AQ, Data!AB:AB, 'Report Tab'!$C$2, Data!AE:AE, 'Report Tab'!B87,Data!AU:AU, "Q4") -> 0
A90: 0 | C90: =SUMIFS(Data!AQ:AQ, Data!AB:AB, 'Report Tab'!$C$2, Data!AE:AE, 'Report Tab'!B89,Data!AU:AU, "Q4") -> 0
A92: 0 | C92: =SUMIFS(Data!AQ:AQ, Data!AB:AB, 'Report Tab'!$C$2, Data!AE:AE, 'Report Tab'!B91,Data!AU:AU, "Q4") -> 0
A94: 0 | C94: =SUMIFS(Data!AQ:AQ, Data!AB:AB, 'Report Tab'!$C$2, Data!AE:AE, 'Report Tab'!B93,Data!AU:AU, "Q4") -> 0
A96: 0 | C96: =SUMIFS(Data!AQ:AQ, Data!AB:AB, 'Report Tab'!$C$2, Data!AE:AE, 'Report Tab'!B95,Data!AU:AU, "Q4") -> 0
A98: 0 | C98: =SUMIFS(Data!AQ:AQ, Data!AB:AB, 'Report Tab'!$C$2, Data!AE:AE, 'Report Tab'!B97,Data!AU:AU, "Q4") -> 0
A100: 0 | C100: =SUMIFS(Data!AQ:AQ, Data!AB:AB, 'Report Tab'!$C$2, Data!AE:AE, 'Report Tab'!B99,Data!AU:AU, "Q4") -> 0
A102: 0 | C102: =SUMIFS(Data!AQ:AQ, Data!AB:AB, 'Report Tab'!$C$2, Data!AE:AE, 'Report Tab'!B101,Data!AU:AU, "Q4") -> 0
A104: 0 | C104: =SUMIFS(Data!AQ:AQ, Data!AB:AB, 'Report Tab'!$C$2, Data!AE:AE, 'Report Tab'!B103,Data!AU:AU, "Q4") -> 0
A106: 0 | C106: =SUMIFS(Data!AQ:AQ, Data!AB:AB, 'Report Tab'!$C$2, Data!AE:AE, 'Report Tab'!B105,Data!AU:AU, "Q4") -> 0
A108: 0 | C108: =SUMIFS(Data!AQ:AQ, Data!AB:AB, 'Report Tab'!$C$2, Data!AE:AE, 'Report Tab'!B107,Data!AU:AU, "Q4") -> 0
A110: 0 | C110: =SUMIFS(Data!AQ:AQ, Data!AB:AB, 'Report Tab'!$C$2, Data!AE:AE, 'Report Tab'!B109,Data!AU:AU, "Q4") -> 0
A112: 0 | C112: =SUMIFS(Data!AQ:AQ, Data!AB:AB, 'Report Tab'!$C$2, Data!AE:AE, 'Report Tab'!B111,Data!AU:AU, "Q4") -> 0
A114: 0 | C114: =SUMIFS(Data!AQ:AQ, Data!AB:AB, 'Report Tab'!$C$2, Data!AE:AE, 'Report Tab'!B113,Data!AU:AU, "Q4") -> 0

Sheet Data (hidden)
A1: Entity Code | B1: Cost Centre Level 1 | C1: Description | D1: Cost Centre Level 2 | E1: Description | F1: Cost Centre Level 3 | G1: Description | H1: Cost Centre Level 4 | I1: Description | J1: Cost Centre Level 5 | K1: Description | L1: Cost Centre Level 6 | M1: Description | N1: Cost Centre Level 7 | O1: Description | P1: Subjective Level 1 | Q1: Description | R1: Subjective Level 2 | S1: Description | T1: Subjective Level 3 | U1: Description | V1: Subjective Level 4 | W1: Description | X1: Subjective Level 5 | Y1: Description | Z1: Subjective Level 6 | AA1: Description | AB1: Cost Center | AC1: Description | AD1: Subjective | AE1: CFR des | AF1: Description | AG1: Analysis | AH1: Description | AI1: Projects | AJ1: Description | AK1: Spare | AL1: Description | AM1: Full Accounting Segment | AN1: Period Name | AO1: Debit Amount | AP1: Credit Amount | AQ1: Net Amount | AR1: Journal Batch Name | AS1: Journal Header Name | AT1: Header Description | AV1: Journal Source | AW1: Journal Category | AX1: Journal Line Number | AY1: Journal Line Description | AZ1: Supplier Number | BA1: Supplier Name | BB1: Purchase Order Number | BC1: Receipt Number | BD1: Invoice Number | BE1: Invoice Attachment | BF1: Customer Name | BG1: AR Trxn Number | BH1: Employee Number | BI1: Employee Name | BJ1: Creation Date | BK1: Created By | BL1: Posted On Date | BM1: Posted By | BN1: Approval Date | BO1: User Data | BP1: Integration | BQ1: Line Attribute1 | BR1: Line Attribute2 | BS1: Line Attribute3 | BT1: Line Attribute4 | BU1: Line Attribute5
A2: A1 | B2: A0000A | C2: L1 BARNET System Hierarchy | D2: B0000A | E2: L2 LBB Hierarchy | F2: B2000B | G2: L3 LBB Revenue | H2: B3010C | I2: L4 LBB SchoolDM | J2: B3010D | K2: L5 SCHOOLDM | L2: B3011E | M2: L6 Primary Schools Direct Managem | N2: B3012F | O2: L7 Primary Schools Direct Managem | P2: 10000X | Q2: All Subjective | R2: 40000A | S2: Total Capital Programme Expenditure | T2: 40000B | U2: Total Capital Expenditure | V2: 41000C | W2: Capital Expenditure | X2: 41100D | Y2: Assets to be Cleared | Z2: 41110E | AA2: Assets to be Cleared Summary | AB2: E10048 | AC2: Brunswick Park School | AD2: 411140 | AE2: =_xlfn.XLOOKUP(AD2, [2]Sheet3!B:B,[2]Sheet3!A:A) -> CE01 | AF2: Schools Capital Cost Clearing Control Account | AG2: 99999 | AH2: Default Analysis | AI2: 9999999 | AJ2: Project Default | AK2: 999999 | AL2: Default - Reserved for future use | AM2: A1-E10048-411140-99999-9999999-999999 | AN2: PER13-24-25 | AO2: 7201.64 | AP2: 0 | AQ2: 7201.64 | AR2: CFS2425100201 Spreadsheet A 300000006713123 4054487 N | AS2: CFS2425100201 JV01 - Transfer Journal | AT2: Q4 M1-M12 Actuals Journal - Batch 2 (A-F) | AU2: Q4 | AV2: Spreadsheet | AW2: JV01 - Transfer Journal | AX2: 30 | AY2: M1-M12 Actuals - CE02 - E10048 | BJ2: 2025-05-13T15:52:01 | BK2: Daniel Phelan | BL2: 2025-05-13 | BM2: daniel.phelan@barnet.gov.uk | BN2: 2025-05-13T15:56:37 | BO2: 300000005088675:Q4 M1-M12 Actuals Journal - Batch 2 (A-F):M1-M12 Actuals - CE02 - E10048
A3: A1 | B3: A0000A | C3: L1 BARNET System Hierarchy | D3: B0000A | E3: L2 LBB Hierarchy | F3: B2000B | G3: L3 LBB Revenue | H3: B3010C | I3: L4 LBB SchoolDM | J3: B3010D | K3: L5 SCHOOLDM | L3: B3011E | M3: L6 Primary Schools Direct Managem | N3: B3012F | O3: L7 Primary Schools Direct Managem | P3: 10000X | Q3: All Subjective | R3: 40000A | S3: Total Capital Programme Expenditure | T3: 40000B | U3: Total Capital Expenditure | V3: 41000C | W3: Capital Expenditure | X3: 41100D | Y3: Assets to be Cleared | Z3: 41110E | AA3: Assets to be Cleared Summary | AB3: E10064 | AC3: Fairway School | AD3: 411140 | AE3: =_xlfn.XLOOKUP(AD3, [2]Sheet3!B:B,[2]Sheet3!A:A) -> CE01 | AF3: Schools Capital Cost Clearing Control Account | AG3: 99999 | AH3: Default Analysis | AI3: 9999999 | AJ3: Project Default | AK3: 999999 | AL3: Default - Reserved for future use | AM3: A1-E10064-411140-99999-9999999-999999 | AN3: PER13-24-25 | AO3: 6575.56 | AP3: 0 | AQ3: 6575.56 | AR3: CFS2425100201 Spreadsheet A 300000006713123 4054487 N | AS3: CFS2425100201 JV01 - Transfer Journal | AT3: Q4 M1-M12 Actuals Journal - Batch 2 (A-F) | AU3: Q4 | AV3: Spreadsheet | AW3: JV01 - Transfer Journal | AX3: 40 | AY3: M1-M12 Actuals - CE04 - E10064 | BJ3: 2025-05-13T15:52:01 | BK3: Daniel Phelan | BL3: 2025-05-13 | BM3: daniel.phelan@barnet.gov.uk | BN3: 2025-05-13T15:56:37 | BO3: 300000005088675:Q4 M1-M12 Actuals Journal - Batch 2 (A-F):M1-M12 Actuals - CE04 - E10064
A4: A1 | B4: A0000A | C4: L1 BARNET System Hierarchy | D4: B0000A | E4: L2 LBB Hierarchy | F4: B2000B | G4: L3 LBB Revenue | H4: B3010C | I4: L4 LBB SchoolDM | J4: B3010D | K4: L5 SCHOOLDM | L4: B3011E | M4: L6 Primary Schools Direct Managem | N4: B3012F | O4: L7 Primary Schools Direct Managem | P4: 10000X | Q4: All Subjective | R4: 40000A | S4: Total Capital Programme Expenditure | T4: 40000B | U4: Total Capital Expenditure | V4: 41000C | W4: Capital Expenditure | X4: 41100D | Y4: Assets to be Cleared | Z4: 41110E | AA4: Assets to be Cleared Summary | AB4: E10068 | AC4: Garden Suburb Infant | AD4: 411140 | AE4: =_xlfn.XLOOKUP(AD4, [2]Sheet3!B:B,[2]Sheet3!A:A) -> CE01 | AF4: Schools Capital Cost Clearing Control Account | AG4: 99999 | AH4: Default Analysis | AI4: 9999999 | AJ4: Project Default | AK4: 999999 | AL4: Default - Reserved for future use | AM4: A1-E10068-411140-99999-9999999-999999 | AN4: PER13-24-25 | AO4: 1244 | AP4: 0 | AQ4: 1244 | AR4: CFS2425100199 Spreadsheet A 300000006796056 4054266 N | AS4: CFS2425100199 JV01 - Transfer Journal | AT4: Q4 M1-M12 Actuals Journal - Batch 3 (G-R) | AU4: Q4 | AV4: Spreadsheet | AW4: JV01 - Transfer Journal | AX4: 26 | AY4: M1-M12 Actuals - CE04a - E10068 | BJ4: 2025-05-13T15:25:09 | BK4: Rema Tiba | BL4: 2025-05-13 | BM4: rema.tiba@barnet.gov.uk | BN4: 2025-05-13T15:56:34 | BO4: 300000005088675:Q4 M1-M12 Actuals Journal - Batch 3 (G-R):M1-M12 Actuals - CE04a - E10068
A5: A1 | B5: A0000A | C5: L1 BARNET System Hierarchy | D5: B0000A | E5: L2 LBB Hierarchy | F5: B2000B | G5: L3 LBB Revenue | H5: B3010C | I5: L4 LBB SchoolDM | J5: B3010D | K5: L5 SCHOOLDM | L5: B3011E | M5: L6 Primary Schools Direct Managem | N5: B3012F | O5: L7 Primary Schools Direct Managem | P5: 10000X | Q5: All Subjective | R5: 40000A | S5: Total Capital Programme Expenditure | T5: 40000B | U5: Total Capital Expenditure | V5: 41000C | W5: Capital Expenditure | X5: 41100D | Y5: Assets to be Cleared | Z5: 41110E | AA5: Assets to be Cleared Summary | AB5: E10079 | AC5: Monkfrith School | AD5: 411140 | AE5: =_xlfn.XLOOKUP(AD5, [2]Sheet3!B:B,[2]Sheet3!A:A) -> CE01 | AF5: Schools Capital Cost Clearing Control Account | AG5: 99999 | AH5: Default Analysis | AI5: 9999999 | AJ5: Project Default | AK5: 999999 | AL5: Default - Reserved for future use | AM5: A1-E10079-411140-99999-9999999-999999 | AN5: PER13-24-25 | AO5: 0 | AP5: 3290 | AQ5: -3290 | AR5: CFS2425100199 Spreadsheet A 300000006796056 4054266 N | AS5: CFS2425100199 JV01 - Transfer Journal | AT5: Q4 M1-M12 Actuals Journal - Batch 3 (G-R) | AU5: Q4 | AV5: Spreadsheet | AW5: JV01 - Transfer Journal | AX5: 36 | AY5: M1-M12 Actuals - CE02 - E10079 | BJ5: 2025-05-13T15:25:09 | BK5: Rema Tiba | BL5: 2025-05-13 | BM5: rema.tiba@barnet.gov.uk | BN5: 2025-05-13T15:56:34 | BO5: 300000005088675:Q4 M1-M12 Actuals Journal - Batch 3 (G-R):M1-M12 Actuals - CE02 - E10079
A6: A1 | B6: A0000A | C6: L1 BARNET System Hierarchy | D6: B0000A | E6: L2 LBB Hierarchy | F6: B2000B | G6: L3 LBB Revenue | H6: B3010C | I6: L4 LBB SchoolDM | J6: B3010D | K6: L5 SCHOOLDM | L6: B3011E | M6: L6 Primary Schools Direct Managem | N6: B3012F | O6: L7 Primary Schools Direct Managem | P6: 10000X | Q6: All Subjective | R6: 40000A | S6: Total Capital Programme Expenditure | T6: 40000B | U6: Total Capital Expenditure | V6: 41000C | W6: Capital Expenditure | X6: 41100D | Y6: Assets to be Cleared | Z6: 41110E | AA6: Assets to be Cleared Summary | AB6: E10082 | AC6: Northside School | AD6: 411140 | AE6: =_xlfn.XLOOKUP(AD6, [2]Sheet3!B:B,[2]Sheet3!A:A) -> CE01 | AF6: Schools Capital Cost Clearing Control Account | AG6: 99999 | AH6: Default Analysis | AI6: 9999999 | AJ6: Project Default | AK6: 999999 | AL6: Default - Reserved for future use | AM6: A1-E10082-411140-99999-9999999-999999 | AN6: PER13-24-25 | AO6: 8542.2 | AP6: 0 | AQ6: 8542.2 | AR6: CFS2425100199 Spreadsheet A 300000006796056 4054266 N | AS6: CFS2425100199 JV01 - Transfer Journal | AT6: Q4 M1-M12 Actuals Journal - Batch 3 (G-R) | AU6: Q4 | AV6: Spreadsheet | AW6: JV01 - Transfer Journal | AX6: 42 | AY6: M1-M12 Actuals - CE04d - E10082 | BJ6: 2025-05-13T15:25:09 | BK6: Rema Tiba | BL6: 2025-05-13 | BM6: rema.tiba@barnet.gov.uk | BN6: 2025-05-13T15:56:34 | BO6: 300000005088675:Q4 M1-M12 Actuals Journal - Batch 3 (G-R):M1-M12 Actuals - CE04d - E10082
A7: A1 | B7: A0000A | C7: L1 BARNET System Hierarchy | D7: B0000A | E7: L2 LBB Hierarchy | F7: B2000B | G7: L3 LBB Revenue | H7: B3010C | I7: L4 LBB SchoolDM | J7: B3010D | K7: L5 SCHOOLDM | L7: B3011E | M7: L6 Primary Schools Direct Managem | N7: B3012F | O7: L7 Primary Schools Direct Managem | P7: 10000X | Q7: All Subjective | R7: 40000A | S7: Total Capital Programme Expenditure | T7: 40000B | U7: Total Capital Expenditure | V7: 41000C | W7: Capital Expenditure | X7: 41100D | Y7: Assets to be Cleared | Z7: 41110E | AA7: Assets to be Cleared Summary | AB7: E10086 | AC7: Queenswell Junior School | AD7: 411140 | AE7: =_xlfn.XLOOKUP(AD7, [2]Sheet3!B:B,[2]Sheet3!A:A) -> CE01 | AF7: Schools Capital Cost Clearing Control Account | AG7: 99999 | AH7: Default Analysis | AI7: 9999999 | AJ7: Project Default | AK7: 999999 | AL7: Default - Reserved for future use | AM7: A1-E10086-411140-99999-9999999-999999 | AN7: PER13-24-25 | AO7: 6370 | AP7: 0 | AQ7: 6370 | AR7: CFS2425100199 Spreadsheet A 300000006796056 4054266 N | AS7: CFS2425100199 JV01 - Transfer Journal | AT7: Q4 M1-M12 Actuals Journal - Batch 3 (G-R) | AU7: Q4 | AV7: Spreadsheet | AW7: JV01 - Transfer Journal | AX7: 45 | AY7: M1-M12 Actuals - CE04e - E10086 | BJ7: 2025-05-13T15:25:09 | BK7: Rema Tiba | BL7: 2025-05-13 | BM7: rema.tiba@barnet.gov.uk | BN7: 2025-05-13T15:56:34 | BO7: 300000005088675:Q4 M1-M12 Actuals Journal - Batch 3 (G-R):M1-M12 Actuals - CE04e - E10086
A8: A1 | B8: A0000A | C8: L1 BARNET System Hierarchy | D8: B0000A | E8: L2 LBB Hierarchy | F8: B2000B | G8: L3 LBB Revenue | H8: B3010C | I8: L4 LBB SchoolDM | J8: B3010D | K8: L5 SCHOOLDM | L8: B3011E | M8: L6 Primary Schools Direct Managem | N8: B3012F | O8: L7 Primary Schools Direct Managem | P8: 10000X | Q8: All Subjective | R8: 40000A | S8: Total Capital Programme Expenditure | T8: 40000B | U8: Total Capital Expenditure | V8: 41000C | W8: Capital Expenditure | X8: 41100D | Y8: Assets to be Cleared | Z8: 41110E | AA8: Assets to be Cleared Summary | AB8: E10086 | AC8: Queenswell Junior School | AD8: 411140 | AE8: =_xlfn.XLOOKUP(AD8, [2]Sheet3!B:B,[2]Sheet3!A:A) -> CE01 | AF8: Schools Capital Cost Clearing Control Account | AG8: 99999 | AH8: Default Analysis | AI8: 9999999 | AJ8: Project Default | AK8: 999999 | AL8: Default - Reserved for future use | AM8: A1-E10086-411140-99999-9999999-999999 | AN8: PER13-24-25 | AO8: 33716.04 | AP8: 0 | AQ8: 33716.04 | AR8: CFS2425100199 Spreadsheet A 300000006796056 4054266 N | AS8: CFS2425100199 JV01 - Transfer Journal | AT8: Q4 M1-M12 Actuals Journal - Batch 3 (G-R) | AU8: Q4 | AV8: Spreadsheet | AW8: JV01 - Transfer Journal | AX8: 46 | AY8: M1-M12 Actuals - CE02 - E10086 | BJ8: 2025-05-13T15:25:09 | BK8: Rema Tiba | BL8: 2025-05-13 | BM8: rema.tiba@barnet.gov.uk | BN8: 2025-05-13T15:56:34 | BO8: 300000005088675:Q4 M1-M12 Actuals Journal - Batch 3 (G-R):M1-M12 Actuals - CE02 - E10086
A9: A1 | B9: A0000A | C9: L1 BARNET System Hierarchy | D9: B0000A | E9: L2 LBB Hierarchy | F9: B2000B | G9: L3 LBB Revenue | H9: B3010C | I9: L4 LBB SchoolDM | J9: B3010D | K9: L5 SCHOOLDM | L9: B3011E | M9: L6 Primary Schools Direct Managem | N9: B3012F | O9: L7 Primary Schools Direct Managem | P9: 10000X | Q9: All Subjective | R9: 40000A | S9: Total Capital Programme Expenditure | T9: 40000B | U9: Total Capital Expenditure | V9: 41000C | W9: Capital Expenditure | X9: 41100D | Y9: Assets to be Cleared | Z9: 41110E | AA9: Assets to be Cleared Summary | AB9: E10088 | AC9: St Catherine's RC School | AD9: 411140 | AE9: =_xlfn.XLOOKUP(AD9, [2]Sheet3!B:B,[2]Sheet3!A:A) -> CE01 | AF9: Schools Capital Cost Clearing Control Account | AG9: 99999 | AH9: Default Analysis | AI9: 9999999 | AJ9: Project Default | AK9: 999999 | AL9: Default - Reserved for future use | AM9: A1-E10088-411140-99999-9999999-999999 | AN9: PER13-24-25 | AO9: 1530 | AP9: 0 | AQ9: 1530 | AR9: CFS2425100200 Spreadsheet A 300000006796056 4054311 N | AS9: CFS2425100200 JV01 - Transfer Journal | AT9: Q4 M1-M12 Actuals Journal - Batch 4 (S-W) | AU9: Q4 | AV9: Spreadsheet | AW9: JV01 - Transfer Journal | AX9: 23 | AY9: M1-M12 Actuals - CE04e - E10088 | BJ9: 2025-05-13T15:28:39 | BK9: Rema Tiba | BL9: 2025-05-13 | BM9: rema.tiba@barnet.gov.uk | BN9: 2025-05-13T15:56:40 | BO9: 300000005088675:Q4 M1-M12 Actuals Journal - Batch 4 (S-W):M1-M12 Actuals - CE04e - E10088
A10: A1 | B10: A0000A | C10: L1 BARNET System Hierarchy | D10: B0000A | E10: L2 LBB Hierarchy | F10: B2000B | G10: L3 LBB Revenue | H10: B3010C | I10: L4 LBB SchoolDM | J10: B3010D | K10: L5 SCHOOLDM | L10: B3011E | M10: L6 Primary Schools Direct Managem | N10: B3012F | O10: L7 Primary Schools Direct Managem | P10: 10000X | Q10: All Subjective | R10: 40000A | S10: Total Capital Programme Expenditure | T10: 40000B | U10: Total Capital Expenditure | V10: 41000C | W10: Capital Expenditure | X10: 41100D | Y10: Assets to be Cleared | Z10: 41110E | AA10: Assets to be Cleared Summary | AB10: E10097 | AC10: Sunnyfields School | AD10: 411140 | AE10: =_xlfn.XLOOKUP(AD10, [2]Sheet3!B:B,[2]Sheet3!A:A) -> CE01 | AF10: Schools Capital Cost Clearing Control Account | AG10: D1120 | AH10: Schools DM | AI10: 9999999 | AJ10: Project Default | AK10: 999999 | AL10: Default - Reserved for future use | AM10: A1-E10097-411140-D1120-9999999-999999 | AN10: PER13-24-25 | AO10: 5095 | AP10: 0 | AQ10: 5095 | AR10: SCH2425P13-CRED0005 Spreadsheet A 300000006713123 4041823 N | AS10: SCH2425P13-CRED0005 YE01 - Accrual Journal | AT10: BATCH 5 Capital Creditors | AU10: Q4 | AV10: Spreadsheet | AW10: YE01 - Accrual Journal | AX10: 8 | AY10: BATCH 5 Capital Creditor | BJ10: 2025-05-12T09:46:07 | BK10: Daniel Phelan | BL10: 2025-05-12 | BM10: daniel.phelan@barnet.gov.uk | BN10: 2025-05-12T10:41:36 | BO10: 300000005088676:BATCH 5 Capital Creditors:BATCH 5 Capital Creditor
A11: A1 | B11: A0000A | C11: L1 BARNET System Hierarchy | D11: B0000A | E11: L2 LBB Hierarchy | F11: B2000B | G11: L3 LBB Revenue | H11: B3010C | I11: L4 LBB SchoolDM | J11: B3010D | K11: L5 SCHOOLDM | L11: B3011E | M11: L6 Primary Schools Direct Managem | N11: B3012F | O11: L7 Primary Schools Direct Managem | P11: 10000X | Q11: All Subjective | R11: 40000A | S11: Total Capital Programme Expenditure | T11: 40000B | U11: Total Capital Expenditure | V11: 41000C | W11: Capital Expenditure | X11: 41100D | Y11: Assets to be Cleared | Z11: 41110E | AA11: Assets to be Cleared Summary | AB11: E10118 | AC11: Chalgrove School | AD11: 411140 | AE11: =_xlfn.XLOOKUP(AD11, [2]Sheet3!B:B,[2]Sheet3!A:A) -> CE01 | AF11: Schools Capital Cost Clearing Control Account | AG11: 99999 | AH11: Default Analysis | AI11: 9999999 | AJ11: Project Default | AK11: 999999 | AL11: Default - Reserved for future use | AM11: A1-E10118-411140-99999-9999999-999999 | AN11: PER13-24-25 | AO11: 9770.01 | AP11: 0 | AQ11: 9770.01 | AR11: CFS2425100201 Spreadsheet A 300000006713123 4054487 N | AS11: CFS2425100201 JV01 - Transfer Journal | AT11: Q4 M1-M12 Actuals Journal - Batch 2 (A-F) | AU11: Q4 | AV11: Spreadsheet | AW11: JV01 - Transfer Journal | AX11: 45 | AY11: M1-M12 Actuals - CE02 - E10118 | BJ11: 2025-05-13T15:52:01 | BK11: Daniel Phelan | BL11: 2025-05-13 | BM11: daniel.phelan@barnet.gov.uk | BN11: 2025-05-13T15:56:37 | BO11: 300000005088675:Q4 M1-M12 Actuals Journal - Batch 2 (A-F):M1-M12 Actuals - CE02 - E10118
A12: A1 | B12: A0000A | C12: L1 BARNET System Hierarchy | D12: B0000A | E12: L2 LBB Hierarchy | F12: B2000B | G12: L3 LBB Revenue | H12: B3010C | I12: L4 LBB SchoolDM | J12: B3010D | K12: L5 SCHOOLDM | L12: B3011E | M12: L6 Primary Schools Direct Managem | N12: B3012F | O12: L7 Primary Schools Direct Managem | P12: 10000X | Q12: All Subjective | R12: 40000A | S12: Total Capital Programme Expenditure | T12: 40000B | U12: Total Capital Expenditure | V12: 41000C | W12: Capital Expenditure | X12: 41100D | Y12: Assets to be Cleared | Z12: 41110E | AA12: Assets to be Cleared Summary | AB12: E10124 | AC12: Wessex Gardens School | AD12: 411140 | AE12: =_xlfn.XLOOKUP(AD12, [2]Sheet3!B:B,[2]Sheet3!A:A) -> CE01 | AF12: Schools Capital Cost Clearing Control Account | AG12: 99999 | AH12: Default Analysis | AI12: 9999999 | AJ12: Project Default | AK12: 999999 | AL12: Default - Reserved for future use | AM12: A1-E10124-411140-99999-9999999-999999 | AN12: PER13-24-25 | AO12: 42558.4 | AP12: 0 | AQ12: 42558.4 | AR12: CFS2425100200 Spreadsheet A 300000006796056 4054311 N | AS12: CFS2425100200 JV01 - Transfer Journal | AT12: Q4 M1-M12 Actuals Journal - Batch 4 (S-W) | AU12: Q4 | AV12: Spreadsheet | AW12: JV01 - Transfer Journal | AX12: 34 | AY12: M1-M12 Actuals - CE02 - E10124 | BJ12: 2025-05-13T15:28:39 | BK12: Rema Tiba | BL12: 2025-05-13 | BM12: rema.tiba@barnet.gov.uk | BN12: 2025-05-13T15:56:40 | BO12: 300000005088675:Q4 M1-M12 Actuals Journal - Batch 4 (S-W):M1-M12 Actuals - CE02 - E10124
A13: A1 | B13: A0000A | C13: L1 BARNET System Hierarchy | D13: B0000A | E13: L2 LBB Hierarchy | F13: B2000B | G13: L3 LBB Revenue | H13: B3010C | I13: L4 LBB SchoolDM | J13: B3010D | K13: L5 SCHOOLDM | L13: B3013E | M13: L6 Secondary Schools Direct Manag | N13: B3014F | O13: L7 Secondary Schools Direct Manag | P13: 10000X | Q13: All Subjective | R13: 40000A | S13: Total Capital Programme Expenditure | T13: 40000B | U13: Total Capital Expenditure | V13: 41000C | W13: Capital Expenditure | X13: 41100D | Y13: Assets to be Cleared | Z13: 41110E | AA13: Assets to be Cleared Summary | AB13: E10139 | AC13: Friern Barnet School | AD13: 411140 | AE13: =_xlfn.XLOOKUP(AD13, [2]Sheet3!B:B,[2]Sheet3!A:A) -> CE01 | AF13: Schools Capital Cost Clearing Control Account | AG13: 99999 | AH13: Default Analysis | AI13: 9999999 | AJ13: Project Default | AK13: 999999 | AL13: Default - Reserved for future use | AM13: A1-E10139-411140-99999-9999999-999999 | AN13: PER13-24-25 | AO13: 0 | AP13: 2950.98 | AQ13: -2950.98 | AR13: CFS2425100198 Spreadsheet A 300000006713123 4053711 N | AS13: CFS2425100198 JV01 - Transfer Journal | AT13: Q4 M1-M12 Actuals Journal - Batch 1 (Nurs + Sec) | AU13: Q4 | AV13: Spreadsheet | AW13: JV01 - Transfer Journal | AX13: 16 | AY13: M1-M12 Actuals - CE04 - E10139 | BJ13: 2025-05-13T14:33:28 | BK13: Daniel Phelan | BL13: 2025-05-13 | BM13: daniel.phelan@barnet.gov.uk | BN13: 2025-05-13T14:55:23 | BO13: 300000005088675:Q4 M1-M12 Actuals Journal - Batch 1 (Nurs + Sec):M1-M12 Actuals - CE04 - E10139
A14: A1 | B14: A0000A | C14: L1 BARNET System Hierarchy | D14: B0000A | E14: L2 LBB Hierarchy | F14: B2000B | G14: L3 LBB Revenue | H14: B3010C | I14: L4 LBB SchoolDM | J14: B3010D | K14: L5 SCHOOLDM | L14: B3015E | M14: L6 Special Schools Direct Managem | N14: B3016F | O14: L7 Special Schools Direct Managem | P14: 10000X | Q14: All Subjective | R14: 40000A | S14: Total Capital Programme Expenditure | T14: 40000B | U14: Total Capital Expenditure | V14: 41000C | W14: Capital Expenditure | X14: 41100D | Y14: Assets to be Cleared | Z14: 41110E | AA14: Assets to be Cleared Summary | AB14: E10159 | AC14: Mapledown School | AD14: 411140 | AE14: =_xlfn.XLOOKUP(AD14, [2]Sheet3!B:B,[2]Sheet3!A:A) -> CE01 | AF14: Schools Capital Cost Clearing Control Account | AG14: 99999 | AH14: Default Analysis | AI14: 9999999 | AJ14: Project Default | AK14: 999999 | AL14: Default - Reserved for future use | AM14: A1-E10159-411140-99999-9999999-999999 | AN14: PER13-24-25 | AO14: 5467.37 | AP14: 0 | AQ14: 5467.37 | AR14: CFS2425100198 Spreadsheet A 300000006713123 4053711 N | AS14: CFS2425100198 JV01 - Transfer Journal | AT14: Q4 M1-M12 Actuals Journal - Batch 1 (Nurs + Sec) | AU14: Q4 | AV14: Spreadsheet | AW14: JV01 - Transfer Journal | AX14: 26 | AY14: M1-M12 Actuals - CE02 - E10159 | BJ14: 2025-05-13T14:33:28 | BK14: Daniel Phelan | BL14: 2025-05-13 | BM14: daniel.phelan@barnet.gov.uk | BN14: 2025-05-13T14:55:23 | BO14: 300000005088675:Q4 M1-M12 Actuals Journal - Batch 1 (Nurs + Sec):M1-M12 Actuals - CE02 - E10159
A15: A1 | B15: A0000A | C15: L1 BARNET System Hierarchy | D15: B0000A | E15: L2 LBB Hierarchy | F15: B2000B | G15: L3 LBB Revenue | H15: B3010C | I15: L4 LBB SchoolDM | J15: B3010D | K15: L5 SCHOOLDM | L15: B3017E | M15: L6 PRUs Direct Management | N15: B3018F | O15: L7 PRUs Direct Management | P15: 10000X | Q15: All Subjective | R15: 40000A | S15: Total Capital Programme Expenditure | T15: 40000B | U15: Total Capital Expenditure | V15: 41000C | W15: Capital Expenditure | X15: 41100D | Y15: Assets to be Cleared | Z15: 41110E | AA15: Assets to be Cleared Summary | AB15: E10185 | AC15: Northgate PRU | AD15: 411140 | AE15: =_xlfn.XLOOKUP(AD15, [2]Sheet3!B:B,[2]Sheet3!A:A) -> CE01 | AF15: Schools Capital Cost Clearing Control Account | AG15: 99999 | AH15: Default Analysis | AI15: 9999999 | AJ15: Project Default | AK15: 999999 | AL15: Default - Reserved for future use | AM15: A1-E10185-411140-99999-9999999-999999 | AN15: PER13-24-25 | AO15: 2263.93 | AP15: 0 | AQ15: 2263.93 | AR15: CFS2425100198 Spreadsheet A 300000006713123 4053711 N | AS15: CFS2425100198 JV01 - Transfer Journal | AT15: Q4 M1-M12 Actuals Journal - Batch 1 (Nurs + Sec) | AU15: Q4 | AV15: Spreadsheet | AW15: JV01 - Transfer Journal | AX15: 30 | AY15: M1-M12 Actuals - CE04d - E10185 | BJ15: 2025-05-13T14:33:28 | BK15: Daniel Phelan | BL15: 2025-05-13 | BM15: daniel.phelan@barnet.gov.uk | BN15: 2025-05-13T14:55:23 | BO15: 300000005088675:Q4 M1-M12 Actuals Journal - Batch 1 (Nurs + Sec):M1-M12 Actuals - CE04d - E10185
A16: A1 | B16: A0000A | C16: L1 BARNET System Hierarchy | D16: B0000A | E16: L2 LBB Hierarchy | F16: B2000B | G16: L3 LBB Revenue | H16: B3010C | I16: L4 LBB SchoolDM | J16: B3010D | K16: L5 SCHOOLDM | L16: B3011E | M16: L6 Primary Schools Direct Managem | N16: B3012F | O16: L7 Primary Schools Direct Managem | P16: 10000X | Q16: All Subjective | R16: 50000A | S16: Total Net Expenditure CIES | T16: 50000B | U16: Total Income | V16: 51000C | W16: Government Grants | X16: 51100D | Y16: Specific and Special Grants | Z16: 51110E | AA16: Specific and Special Grants Summary | AB16: E10044 | AC16: Barnfield School | AD16: 511113 | AE16: =_xlfn.XLOOKUP(AD16, [2]Sheet3!B:B,[2]Sheet3!A:A) -> I06 | AF16: Schools Other Government Grants I06 | AG16: 99999 | AH16: Default Analysis | AI16: 9999999 | AJ16: Project Default | AK16: 999999 | AL16: Default - Reserved for future use | AM16: A1-E10044-511113-99999-9999999-999999 | AN16: PER13-24-25 | AO16: 0 | AP16: 10088.84 | AQ16: -10088.84 | AR16: CFS2425100201 Spreadsheet A 300000006713123 4054487 N | AS16: CFS2425100201 JV01 - Transfer Journal | AT16: Q4 M1-M12 Actuals Journal - Batch 2 (A-F) | AU16: Q4 | AV16: Spreadsheet | AW16: JV01 - Transfer Journal | AX16: 48 | AY16: M1-M12 Actuals - I06 - E10044 | BJ16: 2025-05-13T15:52:01 | BK16: Daniel Phelan | BL16: 2025-05-13 | BM16: daniel.phelan@barnet.gov.uk | BN16: 2025-05-13T15:56:37 | BO16: 300000005088675:Q4 M1-M12 Actuals Journal - Batch 2 (A-F):M1-M12 Actuals - I06 - E10044
A17: A1 | B17: A0000A | C17: L1 BARNET System Hierarchy | D17: B0000A | E17: L2 LBB Hierarchy | F17: B2000B | G17: L3 LBB Revenue | H17: B3010C | I17: L4 LBB SchoolDM | J17: B3010D | K17: L5 SCHOOLDM | L17: B3011E | M17: L6 Primary Schools Direct Managem | N17: B3012F | O17: L7 Primary Schools Direct Managem | P17: 10000X | Q17: All Subjective | R17: 50000A | S17: Total Net Expenditure CIES | T17: 50000B | U17: Total Income | V17: 51000C | W17: Government Grants | X17: 51100D | Y17: Specific and Special Grants | Z17: 51110E | AA17: Specific and Special Grants Summary | AB17: E10046 | AC17: Brookland Junior School | AD17: 511113 | AE17: =_xlfn.XLOOKUP(AD17, [2]Sheet3!B:B,[2]Sheet3!A:A) -> I06 | AF17: Schools Other Government Grants I06 | AG17: 99999 | AH17: Default Analysis | AI17: 9999999 | AJ17: Project Default | AK17: 999999 | AL17: Default - Reserved for future use | AM17: A1-E10046-511113-99999-9999999-999999 | AN17: PER13-24-25 | AO17: 0 | AP17: 2114.81 | AQ17: -2114.81 | AR17: CFS2425100201 Spreadsheet A 300000006713123 4054487 N | AS17: CFS2425100201 JV01 - Transfer Journal | AT17: Q4 M1-M12 Actuals Journal - Batch 2 (A-F) | AU17: Q4 | AV17: Spreadsheet | AW17: JV01 - Transfer Journal | AX17: 49 | AY17: M1-M12 Actuals - I06 - E10046 | BJ17: 2025-05-13T15:52:01 | BK17: Daniel Phelan | BL17: 2025-05-13 | BM17: daniel.phelan@barnet.gov.uk | BN17: 2025-05-13T15:56:37 | BO17: 300000005088675:Q4 M1-M12 Actuals Journal - Batch 2 (A-F):M1-M12 Actuals - I06 - E10046
A18: A1 | B18: A0000A | C18: L1 BARNET System Hierarchy | D18: B0000A | E18: L2 LBB Hierarchy | F18: B2000B | G18: L3 LBB Revenue | H18: B3010C | I18: L4 LBB SchoolDM | J18: B3010D | K18: L5 SCHOOLDM | L18: B3011E | M18: L6 Primary Schools Direct Managem | N18: B3012F | O18: L7 Primary Schools Direct Managem | P18: 10000X | Q18: All Subjective | R18: 50000A | S18: Total Net Expenditure CIES | T18: 50000B | U18: Total Income | V18: 51000C | W18: Government Grants | X18: 51100D | Y18: Specific and Special Grants | Z18: 51110E | AA18: Specific and Special Grants Summary | AB18: E10071 | AC18: Hollickwood School | AD18: 511113 | AE18: =_xlfn.XLOOKUP(AD18, [2]Sheet3!B:B,[2]Sheet3!A:A) -> I06 | AF18: Schools Other Government Grants I06 | AG18: 99999 | AH18: Default Analysis | AI18: 9999999 | AJ18: Project Default | AK18: 999999 | AL18: Default - Reserved for future use | AM18: A1-E10071-511113-99999-9999999-999999 | AN18: PER13-24-25 | AO18: 0 | AP18: 20236.97 | AQ18: -20236.97 | AR18: CFS2425100199 Spreadsheet A 300000006796056 4054266 N | AS18: CFS2425100199 JV01 - Transfer Journal | AT18: Q4 M1-M12 Actuals Journal - Batch 3 (G-R) | AU18: Q4 | AV18: Spreadsheet | AW18: JV01 - Transfer Journal | AX18: 52 | AY18: M1-M12 Actuals - I06 - E10071 | BJ18: 2025-05-13T15:25:09 | BK18: Rema Tiba | BL18: 2025-05-13 | BM18: rema.tiba@barnet.gov.uk | BN18: 2025-05-13T15:56:34 | BO18: 300000005088675:Q4 M1-M12 Actuals Journal - Batch 3 (G-R):M1-M12 Actuals - I06 - E10071
A19: A1 | B19: A0000A | C19: L1 BARNET System Hierarchy | D19: B0000A | E19: L2 LBB Hierarchy | F19: B2000B | G19: L3 LBB Revenue | H19: B3010C | I19: L4 LBB SchoolDM | J19: B3010D | K19: L5 SCHOOLDM | L19: B3011E | M19: L6 Primary Schools Direct Managem | N19: B3012F | O19: L7 Primary Schools Direct Managem | P19: 10000X | Q19: All Subjective | R19: 50000A | S19: Total Net Expenditure CIES | T19: 50000B | U19: Total Income | V19: 51000C | W19: Government Grants | X19: 51100D | Y19: Specific and Special Grants | Z19: 51110E | AA19: Specific and Special Grants Summary | AB19: E10087 | AC19: St Agnes' RC School | AD19: 511113 | AE19: =_xlfn.XLOOKUP(AD19, [2]Sheet3!B:B,[2]Sheet3!A:A) -> I06 | AF19: Schools Other Government Grants I06 | AG19: 99999 | AH19: Default Analysis | AI19: 9999999 | AJ19: Project Default | AK19: 999999 | AL19: Default - Reserved for future use | AM19: A1-E10087-511113-99999-9999999-999999 | AN19: PER13-24-25 | AO19: 0 | AP19: 12148.07 | AQ19: -12148.07 | AR19: CFS2425100200 Spreadsheet A 300000006796056 4054311 N | AS19: CFS2425100200 JV01 - Transfer Journal | AT19: Q4 M1-M12 Actuals Journal - Batch 4 (S-W) | AU19: Q4 | AV19: Spreadsheet | AW19: JV01 - Transfer Journal | AX19: 35 | AY19: M1-M12 Actuals - I06 - E10087 | BJ19: 2025-05-13T15:28:39 | BK19: Rema Tiba | BL19: 2025-05-13 | BM19: rema.tiba@barnet.gov.uk | BN19: 2025-05-13T15:56:40 | BO19: 300000005088675:Q4 M1-M12 Actuals Journal - Batch 4 (S-W):M1-M12 Actuals - I06 - E10087
A20: A1 | B20: A0000A | C20: L1 BARNET System Hierarchy | D20: B0000A | E20: L2 LBB Hierarchy | F20: B2000B | G20: L3 LBB Revenue | H20: B3010C | I20: L4 LBB SchoolDM | J20: B3010D | K20: L5 SCHOOLDM | L20: B3011E | M20: L6 Primary Schools Direct Managem | N20: B3012F | O20: L7 Primary Schools Direct Managem | P20: 10000X | Q20: All Subjective | R20: 50000A | S20: Total Net Expenditure CIES | T20: 50000B | U20: Total Income | V20: 51000C | W20: Government Grants | X20: 51100D | Y20: Specific and Special Grants | Z20: 51110E | AA20: Specific and Special Grants Summary | AB20: E10092 | AC20: St Mary's CE N3 | AD20: 511113 | AE20: =_xlfn.XLOOKUP(AD20, [2]Sheet3!B:B,[2]Sheet3!A:A) -> I06 | AF20: Schools Other Government Grants I06 | AG20: 99999 | AH20: Default Analysis | AI20: 9999999 | AJ20: Project Default | AK20: 999999 | AL20: Default - Reserved for future use | AM20: A1-E10092-511113-99999-9999999-999999 | AN20: PER13-24-25 | AO20: 0 | AP20: 4574.03 | AQ20: -4574.03 | AR20: CFS2425100200 Spreadsheet A 300000006796056 4054311 N | AS20: CFS2425100200 JV01 - Transfer Journal | AT20: Q4 M1-M12 Actuals Journal - Batch 4 (S-W) | AU20: Q4 | AV20: Spreadsheet | AW20: JV01 - Transfer Journal | AX20: 37 | AY20: M1-M12 Actuals - I06 - E10092 | BJ20: 2025-05-13T15:28:39 | BK20: Rema Tiba | BL20: 2025-05-13 | BM20: rema.tiba@barnet.gov.uk | BN20: 2025-05-13T15:56:40 | BO20: 300000005088675:Q4 M1-M12 Actuals Journal - Batch 4 (S-W):M1-M12 Actuals - I06 - E10092
A21: A1 | B21: A0000A | C21: L1 BARNET System Hierarchy | D21: B0000A | E21: L2 LBB Hierarchy | F21: B2000B | G21: L3 LBB Revenue | H21: B3010C | I21: L4 LBB SchoolDM | J21: B3010D | K21: L5 SCHOOLDM | L21: B3011E | M21: L6 Primary Schools Direct Managem | N21: B3012F | O21: L7 Primary Schools Direct Managem | P21: 10000X | Q21: All Subjective | R21: 50000A | S21: Total Net Expenditure CIES | T21: 50000B | U21: Total Income | V21: 51000C | W21: Government Grants | X21: 51100D | Y21: Specific and Special Grants | Z21: 51110E | AA21: Specific and Special Grants Summary | AB21: E10113 | AC21: Noam Primary School | AD21: 511113 | AE21: =_xlfn.XLOOKUP(AD21, [2]Sheet3!B:B,[2]Sheet3!A:A) -> I06 | AF21: Schools Other Government Grants I06 | AG21: 99999 | AH21: Default Analysis | AI21: 9999999 | AJ21: Project Default | AK21: 999999 | AL21: Default - Reserved for future use | AM21: A1-E10113-511113-99999-9999999-999999 | AN21: PER13-24-25 | AO21: 0 | AP21: 57613.08 | AQ21: -57613.08 | AR21: CFS2425100200 Spreadsheet A 300000006796056 4054311 N | AS21: CFS2425100200 JV01 - Transfer Journal | AT21: Q4 M1-M12 Actuals Journal - Batch 4 (S-W) | AU21: Q4 | AV21: Spreadsheet | AW21: JV01 - Transfer Journal | AX21: 51 | AY21: M1-M12 Actuals - I06 - E10113 | BJ21: 2025-05-13T15:28:39 | BK21: Rema Tiba | BL21: 2025-05-13 | BM21: rema.tiba@barnet.gov.uk | BN21: 2025-05-13T15:56:40 | BO21: 300000005088675:Q4 M1-M12 Actuals Journal - Batch 4 (S-W):M1-M12 Actuals - I06 - E10113
A22: A1 | B22: A0000A | C22: L1 BARNET System Hierarchy | D22: B0000A | E22: L2 LBB Hierarchy | F22: B2000B | G22: L3 LBB Revenue | H22: B3010C | I22: L4 LBB SchoolDM | J22: B3010D | K22: L5 SCHOOLDM | L22: B3011E | M22: L6 Primary Schools Direct Managem | N22: B3012F | O22: L7 Primary Schools Direct Managem | P22: 10000X | Q22: All Subjective | R22: 50000A | S22: Total Net Expenditure CIES | T22: 50000B | U22: Total Income | V22: 51000C | W22: Government Grants | X22: 51100D | Y22: Specific and Special Grants | Z22: 51110E | AA22: Specific and Special Grants Summary | AB22: E10125 | AC22: Mathilda Marks Kennedy | AD22: 511113 | AE22: =_xlfn.XLOOKUP(AD22, [2]Sheet3!B:B,[2]Sheet3!A:A) -> I06 | AF22: Schools Other Government Grants I06 | AG22: 99999 | AH22: Default Analysis | AI22: 9999999 | AJ22: Project Default | AK22: 999999 | AL22: Default - Reserved for future use | AM22: A1-E10125-511113-99999-9999999-999999 | AN22: PER13-24-25 | AO22: 0 | AP22: 58763.94 | AQ22: -58763.94 | AR22: CFS2425100199 Spreadsheet A 300000006796056 4054266 N | AS22: CFS2425100199 JV01 - Transfer Journal | AT22: Q4 M1-M12 Actuals Journal - Batch 3 (G-R) | AU22: Q4 | AV22: Spreadsheet | AW22: JV01 - Transfer Journal | AX22: 61 | AY22: M1-M12 Actuals - I06 - E10125 | BJ22: 2025-05-13T15:25:09 | BK22: Rema Tiba | BL22: 2025-05-13 | BM22: rema.tiba@barnet.gov.uk | BN22: 2025-05-13T15:56:34 | BO22: 300000005088675:Q4 M1-M12 Actuals Journal - Batch 3 (G-R):M1-M12 Actuals - I06 - E10125
A23: A1 | B23: A0000A | C23: L1 BARNET System Hierarchy | D23: B0000A | E23: L2 LBB Hierarchy | F23: B2000B | G23: L3 LBB Revenue | H23: B3010C | I23: L4 LBB SchoolDM | J23: B3010D | K23: L5 SCHOOLDM | L23: B3011E | M23: L6 Primary Schools Direct Managem | N23: B3012F | O23: L7 Primary Schools Direct Managem | P23: 10000X | Q23: All Subjective | R23: 50000A | S23: Total Net Expenditure CIES | T23: 50000B | U23: Total Income | V23: 51000C | W23: Government Grants | X23: 51100D | Y23: Specific and Special Grants | Z23: 51110E | AA23: Specific and Special Grants Summary | AB23: E11278 | AC23: Beit Schvidler | AD23: 511113 | AE23: =_xlfn.XLOOKUP(AD23, [2]Sheet3!B:B,[2]Sheet3!A:A) -> I06 | AF23: Schools Other Government Grants I06 | AG23: 99999 | AH23: Default Analysis | AI23: 9999999 | AJ23: Project Default | AK23: 999999 | AL23: Default - Reserved for future use | AM23: A1-E11278-511113-99999-9999999-999999 | AN23: PER13-24-25 | AO23: 0 | AP23: 47034.55 | AQ23: -47034.55 | AR23: CFS2425100201 Spreadsheet A 300000006713123 4054487 N | AS23: CFS2425100201 JV01 - Transfer Journal | AT23: Q4 M1-M12 Actuals Journal - Batch 2 (A-F) | AU23: Q4 | AV23: Spreadsheet | AW23: JV01 - Transfer Journal | AX23: 65 | AY23: M1-M12 Actuals - I06 - E11278 | BJ23: 2025-05-13T15:52:01 | BK23: Daniel Phelan | BL23: 2025-05-13 | BM23: daniel.phelan@barnet.gov.uk | BN23: 2025-05-13T15:56:37 | BO23: 300000005088675:Q4 M1-M12 Actuals Journal - Batch 2 (A-F):M1-M12 Actuals - I06 - E11278
A24: A1 | B24: A0000A | C24: L1 BARNET System Hierarchy | D24: B0000A | E24: L2 LBB Hierarchy | F24: B2000B | G24: L3 LBB Revenue | H24: B3010C | I24: L4 LBB SchoolDM | J24: B3010D | K24: L5 SCHOOLDM | L24: B3010E | M24: L6 Nursery Schools Direct Managem | N24: B3010F | O24: L7 Nursery Schools Direct Managem | P24: 10000X | Q24: All Subjective | R24: 50000A | S24: Total Net Expenditure CIES | T24: 50000B | U24: Total Income | V24: 51000C | W24: Government Grants | X24: 51100D | Y24: Specific and Special Grants | Z24: 51110E | AA24: Specific and Special Grants Summary | AB24: E10132 | AC24: Moss Hall Nursery School | AD24: 511114 | AE24: =_xlfn.XLOOKUP(AD24, [2]Sheet3!B:B,[2]Sheet3!A:A) -> I07 | AF24: Education CFR Other Grants | AG24: 99999 | AH24: Default Analysis | AI24: 9999999 | AJ24: Project Default | AK24: 999999 | AL24: Default - Reserved for future use | AM24: A1-E10132-511114-99999-9999999-999999 | AN24: PER13-24-25 | AO24: 0 | AP24: 1180.6 | AQ24: -1180.6 | AR24: CFS2425100198 Spreadsheet A 300000006713123 4053711 N | AS24: CFS2425100198 JV01 - Transfer Journal | AT24: Q4 M1-M12 Actuals Journal - Batch 1 (Nurs + Sec) | AU24: Q4 | AV24: Spreadsheet | AW24: JV01 - Transfer Journal | AX24: 41 | AY24: M1-M12 Actuals - I07 - E10132 | BJ24: 2025-05-13T14:33:28 | BK24: Daniel Phelan | BL24: 2025-05-13 | BM24: daniel.phelan@barnet.gov.uk | BN24: 2025-05-13T14:55:23 | BO24: 300000005088675:Q4 M1-M12 Actuals Journal - Batch 1 (Nurs + Sec):M1-M12 Actuals - I07 - E10132
A25: A1 | B25: A0000A | C25: L1 BARNET System Hierarchy | D25: B0000A | E25: L2 LBB Hierarchy | F25: B2000B | G25: L3 LBB Revenue | H25: B3010C | I25: L4 LBB SchoolDM | J25: B3010D | K25: L5 SCHOOLDM | L25: B3011E | M25: L6 Primary Schools Direct Managem | N25: B3012F | O25: L7 Primary Schools Direct Managem | P25: 10000X | Q25: All Subjective | R25: 50000A | S25: Total Net Expenditure CIES | T25: 50000B | U25: Total Income | V25: 51000C | W25: Government Grants | X25: 51100D | Y25: Specific and Special Grants | Z25: 51110E | AA25: Specific and Special Grants Summary | AB25: E10056 | AC25: Courtland School | AD25: 511114 | AE25: =_xlfn.XLOOKUP(AD25, [2]Sheet3!B:B,[2]Sheet3!A:A) -> I07 | AF25: Education CFR Other Grants | AG25: 99999 | AH25: Default Analysis | AI25: 9999999 | AJ25: Project Default | AK25: 999999 | AL25: Default - Reserved for future use | AM25: A1-E10056-511114-99999-9999999-999999 | AN25: PER13-24-25 | AO25: 0 | AP25: 55064.02 | AQ25: -55064.02 | AR25: CFS2425100201 Spreadsheet A 300000006713123 4054487 N | AS25: CFS2425100201 JV01 - Transfer Journal | AT25: Q4 M1-M12 Actuals Journal - Batch 2 (A-F) | AU25: Q4 | AV25: Spreadsheet | AW25: JV01 - Transfer Journal | AX25: 77 | AY25: M1-M12 Actuals - I07 - E10056 | BJ25: 2025-05-13T15:52:01 | BK25: Daniel Phelan | BL25: 2025-05-13 | BM25: daniel.phelan@barnet.gov.uk | BN25: 2025-05-13T15:56:37 | BO25: 300000005088675:Q4 M1-M12 Actuals Journal - Batch 2 (A-F):M1-M12 Actuals - I07 - E10056
A26: A1 | B26: A0000A | C26: L1 BARNET System Hierarchy | D26: B0000A | E26: L2 LBB Hierarchy | F26: B2000B | G26: L3 LBB Revenue | H26: B3010C | I26: L4 LBB SchoolDM | J26: B3010D | K26: L5 SCHOOLDM | L26: B3011E | M26: L6 Primary Schools Direct Managem | N26: B3012F | O26: L7 Primary Schools Direct Managem | P26: 10000X | Q26: All Subjective | R26: 50000A | S26: Total Net Expenditure CIES | T26: 50000B | U26: Total Income | V26: 51000C | W26: Government Grants | X26: 51100D | Y26: Specific and Special Grants | Z26: 51110E | AA26: Specific and Special Grants Summary | AB26: E10072 | AC26: Holly Park School | AD26: 511114 | AE26: =_xlfn.XLOOKUP(AD26, [2]Sheet3!B:B,[2]Sheet3!A:A) -> I07 | AF26: Education CFR Other Grants | AG26: 99999 | AH26: Default Analysis | AI26: 9999999 | AJ26: Project Default | AK26: 999999 | AL26: Default - Reserved for future use | AM26: A1-E10072-511114-99999-9999999-999999 | AN26: PER13-24-25 | AO26: 0 | AP26: 106302.24 | AQ26: -106302.24 | AR26: CFS2425100199 Spreadsheet A 300000006796056 4054266 N | AS26: CFS2425100199 JV01 - Transfer Journal | AT26: Q4 M1-M12 Actuals Journal - Batch 3 (G-R) | AU26: Q4 | AV26: Spreadsheet | AW26: JV01 - Transfer Journal | AX26: 70 | AY26: M1-M12 Actuals - I07 - E10072 | BJ26: 2025-05-13T15:25:09 | BK26: Rema Tiba | BL26: 2025-05-13 | BM26: rema.tiba@barnet.gov.uk | BN26: 2025-05-13T15:56:34 | BO26: 300000005088675:Q4 M1-M12 Actuals Journal - Batch 3 (G-R):M1-M12 Actuals - I07 - E10072
A27: A1 | B27: A0000A | C27: L1 BARNET System Hierarchy | D27: B0000A | E27: L2 LBB Hierarchy | F27: B2000B | G27: L3 LBB Revenue | H27: B3010C | I27: L4 LBB SchoolDM | J27: B3010D | K27: L5 SCHOOLDM | L27: B3011E | M27: L6 Primary Schools Direct Managem | N27: B3012F | O27: L7 Primary Schools Direct Managem | P27: 10000X | Q27: All Subjective | R27: 50000A | S27: Total Net Expenditure CIES | T27: 50000B | U27: Total Income | V27: 51000C | W27: Government Grants | X27: 51100D | Y27: Specific and Special Grants | Z27: 51110E | AA27: Specific and Special Grants Summary | AB27: E10078 | AC27: Monken Hadley CE School | AD27: 511114 | AE27: =_xlfn.XLOOKUP(AD27, [2]Sheet3!B:B,[2]Sheet3!A:A) -> I07 | AF27: Education CFR Other Grants | AG27: 99999 | AH27: Default Analysis | AI27: 9999999 | AJ27: Project Default | AK27: 999999 | AL27: Default - Reserved for future use | AM27: A1-E10078-511114-99999-9999999-999999 | AN27: PER13-24-25 | AO27: 0 | AP27: 90797.89 | AQ27: -90797.89 | AR27: CFS2425100199 Spreadsheet A 300000006796056 4054266 N | AS27: CFS2425100199 JV01 - Transfer Journal | AT27: Q4 M1-M12 Actuals Journal - Batch 3 (G-R) | AU27: Q4 | AV27: Spreadsheet | AW27: JV01 - Transfer Journal | AX27: 74 | AY27: M1-M12 Actuals - I07 - E10078 | BJ27: 2025-05-13T15:25:09 | BK27: Rema Tiba | BL27: 2025-05-13 | BM27: rema.tiba@barnet.gov.uk | BN27: 2025-05-13T15:56:34 | BO27: 300000005088675:Q4 M1-M12 Actuals Journal - Batch 3 (G-R):M1-M12 Actuals - I07 - E10078
A28: A1 | B28: A0000A | C28: L1 BARNET System Hierarchy | D28: B0000A | E28: L2 LBB Hierarchy | F28: B2000B | G28: L3 LBB Revenue | H28: B3010C | I28: L4 LBB SchoolDM | J28: B3010D | K28: L5 SCHOOLDM | L28: B3011E | M28: L6 Primary Schools Direct Managem | N28: B3012F | O28: L7 Primary Schools Direct Managem | P28: 10000X | Q28: All Subjective | R28: 50000A | S28: Total Net Expenditure CIES | T28: 50000B | U28: Total Income | V28: 51000C | W28: Government Grants | X28: 51100D | Y28: Specific and Special Grants | Z28: 51110E | AA28: Specific and Special Grants Summary | AB28: E10087 | AC28: St Agnes' RC School | AD28: 511114 | AE28: =_xlfn.XLOOKUP(AD28, [2]Sheet3!B:B,[2]Sheet3!A:A) -> I07 | AF28: Education CFR Other Grants | AG28: 99999 | AH28: Default Analysis | AI28: 9999999 | AJ28: Project Default | AK28: 999999 | AL28: Default - Reserved for future use | AM28: A1-E10087-511114-99999-9999999-999999 | AN28: PER13-24-25 | AO28: 0 | AP28: 82312.3 | AQ28: -82312.3 | AR28: CFS2425100200 Spreadsheet A 300000006796056 4054311 N | AS28: CFS2425100200 JV01 - Transfer Journal | AT28: Q4 M1-M12 Actuals Journal - Batch 4 (S-W) | AU28: Q4 | AV28: Spreadsheet | AW28: JV01 - Transfer Journal | AX28: 55 | AY28: M1-M12 Actuals - I07 - E10087 | BJ28: 2025-05-13T15:28:39 | BK28: Rema Tiba | BL28: 2025-05-13 | BM28: rema.tiba@barnet.gov.uk | BN28: 2025-05-13T15:56:40 | BO28: 300000005088675:Q4 M1-M12 Actuals Journal - Batch 4 (S-W):M1-M12 Actuals - I07 - E10087
A29: A1 | B29: A0000A | C29: L1 BARNET System Hierarchy | D29: B0000A | E29: L2 LBB Hierarchy | F29: B2000B | G29: L3 LBB Revenue | H29: B3010C | I29: L4 LBB SchoolDM | J29: B3010D | K29: L5 SCHOOLDM | L29: B3011E | M29: L6 Primary Schools Direct Managem | N29: B3012F | O29: L7 Primary Schools Direct Managem | P29: 10000X | Q29: All Subjective | R29: 50000A | S29: Total Net Expenditure CIES | T29: 50000B | U29: Total Income | V29: 51000C | W29: Government Grants | X29: 51100D | Y29: Specific and Special Grants | Z29: 51110E | AA29: Specific and Special Grants Summary | AB29: E10094 | AC29: St Paul's CE N11 | AD29: 511114 | AE29: =_xlfn.XLOOKUP(AD29, [2]Sheet3!B:B,[2]Sheet3!A:A) -> I07 | AF29: Education CFR Other Grants | AG29: 99999 | AH29: Default Analysis | AI29: 9999999 | AJ29: Project Default | AK29: 999999 | AL29: Default - Reserved for future use | AM29: A1-E10094-511114-99999-9999999-999999 | AN29: PER13-24-25 | AO29: 0 | AP29: 39698.41 | AQ29: -39698.41 | AR29: CFS2425100200 Spreadsheet A 300000006796056 4054311 N | AS29: CFS2425100200 JV01 - Transfer Journal | AT29: Q4 M1-M12 Actuals Journal - Batch 4 (S-W) | AU29: Q4 | AV29: Spreadsheet | AW29: JV01 - Transfer Journal | AX29: 60 | AY29: M1-M12 Actuals - I07 - E10094 | BJ29: 2025-05-13T15:28:39 | BK29: Rema Tiba | BL29: 2025-05-13 | BM29: rema.tiba@barnet.gov.uk | BN29: 2025-05-13T15:56:40 | BO29: 300000005088675:Q4 M1-M12 Actuals Journal - Batch 4 (S-W):M1-M12 Actuals - I07 - E10094
A30: A1 | B30: A0000A | C30: L1 BARNET System Hierarchy | D30: B0000A | E30: L2 LBB Hierarchy | F30: B2000B | G30: L3 LBB Revenue | H30: B3010C | I30: L4 LBB SchoolDM | J30: B3010D | K30: L5 SCHOOLDM | L30: B3011E | M30: L6 Primary Schools Direct Managem | N30: B3012F | O30: L7 Primary Schools Direct Managem | P30: 10000X | Q30: All Subjective | R30: 50000A | S30: Total Net Expenditure CIES | T30: 50000B | U30: Total Income | V30: 51000C | W30: Government Grants | X30: 51100D | Y30: Specific and Special Grants | Z30: 51110E | AA30: Specific and Special Grants Summary | AB30: E10100 | AC30: Trent CE School | AD30: 511114 | AE30: =_xlfn.XLOOKUP(AD30, [2]Sheet3!B:B,[2]Sheet3!A:A) -> I07 | AF30: Education CFR Other Grants | AG30: 99999 | AH30: Default Analysis | AI30: 9999999 | AJ30: Project Default | AK30: 999999 | AL30: Default - Reserved for future use | AM30: A1-E10100-511114-99999-9999999-999999 | AN30: PER13-24-25 | AO30: 0 | AP30: 54905.15 | AQ30: -54905.15 | AR30: CFS2425100200 Spreadsheet A 300000006796056 4054311 N | AS30: CFS2425100200 JV01 - Transfer Journal | AT30: Q4 M1-M12 Actuals Journal - Batch 4 (S-W) | AU30: Q4 | AV30: Spreadsheet | AW30: JV01 - Transfer Journal | AX30: 65 | AY30: M1-M12 Actuals - I07 - E10100 | BJ30: 2025-05-13T15:28:39 | BK30: Rema Tiba | BL30: 2025-05-13 | BM30: rema.tiba@barnet.gov.uk | BN30: 2025-05-13T15:56:40 | BO30: 300000005088675:Q4 M1-M12 Actuals Journal - Batch 4 (S-W):M1-M12 Actuals - I07 - E10100
A31: A1 | B31: A0000A | C31: L1 BARNET System Hierarchy | D31: B0000A | E31: L2 LBB Hierarchy | F31: B2000B | G31: L3 LBB Revenue | H31: B3010C | I31: L4 LBB SchoolDM | J31: B3010D | K31: L5 SCHOOLDM | L31: B3011E | M31: L6 Primary Schools Direct Managem | N31: B3012F | O31: L7 Primary Schools Direct Managem | P31: 10000X | Q31: All Subjective | R31: 50000A | S31: Total Net Expenditure CIES | T31: 50000B | U31: Total Income | V31: 51000C | W31: Government Grants | X31: 51100D | Y31: Specific and Special Grants | Z31: 51110E | AA31: Specific and Special Grants Summary | AB31: E10124 | AC31: Wessex Gardens School | AD31: 511114 | AE31: =_xlfn.XLOOKUP(AD31, [2]Sheet3!B:B,[2]Sheet3!A:A) -> I07 | AF31: Education CFR Other Grants | AG31: 99999 | AH31: Default Analysis | AI31: 9999999 | AJ31: Project Default | AK31: 999999 | AL31: Default - Reserved for future use | AM31: A1-E10124-511114-99999-9999999-999999 | AN31: PER13-24-25 | AO31: 0 | AP31: 123953.42 | AQ31: -123953.42 | AR31: CFS2425100200 Spreadsheet A 300000006796056 4054311 N | AS31: CFS2425100200 JV01 - Transfer Journal | AT31: Q4 M1-M12 Actuals Journal - Batch 4 (S-W) | AU31: Q4 | AV31: Spreadsheet | AW31: JV01 - Transfer Journal | AX31: 76 | AY31: M1-M12 Actuals - I07 - E10124 | BJ31: 2025-05-13T15:28:39 | BK31: Rema Tiba | BL31: 2025-05-13 | BM31: rema.tiba@barnet.gov.uk | BN31: 2025-05-13T15:56:40 | BO31: 300000005088675:Q4 M1-M12 Actuals Journal - Batch 4 (S-W):M1-M12 Actuals - I07 - E10124
A32: A1 | B32: A0000A | C32: L1 BARNET System Hierarchy | D32: B0000A | E32: L2 LBB Hierarchy | F32: B2000B | G32: L3 LBB Revenue | H32: B3010C | I32: L4 LBB SchoolDM | J32: B3010D | K32: L5 SCHOOLDM | L32: B3011E | M32: L6 Primary Schools Direct Managem | N32: B3012F | O32: L7 Primary Schools Direct Managem | P32: 10000X | Q32: All Subjective | R32: 50000A | S32: Total Net Expenditure CIES | T32: 50000B | U32: Total Income | V32: 51000C | W32: Government Grants | X32: 51100D | Y32: Specific and Special Grants | Z32: 51110E | AA32: Specific and Special Grants Summary | AB32: E11093 | AC32: Martin Primary | AD32: 511114 | AE32: =_xlfn.XLOOKUP(AD32, [2]Sheet3!B:B,[2]Sheet3!A:A) -> I07 | AF32: Education CFR Other Grants | AG32: 99999 | AH32: Default Analysis | AI32: 9999999 | AJ32: Project Default | AK32: 999999 | AL32: Default - Reserved for future use | AM32: A1-E11093-511114-99999-9999999-999999 | AN32: PER13-24-25 | AO32: 0 | AP32: 130621.35 | AQ32: -130621.35 | AR32: CFS2425100199 Spreadsheet A 300000006796056 4054266 N | AS32: CFS2425100199 JV01 - Transfer Journal | AT32: Q4 M1-M12 Actuals Journal - Batch 3 (G-R) | AU32: Q4 | AV32: Spreadsheet | AW32: JV01 - Transfer Journal | AX32: 87 | AY32: M1-M12 Actuals - I07 - E11093 | BJ32: 2025-05-13T15:25:09 | BK32: Rema Tiba | BL32: 2025-05-13 | BM32: rema.tiba@barnet.gov.uk | BN32: 2025-05-13T15:56:34 | BO32: 300000005088675:Q4 M1-M12 Actuals Journal - Batch 3 (G-R):M1-M12 Actuals - I07 - E11093
A33: A1 | B33: A0000A | C33: L1 BARNET System Hierarchy | D33: B0000A | E33: L2 LBB Hierarchy | F33: B2000B | G33: L3 LBB Revenue | H33: B3010C | I33: L4 LBB SchoolDM | J33: B3010D | K33: L5 SCHOOLDM | L33: B3015E | M33: L6 Special Schools Direct Managem | N33: B3016F | O33: L7 Special Schools Direct Managem | P33: 10000X | Q33: All Subjective | R33: 50000A | S33: Total Net Expenditure CIES | T33: 50000B | U33: Total Income | V33: 51000C | W33: Government Grants | X33: 51100D | Y33: Specific and Special Grants | Z33: 51110E | AA33: Specific and Special Grants Summary | AB33: E10158 | AC33: Oakleigh School | AD33: 511114 | AE33: =_xlfn.XLOOKUP(AD33, [2]Sheet3!B:B,[2]Sheet3!A:A) -> I07 | AF33: Education CFR Other Grants | AG33: 99999 | AH33: Default Analysis | AI33: 9999999 | AJ33: Project Default | AK33: 999999 | AL33: Default - Reserved for future use | AM33: A1-E10158-511114-99999-9999999-999999 | AN33: PER13-24-25 | AO33: 0 | AP33: 19301.08 | AQ33: -19301.08 | AR33: CFS2425100198 Spreadsheet A 300000006713123 4053711 N | AS33: CFS2425100198 JV01 - Transfer Journal | AT33: Q4 M1-M12 Actuals Journal - Batch 1 (Nurs + Sec) | AU33: Q4 | AV33: Spreadsheet | AW33: JV01 - Transfer Journal | AX33: 46 | AY33: M1-M12 Actuals - I07 - E10158 | BJ33: 2025-05-13T14:33:28 | BK33: Daniel Phelan | BL33: 2025-05-13 | BM33: daniel.phelan@barnet.gov.uk | BN33: 2025-05-13T14:55:23 | BO33: 300000005088675:Q4 M1-M12 Actuals Journal - Batch 1 (Nurs + Sec):M1-M12 Actuals - I07 - E10158
A34: A1 | B34: A0000A | C34: L1 BARNET System Hierarchy | D34: B0000A | E34: L2 LBB Hierarchy | F34: B2000B | G34: L3 LBB Revenue | H34: B3010C | I34: L4 LBB SchoolDM | J34: B3010D | K34: L5 SCHOOLDM | L34: B3017E | M34: L6 PRUs Direct Management | N34: B3018F | O34: L7 PRUs Direct Management | P34: 10000X | Q34: All Subjective | R34: 50000A | S34: Total Net Expenditure CIES | T34: 50000B | U34: Total Income | V34: 51000C | W34: Government Grants | X34: 51100D | Y34: Specific and Special Grants | Z34: 51110E | AA34: Specific and Special Grants Summary | AB34: E10185 | AC34: Northgate PRU | AD34: 511114 | AE34: =_xlfn.XLOOKUP(AD34, [2]Sheet3!B:B,[2]Sheet3!A:A) -> I07 | AF34: Education CFR Other Grants | AG34: 99999 | AH34: Default Analysis | AI34: 9999999 | AJ34: Project Default | AK34: 999999 | AL34: Default - Reserved for future use | AM34: A1-E10185-511114-99999-9999999-999999 | AN34: PER13-24-25 | AO34: 0 | AP34: 49081.59 | AQ34: -49081.59 | AR34: CFS2425100198 Spreadsheet A 300000006713123 4053711 N | AS34: CFS2425100198 JV01 - Transfer Journal | AT34: Q4 M1-M12 Actuals Journal - Batch 1 (Nurs + Sec) | AU34: Q4 | AV34: Spreadsheet | AW34: JV01 - Transfer Journal | AX34: 48 | AY34: M1-M12 Actuals - I07 - E10185 | BJ34: 2025-05-13T14:33:28 | BK34: Daniel Phelan | BL34: 2025-05-13 | BM34: daniel.phelan@barnet.gov.uk | BN34: 2025-05-13T14:55:23 | BO34: 300000005088675:Q4 M1-M12 Actuals Journal - Batch 1 (Nurs + Sec):M1-M12 Actuals - I07 - E10185
A35: A1 | B35: A0000A | C35: L1 BARNET System Hierarchy | D35: B0000A | E35: L2 LBB Hierarchy | F35: B2000B | G35: L3 LBB Revenue | H35: B3010C | I35: L4 LBB SchoolDM | J35: B3010D | K35: L5 SCHOOLDM | L35: B3011E | M35: L6 Primary Schools Direct Managem | N35: B3012F | O35: L7 Primary Schools Direct Managem | P35: 10000X | Q35: All Subjective | R35: 50000A | S35: Total Net Expenditure CIES | T35: 50000B | U35: Total Income | V35: 51000C | W35: Government Grants | X35: 51100D | Y35: Specific and Special Grants | Z35: 51110E | AA35: Specific and Special Grants Summary | AB35: E10056 | AC35: Courtland School | AD35: 511115 | AE35: =_xlfn.XLOOKUP(AD35, [2]Sheet3!B:B,[2]Sheet3!A:A) -> I12 | AF35: Education CFR Income from Contribution | AG35: D1120 | AH35: Schools DM | AI35: 9999999 | AJ35: Project Default | AK35: 999999 | AL35: Default - Reserved for future use | AM35: A1-E10056-511115-D1120-9999999-999999 | AN35: PER13-24-25 | AO35: 15325.72 | AP35: 0 | AQ35: 15325.72 | AR35: SCH2425P13-RIA0002 Spreadsheet A 300000006713123 4018773 N | AS35: SCH2425P13-RIA0002 YE01 - Accrual Journal | AT35: BATCH 2 RIAs | AU35: Q4 | AV35: Spreadsheet | AW35: YE01 - Accrual Journal | AX35: 27 | AY35: BATCH 2 RIA | BJ35: 2025-05-09T15:31:42 | BK35: Daniel Phelan | BL35: 2025-05-09 | BM35: daniel.phelan@barnet.gov.uk | BN35: 2025-05-09T16:31:25 | BO35: 300000005088676:BATCH 2 RIAs:BATCH 2 RIA
A36: A1 | B36: A0000A | C36: L1 BARNET System Hierarchy | D36: B0000A | E36: L2 LBB Hierarchy | F36: B2000B | G36: L3 LBB Revenue | H36: B3010C | I36: L4 LBB SchoolDM | J36: B3010D | K36: L5 SCHOOLDM | L36: B3011E | M36: L6 Primary Schools Direct Managem | N36: B3012F | O36: L7 Primary Schools Direct Managem | P36: 10000X | Q36: All Subjective | R36: 50000A | S36: Total Net Expenditure CIES | T36: 50000B | U36: Total Income | V36: 51000C | W36: Government Grants | X36: 51100D | Y36: Specific and Special Grants | Z36: 51110E | AA36: Specific and Special Grants Summary | AB36: E10057 | AC36: Cromer Road School | AD36: 511115 | AE36: =_xlfn.XLOOKUP(AD36, [2]Sheet3!B:B,[2]Sheet3!A:A) -> I12 | AF36: Education CFR Income from Contribution | AG36: D1120 | AH36: Schools DM | AI36: 9999999 | AJ36: Project Default | AK36: 999999 | AL36: Default - Reserved for future use | AM36: A1-E10057-511115-D1120-9999999-999999 | AN36: PER13-24-25 | AO36: 11585 | AP36: 0 | AQ36: 11585 | AR36: SCH2425P13-RIA0002 Spreadsheet A 300000006713123 4018773 N | AS36: SCH2425P13-RIA0002 YE01 - Accrual Journal | AT36: BATCH 2 RIAs | AU36: Q4 | AV36: Spreadsheet | AW36: YE01 - Accrual Journal | AX36: 28 | AY36: BATCH 2 RIA | BJ36: 2025-05-09T15:31:42 | BK36: Daniel Phelan | BL36: 2025-05-09 | BM36: daniel.phelan@barnet.gov.uk | BN36: 2025-05-09T16:31:25 | BO36: 300000005088676:BATCH 2 RIAs:BATCH 2 RIA
A37: A1 | B37: A0000A | C37: L1 BARNET System Hierarchy | D37: B0000A | E37: L2 LBB Hierarchy | F37: B2000B | G37: L3 LBB Revenue | H37: B3010C | I37: L4 LBB SchoolDM | J37: B3010D | K37: L5 SCHOOLDM | L37: B3011E | M37: L6 Primary Schools Direct Managem | N37: B3012F | O37: L7 Primary Schools Direct Managem | P37: 10000X | Q37: All Subjective | R37: 50000A | S37: Total Net Expenditure CIES | T37: 50000B | U37: Total Income | V37: 51000C | W37: Government Grants | X37: 51100D | Y37: Specific and Special Grants | Z37: 51110E | AA37: Specific and Special Grants Summary | AB37: E10063 | AC37: Edgware Primary | AD37: 511115 | AE37: =_xlfn.XLOOKUP(AD37, [2]Sheet3!B:B,[2]Sheet3!A:A) -> I12 | AF37: Education CFR Income from Contribution | AG37: 99999 | AH37: Default Analysis | AI37: 9999999 | AJ37: Project Default | AK37: 999999 | AL37: Default - Reserved for future use | AM37: A1-E10063-511115-99999-9999999-999999 | AN37: PER13-24-25 | AO37: 0 | AP37: 11845.15 | AQ37: -11845.15 | AR37: CFS2425100201 Spreadsheet A 300000006713123 4054487 N | AS37: CFS2425100201 JV01 - Transfer Journal | AT37: Q4 M1-M12 Actuals Journal - Batch 2 (A-F) | AU37: Q4 | AV37: Spreadsheet | AW37: JV01 - Transfer Journal | AX37: 105 | AY37: M1-M12 Actuals - I12 - E10063 | BJ37: 2025-05-13T15:52:01 | BK37: Daniel Phelan | BL37: 2025-05-13 | BM37: daniel.phelan@barnet.gov.uk | BN37: 2025-05-13T15:56:37 | BO37: 300000005088675:Q4 M1-M12 Actuals Journal - Batch 2 (A-F):M1-M12 Actuals - I12 - E10063
A38: A1 | B38: A0000A | C38: L1 BARNET System Hierarchy | D38: B0000A | E38: L2 LBB Hierarchy | F38: B2000B | G38: L3 LBB Revenue | H38: B3010C | I38: L4 LBB SchoolDM | J38: B3010D | K38: L5 SCHOOLDM | L38: B3011E | M38: L6 Primary Schools Direct Managem | N38: B3012F | O38: L7 Primary Schools Direct Managem | P38: 10000X | Q38: All Subjective | R38: 50000A | S38: Total Net Expenditure CIES | T38: 50000B | U38: Total Income | V38: 51000C | W38: Government Grants | X38: 51100D | Y38: Specific and Special Grants | Z38: 51110E | AA38: Specific and Special Grants Summary | AB38: E10064 | AC38: Fairway School | AD38: 511115 | AE38: =_xlfn.XLOOKUP(AD38, [2]Sheet3!B:B,[2]Sheet3!A:A) -> I12 | AF38: Education CFR Income from Contribution | AG38: D1120 | AH38: Schools DM | AI38: 9999999 | AJ38: Project Default | AK38: 999999 | AL38: Default - Reserved for future use | AM38: A1-E10064-511115-D1120-9999999-999999 | AN38: PER13-24-25 | AO38: 5137.5 | AP38: 0 | AQ38: 5137.5 | AR38: SCH2425P13-RIA0002 Spreadsheet A 300000006713123 4018773 N | AS38: SCH2425P13-RIA0002 YE01 - Accrual Journal | AT38: BATCH 2 RIAs | AU38: Q4 | AV38: Spreadsheet | AW38: YE01 - Accrual Journal | AX38: 29 | AY38: BATCH 2 RIA | BJ38: 2025-05-09T15:31:42 | BK38: Daniel Phelan | BL38: 2025-05-09 | BM38: daniel.phelan@barnet.gov.uk | BN38: 2025-05-09T16:31:25 | BO38: 300000005088676:BATCH 2 RIAs:BATCH 2 RIA
A39: A1 | B39: A0000A | C39: L1 BARNET System Hierarchy | D39: B0000A | E39: L2 LBB Hierarchy | F39: B2000B | G39: L3 LBB Revenue | H39: B3010C | I39: L4 LBB SchoolDM | J39: B3010D | K39: L5 SCHOOLDM | L39: B3011E | M39: L6 Primary Schools Direct Managem | N39: B3012F | O39: L7 Primary Schools Direct Managem | P39: 10000X | Q39: All Subjective | R39: 50000A | S39: Total Net Expenditure CIES | T39: 50000B | U39: Total Income | V39: 51000C | W39: Government Grants | X39: 51100D | Y39: Specific and Special Grants | Z39: 51110E | AA39: Specific and Special Grants Summary | AB39: E10072 | AC39: Holly Park School | AD39: 511115 | AE39: =_xlfn.XLOOKUP(AD39, [2]Sheet3!B:B,[2]Sheet3!A:A) -> I12 | AF39: Education CFR Income from Contribution | AG39: 99999 | AH39: Default Analysis | AI39: 9999999 | AJ39: Project Default | AK39: 999999 | AL39: Default - Reserved for future use | AM39: A1-E10072-511115-99999-9999999-999999 | AN39: PER13-24-25 | AO39: 0 | AP39: 101149.05 | AQ39: -101149.05 | AR39: CFS2425100199 Spreadsheet A 300000006796056 4054266 N | AS39: CFS2425100199 JV01 - Transfer Journal | AT39: Q4 M1-M12 Actuals Journal - Batch 3 (G-R) | AU39: Q4 | AV39: Spreadsheet | AW39: JV01 - Transfer Journal | AX39: 92 | AY39: M1-M12 Actuals - I12 - E10072 | BJ39: 2025-05-13T15:25:09 | BK39: Rema Tiba | BL39: 2025-05-13 | BM39: rema.tiba@barnet.gov.uk | BN39: 2025-05-13T15:56:34 | BO39: 300000005088675:Q4 M1-M12 Actuals Journal - Batch 3 (G-R):M1-M12 Actuals - I12 - E10072
A40: A1 | B40: A0000A | C40: L1 BARNET System Hierarchy | D40: B0000A | E40: L2 LBB Hierarchy | F40: B2000B | G40: L3 LBB Revenue | H40: B3010C | I40: L4 LBB SchoolDM | J40: B3010D | K40: L5 SCHOOLDM | L40: B3011E | M40: L6 Primary Schools Direct Managem | N40: B3012F | O40: L7 Primary Schools Direct Managem | P40: 10000X | Q40: All Subjective | R40: 50000A | S40: Total Net Expenditure CIES | T40: 50000B | U40: Total Income | V40: 51000C | W40: Government Grants | X40: 51100D | Y40: Specific and Special Grants | Z40: 51110E | AA40: Specific and Special Grants Summary | AB40: E10080 | AC40: Moss Hall Junior School | AD40: 511115 | AE40: =_xlfn.XLOOKUP(AD40, [2]Sheet3!B:B,[2]Sheet3!A:A) -> I12 | AF40: Education CFR Income from Contribution | AG40: 99999 | AH40: Default Analysis | AI40: 9999999 | AJ40: Project Default | AK40: 999999 | AL40: Default - Reserved for future use | AM40: A1-E10080-511115-99999-9999999-999999 | AN40: PER13-24-25 | AO40: 0 | AP40: 29545.25 | AQ40: -29545.25 | AR40: CFS2425100199 Spreadsheet A 300000006796056 4054266 N | AS40: CFS2425100199 JV01 - Transfer Journal | AT40: Q4 M1-M12 Actuals Journal - Batch 3 (G-R) | AU40: Q4 | AV40: Spreadsheet | AW40: JV01 - Transfer Journal | AX40: 98 | AY40: M1-M12 Actuals - I12 - E10080 | BJ40: 2025-05-13T15:25:09 | BK40: Rema Tiba | BL40: 2025-05-13 | BM40: rema.tiba@barnet.gov.uk | BN40: 2025-05-13T15:56:34 | BO40: 300000005088675:Q4 M1-M12 Actuals Journal - Batch 3 (G-R):M1-M12 Actuals - I12 - E10080
A41: A1 | B41: A0000A | C41: L1 BARNET System Hierarchy | D41: B0000A | E41: L2 LBB Hierarchy | F41: B2000B | G41: L3 LBB Revenue | H41: B3010C | I41: L4 LBB SchoolDM | J41: B3010D | K41: L5 SCHOOLDM | L41: B3011E | M41: L6 Primary Schools Direct Managem | N41: B3012F | O41: L7 Primary Schools Direct Managem | P41: 10000X | Q41: All Subjective | R41: 50000A | S41: Total Net Expenditure CIES | T41: 50000B | U41: Total Income | V41: 51000C | W41: Government Grants | X41: 51100D | Y41: Specific and Special Grants | Z41: 51110E | AA41: Specific and Special Grants Summary | AB41: E10088 | AC41: St Catherine's RC School | AD41: 511115 | AE41: =_xlfn.XLOOKUP(AD41, [2]Sheet3!B:B,[2]Sheet3!A:A) -> I12 | AF41: Education CFR Income from Contribution | AG41: D1120 | AH41: Schools DM | AI41: 9999999 | AJ41: Project Default | AK41: 999999 | AL41: Default - Reserved for future use | AM41: A1-E10088-511115-D1120-9999999-999999 | AN41: PER13-24-25 | AO41: 8042 | AP41: 0 | AQ41: 8042 | AR41: SCH2425P13-RIA0004 Spreadsheet A 300000006713123 4043209 N | AS41: SCH2425P13-RIA0004 YE01 - Accrual Journal | AT41: BATCH 4 RIAs | AU41: Q4 | AV41: Spreadsheet | AW41: YE01 - Accrual Journal | AX41: 26 | AY41: BATCH 4 RIA | BJ41: 2025-05-12T12:16:00 | BK41: Rema Tiba | BL41: 2025-05-12 | BM41: rema.tiba@barnet.gov.uk | BN41: 2025-05-12T12:25:02 | BO41: 300000005088676:BATCH 4 RIAs:BATCH 4 RIA
A42: A1 | B42: A0000A | C42: L1 BARNET System Hierarchy | D42: B0000A | E42: L2 LBB Hierarchy | F42: B2000B | G42: L3 LBB Revenue | H42: B3010C | I42: L4 LBB SchoolDM | J42: B3010D | K42: L5 SCHOOLDM | L42: B3011E | M42: L6 Primary Schools Direct Managem | N42: B3012F | O42: L7 Primary Schools Direct Managem | P42: 10000X | Q42: All Subjective | R42: 50000A | S42: Total Net Expenditure CIES | T42: 50000B | U42: Total Income | V42: 51000C | W42: Government Grants | X42: 51100D | Y42: Specific and Special Grants | Z42: 51110E | AA42: Specific and Special Grants Summary | AB42: E10110 | AC42: Sacred Heart RC School | AD42: 511115 | AE42: =_xlfn.XLOOKUP(AD42, [2]Sheet3!B:B,[2]Sheet3!A:A) -> I12 | AF42: Education CFR Income from Contribution | AG42: D1120 | AH42: Schools DM | AI42: 9999999 | AJ42: Project Default | AK42: 999999 | AL42: Default - Reserved for future use | AM42: A1-E10110-511115-D1120-9999999-999999 | AN42: PER13-24-25 | AO42: 17739 | AP42: 0 | AQ42: 17739 | AR42: SCH2425P13-RIA0004 Spreadsheet A 300000006713123 4043209 N | AS42: SCH2425P13-RIA0004 YE01 - Accrual Journal | AT42: BATCH 4 RIAs | AU42: Q4 | AV42: Spreadsheet | AW42: YE01 - Accrual Journal | AX42: 37 | AY42: BATCH 4 RIA | BJ42: 2025-05-12T12:16:00 | BK42: Rema Tiba | BL42: 2025-05-12 | BM42: rema.tiba@barnet.gov.uk | BN42: 2025-05-12T12:25:02 | BO42: 300000005088676:BATCH 4 RIAs:BATCH 4 RIA
A43: A1 | B43: A0000A | C43: L1 BARNET System Hierarchy | D43: B0000A | E43: L2 LBB Hierarchy | F43: B2000B | G43: L3 LBB Revenue | H43: B3010C | I43: L4 LBB SchoolDM | J43: B3010D | K43: L5 SCHOOLDM | L43: B3011E | M43: L6 Primary Schools Direct Managem | N43: B3012F | O43: L7 Primary Schools Direct Managem | P43: 10000X | Q43: All Subjective | R43: 50000A | S43: Total Net Expenditure CIES | T43: 50000B | U43: Total Income | V43: 51000C | W43: Government Grants | X43: 51100D | Y43: Specific and Special Grants | Z43: 51110E | AA43: Specific and Special Grants Summary | AB43: E10112 | AC43: Rosh Pinah School | AD43: 511115 | AE43: =_xlfn.XLOOKUP(AD43, [2]Sheet3!B:B,[2]Sheet3!A:A) -> I12 | AF43: Education CFR Income from Contribution | AG43: D1120 | AH43: Schools DM | AI43: 9999999 | AJ43: Project Default | AK43: 999999 | AL43: Default - Reserved for future use | AM43: A1-E10112-511115-D1120-9999999-999999 | AN43: PER13-24-25 | AO43: 9000 | AP43: 0 | AQ43: 9000 | AR43: SCH2425P13-RIA0003 Spreadsheet A 300000006713123 4042384 N | AS43: SCH2425P13-RIA0003 YE01 - Accrual Journal | AT43: BATCH 3 RIAs | AU43: Q4 | AV43: Spreadsheet | AW43: YE01 - Accrual Journal | AX43: 21 | AY43: BATCH 3 RIA | BJ43: 2025-05-12T10:41:40 | BK43: Daniel Phelan | BL43: 2025-05-12 | BM43: daniel.phelan@barnet.gov.uk | BN43: 2025-05-12T10:53:02 | BO43: 300000005088676:BATCH 3 RIAs:BATCH 3 RIA
A44: A1 | B44: A0000A | C44: L1 BARNET System Hierarchy | D44: B0000A | E44: L2 LBB Hierarchy | F44: B2000B | G44: L3 LBB Revenue | H44: B3010C | I44: L4 LBB SchoolDM | J44: B3010D | K44: L5 SCHOOLDM | L44: B3011E | M44: L6 Primary Schools Direct Managem | N44: B3012F | O44: L7 Primary Schools Direct Managem | P44: 10000X | Q44: All Subjective | R44: 50000A | S44: Total Net Expenditure CIES | T44: 50000B | U44: Total Income | V44: 51000C | W44: Government Grants | X44: 51100D | Y44: Specific and Special Grants | Z44: 51110E | AA44: Specific and Special Grants Summary | AB44: E11094 | AC44: Akiva | AD44: 511115 | AE44: =_xlfn.XLOOKUP(AD44, [2]Sheet3!B:B,[2]Sheet3!A:A) -> I12 | AF44: Education CFR Income from Contribution | AG44: D1120 | AH44: Schools DM | AI44: 9999999 | AJ44: Project Default | AK44: 999999 | AL44: Default - Reserved for future use | AM44: A1-E11094-511115-D1120-9999999-999999 | AN44: PER13-24-25 | AO44: 17035 | AP44: 0 | AQ44: 17035 | AR44: SCH2425P13-RIA0002 Spreadsheet A 300000006713123 4018773 N | AS44: SCH2425P13-RIA0002 YE01 - Accrual Journal | AT44: BATCH 2 RIAs | AU44: Q4 | AV44: Spreadsheet | AW44: YE01 - Accrual Journal | AX44: 34 | AY44: BATCH 2 RIA | BJ44: 2025-05-09T15:31:42 | BK44: Daniel Phelan | BL44: 2025-05-09 | BM44: daniel.phelan@barnet.gov.uk | BN44: 2025-05-09T16:31:25 | BO44: 300000005088676:BATCH 2 RIAs:BATCH 2 RIA
A45: A1 | B45: A0000A | C45: L1 BARNET System Hierarchy | D45: B0000A | E45: L2 LBB Hierarchy | F45: B2000B | G45: L3 LBB Revenue | H45: B3010C | I45: L4 LBB SchoolDM | J45: B3010D | K45: L5 SCHOOLDM | L45: B3015E | M45: L6 Special Schools Direct Managem | N45: B3016F | O45: L7 Special Schools Direct Managem | P45: 10000X | Q45: All Subjective | R45: 50000A | S45: Total Net Expenditure CIES | T45: 50000B | U45: Total Income | V45: 51000C | W45: Government Grants | X45: 51100D | Y45: Specific and Special Grants | Z45: 51110E | AA45: Specific and Special Grants Summary | AB45: E10158 | AC45: Oakleigh School | AD45: 511115 | AE45: =_xlfn.XLOOKUP(AD45, [2]Sheet3!B:B,[2]Sheet3!A:A) -> I12 | AF45: Education CFR Income from Contribution | AG45: 99999 | AH45: Default Analysis | AI45: 9999999 | AJ45: Project Default | AK45: 999999 | AL45: Default - Reserved for future use | AM45: A1-E10158-511115-99999-9999999-999999 | AN45: PER13-24-25 | AO45: 0 | AP45: 714.05 | AQ45: -714.05 | AR45: CFS2425100198 Spreadsheet A 300000006713123 4053711 N | AS45: CFS2425100198 JV01 - Transfer Journal | AT45: Q4 M1-M12 Actuals Journal - Batch 1 (Nurs + Sec) | AU45: Q4 | AV45: Spreadsheet | AW45: JV01 - Transfer Journal | AX45: 58 | AY45: M1-M12 Actuals - I12 - E10158 | BJ45: 2025-05-13T14:33:28 | BK45: Daniel Phelan | BL45: 2025-05-13 | BM45: daniel.phelan@barnet.gov.uk | BN45: 2025-05-13T14:55:23 | BO45: 300000005088675:Q4 M1-M12 Actuals Journal - Batch 1 (Nurs + Sec):M1-M12 Actuals - I12 - E10158
A46: A1 | B46: A0000A | C46: L1 BARNET System Hierarchy | D46: B0000A | E46: L2 LBB Hierarchy | F46: B2000B | G46: L3 LBB Revenue | H46: B3010C | I46: L4 LBB SchoolDM | J46: B3010D | K46: L5 SCHOOLDM | L46: B3011E | M46: L6 Primary Schools Direct Managem | N46: B3012F | O46: L7 Primary Schools Direct Managem | P46: 10000X | Q46: All Subjective | R46: 50000A | S46: Total Net Expenditure CIES | T46: 50000B | U46: Total Income | V46: 51000C | W46: Government Grants | X46: 51100D | Y46: Specific and Special Grants | Z46: 51110E | AA46: Specific and Special Grants Summary | AB46: E10044 | AC46: Barnfield School | AD46: 511116 | AE46: =_xlfn.XLOOKUP(AD46, [2]Sheet3!B:B,[2]Sheet3!A:A) -> I18d | AF46: Income from Other Education Additional Grants I18d | AG46: 99999 | AH46: Default Analysis | AI46: 9999999 | AJ46: Project Default | AK46: 999999 | AL46: Default - Reserved for future use | AM46: A1-E10044-511116-99999-9999999-999999 | AN46: PER13-24-25 | AO46: 0 | AP46: 85941 | AQ46: -85941 | AR46: CFS2425100201 Spreadsheet A 300000006713123 4054487 N | AS46: CFS2425100201 JV01 - Transfer Journal | AT46: Q4 M1-M12 Actuals Journal - Batch 2 (A-F) | AU46: Q4 | AV46: Spreadsheet | AW46: JV01 - Transfer Journal | AX46: 119 | AY46: M1-M12 Actuals - I18d - E10044 | BJ46: 2025-05-13T15:52:01 | BK46: Daniel Phelan | BL46: 2025-05-13 | BM46: daniel.phelan@barnet.gov.uk | BN46: 2025-05-13T15:56:37 | BO46: 300000005088675:Q4 M1-M12 Actuals Journal - Batch 2 (A-F):M1-M12 Actuals - I18d - E10044
A47: A1 | B47: A0000A | C47: L1 BARNET System Hierarchy | D47: B0000A | E47: L2 LBB Hierarchy | F47: B2000B | G47: L3 LBB Revenue | H47: B3010C | I47: L4 LBB SchoolDM | J47: B3010D | K47: L5 SCHOOLDM | L47: B3011E | M47: L6 Primary Schools Direct Managem | N47: B3012F | O47: L7 Primary Schools Direct Managem | P47: 10000X | Q47: All Subjective | R47: 50000A | S47: Total Net Expenditure CIES | T47: 50000B | U47: Total Income | V47: 51000C | W47: Government Grants | X47: 51100D | Y47: Specific and Special Grants | Z47: 51110E | AA47: Specific and Special Grants Summary | AB47: E10066 | AC47: Frith Manor School | AD47: 511116 | AE47: =_xlfn.XLOOKUP(AD47, [2]Sheet3!B:B,[2]Sheet3!A:A) -> I18d | AF47: Income from Other Education Additional Grants I18d | AG47: 99999 | AH47: Default Analysis | AI47: 9999999 | AJ47: Project Default | AK47: 999999 | AL47: Default - Reserved for future use | AM47: A1-E10066-511116-99999-9999999-999999 | AN47: PER13-24-25 | AO47: 0 | AP47: 95221 | AQ47: -95221 | AR47: CFS2425100201 Spreadsheet A 300000006713123 4054487 N | AS47: CFS2425100201 JV01 - Transfer Journal | AT47: Q4 M1-M12 Actuals Journal - Batch 2 (A-F) | AU47: Q4 | AV47: Spreadsheet | AW47: JV01 - Transfer Journal | AX47: 131 | AY47: M1-M12 Actuals - I18d - E10066 | BJ47: 2025-05-13T15:52:01 | BK47: Daniel Phelan | BL47: 2025-05-13 | BM47: daniel.phelan@barnet.gov.uk | BN47: 2025-05-13T15:56:37 | BO47: 300000005088675:Q4 M1-M12 Actuals Journal - Batch 2 (A-F):M1-M12 Actuals - I18d - E10066
A48: A1 | B48: A0000A | C48: L1 BARNET System Hierarchy | D48: B0000A | E48: L2 LBB Hierarchy | F48: B2000B | G48: L3 LBB Revenue | H48: B3010C | I48: L4 LBB SchoolDM | J48: B3010D | K48: L5 SCHOOLDM | L48: B3011E | M48: L6 Primary Schools Direct Managem | N48: B3012F | O48: L7 Primary Schools Direct Managem | P48: 10000X | Q48: All Subjective | R48: 50000A | S48: Total Net Expenditure CIES | T48: 50000B | U48: Total Income | V48: 51000C | W48: Government Grants | X48: 51100D | Y48: Specific and Special Grants | Z48: 51110E | AA48: Specific and Special Grants Summary | AB48: E10074 | AC48: Livingstone School | AD48: 511116 | AE48: =_xlfn.XLOOKUP(AD48, [2]Sheet3!B:B,[2]Sheet3!A:A) -> I18d | AF48: Income from Other Education Additional Grants I18d | AG48: D1120 | AH48: Schools DM | AI48: 9999999 | AJ48: Project Default | AK48: 999999 | AL48: Default - Reserved for future use | AM48: A1-E10074-511116-D1120-9999999-999999 | AN48: PER13-24-25 | AO48: 9451.72 | AP48: 0 | AQ48: 9451.72 | AR48: SCH2425P13-RIA0003 Spreadsheet A 300000006713123 4042384 N | AS48: SCH2425P13-RIA0003 YE01 - Accrual Journal | AT48: BATCH 3 RIAs | AU48: Q4 | AV48: Spreadsheet | AW48: YE01 - Accrual Journal | AX48: 26 | AY48: BATCH 3 RIA | BJ48: 2025-05-12T10:41:40 | BK48: Daniel Phelan | BL48: 2025-05-12 | BM48: daniel.phelan@barnet.gov.uk | BN48: 2025-05-12T10:53:02 | BO48: 300000005088676:BATCH 3 RIAs:BATCH 3 RIA
A49: A1 | B49: A0000A | C49: L1 BARNET System Hierarchy | D49: B0000A | E49: L2 LBB Hierarchy | F49: B2000B | G49: L3 LBB Revenue | H49: B3010C | I49: L4 LBB SchoolDM | J49: B3010D | K49: L5 SCHOOLDM | L49: B3011E | M49: L6 Primary Schools Direct Managem | N49: B3012F | O49: L7 Primary Schools Direct Managem | P49: 10000X | Q49: All Subjective | R49: 50000A | S49: Total Net Expenditure CIES | T49: 50000B | U49: Total Income | V49: 51000C | W49: Government Grants | X49: 51100D | Y49: Specific and Special Grants | Z49: 51110E | AA49: Specific and Special Grants Summary | AB49: E10085 | AC49: Our Lady Of Lourdes | AD49: 511116 | AE49: =_xlfn.XLOOKUP(AD49, [2]Sheet3!B:B,[2]Sheet3!A:A) -> I18d | AF49: Income from Other Education Additional Grants I18d | AG49: 99999 | AH49: Default Analysis | AI49: 9999999 | AJ49: Project Default | AK49: 999999 | AL49: Default - Reserved for future use | AM49: A1-E10085-511116-99999-9999999-999999 | AN49: PER13-24-25 | AO49: 0 | AP49: 45007 | AQ49: -45007 | AR49: CFS2425100199 Spreadsheet A 300000006796056 4054266 N | AS49: CFS2425100199 JV01 - Transfer Journal | AT49: Q4 M1-M12 Actuals Journal - Batch 3 (G-R) | AU49: Q4 | AV49: Spreadsheet | AW49: JV01 - Transfer Journal | AX49: 124 | AY49: M1-M12 Actuals - I18d - E10085 | BJ49: 2025-05-13T15:25:09 | BK49: Rema Tiba | BL49: 2025-05-13 | BM49: rema.tiba@barnet.gov.uk | BN49: 2025-05-13T15:56:34 | BO49: 300000005088675:Q4 M1-M12 Actuals Journal - Batch 3 (G-R):M1-M12 Actuals - I18d - E10085
A50: A1 | B50: A0000A | C50: L1 BARNET System Hierarchy | D50: B0000A | E50: L2 LBB Hierarchy | F50: B2000B | G50: L3 LBB Revenue | H50: B3010C | I50: L4 LBB SchoolDM | J50: B3010D | K50: L5 SCHOOLDM | L50: B3011E | M50: L6 Primary Schools Direct Managem | N50: B3012F | O50: L7 Primary Schools Direct Managem | P50: 10000X | Q50: All Subjective | R50: 50000A | S50: Total Net Expenditure CIES | T50: 50000B | U50: Total Income | V50: 51000C | W50: Government Grants | X50: 51100D | Y50: Specific and Special Grants | Z50: 51110E | AA50: Specific and Special Grants Summary | AB50: E10086 | AC50: Queenswell Junior School | AD50: 511116 | AE50: =_xlfn.XLOOKUP(AD50, [2]Sheet3!B:B,[2]Sheet3!A:A) -> I18d | AF50: Income from Other Education Additional Grants I18d | AG50: 99999 | AH50: Default Analysis | AI50: 9999999 | AJ50: Project Default | AK50: 999999 | AL50: Default - Reserved for future use | AM50: A1-E10086-511116-99999-9999999-999999 | AN50: PER13-24-25 | AO50: 0 | AP50: 93540 | AQ50: -93540 | AR50: CFS2425100199 Spreadsheet A 300000006796056 4054266 N | AS50: CFS2425100199 JV01 - Transfer Journal | AT50: Q4 M1-M12 Actuals Journal - Batch 3 (G-R) | AU50: Q4 | AV50: Spreadsheet | AW50: JV01 - Transfer Journal | AX50: 125 | AY50: M1-M12 Actuals - I18d - E10086 | BJ50: 2025-05-13T15:25:09 | BK50: Rema Tiba | BL50: 2025-05-13 | BM50: rema.tiba@barnet.gov.uk | BN50: 2025-05-13T15:56:34 | BO50: 300000005088675:Q4 M1-M12 Actuals Journal - Batch 3 (G-R):M1-M12 Actuals - I18d - E10086
A51: A1 | B51: A0000A | C51: L1 BARNET System Hierarchy | D51: B0000A | E51: L2 LBB Hierarchy | F51: B2000B | G51: L3 LBB Revenue | H51: B3010C | I51: L4 LBB SchoolDM | J51: B3010D | K51: L5 SCHOOLDM | L51: B3011E | M51: L6 Primary Schools Direct Managem | N51: B3012F | O51: L7 Primary Schools Direct Managem | P51: 10000X | Q51: All Subjective | R51: 50000A | S51: Total Net Expenditure CIES | T51: 50000B | U51: Total Income | V51: 51000C | W51: Government Grants | X51: 51100D | Y51: Specific and Special Grants | Z51: 51110E | AA51: Specific and Special Grants Summary | AB51: E10087 | AC51: St Agnes' RC School | AD51: 511116 | AE51: =_xlfn.XLOOKUP(AD51, [2]Sheet3!B:B,[2]Sheet3!A:A) -> I18d | AF51: Income from Other Education Additional Grants I18d | AG51: D1120 | AH51: Schools DM | AI51: 9999999 | AJ51: Project Default | AK51: 999999 | AL51: Default - Reserved for future use | AM51: A1-E10087-511116-D1120-9999999-999999 | AN51: PER13-24-25 | AO51: 23615.25 | AP51: 0 | AQ51: 23615.25 | AR51: SCH2425P13-RIA0004 Spreadsheet A 300000006713123 4043209 N | AS51: SCH2425P13-RIA0004 YE01 - Accrual Journal | AT51: BATCH 4 RIAs | AU51: Q4 | AV51: Spreadsheet | AW51: YE01 - Accrual Journal | AX51: 39 | AY51: BATCH 4 RIA | BJ51: 2025-05-12T12:16:00 | BK51: Rema Tiba | BL51: 2025-05-12 | BM51: rema.tiba@barnet.gov.uk | BN51: 2025-05-12T12:25:02 | BO51: 300000005088676:BATCH 4 RIAs:BATCH 4 RIA
A52: A1 | B52: A0000A | C52: L1 BARNET System Hierarchy | D52: B0000A | E52: L2 LBB Hierarchy | F52: B2000B | G52: L3 LBB Revenue | H52: B3010C | I52: L4 LBB SchoolDM | J52: B3010D | K52: L5 SCHOOLDM | L52: B3011E | M52: L6 Primary Schools Direct Managem | N52: B3012F | O52: L7 Primary Schools Direct Managem | P52: 10000X | Q52: All Subjective | R52: 50000A | S52: Total Net Expenditure CIES | T52: 50000B | U52: Total Income | V52: 51000C | W52: Government Grants | X52: 51100D | Y52: Specific and Special Grants | Z52: 51110E | AA52: Specific and Special Grants Summary | AB52: E10099 | AC52: St Andrew's CE School | AD52: 511116 | AE52: =_xlfn.XLOOKUP(AD52, [2]Sheet3!B:B,[2]Sheet3!A:A) -> I18d | AF52: Income from Other Education Additional Grants I18d | AG52: 99999 | AH52: Default Analysis | AI52: 9999999 | AJ52: Project Default | AK52: 999999 | AL52: Default - Reserved for future use | AM52: A1-E10099-511116-99999-9999999-999999 | AN52: PER13-24-25 | AO52: 0 | AP52: 51443.38 | AQ52: -51443.38 | AR52: CFS2425100200 Spreadsheet A 300000006796056 4054311 N | AS52: CFS2425100200 JV01 - Transfer Journal | AT52: Q4 M1-M12 Actuals Journal - Batch 4 (S-W) | AU52: Q4 | AV52: Spreadsheet | AW52: JV01 - Transfer Journal | AX52: 107 | AY52: M1-M12 Actuals - I18d - E10099 | BJ52: 2025-05-13T15:28:39 | BK52: Rema Tiba | BL52: 2025-05-13 | BM52: rema.tiba@barnet.gov.uk | BN52: 2025-05-13T15:56:40 | BO52: 300000005088675:Q4 M1-M12 Actuals Journal - Batch 4 (S-W):M1-M12 Actuals - I18d - E10099
A53: A1 | B53: A0000A | C53: L1 BARNET System Hierarchy | D53: B0000A | E53: L2 LBB Hierarchy | F53: B2000B | G53: L3 LBB Revenue | H53: B3010C | I53: L4 LBB SchoolDM | J53: B3010D | K53: L5 SCHOOLDM | L53: B3011E | M53: L6 Primary Schools Direct Managem | N53: B3012F | O53: L7 Primary Schools Direct Managem | P53: 10000X | Q53: All Subjective | R53: 50000A | S53: Total Net Expenditure CIES | T53: 50000B | U53: Total Income | V53: 51000C | W53: Government Grants | X53: 51100D | Y53: Specific and Special Grants | Z53: 51110E | AA53: Specific and Special Grants Summary | AB53: E10109 | AC53: Woodridge School | AD53: 511116 | AE53: =_xlfn.XLOOKUP(AD53, [2]Sheet3!B:B,[2]Sheet3!A:A) -> I18d | AF53: Income from Other Education Additional Grants I18d | AG53: 99999 | AH53: Default Analysis | AI53: 9999999 | AJ53: Project Default | AK53: 999999 | AL53: Default - Reserved for future use | AM53: A1-E10109-511116-99999-9999999-999999 | AN53: PER13-24-25 | AO53: 0 | AP53: 53741 | AQ53: -53741 | AR53: CFS2425100200 Spreadsheet A 300000006796056 4054311 N | AS53: CFS2425100200 JV01 - Transfer Journal | AT53: Q4 M1-M12 Actuals Journal - Batch 4 (S-W) | AU53: Q4 | AV53: Spreadsheet | AW53: JV01 - Transfer Journal | AX53: 114 | AY53: M1-M12 Actuals - I18d - E10109 | BJ53: 2025-05-13T15:28:39 | BK53: Rema Tiba | BL53: 2025-05-13 | BM53: rema.tiba@barnet.gov.uk | BN53: 2025-05-13T15:56:40 | BO53: 300000005088675:Q4 M1-M12 Actuals Journal - Batch 4 (S-W):M1-M12 Actuals - I18d - E10109
A54: A1 | B54: A0000A | C54: L1 BARNET System Hierarchy | D54: B0000A | E54: L2 LBB Hierarchy | F54: B2000B | G54: L3 LBB Revenue | H54: B3010C | I54: L4 LBB SchoolDM | J54: B3010D | K54: L5 SCHOOLDM | L54: B3011E | M54: L6 Primary Schools Direct Managem | N54: B3012F | O54: L7 Primary Schools Direct Managem | P54: 10000X | Q54: All Subjective | R54: 50000A | S54: Total Net Expenditure CIES | T54: 50000B | U54: Total Income | V54: 51000C | W54: Government Grants | X54: 51100D | Y54: Specific and Special Grants | Z54: 51110E | AA54: Specific and Special Grants Summary | AB54: E10116 | AC54: St John's CE N20 | AD54: 511116 | AE54: =_xlfn.XLOOKUP(AD54, [2]Sheet3!B:B,[2]Sheet3!A:A) -> I18d | AF54: Income from Other Education Additional Grants I18d | AG54: 99999 | AH54: Default Analysis | AI54: 9999999 | AJ54: Project Default | AK54: 999999 | AL54: Default - Reserved for future use | AM54: A1-E10116-511116-99999-9999999-999999 | AN54: PER13-24-25 | AO54: 0 | AP54: 53947 | AQ54: -53947 | AR54: CFS2425100200 Spreadsheet A 300000006796056 4054311 N | AS54: CFS2425100200 JV01 - Transfer Journal | AT54: Q4 M1-M12 Actuals Journal - Batch 4 (S-W) | AU54: Q4 | AV54: Spreadsheet | AW54: JV01 - Transfer Journal | AX54: 117 | AY54: M1-M12 Actuals - I18d - E10116 | BJ54: 2025-05-13T15:28:39 | BK54: Rema Tiba | BL54: 2025-05-13 | BM54: rema.tiba@barnet.gov.uk | BN54: 2025-05-13T15:56:40 | BO54: 300000005088675:Q4 M1-M12 Actuals Journal - Batch 4 (S-W):M1-M12 Actuals - I18d - E10116
A55: A1 | B55: A0000A | C55: L1 BARNET System Hierarchy | D55: B0000A | E55: L2 LBB Hierarchy | F55: B2000B | G55: L3 LBB Revenue | H55: B3010C | I55: L4 LBB SchoolDM | J55: B3010D | K55: L5 SCHOOLDM | L55: B3011E | M55: L6 Primary Schools Direct Managem | N55: B3012F | O55: L7 Primary Schools Direct Managem | P55: 10000X | Q55: All Subjective | R55: 50000A | S55: Total Net Expenditure CIES | T55: 50000B | U55: Total Income | V55: 51000C | W55: Government Grants | X55: 51100D | Y55: Specific and Special Grants | Z55: 51110E | AA55: Specific and Special Grants Summary | AB55: E10698 | AC55: St Marys and St Johns Primary | AD55: 511116 | AE55: =_xlfn.XLOOKUP(AD55, [2]Sheet3!B:B,[2]Sheet3!A:A) -> I18d | AF55: Income from Other Education Additional Grants I18d | AG55: 99999 | AH55: Default Analysis | AI55: 9999999 | AJ55: Project Default | AK55: 999999 | AL55: Default - Reserved for future use | AM55: A1-E10698-511116-99999-9999999-999999 | AN55: PER13-24-25 | AO55: 0 | AP55: 149456.85 | AQ55: -149456.85 | AR55: CFS2425100203 Spreadsheet A 300000006713123 4075206 N | AS55: CFS2425100203 JV01 - Transfer Journal | AT55: Q4 M1-M12 Actuals Journal - SMSJ | AU55: Q4 | AV55: Spreadsheet | AW55: JV01 - Transfer Journal | AX55: 5 | AY55: M1-M12 Actuals - I18d - E10698 | BJ55: 2025-05-15T14:34:34 | BK55: Daniel Phelan | BL55: 2025-05-16 | BM55: daniel.phelan@barnet.gov.uk | BN55: 2025-05-16T13:28:57 | BO55: 300000005088675:Q4 M1-M12 Actuals Journal - SMSJ:M1-M12 Actuals - I18d - E10698
A56: A1 | B56: A0000A | C56: L1 BARNET System Hierarchy | D56: B0000A | E56: L2 LBB Hierarchy | F56: B2000B | G56: L3 LBB Revenue | H56: B3010C | I56: L4 LBB SchoolDM | J56: B3010D | K56: L5 SCHOOLDM | L56: B3011E | M56: L6 Primary Schools Direct Managem | N56: B3012F | O56: L7 Primary Schools Direct Managem | P56: 10000X | Q56: All Subjective | R56: 50000A | S56: Total Net Expenditure CIES | T56: 50000B | U56: Total Income | V56: 51000C | W56: Government Grants | X56: 51100D | Y56: Specific and Special Grants | Z56: 51110E | AA56: Specific and Special Grants Summary | AB56: E11093 | AC56: Martin Primary | AD56: 511116 | AE56: =_xlfn.XLOOKUP(AD56, [2]Sheet3!B:B,[2]Sheet3!A:A) -> I18d | AF56: Income from Other Education Additional Grants I18d | AG56: 99999 | AH56: Default Analysis | AI56: 9999999 | AJ56: Project Default | AK56: 999999 | AL56: Default - Reserved for future use | AM56: A1-E11093-511116-99999-9999999-999999 | AN56: PER13-24-25 | AO56: 0 | AP56: 100489 | AQ56: -100489 | AR56: CFS2425100199 Spreadsheet A 300000006796056 4054266 N | AS56: CFS2425100199 JV01 - Transfer Journal | AT56: Q4 M1-M12 Actuals Journal - Batch 3 (G-R) | AU56: Q4 | AV56: Spreadsheet | AW56: JV01 - Transfer Journal | AX56: 131 | AY56: M1-M12 Actuals - I18d - E11093 | BJ56: 2025-05-13T15:25:09 | BK56: Rema Tiba | BL56: 2025-05-13 | BM56: rema.tiba@barnet.gov.uk | BN56: 2025-05-13T15:56:34 | BO56: 300000005088675:Q4 M1-M12 Actuals Journal - Batch 3 (G-R):M1-M12 Actuals - I18d - E11093
A57: A1 | B57: A0000A | C57: L1 BARNET System Hierarchy | D57: B0000A | E57: L2 LBB Hierarchy | F57: B2000B | G57: L3 LBB Revenue | H57: B3010C | I57: L4 LBB SchoolDM | J57: B3010D | K57: L5 SCHOOLDM | L57: B3015E | M57: L6 Special Schools Direct Managem | N57: B3016F | O57: L7 Special Schools Direct Managem | P57: 10000X | Q57: All Subjective | R57: 50000A | S57: Total Net Expenditure CIES | T57: 50000B | U57: Total Income | V57: 51000C | W57: Government Grants | X57: 51100D | Y57: Specific and Special Grants | Z57: 51110E | AA57: Specific and Special Grants Summary | AB57: E10158 | AC57: Oakleigh School | AD57: 511116 | AE57: =_xlfn.XLOOKUP(AD57, [2]Sheet3!B:B,[2]Sheet3!A:A) -> I18d | AF57: Income from Other Education Additional Grants I18d | AG57: 99999 | AH57: Default Analysis | AI57: 9999999 | AJ57: Project Default | AK57: 999999 | AL57: Default - Reserved for future use | AM57: A1-E10158-511116-99999-9999999-999999 | AN57: PER13-24-25 | AO57: 0 | AP57: 29315 | AQ57: -29315 | AR57: CFS2425100198 Spreadsheet A 300000006713123 4053711 N | AS57: CFS2425100198 JV01 - Transfer Journal | AT57: Q4 M1-M12 Actuals Journal - Batch 1 (Nurs + Sec) | AU57: Q4 | AV57: Spreadsheet | AW57: JV01 - Transfer Journal | AX57: 64 | AY57: M1-M12 Actuals - I18d - E10158 | BJ57: 2025-05-13T14:33:28 | BK57: Daniel Phelan | BL57: 2025-05-13 | BM57: daniel.phelan@barnet.gov.uk | BN57: 2025-05-13T14:55:23 | BO57: 300000005088675:Q4 M1-M12 Actuals Journal - Batch 1 (Nurs + Sec):M1-M12 Actuals - I18d - E10158
A58: A1 | B58: A0000A | C58: L1 BARNET System Hierarchy | D58: B0000A | E58: L2 LBB Hierarchy | F58: B2000B | G58: L3 LBB Revenue | H58: B3010C | I58: L4 LBB SchoolDM | J58: B3010D | K58: L5 SCHOOLDM | L58: B3017E | M58: L6 PRUs Direct Management | N58: B3018F | O58: L7 PRUs Direct Management | P58: 10000X | Q58: All Subjective | R58: 50000A | S58: Total Net Expenditure CIES | T58: 50000B | U58: Total Income | V58: 51000C | W58: Government Grants | X58: 51100D | Y58: Specific and Special Grants | Z58: 51110E | AA58: Specific and Special Grants Summary | AB58: E10188 | AC58: Pavilion StudyCt PRU | AD58: 511116 | AE58: =_xlfn.XLOOKUP(AD58, [2]Sheet3!B:B,[2]Sheet3!A:A) -> I18d | AF58: Income from Other Education Additional Grants I18d | AG58: 99999 | AH58: Default Analysis | AI58: 9999999 | AJ58: Project Default | AK58: 999999 | AL58: Default - Reserved for future use | AM58: A1-E10188-511116-99999-9999999-999999 | AN58: PER13-24-25 | AO58: 0 | AP58: 10489.56 | AQ58: -10489.56 | AR58: CFS2425100198 Spreadsheet A 300000006713123 4053711 N | AS58: CFS2425100198 JV01 - Transfer Journal | AT58: Q4 M1-M12 Actuals Journal - Batch 1 (Nurs + Sec) | AU58: Q4 | AV58: Spreadsheet | AW58: JV01 - Transfer Journal | AX58: 65 | AY58: M1-M12 Actuals - I18d - E10188 | BJ58: 2025-05-13T14:33:28 | BK58: Daniel Phelan | BL58: 2025-05-13 | BM58: daniel.phelan@barnet.gov.uk | BN58: 2025-05-13T14:55:23 | BO58: 300000005088675:Q4 M1-M12 Actuals Journal - Batch 1 (Nurs + Sec):M1-M12 Actuals - I18d - E10188
A59: A1 | B59: A0000A | C59: L1 BARNET System Hierarchy | D59: B0000A | E59: L2 LBB Hierarchy | F59: B2000B | G59: L3 LBB Revenue | H59: B3010C | I59: L4 LBB SchoolDM | J59: B3010D | K59: L5 SCHOOLDM | L59: B3011E | M59: L6 Primary Schools Direct Managem | N59: B3012F | O59: L7 Primary Schools Direct Managem | P59: 10000X | Q59: All Subjective | R59: 50000A | S59: Total Net Expenditure CIES | T59: 50000B | U59: Total Income | V59: 51000C | W59: Government Grants | X59: 51100D | Y59: Specific and Special Grants | Z59: 51110E | AA59: Specific and Special Grants Summary | AB59: E10079 | AC59: Monkfrith School | AD59: 511125 | AE59: =_xlfn.XLOOKUP(AD59, [2]Sheet3!B:B,[2]Sheet3!A:A) -> I18a | AF59: Coronavirus Job Retention Scheme I18a | AG59: 99999 | AH59: Default Analysis | AI59: 9999999 | AJ59: Project Default | AK59: 999999 | AL59: Default - Reserved for future use | AM59: A1-E10079-511125-99999-9999999-999999 | AN59: PER13-24-25 | AO59: 0 | AP59: 72607 | AQ59: -72607 | AR59: CFS2425100199 Spreadsheet A 300000006796056 4054266 N | AS59: CFS2425100199 JV01 - Transfer Journal | AT59: Q4 M1-M12 Actuals Journal - Batch 3 (G-R) | AU59: Q4 | AV59: Spreadsheet | AW59: JV01 - Transfer Journal | AX59: 132 | AY59: M1-M12 Actuals - I18a - E10079 | BJ59: 2025-05-13T15:25:09 | BK59: Rema Tiba | BL59: 2025-05-13 | BM59: rema.tiba@barnet.gov.uk | BN59: 2025-05-13T15:56:34 | BO59: 300000005088675:Q4 M1-M12 Actuals Journal - Batch 3 (G-R):M1-M12 Actuals - I18a - E10079
A60: A1 | B60: A0000A | C60: L1 BARNET System Hierarchy | D60: B0000A | E60: L2 LBB Hierarchy | F60: B2000B | G60: L3 LBB Revenue | H60: B3010C | I60: L4 LBB SchoolDM | J60: B3010D | K60: L5 SCHOOLDM | L60: B3013E | M60: L6 Secondary Schools Direct Manag | N60: B3014F | O60: L7 Secondary Schools Direct Manag | P60: 10000X | Q60: All Subjective | R60: 50000A | S60: Total Net Expenditure CIES | T60: 50000B | U60: Total Income | V60: 51000C | W60: Government Grants | X60: 51100D | Y60: Specific and Special Grants | Z60: 51110E | AA60: Specific and Special Grants Summary | AB60: E11174 | AC60: JCOSS | AD60: 511125 | AE60: =_xlfn.XLOOKUP(AD60, [2]Sheet3!B:B,[2]Sheet3!A:A) -> I18a | AF60: Coronavirus Job Retention Scheme I18a | AG60: 99999 | AH60: Default Analysis | AI60: 9999999 | AJ60: Project Default | AK60: 999999 | AL60: Default - Reserved for future use | AM60: A1-E11174-511125-99999-9999999-999999 | AN60: PER13-24-25 | AO60: 0 | AP60: 18228.25 | AQ60: -18228.25 | AR60: CFS2425100198 Spreadsheet A 300000006713123 4053711 N | AS60: CFS2425100198 JV01 - Transfer Journal | AT60: Q4 M1-M12 Actuals Journal - Batch 1 (Nurs + Sec) | AU60: Q4 | AV60: Spreadsheet | AW60: JV01 - Transfer Journal | AX60: 67 | AY60: M1-M12 Actuals - I18a - E11174 | BJ60: 2025-05-13T14:33:28 | BK60: Daniel Phelan | BL60: 2025-05-13 | BM60: daniel.phelan@barnet.gov.uk | BN60: 2025-05-13T14:55:23 | BO60: 300000005088675:Q4 M1-M12 Actuals Journal - Batch 1 (Nurs + Sec):M1-M12 Actuals - I18a - E11174
A61: A1 | B61: A0000A | C61: L1 BARNET System Hierarchy | D61: B0000A | E61: L2 LBB Hierarchy | F61: B2000B | G61: L3 LBB Revenue | H61: B3010C | I61: L4 LBB SchoolDM | J61: B3010D | K61: L5 SCHOOLDM | L61: B3011E | M61: L6 Primary Schools Direct Managem | N61: B3012F | O61: L7 Primary Schools Direct Managem | P61: 10000X | Q61: All Subjective | R61: 50000A | S61: Total Net Expenditure CIES | T61: 50000B | U61: Total Income | V61: 51000C | W61: Government Grants | X61: 51100D | Y61: Specific and Special Grants | Z61: 51110E | AA61: Specific and Special Grants Summary | AB61: E10059 | AC61: Deansbrook Infant School | AD61: 511127 | AE61: =_xlfn.XLOOKUP(AD61, [2]Sheet3!B:B,[2]Sheet3!A:A) -> I18c | AF61: COVID-19 catch-up package I18c | AG61: 99999 | AH61: Default Analysis | AI61: 9999999 | AJ61: Project Default | AK61: 999999 | AL61: Default - Reserved for future use | AM61: A1-E10059-511127-99999-9999999-999999 | AN61: PER13-24-25 | AO61: 0 | AP61: 1871.88 | AQ61: -1871.88 | AR61: CFS2425100201 Spreadsheet A 300000006713123 4054487 N | AS61: CFS2425100201 JV01 - Transfer Journal | AT61: Q4 M1-M12 Actuals Journal - Batch 2 (A-F) | AU61: Q4 | AV61: Spreadsheet | AW61: JV01 - Transfer Journal | AX61: 152 | AY61: M1-M12 Actuals - I18c - E10059 | BJ61: 2025-05-13T15:52:01 | BK61: Daniel Phelan | BL61: 2025-05-13 | BM61: daniel.phelan@barnet.gov.uk | BN61: 2025-05-13T15:56:37 | BO61: 300000005088675:Q4 M1-M12 Actuals Journal - Batch 2 (A-F):M1-M12 Actuals - I18c - E10059
A62: A1 | B62: A0000A | C62: L1 BARNET System Hierarchy | D62: B0000A | E62: L2 LBB Hierarchy | F62: B2000B | G62: L3 LBB Revenue | H62: B3010C | I62: L4 LBB SchoolDM | J62: B3010D | K62: L5 SCHOOLDM | L62: B3011E | M62: L6 Primary Schools Direct Managem | N62: B3012F | O62: L7 Primary Schools Direct Managem | P62: 10000X | Q62: All Subjective | R62: 50000A | S62: Total Net Expenditure CIES | T62: 50000B | U62: Total Income | V62: 51000C | W62: Government Grants | X62: 51100D | Y62: Specific and Special Grants | Z62: 51110E | AA62: Specific and Special Grants Summary | AB62: E10069 | AC62: Goldbeaters School | AD62: 511127 | AE62: =_xlfn.XLOOKUP(AD62, [2]Sheet3!B:B,[2]Sheet3!A:A) -> I18c | AF62: COVID-19 catch-up package I18c | AG62: 99999 | AH62: Default Analysis | AI62: 9999999 | AJ62: Project Default | AK62: 999999 | AL62: Default - Reserved for future use | AM62: A1-E10069-511127-99999-9999999-999999 | AN62: PER13-24-25 | AO62: 0 | AP62: 16088.75 | AQ62: -16088.75 | AR62: CFS2425100199 Spreadsheet A 300000006796056 4054266 N | AS62: CFS2425100199 JV01 - Transfer Journal | AT62: Q4 M1-M12 Actuals Journal - Batch 3 (G-R) | AU62: Q4 | AV62: Spreadsheet | AW62: JV01 - Transfer Journal | AX62: 138 | AY62: M1-M12 Actuals - I18c - E10069 | BJ62: 2025-05-13T15:25:09 | BK62: Rema Tiba | BL62: 2025-05-13 | BM62: rema.tiba@barnet.gov.uk | BN62: 2025-05-13T15:56:34 | BO62: 300000005088675:Q4 M1-M12 Actuals Journal - Batch 3 (G-R):M1-M12 Actuals - I18c - E10069
A63: A1 | B63: A0000A | C63: L1 BARNET System Hierarchy | D63: B0000A | E63: L2 LBB Hierarchy | F63: B2000B | G63: L3 LBB Revenue | H63: B3010C | I63: L4 LBB SchoolDM | J63: B3010D | K63: L5 SCHOOLDM | L63: B3011E | M63: L6 Primary Schools Direct Managem | N63: B3012F | O63: L7 Primary Schools Direct Managem | P63: 10000X | Q63: All Subjective | R63: 50000A | S63: Total Net Expenditure CIES | T63: 50000B | U63: Total Income | V63: 51000C | W63: Government Grants | X63: 51100D | Y63: Specific and Special Grants | Z63: 51110E | AA63: Specific and Special Grants Summary | AB63: E10081 | AC63: Moss Hall Infant School | AD63: 511127 | AE63: =_xlfn.XLOOKUP(AD63, [2]Sheet3!B:B,[2]Sheet3!A:A) -> I18c | AF63: COVID-19 catch-up package I18c | AG63: 99999 | AH63: Default Analysis | AI63: 9999999 | AJ63: Project Default | AK63: 999999 | AL63: Default - Reserved for future use | AM63: A1-E10081-511127-99999-9999999-999999 | AN63: PER13-24-25 | AO63: 0 | AP63: 4545 | AQ63: -4545 | AR63: CFS2425100199 Spreadsheet A 300000006796056 4054266 N | AS63: CFS2425100199 JV01 - Transfer Journal | AT63: Q4 M1-M12 Actuals Journal - Batch 3 (G-R) | AU63: Q4 | AV63: Spreadsheet | AW63: JV01 - Transfer Journal | AX63: 145 | AY63: M1-M12 Actuals - I18c - E10081 | BJ63: 2025-05-13T15:25:09 | BK63: Rema Tiba | BL63: 2025-05-13 | BM63: rema.tiba@barnet.gov.uk | BN63: 2025-05-13T15:56:34 | BO63: 300000005088675:Q4 M1-M12 Actuals Journal - Batch 3 (G-R):M1-M12 Actuals - I18c - E10081
A64: A1 | B64: A0000A | C64: L1 BARNET System Hierarchy | D64: B0000A | E64: L2 LBB Hierarchy | F64: B2000B | G64: L3 LBB Revenue | H64: B3010C | I64: L4 LBB SchoolDM | J64: B3010D | K64: L5 SCHOOLDM | L64: B3011E | M64: L6 Primary Schools Direct Managem | N64: B3012F | O64: L7 Primary Schools Direct Managem | P64: 10000X | Q64: All Subjective | R64: 50000A | S64: Total Net Expenditure CIES | T64: 50000B | U64: Total Income | V64: 51000C | W64: Government Grants | X64: 51100D | Y64: Specific and Special Grants | Z64: 51110E | AA64: Specific and Special Grants Summary | AB64: E10092 | AC64: St Mary's CE N3 | AD64: 511127 | AE64: =_xlfn.XLOOKUP(AD64, [2]Sheet3!B:B,[2]Sheet3!A:A) -> I18c | AF64: COVID-19 catch-up package I18c | AG64: 99999 | AH64: Default Analysis | AI64: 9999999 | AJ64: Project Default | AK64: 999999 | AL64: Default - Reserved for future use | AM64: A1-E10092-511127-99999-9999999-999999 | AN64: PER13-24-25 | AO64: 0 | AP64: 6790 | AQ64: -6790 | AR64: CFS2425100200 Spreadsheet A 300000006796056 4054311 N | AS64: CFS2425100200 JV01 - Transfer Journal | AT64: Q4 M1-M12 Actuals Journal - Batch 4 (S-W) | AU64: Q4 | AV64: Spreadsheet | AW64: JV01 - Transfer Journal | AX64: 122 | AY64: M1-M12 Actuals - I18c - E10092 | BJ64: 2025-05-13T15:28:39 | BK64: Rema Tiba | BL64: 2025-05-13 | BM64: rema.tiba@barnet.gov.uk | BN64: 2025-05-13T15:56:40 | BO64: 300000005088675:Q4 M1-M12 Actuals Journal - Batch 4 (S-W):M1-M12 Actuals - I18c - E10092
A65: A1 | B65: A0000A | C65: L1 BARNET System Hierarchy | D65: B0000A | E65: L2 LBB Hierarchy | F65: B2000B | G65: L3 LBB Revenue | H65: B3010C | I65: L4 LBB SchoolDM | J65: B3010D | K65: L5 SCHOOLDM | L65: B3011E | M65: L6 Primary Schools Direct Managem | N65: B3012F | O65: L7 Primary Schools Direct Managem | P65: 10000X | Q65: All Subjective | R65: 50000A | S65: Total Net Expenditure CIES | T65: 50000B | U65: Total Income | V65: 51000C | W65: Government Grants | X65: 51100D | Y65: Specific and Special Grants | Z65: 51110E | AA65: Specific and Special Grants Summary | AB65: E10112 | AC65: Rosh Pinah School | AD65: 511127 | AE65: =_xlfn.XLOOKUP(AD65, [2]Sheet3!B:B,[2]Sheet3!A:A) -> I18c | AF65: COVID-19 catch-up package I18c | AG65: 99999 | AH65: Default Analysis | AI65: 9999999 | AJ65: Project Default | AK65: 999999 | AL65: Default - Reserved for future use | AM65: A1-E10112-511127-99999-9999999-999999 | AN65: PER13-24-25 | AO65: 0 | AP65: 527 | AQ65: -527 | AR65: CFS2425100199 Spreadsheet A 300000006796056 4054266 N | AS65: CFS2425100199 JV01 - Transfer Journal | AT65: Q4 M1-M12 Actuals Journal - Batch 3 (G-R) | AU65: Q4 | AV65: Spreadsheet | AW65: JV01 - Transfer Journal | AX65: 149 | AY65: M1-M12 Actuals - I18c - E10112 | BJ65: 2025-05-13T15:25:09 | BK65: Rema Tiba | BL65: 2025-05-13 | BM65: rema.tiba@barnet.gov.uk | BN65: 2025-05-13T15:56:34 | BO65: 300000005088675:Q4 M1-M12 Actuals Journal - Batch 3 (G-R):M1-M12 Actuals - I18c - E10112
A66: A1 | B66: A0000A | C66: L1 BARNET System Hierarchy | D66: B0000A | E66: L2 LBB Hierarchy | F66: B2000B | G66: L3 LBB Revenue | H66: B3010C | I66: L4 LBB SchoolDM | J66: B3010D | K66: L5 SCHOOLDM | L66: B3011E | M66: L6 Primary Schools Direct Managem | N66: B3012F | O66: L7 Primary Schools Direct Managem | P66: 10000X | Q66: All Subjective | R66: 50000A | S66: Total Net Expenditure CIES | T66: 50000B | U66: Total Income | V66: 51000C | W66: Government Grants | X66: 51100D | Y66: Specific and Special Grants | Z66: 51110E | AA66: Specific and Special Grants Summary | AB66: E10116 | AC66: St John's CE N20 | AD66: 511127 | AE66: =_xlfn.XLOOKUP(AD66, [2]Sheet3!B:B,[2]Sheet3!A:A) -> I18c | AF66: COVID-19 catch-up package I18c | AG66: D1120 | AH66: Schools DM | AI66: 9999999 | AJ66: Project Default | AK66: 999999 | AL66: Default - Reserved for future use | AM66: A1-E10116-511127-D1120-9999999-999999 | AN66: PER13-24-25 | AO66: 6320 | AP66: 0 | AQ66: 6320 | AR66: SCH2425P13-RIA0004 Spreadsheet A 300000006713123 4043209 N | AS66: SCH2425P13-RIA0004 YE01 - Accrual Journal | AT66: BATCH 4 RIAs | AU66: Q4 | AV66: Spreadsheet | AW66: YE01 - Accrual Journal | AX66: 43 | AY66: BATCH 4 RIA | BJ66: 2025-05-12T12:16:00 | BK66: Rema Tiba | BL66: 2025-05-12 | BM66: rema.tiba@barnet.gov.uk | BN66: 2025-05-12T12:25:02 | BO66: 300000005088676:BATCH 4 RIAs:BATCH 4 RIA
A67: A1 | B67: A0000A | C67: L1 BARNET System Hierarchy | D67: B0000A | E67: L2 LBB Hierarchy | F67: B2000B | G67: L3 LBB Revenue | H67: B3010C | I67: L4 LBB SchoolDM | J67: B3010D | K67: L5 SCHOOLDM | L67: B3011E | M67: L6 Primary Schools Direct Managem | N67: B3012F | O67: L7 Primary Schools Direct Managem | P67: 10000X | Q67: All Subjective | R67: 50000A | S67: Total Net Expenditure CIES | T67: 50000B | U67: Total Income | V67: 51000C | W67: Government Grants | X67: 51100D | Y67: Specific and Special Grants | Z67: 51110E | AA67: Specific and Special Grants Summary | AB67: E10118 | AC67: Chalgrove School | AD67: 511127 | AE67: =_xlfn.XLOOKUP(AD67, [2]Sheet3!B:B,[2]Sheet3!A:A) -> I18c | AF67: COVID-19 catch-up package I18c | AG67: 99999 | AH67: Default Analysis | AI67: 9999999 | AJ67: Project Default | AK67: 999999 | AL67: Default - Reserved for future use | AM67: A1-E10118-511127-99999-9999999-999999 | AN67: PER13-24-25 | AO67: 0 | AP67: 5897.56 | AQ67: -5897.56 | AR67: CFS2425100201 Spreadsheet A 300000006713123 4054487 N | AS67: CFS2425100201 JV01 - Transfer Journal | AT67: Q4 M1-M12 Actuals Journal - Batch 2 (A-F) | AU67: Q4 | AV67: Spreadsheet | AW67: JV01 - Transfer Journal | AX67: 160 | AY67: M1-M12 Actuals - I18c - E10118 | BJ67: 2025-05-13T15:52:01 | BK67: Daniel Phelan | BL67: 2025-05-13 | BM67: daniel.phelan@barnet.gov.uk | BN67: 2025-05-13T15:56:37 | BO67: 300000005088675:Q4 M1-M12 Actuals Journal - Batch 2 (A-F):M1-M12 Actuals - I18c - E10118
A68: A1 | B68: A0000A | C68: L1 BARNET System Hierarchy | D68: B0000A | E68: L2 LBB Hierarchy | F68: B2000B | G68: L3 LBB Revenue | H68: B3010C | I68: L4 LBB SchoolDM | J68: B3010D | K68: L5 SCHOOLDM | L68: B3017E | M68: L6 PRUs Direct Management | N68: B3018F | O68: L7 PRUs Direct Management | P68: 10000X | Q68: All Subjective | R68: 50000A | S68: Total Net Expenditure CIES | T68: 50000B | U68: Total Income | V68: 51000C | W68: Government Grants | X68: 51100D | Y68: Specific and Special Grants | Z68: 51110E | AA68: Specific and Special Grants Summary | AB68: E10185 | AC68: Northgate PRU | AD68: 511127 | AE68: =_xlfn.XLOOKUP(AD68, [2]Sheet3!B:B,[2]Sheet3!A:A) -> I18c | AF68: COVID-19 catch-up package I18c | AG68: 99999 | AH68: Default Analysis | AI68: 9999999 | AJ68: Project Default | AK68: 999999 | AL68: Default - Reserved for future use | AM68: A1-E10185-511127-99999-9999999-999999 | AN68: PER13-24-25 | AO68: 0 | AP68: 3514.06 | AQ68: -3514.06 | AR68: CFS2425100198 Spreadsheet A 300000006713123 4053711 N | AS68: CFS2425100198 JV01 - Transfer Journal | AT68: Q4 M1-M12 Actuals Journal - Batch 1 (Nurs + Sec) | AU68: Q4 | AV68: Spreadsheet | AW68: JV01 - Transfer Journal | AX68: 75 | AY68: M1-M12 Actuals - I18c - E10185 | BJ68: 2025-05-13T14:33:28 | BK68: Daniel Phelan | BL68: 2025-05-13 | BM68: daniel.phelan@barnet.gov.uk | BN68: 2025-05-13T14:55:23 | BO68: 300000005088675:Q4 M1-M12 Actuals Journal - Batch 1 (Nurs + Sec):M1-M12 Actuals - I18c - E10185
A69: A1 | B69: A0000A | C69: L1 BARNET System Hierarchy | D69: B0000A | E69: L2 LBB Hierarchy | F69: B2000B | G69: L3 LBB Revenue | H69: B3010C | I69: L4 LBB SchoolDM | J69: B3010D | K69: L5 SCHOOLDM | L69: B3011E | M69: L6 Primary Schools Direct Managem | N69: B3012F | O69: L7 Primary Schools Direct Managem | P69: 10000X | Q69: All Subjective | R69: 50000A | S69: Total Net Expenditure CIES | T69: 50000B | U69: Total Income | V69: 53000C | W69: Customer and Client Receipts | X69: 53200D | Y69: Fees and Charges | Z69: 53210E | AA69: Fees and Charges Summary | AB69: E10046 | AC69: Brookland Junior School | AD69: 532051 | AE69: =_xlfn.XLOOKUP(AD69, [2]Sheet3!B:B,[2]Sheet3!A:A) -> I09 | AF69: Catering Sales - Schools | AG69: 99999 | AH69: Default Analysis | AI69: 9999999 | AJ69: Project Default | AK69: 999999 | AL69: Default - Reserved for future use | AM69: A1-E10046-532051-99999-9999999-999999 | AN69: PER13-24-25 | AO69: 639.98 | AP69: 0 | AQ69: 639.98 | AR69: CFS2425100201 Spreadsheet A 300000006713123 4054487 N | AS69: CFS2425100201 JV01 - Transfer Journal | AT69: Q4 M1-M12 Actuals Journal - Batch 2 (A-F) | AU69: Q4 | AV69: Spreadsheet | AW69: JV01 - Transfer Journal | AX69: 165 | AY69: M1-M12 Actuals - I09 - E10046 | BJ69: 2025-05-13T15:52:01 | BK69: Daniel Phelan | BL69: 2025-05-13 | BM69: daniel.phelan@barnet.gov.uk | BN69: 2025-05-13T15:56:37 | BO69: 300000005088675:Q4 M1-M12 Actuals Journal - Batch 2 (A-F):M1-M12 Actuals - I09 - E10046
A70: A1 | B70: A0000A | C70: L1 BARNET System Hierarchy | D70: B0000A | E70: L2 LBB Hierarchy | F70: B2000B | G70: L3 LBB Revenue | H70: B3010C | I70: L4 LBB SchoolDM | J70: B3010D | K70: L5 SCHOOLDM | L70: B3011E | M70: L6 Primary Schools Direct Managem | N70: B3012F | O70: L7 Primary Schools Direct Managem | P70: 10000X | Q70: All Subjective | R70: 50000A | S70: Total Net Expenditure CIES | T70: 50000B | U70: Total Income | V70: 53000C | W70: Customer and Client Receipts | X70: 53200D | Y70: Fees and Charges | Z70: 53210E | AA70: Fees and Charges Summary | AB70: E10056 | AC70: Courtland School | AD70: 532051 | AE70: =_xlfn.XLOOKUP(AD70, [2]Sheet3!B:B,[2]Sheet3!A:A) -> I09 | AF70: Catering Sales - Schools | AG70: 99999 | AH70: Default Analysis | AI70: 9999999 | AJ70: Project Default | AK70: 999999 | AL70: Default - Reserved for future use | AM70: A1-E10056-532051-99999-9999999-999999 | AN70: PER13-24-25 | AO70: 0 | AP70: 63.1 | AQ70: -63.1 | AR70: CFS2425100201 Spreadsheet A 300000006713123 4054487 N | AS70: CFS2425100201 JV01 - Transfer Journal | AT70: Q4 M1-M12 Actuals Journal - Batch 2 (A-F) | AU70: Q4 | AV70: Spreadsheet | AW70: JV01 - Transfer Journal | AX70: 172 | AY70: M1-M12 Actuals - I09 - E10056 | BJ70: 2025-05-13T15:52:01 | BK70: Daniel Phelan | BL70: 2025-05-13 | BM70: daniel.phelan@barnet.gov.uk | BN70: 2025-05-13T15:56:37 | BO70: 300000005088675:Q4 M1-M12 Actuals Journal - Batch 2 (A-F):M1-M12 Actuals - I09 - E10056
A71: A1 | B71: A0000A | C71: L1 BARNET System Hierarchy | D71: B0000A | E71: L2 LBB Hierarchy | F71: B2000B | G71: L3 LBB Revenue | H71: B3010C | I71: L4 LBB SchoolDM | J71: B3010D | K71: L5 SCHOOLDM | L71: B3011E | M71: L6 Primary Schools Direct Managem | N71: B3012F | O71: L7 Primary Schools Direct Managem | P71: 10000X | Q71: All Subjective | R71: 50000A | S71: Total Net Expenditure CIES | T71: 50000B | U71: Total Income | V71: 53000C | W71: Customer and Client Receipts | X71: 53200D | Y71: Fees and Charges | Z71: 53210E | AA71: Fees and Charges Summary | AB71: E10057 | AC71: Cromer Road School | AD71: 532051 | AE71: =_xlfn.XLOOKUP(AD71, [2]Sheet3!B:B,[2]Sheet3!A:A) -> I09 | AF71: Catering Sales - Schools | AG71: 99999 | AH71: Default Analysis | AI71: 9999999 | AJ71: Project Default | AK71: 999999 | AL71: Default - Reserved for future use | AM71: A1-E10057-532051-99999-9999999-999999 | AN71: PER13-24-25 | AO71: 0 | AP71: 668.43 | AQ71: -668.43 | AR71: CFS2425100201 Spreadsheet A 300000006713123 4054487 N | AS71: CFS2425100201 JV01 - Transfer Journal | AT71: Q4 M1-M12 Actuals Journal - Batch 2 (A-F) | AU71: Q4 | AV71: Spreadsheet | AW71: JV01 - Transfer Journal | AX71: 173 | AY71: M1-M12 Actuals - I09 - E10057 | BJ71: 2025-05-13T15:52:01 | BK71: Daniel Phelan | BL71: 2025-05-13 | BM71: daniel.phelan@barnet.gov.uk | BN71: 2025-05-13T15:56:37 | BO71: 300000005088675:Q4 M1-M12 Actuals Journal - Batch 2 (A-F):M1-M12 Actuals - I09 - E10057
A72: A1 | B72: A0000A | C72: L1 BARNET System Hierarchy | D72: B0000A | E72: L2 LBB Hierarchy | F72: B2000B | G72: L3 LBB Revenue | H72: B3010C | I72: L4 LBB SchoolDM | J72: B3010D | K72: L5 SCHOOLDM | L72: B3011E | M72: L6 Primary Schools Direct Managem | N72: B3012F | O72: L7 Primary Schools Direct Managem | P72: 10000X | Q72: All Subjective | R72: 50000A | S72: Total Net Expenditure CIES | T72: 50000B | U72: Total Income | V72: 53000C | W72: Customer and Client Receipts | X72: 53200D | Y72: Fees and Charges | Z72: 53210E | AA72: Fees and Charges Summary | AB72: E10068 | AC72: Garden Suburb Infant | AD72: 532051 | AE72: =_xlfn.XLOOKUP(AD72, [2]Sheet3!B:B,[2]Sheet3!A:A) -> I09 | AF72: Catering Sales - Schools | AG72: 99999 | AH72: Default Analysis | AI72: 9999999 | AJ72: Project Default | AK72: 999999 | AL72: Default - Reserved for future use | AM72: A1-E10068-532051-99999-9999999-999999 | AN72: PER13-24-25 | AO72: 0 | AP72: 2953.08 | AQ72: -2953.08 | AR72: CFS2425100199 Spreadsheet A 300000006796056 4054266 N | AS72: CFS2425100199 JV01 - Transfer Journal | AT72: Q4 M1-M12 Actuals Journal - Batch 3 (G-R) | AU72: Q4 | AV72: Spreadsheet | AW72: JV01 - Transfer Journal | AX72: 156 | AY72: M1-M12 Actuals - I09 - E10068 | BJ72: 2025-05-13T15:25:09 | BK72: Rema Tiba | BL72: 2025-05-13 | BM72: rema.tiba@barnet.gov.uk | BN72: 2025-05-13T15:56:34 | BO72: 300000005088675:Q4 M1-M12 Actuals Journal - Batch 3 (G-R):M1-M12 Actuals - I09 - E10068
A73: A1 | B73: A0000A | C73: L1 BARNET System Hierarchy | D73: B0000A | E73: L2 LBB Hierarchy | F73: B2000B | G73: L3 LBB Revenue | H73: B3010C | I73: L4 LBB SchoolDM | J73: B3010D | K73: L5 SCHOOLDM | L73: B3011E | M73: L6 Primary Schools Direct Managem | N73: B3012F | O73: L7 Primary Schools Direct Managem | P73: 10000X | Q73: All Subjective | R73: 50000A | S73: Total Net Expenditure CIES | T73: 50000B | U73: Total Income | V73: 53000C | W73: Customer and Client Receipts | X73: 53200D | Y73: Fees and Charges | Z73: 53210E | AA73: Fees and Charges Summary | AB73: E10079 | AC73: Monkfrith School | AD73: 532051 | AE73: =_xlfn.XLOOKUP(AD73, [2]Sheet3!B:B,[2]Sheet3!A:A) -> I09 | AF73: Catering Sales - Schools | AG73: 99999 | AH73: Default Analysis | AI73: 9999999 | AJ73: Project Default | AK73: 999999 | AL73: Default - Reserved for future use | AM73: A1-E10079-532051-99999-9999999-999999 | AN73: PER13-24-25 | AO73: 0 | AP73: 1323.68 | AQ73: -1323.68 | AR73: CFS2425100199 Spreadsheet A 300000006796056 4054266 N | AS73: CFS2425100199 JV01 - Transfer Journal | AT73: Q4 M1-M12 Actuals Journal - Batch 3 (G-R) | AU73: Q4 | AV73: Spreadsheet | AW73: JV01 - Transfer Journal | AX73: 164 | AY73: M1-M12 Actuals - I09 - E10079 | BJ73: 2025-05-13T15:25:09 | BK73: Rema Tiba | BL73: 2025-05-13 | BM73: rema.tiba@barnet.gov.uk | BN73: 2025-05-13T15:56:34 | BO73: 300000005088675:Q4 M1-M12 Actuals Journal - Batch 3 (G-R):M1-M12 Actuals - I09 - E10079
A74: A1 | B74: A0000A | C74: L1 BARNET System Hierarchy | D74: B0000A | E74: L2 LBB Hierarchy | F74: B2000B | G74: L3 LBB Revenue | H74: B3010C | I74: L4 LBB SchoolDM | J74: B3010D | K74: L5 SCHOOLDM | L74: B3011E | M74: L6 Primary Schools Direct Managem | N74: B3012F | O74: L7 Primary Schools Direct Managem | P74: 10000X | Q74: All Subjective | R74: 50000A | S74: Total Net Expenditure CIES | T74: 50000B | U74: Total Income | V74: 53000C | W74: Customer and Client Receipts | X74: 53200D | Y74: Fees and Charges | Z74: 53210E | AA74: Fees and Charges Summary | AB74: E10083 | AC74: Danegrove School | AD74: 532051 | AE74: =_xlfn.XLOOKUP(AD74, [2]Sheet3!B:B,[2]Sheet3!A:A) -> I09 | AF74: Catering Sales - Schools | AG74: 99999 | AH74: Default Analysis | AI74: 9999999 | AJ74: Project Default | AK74: 999999 | AL74: Default - Reserved for future use | AM74: A1-E10083-532051-99999-9999999-999999 | AN74: PER13-24-25 | AO74: 0 | AP74: 1164.18 | AQ74: -1164.18 | AR74: CFS2425100201 Spreadsheet A 300000006713123 4054487 N | AS74: CFS2425100201 JV01 - Transfer Journal | AT74: Q4 M1-M12 Actuals Journal - Batch 2 (A-F) | AU74: Q4 | AV74: Spreadsheet | AW74: JV01 - Transfer Journal | AX74: 179 | AY74: M1-M12 Actuals - I09 - E10083 | BJ74: 2025-05-13T15:52:01 | BK74: Daniel Phelan | BL74: 2025-05-13 | BM74: daniel.phelan@barnet.gov.uk | BN74: 2025-05-13T15:56:37 | BO74: 300000005088675:Q4 M1-M12 Actuals Journal - Batch 2 (A-F):M1-M12 Actuals - I09 - E10083
A75: A1 | B75: A0000A | C75: L1 BARNET System Hierarchy | D75: B0000A | E75: L2 LBB Hierarchy | F75: B2000B | G75: L3 LBB Revenue | H75: B3010C | I75: L4 LBB SchoolDM | J75: B3010D | K75: L5 SCHOOLDM | L75: B3011E | M75: L6 Primary Schools Direct Managem | N75: B3012F | O75: L7 Primary Schools Direct Managem | P75: 10000X | Q75: All Subjective | R75: 50000A | S75: Total Net Expenditure CIES | T75: 50000B | U75: Total Income | V75: 53000C | W75: Customer and Client Receipts | X75: 53200D | Y75: Fees and Charges | Z75: 53210E | AA75: Fees and Charges Summary | AB75: E10085 | AC75: Our Lady Of Lourdes | AD75: 532051 | AE75: =_xlfn.XLOOKUP(AD75, [2]Sheet3!B:B,[2]Sheet3!A:A) -> I09 | AF75: Catering Sales - Schools | AG75: 99999 | AH75: Default Analysis | AI75: 9999999 | AJ75: Project Default | AK75: 999999 | AL75: Default - Reserved for future use | AM75: A1-E10085-532051-99999-9999999-999999 | AN75: PER13-24-25 | AO75: 0 | AP75: 2759.07 | AQ75: -2759.07 | AR75: CFS2425100199 Spreadsheet A 300000006796056 4054266 N | AS75: CFS2425100199 JV01 - Transfer Journal | AT75: Q4 M1-M12 Actuals Journal - Batch 3 (G-R) | AU75: Q4 | AV75: Spreadsheet | AW75: JV01 - Transfer Journal | AX75: 167 | AY75: M1-M12 Actuals - I09 - E10085 | BJ75: 2025-05-13T15:25:09 | BK75: Rema Tiba | BL75: 2025-05-13 | BM75: rema.tiba@barnet.gov.uk | BN75: 2025-05-13T15:56:34 | BO75: 300000005088675:Q4 M1-M12 Actuals Journal - Batch 3 (G-R):M1-M12 Actuals - I09 - E10085
A76: A1 | B76: A0000A | C76: L1 BARNET System Hierarchy | D76: B0000A | E76: L2 LBB Hierarchy | F76: B2000B | G76: L3 LBB Revenue | H76: B3010C | I76: L4 LBB SchoolDM | J76: B3010D | K76: L5 SCHOOLDM | L76: B3011E | M76: L6 Primary Schools Direct Managem | N76: B3012F | O76: L7 Primary Schools Direct Managem | P76: 10000X | Q76: All Subjective | R76: 50000A | S76: Total Net Expenditure CIES | T76: 50000B | U76: Total Income | V76: 53000C | W76: Customer and Client Receipts | X76: 53200D | Y76: Fees and Charges | Z76: 53210E | AA76: Fees and Charges Summary | AB76: E10101 | AC76: Tudor School | AD76: 532051 | AE76: =_xlfn.XLOOKUP(AD76, [2]Sheet3!B:B,[2]Sheet3!A:A) -> I09 | AF76: Catering Sales - Schools | AG76: 99999 | AH76: Default Analysis | AI76: 9999999 | AJ76: Project Default | AK76: 999999 | AL76: Default - Reserved for future use | AM76: A1-E10101-532051-99999-9999999-999999 | AN76: PER13-24-25 | AO76: 0 | AP76: 983.29 | AQ76: -983.29 | AR76: CFS2425100200 Spreadsheet A 300000006796056 4054311 N | AS76: CFS2425100200 JV01 - Transfer Journal | AT76: Q4 M1-M12 Actuals Journal - Batch 4 (S-W) | AU76: Q4 | AV76: Spreadsheet | AW76: JV01 - Transfer Journal | AX76: 150 | AY76: M1-M12 Actuals - I09 - E10101 | BJ76: 2025-05-13T15:28:39 | BK76: Rema Tiba | BL76: 2025-05-13 | BM76: rema.tiba@barnet.gov.uk | BN76: 2025-05-13T15:56:40 | BO76: 300000005088675:Q4 M1-M12 Actuals Journal - Batch 4 (S-W):M1-M12 Actuals - I09 - E10101
A77: A1 | B77: A0000A | C77: L1 BARNET System Hierarchy | D77: B0000A | E77: L2 LBB Hierarchy | F77: B2000B | G77: L3 LBB Revenue | H77: B3010C | I77: L4 LBB SchoolDM | J77: B3010D | K77: L5 SCHOOLDM | L77: B3011E | M77: L6 Primary Schools Direct Managem | N77: B3012F | O77: L7 Primary Schools Direct Managem | P77: 10000X | Q77: All Subjective | R77: 50000A | S77: Total Net Expenditure CIES | T77: 50000B | U77: Total Income | V77: 53000C | W77: Customer and Client Receipts | X77: 53200D | Y77: Fees and Charges | Z77: 53210E | AA77: Fees and Charges Summary | AB77: E10115 | AC77: Blessed Dominic RC | AD77: 532051 | AE77: =_xlfn.XLOOKUP(AD77, [2]Sheet3!B:B,[2]Sheet3!A:A) -> I09 | AF77: Catering Sales - Schools | AG77: 99999 | AH77: Default Analysis | AI77: 9999999 | AJ77: Project Default | AK77: 999999 | AL77: Default - Reserved for future use | AM77: A1-E10115-532051-99999-9999999-999999 | AN77: PER13-24-25 | AO77: 0 | AP77: 1132.18 | AQ77: -1132.18 | AR77: CFS2425100201 Spreadsheet A 300000006713123 4054487 N | AS77: CFS2425100201 JV01 - Transfer Journal | AT77: Q4 M1-M12 Actuals Journal - Batch 2 (A-F) | AU77: Q4 | AV77: Spreadsheet | AW77: JV01 - Transfer Journal | AX77: 180 | AY77: M1-M12 Actuals - I09 - E10115 | BJ77: 2025-05-13T15:52:01 | BK77: Daniel Phelan | BL77: 2025-05-13 | BM77: daniel.phelan@barnet.gov.uk | BN77: 2025-05-13T15:56:37 | BO77: 300000005088675:Q4 M1-M12 Actuals Journal - Batch 2 (A-F):M1-M12 Actuals - I09 - E10115
A78: A1 | B78: A0000A | C78: L1 BARNET System Hierarchy | D78: B0000A | E78: L2 LBB Hierarchy | F78: B2000B | G78: L3 LBB Revenue | H78: B3010C | I78: L4 LBB SchoolDM | J78: B3010D | K78: L5 SCHOOLDM | L78: B3011E | M78: L6 Primary Schools Direct Managem | N78: B3012F | O78: L7 Primary Schools Direct Managem | P78: 10000X | Q78: All Subjective | R78: 50000A | S78: Total Net Expenditure CIES | T78: 50000B | U78: Total Income | V78: 53000C | W78: Customer and Client Receipts | X78: 53200D | Y78: Fees and Charges | Z78: 53210E | AA78: Fees and Charges Summary | AB78: E10121 | AC78: Hasmonean Primary School | AD78: 532051 | AE78: =_xlfn.XLOOKUP(AD78, [2]Sheet3!B:B,[2]Sheet3!A:A) -> I09 | AF78: Catering Sales - Schools | AG78: 99999 | AH78: Default Analysis | AI78: 9999999 | AJ78: Project Default | AK78: 999999 | AL78: Default - Reserved for future use | AM78: A1-E10121-532051-99999-9999999-999999 | AN78: PER13-24-25 | AO78: 0 | AP78: 13948.28 | AQ78: -13948.28 | AR78: CFS2425100199 Spreadsheet A 300000006796056 4054266 N | AS78: CFS2425100199 JV01 - Transfer Journal | AT78: Q4 M1-M12 Actuals Journal - Batch 3 (G-R) | AU78: Q4 | AV78: Spreadsheet | AW78: JV01 - Transfer Journal | AX78: 171 | AY78: M1-M12 Actuals - I09 - E10121 | BJ78: 2025-05-13T15:25:09 | BK78: Rema Tiba | BL78: 2025-05-13 | BM78: rema.tiba@barnet.gov.uk | BN78: 2025-05-13T15:56:34 | BO78: 300000005088675:Q4 M1-M12 Actuals Journal - Batch 3 (G-R):M1-M12 Actuals - I09 - E10121
A79: A1 | B79: A0000A | C79: L1 BARNET System Hierarchy | D79: B0000A | E79: L2 LBB Hierarchy | F79: B2000B | G79: L3 LBB Revenue | H79: B3010C | I79: L4 LBB SchoolDM | J79: B3010D | K79: L5 SCHOOLDM | L79: B3011E | M79: L6 Primary Schools Direct Managem | N79: B3012F | O79: L7 Primary Schools Direct Managem | P79: 10000X | Q79: All Subjective | R79: 50000A | S79: Total Net Expenditure CIES | T79: 50000B | U79: Total Income | V79: 53000C | W79: Customer and Client Receipts | X79: 53200D | Y79: Fees and Charges | Z79: 53210E | AA79: Fees and Charges Summary | AB79: E10124 | AC79: Wessex Gardens School | AD79: 532051 | AE79: =_xlfn.XLOOKUP(AD79, [2]Sheet3!B:B,[2]Sheet3!A:A) -> I09 | AF79: Catering Sales - Schools | AG79: 99999 | AH79: Default Analysis | AI79: 9999999 | AJ79: Project Default | AK79: 999999 | AL79: Default - Reserved for future use | AM79: A1-E10124-532051-99999-9999999-999999 | AN79: PER13-24-25 | AO79: 0 | AP79: 323.07 | AQ79: -323.07 | AR79: CFS2425100200 Spreadsheet A 300000006796056 4054311 N | AS79: CFS2425100200 JV01 - Transfer Journal | AT79: Q4 M1-M12 Actuals Journal - Batch 4 (S-W) | AU79: Q4 | AV79: Spreadsheet | AW79: JV01 - Transfer Journal | AX79: 159 | AY79: M1-M12 Actuals - I09 - E10124 | BJ79: 2025-05-13T15:28:39 | BK79: Rema Tiba | BL79: 2025-05-13 | BM79: rema.tiba@barnet.gov.uk | BN79: 2025-05-13T15:56:40 | BO79: 300000005088675:Q4 M1-M12 Actuals Journal - Batch 4 (S-W):M1-M12 Actuals - I09 - E10124
A80: A1 | B80: A0000A | C80: L1 BARNET System Hierarchy | D80: B0000A | E80: L2 LBB Hierarchy | F80: B2000B | G80: L3 LBB Revenue | H80: B3010C | I80: L4 LBB SchoolDM | J80: B3010D | K80: L5 SCHOOLDM | L80: B3013E | M80: L6 Secondary Schools Direct Manag | N80: B3014F | O80: L7 Secondary Schools Direct Manag | P80: 10000X | Q80: All Subjective | R80: 50000A | S80: Total Net Expenditure CIES | T80: 50000B | U80: Total Income | V80: 53000C | W80: Customer and Client Receipts | X80: 53200D | Y80: Fees and Charges | Z80: 53210E | AA80: Fees and Charges Summary | AB80: E10145 | AC80: Finchley Catholic | AD80: 532051 | AE80: =_xlfn.XLOOKUP(AD80, [2]Sheet3!B:B,[2]Sheet3!A:A) -> I09 | AF80: Catering Sales - Schools | AG80: D1120 | AH80: Schools DM | AI80: 9999999 | AJ80: Project Default | AK80: 999999 | AL80: Default - Reserved for future use | AM80: A1-E10145-532051-D1120-9999999-999999 | AN80: PER13-24-25 | AO80: 23406.59 | AP80: 0 | AQ80: 23406.59 | AR80: SCH2425P13-RIA0001 Spreadsheet A 300000006713123 4018302 N | AS80: SCH2425P13-RIA0001 YE01 - Accrual Journal | AT80: BATCH 1 RIAs | AU80: Q4 | AV80: Spreadsheet | AW80: YE01 - Accrual Journal | AX80: 17 | AY80: BATCH 1 RIA | BJ80: 2025-05-09T14:34:08 | BK80: Daniel Phelan | BL80: 2025-05-12 | BM80: daniel.phelan@barnet.gov.uk | BN80: 2025-05-12T10:29:28 | BO80: 300000005088676:BATCH 1 RIAs:BATCH 1 RIA
A81: A1 | B81: A0000A | C81: L1 BARNET System Hierarchy | D81: B0000A | E81: L2 LBB Hierarchy | F81: B2000B | G81: L3 LBB Revenue | H81: B3010C | I81: L4 LBB SchoolDM | J81: B3010D | K81: L5 SCHOOLDM | L81: B3013E | M81: L6 Secondary Schools Direct Manag | N81: B3014F | O81: L7 Secondary Schools Direct Manag | P81: 10000X | Q81: All Subjective | R81: 50000A | S81: Total Net Expenditure CIES | T81: 50000B | U81: Total Income | V81: 53000C | W81: Customer and Client Receipts | X81: 53200D | Y81: Fees and Charges | Z81: 53210E | AA81: Fees and Charges Summary | AB81: E10145 | AC81: Finchley Catholic | AD81: 532051 | AE81: =_xlfn.XLOOKUP(AD81, [2]Sheet3!B:B,[2]Sheet3!A:A) -> I09 | AF81: Catering Sales - Schools | AG81: 99999 | AH81: Default Analysis | AI81: 9999999 | AJ81: Project Default | AK81: 999999 | AL81: Default - Reserved for future use | AM81: A1-E10145-532051-99999-9999999-999999 | AN81: PER13-24-25 | AO81: 0 | AP81: 466790.01 | AQ81: -466790.01 | AR81: CFS2425100198 Spreadsheet A 300000006713123 4053711 N | AS81: CFS2425100198 JV01 - Transfer Journal | AT81: Q4 M1-M12 Actuals Journal - Batch 1 (Nurs + Sec) | AU81: Q4 | AV81: Spreadsheet | AW81: JV01 - Transfer Journal | AX81: 79 | AY81: M1-M12 Actuals - I09 - E10145 | BJ81: 2025-05-13T14:33:28 | BK81: Daniel Phelan | BL81: 2025-05-13 | BM81: daniel.phelan@barnet.gov.uk | BN81: 2025-05-13T14:55:23 | BO81: 300000005088675:Q4 M1-M12 Actuals Journal - Batch 1 (Nurs + Sec):M1-M12 Actuals - I09 - E10145
A82: A1 | B82: A0000A | C82: L1 BARNET System Hierarchy | D82: B0000A | E82: L2 LBB Hierarchy | F82: B2000B | G82: L3 LBB Revenue | H82: B3010C | I82: L4 LBB SchoolDM | J82: B3010D | K82: L5 SCHOOLDM | L82: B3010E | M82: L6 Nursery Schools Direct Managem | N82: B3010F | O82: L7 Nursery Schools Direct Managem | P82: 10000X | Q82: All Subjective | R82: 50000A | S82: Total Net Expenditure CIES | T82: 50000B | U82: Total Income | V82: 53000C | W82: Customer and Client Receipts | X82: 53200D | Y82: Fees and Charges | Z82: 53210E | AA82: Fees and Charges Summary | AB82: E10135 | AC82: Barnet Early Years Alliance | AD82: 532060 | AE82: =_xlfn.XLOOKUP(AD82, [2]Sheet3!B:B,[2]Sheet3!A:A) -> I08 | AF82: Hire of Rooms and Halls Income | AG82: 99999 | AH82: Default Analysis | AI82: 9999999 | AJ82: Project Default | AK82: 999999 | AL82: Default - Reserved for future use | AM82: A1-E10135-532060-99999-9999999-999999 | AN82: PER13-24-25 | AO82: 0 | AP82: 21000 | AQ82: -21000 | AR82: CFS2425100198 Spreadsheet A 300000006713123 4053711 N | AS82: CFS2425100198 JV01 - Transfer Journal | AT82: Q4 M1-M12 Actuals Journal - Batch 1 (Nurs + Sec) | AU82: Q4 | AV82: Spreadsheet | AW82: JV01 - Transfer Journal | AX82: 86 | AY82: M1-M12 Actuals - I08a - E10135 | BJ82: 2025-05-13T14:33:28 | BK82: Daniel Phelan | BL82: 2025-05-13 | BM82: daniel.phelan@barnet.gov.uk | BN82: 2025-05-13T14:55:23 | BO82: 300000005088675:Q4 M1-M12 Actuals Journal - Batch 1 (Nurs + Sec):M1-M12 Actuals - I08a - E10135
A83: A1 | B83: A0000A | C83: L1 BARNET System Hierarchy | D83: B0000A | E83: L2 LBB Hierarchy | F83: B2000B | G83: L3 LBB Revenue | H83: B3010C | I83: L4 LBB SchoolDM | J83: B3010D | K83: L5 SCHOOLDM | L83: B3011E | M83: L6 Primary Schools Direct Managem | N83: B3012F | O83: L7 Primary Schools Direct Managem | P83: 10000X | Q83: All Subjective | R83: 50000A | S83: Total Net Expenditure CIES | T83: 50000B | U83: Total Income | V83: 53000C | W83: Customer and Client Receipts | X83: 53200D | Y83: Fees and Charges | Z83: 53210E | AA83: Fees and Charges Summary | AB83: E10042 | AC83: All Saints' CE N20 | AD83: 532060 | AE83: =_xlfn.XLOOKUP(AD83, [2]Sheet3!B:B,[2]Sheet3!A:A) -> I08 | AF83: Hire of Rooms and Halls Income | AG83: 99999 | AH83: Default Analysis | AI83: 9999999 | AJ83: Project Default | AK83: 999999 | AL83: Default - Reserved for future use | AM83: A1-E10042-532060-99999-9999999-999999 | AN83: PER13-24-25 | AO83: 0 | AP83: 31607.28 | AQ83: -31607.28 | AR83: CFS2425100201 Spreadsheet A 300000006713123 4054487 N | AS83: CFS2425100201 JV01 - Transfer Journal | AT83: Q4 M1-M12 Actuals Journal - Batch 2 (A-F) | AU83: Q4 | AV83: Spreadsheet | AW83: JV01 - Transfer Journal | AX83: 186 | AY83: M1-M12 Actuals - I08b - E10042 | BJ83: 2025-05-13T15:52:01 | BK83: Daniel Phelan | BL83: 2025-05-13 | BM83: daniel.phelan@barnet.gov.uk | BN83: 2025-05-13T15:56:37 | BO83: 300000005088675:Q4 M1-M12 Actuals Journal - Batch 2 (A-F):M1-M12 Actuals - I08b - E10042
A84: A1 | B84: A0000A | C84: L1 BARNET System Hierarchy | D84: B0000A | E84: L2 LBB Hierarchy | F84: B2000B | G84: L3 LBB Revenue | H84: B3010C | I84: L4 LBB SchoolDM | J84: B3010D | K84: L5 SCHOOLDM | L84: B3011E | M84: L6 Primary Schools Direct Managem | N84: B3012F | O84: L7 Primary Schools Direct Managem | P84: 10000X | Q84: All Subjective | R84: 50000A | S84: Total Net Expenditure CIES | T84: 50000B | U84: Total Income | V84: 53000C | W84: Customer and Client Receipts | X84: 53200D | Y84: Fees and Charges | Z84: 53210E | AA84: Fees and Charges Summary | AB84: E10044 | AC84: Barnfield School | AD84: 532060 | AE84: =_xlfn.XLOOKUP(AD84, [2]Sheet3!B:B,[2]Sheet3!A:A) -> I08 | AF84: Hire of Rooms and Halls Income | AG84: D1120 | AH84: Schools DM | AI84: 9999999 | AJ84: Project Default | AK84: 999999 | AL84: Default - Reserved for future use | AM84: A1-E10044-532060-D1120-9999999-999999 | AN84: PER13-24-25 | AO84: 5280 | AP84: 0 | AQ84: 5280 | AR84: SCH2425P13-RIA0002 Spreadsheet A 300000006713123 4018773 N | AS84: SCH2425P13-RIA0002 YE01 - Accrual Journal | AT84: BATCH 2 RIAs | AU84: Q4 | AV84: Spreadsheet | AW84: YE01 - Accrual Journal | AX84: 39 | AY84: BATCH 2 RIA | BJ84: 2025-05-09T15:31:42 | BK84: Daniel Phelan | BL84: 2025-05-09 | BM84: daniel.phelan@barnet.gov.uk | BN84: 2025-05-09T16:31:25 | BO84: 300000005088676:BATCH 2 RIAs:BATCH 2 RIA
A85: A1 | B85: A0000A | C85: L1 BARNET System Hierarchy | D85: B0000A | E85: L2 LBB Hierarchy | F85: B2000B | G85: L3 LBB Revenue | H85: B3010C | I85: L4 LBB SchoolDM | J85: B3010D | K85: L5 SCHOOLDM | L85: B3011E | M85: L6 Primary Schools Direct Managem | N85: B3012F | O85: L7 Primary Schools Direct Managem | P85: 10000X | Q85: All Subjective | R85: 50000A | S85: Total Net Expenditure CIES | T85: 50000B | U85: Total Income | V85: 53000C | W85: Customer and Client Receipts | X85: 53200D | Y85: Fees and Charges | Z85: 53210E | AA85: Fees and Charges Summary | AB85: E10046 | AC85: Brookland Junior School | AD85: 532060 | AE85: =_xlfn.XLOOKUP(AD85, [2]Sheet3!B:B,[2]Sheet3!A:A) -> I08 | AF85: Hire of Rooms and Halls Income | AG85: D1120 | AH85: Schools DM | AI85: 9999999 | AJ85: Project Default | AK85: 999999 | AL85: Default - Reserved for future use | AM85: A1-E10046-532060-D1120-9999999-999999 | AN85: PER13-24-25 | AO85: 21784.28 | AP85: 0 | AQ85: 21784.28 | AR85: Reverses SCH2425P13-DEBT0002 YE01 - Accrual Journal 12-05-25 08:44:36 4041326 | AS85: Reverses SCH2425P13-DEBT0002 YE01 - Accrual Journal 12-05-25 08:44:37 | AT85: Reverses journal SCH2425P13-DEBT0002 YE01 - Accrual Journal of journal batch SCH2425P13-DEBT0002 Spreadsheet A 300000006713123 4018873 N from period PER13-24-25. | AU85: Q4 | AV85: Spreadsheet | AW85: YE01 - Accrual Journal | AX85: 51 | AY85: BATCH 2 Debtors | BJ85: 2025-05-12T08:44:37 | BK85: BEN CHEYTAN | BL85: 2025-05-12 | BM85: ben.cheytan@barnet.gov.uk | BN85: 2025-05-12T09:40:24 | BO85: 300000005088676:Reverses journal SCH2425P13-DEBT0002 YE01 - Accrual Journal of journal batch SCH2425P13-DEBT0002 Spreadsheet A 300000006713123 4018873 N from period PER13-24-25.:BATCH 2 Debtors
A86: A1 | B86: A0000A | C86: L1 BARNET System Hierarchy | D86: B0000A | E86: L2 LBB Hierarchy | F86: B2000B | G86: L3 LBB Revenue | H86: B3010C | I86: L4 LBB SchoolDM | J86: B3010D | K86: L5 SCHOOLDM | L86: B3011E | M86: L6 Primary Schools Direct Managem | N86: B3012F | O86: L7 Primary Schools Direct Managem | P86: 10000X | Q86: All Subjective | R86: 50000A | S86: Total Net Expenditure CIES | T86: 50000B | U86: Total Income | V86: 53000C | W86: Customer and Client Receipts | X86: 53200D | Y86: Fees and Charges | Z86: 53210E | AA86: Fees and Charges Summary | AB86: E10046 | AC86: Brookland Junior School | AD86: 532060 | AE86: =_xlfn.XLOOKUP(AD86, [2]Sheet3!B:B,[2]Sheet3!A:A) -> I08 | AF86: Hire of Rooms and Halls Income | AG86: 99999 | AH86: Default Analysis | AI86: 9999999 | AJ86: Project Default | AK86: 999999 | AL86: Default - Reserved for future use | AM86: A1-E10046-532060-99999-9999999-999999 | AN86: PER13-24-25 | AO86: 0 | AP86: 49397.98 | AQ86: -49397.98 | AR86: CFS2425100201 Spreadsheet A 300000006713123 4054487 N | AS86: CFS2425100201 JV01 - Transfer Journal | AT86: Q4 M1-M12 Actuals Journal - Batch 2 (A-F) | AU86: Q4 | AV86: Spreadsheet | AW86: JV01 - Transfer Journal | AX86: 192 | AY86: M1-M12 Actuals - I08a - E10046 | BJ86: 2025-05-13T15:52:01 | BK86: Daniel Phelan | BL86: 2025-05-13 | BM86: daniel.phelan@barnet.gov.uk | BN86: 2025-05-13T15:56:37 | BO86: 300000005088675:Q4 M1-M12 Actuals Journal - Batch 2 (A-F):M1-M12 Actuals - I08a - E10046
A87: A1 | B87: A0000A | C87: L1 BARNET System Hierarchy | D87: B0000A | E87: L2 LBB Hierarchy | F87: B2000B | G87: L3 LBB Revenue | H87: B3010C | I87: L4 LBB SchoolDM | J87: B3010D | K87: L5 SCHOOLDM | L87: B3011E | M87: L6 Primary Schools Direct Managem | N87: B3012F | O87: L7 Primary Schools Direct Managem | P87: 10000X | Q87: All Subjective | R87: 50000A | S87: Total Net Expenditure CIES | T87: 50000B | U87: Total Income | V87: 53000C | W87: Customer and Client Receipts | X87: 53200D | Y87: Fees and Charges | Z87: 53210E | AA87: Fees and Charges Summary | AB87: E10048 | AC87: Brunswick Park School | AD87: 532060 | AE87: =_xlfn.XLOOKUP(AD87, [2]Sheet3!B:B,[2]Sheet3!A:A) -> I08 | AF87: Hire of Rooms and Halls Income | AG87: D1120 | AH87: Schools DM | AI87: 9999999 | AJ87: Project Default | AK87: 999999 | AL87: Default - Reserved for future use | AM87: A1-E10048-532060-D1120-9999999-999999 | AN87: PER13-24-25 | AO87: 26733 | AP87: 0 | AQ87: 26733 | AR87: Reverses SCH2425P13-DEBT0002 YE01 - Accrual Journal 12-05-25 08:44:36 4041326 | AS87: Reverses SCH2425P13-DEBT0002 YE01 - Accrual Journal 12-05-25 08:44:37 | AT87: Reverses journal SCH2425P13-DEBT0002 YE01 - Accrual Journal of journal batch SCH2425P13-DEBT0002 Spreadsheet A 300000006713123 4018873 N from period PER13-24-25. | AU87: Q4 | AV87: Spreadsheet | AW87: YE01 - Accrual Journal | AX87: 53 | AY87: BATCH 2 Debtors | BJ87: 2025-05-12T08:44:37 | BK87: BEN CHEYTAN | BL87: 2025-05-12 | BM87: ben.cheytan@barnet.gov.uk | BN87: 2025-05-12T09:40:24 | BO87: 300000005088676:Reverses journal SCH2425P13-DEBT0002 YE01 - Accrual Journal of journal batch SCH2425P13-DEBT0002 Spreadsheet A 300000006713123 4018873 N from period PER13-24-25.:BATCH 2 Debtors
A88: A1 | B88: A0000A | C88: L1 BARNET System Hierarchy | D88: B0000A | E88: L2 LBB Hierarchy | F88: B2000B | G88: L3 LBB Revenue | H88: B3010C | I88: L4 LBB SchoolDM | J88: B3010D | K88: L5 SCHOOLDM | L88: B3011E | M88: L6 Primary Schools Direct Managem | N88: B3012F | O88: L7 Primary Schools Direct Managem | P88: 10000X | Q88: All Subjective | R88: 50000A | S88: Total Net Expenditure CIES | T88: 50000B | U88: Total Income | V88: 53000C | W88: Customer and Client Receipts | X88: 53200D | Y88: Fees and Charges | Z88: 53210E | AA88: Fees and Charges Summary | AB88: E10054 | AC88: Colindale School | AD88: 532060 | AE88: =_xlfn.XLOOKUP(AD88, [2]Sheet3!B:B,[2]Sheet3!A:A) -> I08 | AF88: Hire of Rooms and Halls Income | AG88: 99999 | AH88: Default Analysis | AI88: 9999999 | AJ88: Project Default | AK88: 999999 | AL88: Default - Reserved for future use | AM88: A1-E10054-532060-99999-9999999-999999 | AN88: PER13-24-25 | AO88: 0 | AP88: 18428.33 | AQ88: -18428.33 | AR88: CFS2425100201 Spreadsheet A 300000006713123 4054487 N | AS88: CFS2425100201 JV01 - Transfer Journal | AT88: Q4 M1-M12 Actuals Journal - Batch 2 (A-F) | AU88: Q4 | AV88: Spreadsheet | AW88: JV01 - Transfer Journal | AX88: 202 | AY88: M1-M12 Actuals - I08b - E10054 | BJ88: 2025-05-13T15:52:01 | BK88: Daniel Phelan | BL88: 2025-05-13 | BM88: daniel.phelan@barnet.gov.uk | BN88: 2025-05-13T15:56:37 | BO88: 300000005088675:Q4 M1-M12 Actuals Journal - Batch 2 (A-F):M1-M12 Actuals - I08b - E10054
A89: A1 | B89: A0000A | C89: L1 BARNET System Hierarchy | D89: B0000A | E89: L2 LBB Hierarchy | F89: B2000B | G89: L3 LBB Revenue | H89: B3010C | I89: L4 LBB SchoolDM | J89: B3010D | K89: L5 SCHOOLDM | L89: B3011E | M89: L6 Primary Schools Direct Managem | N89: B3012F | O89: L7 Primary Schools Direct Managem | P89: 10000X | Q89: All Subjective | R89: 50000A | S89: Total Net Expenditure CIES | T89: 50000B | U89: Total Income | V89: 53000C | W89: Customer and Client Receipts | X89: 53200D | Y89: Fees and Charges | Z89: 53210E | AA89: Fees and Charges Summary | AB89: E10055 | AC89: Coppetts Wood School | AD89: 532060 | AE89: =_xlfn.XLOOKUP(AD89, [2]Sheet3!B:B,[2]Sheet3!A:A) -> I08 | AF89: Hire of Rooms and Halls Income | AG89: 99999 | AH89: Default Analysis | AI89: 9999999 | AJ89: Project Default | AK89: 999999 | AL89: Default - Reserved for future use | AM89: A1-E10055-532060-99999-9999999-999999 | AN89: PER13-24-25 | AO89: 0 | AP89: 3400.42 | AQ89: -3400.42 | AR89: CFS2425100201 Spreadsheet A 300000006713123 4054487 N | AS89: CFS2425100201 JV01 - Transfer Journal | AT89: Q4 M1-M12 Actuals Journal - Batch 2 (A-F) | AU89: Q4 | AV89: Spreadsheet | AW89: JV01 - Transfer Journal | AX89: 203 | AY89: M1-M12 Actuals - I08b - E10055 | BJ89: 2025-05-13T15:52:01 | BK89: Daniel Phelan | BL89: 2025-05-13 | BM89: daniel.phelan@barnet.gov.uk | BN89: 2025-05-13T15:56:37 | BO89: 300000005088675:Q4 M1-M12 Actuals Journal - Batch 2 (A-F):M1-M12 Actuals - I08b - E10055
A90: A1 | B90: A0000A | C90: L1 BARNET System Hierarchy | D90: B0000A | E90: L2 LBB Hierarchy | F90: B2000B | G90: L3 LBB Revenue | H90: B3010C | I90: L4 LBB SchoolDM | J90: B3010D | K90: L5 SCHOOLDM | L90: B3011E | M90: L6 Primary Schools Direct Managem | N90: B3012F | O90: L7 Primary Schools Direct Managem | P90: 10000X | Q90: All Subjective | R90: 50000A | S90: Total Net Expenditure CIES | T90: 50000B | U90: Total Income | V90: 53000C | W90: Customer and Client Receipts | X90: 53200D | Y90: Fees and Charges | Z90: 53210E | AA90: Fees and Charges Summary | AB90: E10068 | AC90: Garden Suburb Infant | AD90: 532060 | AE90: =_xlfn.XLOOKUP(AD90, [2]Sheet3!B:B,[2]Sheet3!A:A) -> I08 | AF90: Hire of Rooms and Halls Income | AG90: 99999 | AH90: Default Analysis | AI90: 9999999 | AJ90: Project Default | AK90: 999999 | AL90: Default - Reserved for future use | AM90: A1-E10068-532060-99999-9999999-999999 | AN90: PER13-24-25 | AO90: 0 | AP90: 7806.86 | AQ90: -7806.86 | AR90: CFS2425100199 Spreadsheet A 300000006796056 4054266 N | AS90: CFS2425100199 JV01 - Transfer Journal | AT90: Q4 M1-M12 Actuals Journal - Batch 3 (G-R) | AU90: Q4 | AV90: Spreadsheet | AW90: JV01 - Transfer Journal | AX90: 177 | AY90: M1-M12 Actuals - I08b - E10068 | BJ90: 2025-05-13T15:25:09 | BK90: Rema Tiba | BL90: 2025-05-13 | BM90: rema.tiba@barnet.gov.uk | BN90: 2025-05-13T15:56:34 | BO90: 300000005088675:Q4 M1-M12 Actuals Journal - Batch 3 (G-R):M1-M12 Actuals - I08b - E10068
A91: A1 | B91: A0000A | C91: L1 BARNET System Hierarchy | D91: B0000A | E91: L2 LBB Hierarchy | F91: B2000B | G91: L3 LBB Revenue | H91: B3010C | I91: L4 LBB SchoolDM | J91: B3010D | K91: L5 SCHOOLDM | L91: B3011E | M91: L6 Primary Schools Direct Managem | N91: B3012F | O91: L7 Primary Schools Direct Managem | P91: 10000X | Q91: All Subjective | R91: 50000A | S91: Total Net Expenditure CIES | T91: 50000B | U91: Total Income | V91: 53000C | W91: Customer and Client Receipts | X91: 53200D | Y91: Fees and Charges | Z91: 53210E | AA91: Fees and Charges Summary | AB91: E10074 | AC91: Livingstone School | AD91: 532060 | AE91: =_xlfn.XLOOKUP(AD91, [2]Sheet3!B:B,[2]Sheet3!A:A) -> I08 | AF91: Hire of Rooms and Halls Income | AG91: 99999 | AH91: Default Analysis | AI91: 9999999 | AJ91: Project Default | AK91: 999999 | AL91: Default - Reserved for future use | AM91: A1-E10074-532060-99999-9999999-999999 | AN91: PER13-24-25 | AO91: 0 | AP91: 6757 | AQ91: -6757 | AR91: CFS2425100199 Spreadsheet A 300000006796056 4054266 N | AS91: CFS2425100199 JV01 - Transfer Journal | AT91: Q4 M1-M12 Actuals Journal - Batch 3 (G-R) | AU91: Q4 | AV91: Spreadsheet | AW91: JV01 - Transfer Journal | AX91: 185 | AY91: M1-M12 Actuals - I08a - E10074 | BJ91: 2025-05-13T15:25:09 | BK91: Rema Tiba | BL91: 2025-05-13 | BM91: rema.tiba@barnet.gov.uk | BN91: 2025-05-13T15:56:34 | BO91: 300000005088675:Q4 M1-M12 Actuals Journal - Batch 3 (G-R):M1-M12 Actuals - I08a - E10074
A92: A1 | B92: A0000A | C92: L1 BARNET System Hierarchy | D92: B0000A | E92: L2 LBB Hierarchy | F92: B2000B | G92: L3 LBB Revenue | H92: B3010C | I92: L4 LBB SchoolDM | J92: B3010D | K92: L5 SCHOOLDM | L92: B3011E | M92: L6 Primary Schools Direct Managem | N92: B3012F | O92: L7 Primary Schools Direct Managem | P92: 10000X | Q92: All Subjective | R92: 50000A | S92: Total Net Expenditure CIES | T92: 50000B | U92: Total Income | V92: 53000C | W92: Customer and Client Receipts | X92: 53200D | Y92: Fees and Charges | Z92: 53210E | AA92: Fees and Charges Summary | AB92: E10080 | AC92: Moss Hall Junior School | AD92: 532060 | AE92: =_xlfn.XLOOKUP(AD92, [2]Sheet3!B:B,[2]Sheet3!A:A) -> I08 | AF92: Hire of Rooms and Halls Income | AG92: 99999 | AH92: Default Analysis | AI92: 9999999 | AJ92: Project Default | AK92: 999999 | AL92: Default - Reserved for future use | AM92: A1-E10080-532060-99999-9999999-999999 | AN92: PER13-24-25 | AO92: 0 | AP92: 39803.54 | AQ92: -39803.54 | AR92: CFS2425100199 Spreadsheet A 300000006796056 4054266 N | AS92: CFS2425100199 JV01 - Transfer Journal | AT92: Q4 M1-M12 Actuals Journal - Batch 3 (G-R) | AU92: Q4 | AV92: Spreadsheet | AW92: JV01 - Transfer Journal | AX92: 193 | AY92: M1-M12 Actuals - I08b - E10080 | BJ92: 2025-05-13T15:25:09 | BK92: Rema Tiba | BL92: 2025-05-13 | BM92: rema.tiba@barnet.gov.uk | BN92: 2025-05-13T15:56:34 | BO92: 300000005088675:Q4 M1-M12 Actuals Journal - Batch 3 (G-R):M1-M12 Actuals - I08b - E10080
A93: A1 | B93: A0000A | C93: L1 BARNET System Hierarchy | D93: B0000A | E93: L2 LBB Hierarchy | F93: B2000B | G93: L3 LBB Revenue | H93: B3010C | I93: L4 LBB SchoolDM | J93: B3010D | K93: L5 SCHOOLDM | L93: B3011E | M93: L6 Primary Schools Direct Managem | N93: B3012F | O93: L7 Primary Schools Direct Managem | P93: 10000X | Q93: All Subjective | R93: 50000A | S93: Total Net Expenditure CIES | T93: 50000B | U93: Total Income | V93: 53000C | W93: Customer and Client Receipts | X93: 53200D | Y93: Fees and Charges | Z93: 53210E | AA93: Fees and Charges Summary | AB93: E10081 | AC93: Moss Hall Infant School | AD93: 532060 | AE93: =_xlfn.XLOOKUP(AD93, [2]Sheet3!B:B,[2]Sheet3!A:A) -> I08 | AF93: Hire of Rooms and Halls Income | AG93: 99999 | AH93: Default Analysis | AI93: 9999999 | AJ93: Project Default | AK93: 999999 | AL93: Default - Reserved for future use | AM93: A1-E10081-532060-99999-9999999-999999 | AN93: PER13-24-25 | AO93: 0 | AP93: 27116.78 | AQ93: -27116.78 | AR93: CFS2425100199 Spreadsheet A 300000006796056 4054266 N | AS93: CFS2425100199 JV01 - Transfer Journal | AT93: Q4 M1-M12 Actuals Journal - Batch 3 (G-R) | AU93: Q4 | AV93: Spreadsheet | AW93: JV01 - Transfer Journal | AX93: 195 | AY93: M1-M12 Actuals - I08b - E10081 | BJ93: 2025-05-13T15:25:09 | BK93: Rema Tiba | BL93: 2025-05-13 | BM93: rema.tiba@barnet.gov.uk | BN93: 2025-05-13T15:56:34 | BO93: 300000005088675:Q4 M1-M12 Actuals Journal - Batch 3 (G-R):M1-M12 Actuals - I08b - E10081
A94: A1 | B94: A0000A | C94: L1 BARNET System Hierarchy | D94: B0000A | E94: L2 LBB Hierarchy | F94: B2000B | G94: L3 LBB Revenue | H94: B3010C | I94: L4 LBB SchoolDM | J94: B3010D | K94: L5 SCHOOLDM | L94: B3011E | M94: L6 Primary Schools Direct Managem | N94: B3012F | O94: L7 Primary Schools Direct Managem | P94: 10000X | Q94: All Subjective | R94: 50000A | S94: Total Net Expenditure CIES | T94: 50000B | U94: Total Income | V94: 53000C | W94: Customer and Client Receipts | X94: 53200D | Y94: Fees and Charges | Z94: 53210E | AA94: Fees and Charges Summary | AB94: E10081 | AC94: Moss Hall Infant School | AD94: 532060 | AE94: =_xlfn.XLOOKUP(AD94, [2]Sheet3!B:B,[2]Sheet3!A:A) -> I08 | AF94: Hire of Rooms and Halls Income | AG94: 99999 | AH94: Default Analysis | AI94: 9999999 | AJ94: Project Default | AK94: 999999 | AL94: Default - Reserved for future use | AM94: A1-E10081-532060-99999-9999999-999999 | AN94: PER13-24-25 | AO94: 0 | AP94: 40382.08 | AQ94: -40382.08 | AR94: CFS2425100199 Spreadsheet A 300000006796056 4054266 N | AS94: CFS2425100199 JV01 - Transfer Journal | AT94: Q4 M1-M12 Actuals Journal - Batch 3 (G-R) | AU94: Q4 | AV94: Spreadsheet | AW94: JV01 - Transfer Journal | AX94: 196 | AY94: M1-M12 Actuals - I08a - E10081 | BJ94: 2025-05-13T15:25:09 | BK94: Rema Tiba | BL94: 2025-05-13 | BM94: rema.tiba@barnet.gov.uk | BN94: 2025-05-13T15:56:34 | BO94: 300000005088675:Q4 M1-M12 Actuals Journal - Batch 3 (G-R):M1-M12 Actuals - I08a - E10081
A95: A1 | B95: A0000A | C95: L1 BARNET System Hierarchy | D95: B0000A | E95: L2 LBB Hierarchy | F95: B2000B | G95: L3 LBB Revenue | H95: B3010C | I95: L4 LBB SchoolDM | J95: B3010D | K95: L5 SCHOOLDM | L95: B3011E | M95: L6 Primary Schools Direct Managem | N95: B3012F | O95: L7 Primary Schools Direct Managem | P95: 10000X | Q95: All Subjective | R95: 50000A | S95: Total Net Expenditure CIES | T95: 50000B | U95: Total Income | V95: 53000C | W95: Customer and Client Receipts | X95: 53200D | Y95: Fees and Charges | Z95: 53210E | AA95: Fees and Charges Summary | AB95: E10082 | AC95: Northside School | AD95: 532060 | AE95: =_xlfn.XLOOKUP(AD95, [2]Sheet3!B:B,[2]Sheet3!A:A) -> I08 | AF95: Hire of Rooms and Halls Income | AG95: 99999 | AH95: Default Analysis | AI95: 9999999 | AJ95: Project Default | AK95: 999999 | AL95: Default - Reserved for future use | AM95: A1-E10082-532060-99999-9999999-999999 | AN95: PER13-24-25 | AO95: 0 | AP95: 84077.69 | AQ95: -84077.69 | AR95: CFS2425100199 Spreadsheet A 300000006796056 4054266 N | AS95: CFS2425100199 JV01 - Transfer Journal | AT95: Q4 M1-M12 Actuals Journal - Batch 3 (G-R) | AU95: Q4 | AV95: Spreadsheet | AW95: JV01 - Transfer Journal | AX95: 198 | AY95: M1-M12 Actuals - I08b - E10082 | BJ95: 2025-05-13T15:25:09 | BK95: Rema Tiba | BL95: 2025-05-13 | BM95: rema.tiba@barnet.gov.uk | BN95: 2025-05-13T15:56:34 | BO95: 300000005088675:Q4 M1-M12 Actuals Journal - Batch 3 (G-R):M1-M12 Actuals - I08b - E10082
A96: A1 | B96: A0000A | C96: L1 BARNET System Hierarchy | D96: B0000A | E96: L2 LBB Hierarchy | F96: B2000B | G96: L3 LBB Revenue | H96: B3010C | I96: L4 LBB SchoolDM | J96: B3010D | K96: L5 SCHOOLDM | L96: B3011E | M96: L6 Primary Schools Direct Managem | N96: B3012F | O96: L7 Primary Schools Direct Managem | P96: 10000X | Q96: All Subjective | R96: 50000A | S96: Total Net Expenditure CIES | T96: 50000B | U96: Total Income | V96: 53000C | W96: Customer and Client Receipts | X96: 53200D | Y96: Fees and Charges | Z96: 53210E | AA96: Fees and Charges Summary | AB96: E10083 | AC96: Danegrove School | AD96: 532060 | AE96: =_xlfn.XLOOKUP(AD96, [2]Sheet3!B:B,[2]Sheet3!A:A) -> I08 | AF96: Hire of Rooms and Halls Income | AG96: 99999 | AH96: Default Analysis | AI96: 9999999 | AJ96: Project Default | AK96: 999999 | AL96: Default - Reserved for future use | AM96: A1-E10083-532060-99999-9999999-999999 | AN96: PER13-24-25 | AO96: 0 | AP96: 25535 | AQ96: -25535 | AR96: CFS2425100201 Spreadsheet A 300000006713123 4054487 N | AS96: CFS2425100201 JV01 - Transfer Journal | AT96: Q4 M1-M12 Actuals Journal - Batch 2 (A-F) | AU96: Q4 | AV96: Spreadsheet | AW96: JV01 - Transfer Journal | AX96: 218 | AY96: M1-M12 Actuals - I08a - E10083 | BJ96: 2025-05-13T15:52:01 | BK96: Daniel Phelan | BL96: 2025-05-13 | BM96: daniel.phelan@barnet.gov.uk | BN96: 2025-05-13T15:56:37 | BO96: 300000005088675:Q4 M1-M12 Actuals Journal - Batch 2 (A-F):M1-M12 Actuals - I08a - E10083
A97: A1 | B97: A0000A | C97: L1 BARNET System Hierarchy | D97: B0000A | E97: L2 LBB Hierarchy | F97: B2000B | G97: L3 LBB Revenue | H97: B3010C | I97: L4 LBB SchoolDM | J97: B3010D | K97: L5 SCHOOLDM | L97: B3011E | M97: L6 Primary Schools Direct Managem | N97: B3012F | O97: L7 Primary Schools Direct Managem | P97: 10000X | Q97: All Subjective | R97: 50000A | S97: Total Net Expenditure CIES | T97: 50000B | U97: Total Income | V97: 53000C | W97: Customer and Client Receipts | X97: 53200D | Y97: Fees and Charges | Z97: 53210E | AA97: Fees and Charges Summary | AB97: E10083 | AC97: Danegrove School | AD97: 532060 | AE97: =_xlfn.XLOOKUP(AD97, [2]Sheet3!B:B,[2]Sheet3!A:A) -> I08 | AF97: Hire of Rooms and Halls Income | AG97: 99999 | AH97: Default Analysis | AI97: 9999999 | AJ97: Project Default | AK97: 999999 | AL97: Default - Reserved for future use | AM97: A1-E10083-532060-99999-9999999-999999 | AN97: PER13-24-25 | AO97: 0 | AP97: 130937.33 | AQ97: -130937.33 | AR97: CFS2425100201 Spreadsheet A 300000006713123 4054487 N | AS97: CFS2425100201 JV01 - Transfer Journal | AT97: Q4 M1-M12 Actuals Journal - Batch 2 (A-F) | AU97: Q4 | AV97: Spreadsheet | AW97: JV01 - Transfer Journal | AX97: 219 | AY97: M1-M12 Actuals - I08b - E10083 | BJ97: 2025-05-13T15:52:01 | BK97: Daniel Phelan | BL97: 2025-05-13 | BM97: daniel.phelan@barnet.gov.uk | BN97: 2025-05-13T15:56:37 | BO97: 300000005088675:Q4 M1-M12 Actuals Journal - Batch 2 (A-F):M1-M12 Actuals - I08b - E10083
A98: A1 | B98: A0000A | C98: L1 BARNET System Hierarchy | D98: B0000A | E98: L2 LBB Hierarchy | F98: B2000B | G98: L3 LBB Revenue | H98: B3010C | I98: L4 LBB SchoolDM | J98: B3010D | K98: L5 SCHOOLDM | L98: B3011E | M98: L6 Primary Schools Direct Managem | N98: B3012F | O98: L7 Primary Schools Direct Managem | P98: 10000X | Q98: All Subjective | R98: 50000A | S98: Total Net Expenditure CIES | T98: 50000B | U98: Total Income | V98: 53000C | W98: Customer and Client Receipts | X98: 53200D | Y98: Fees and Charges | Z98: 53210E | AA98: Fees and Charges Summary | AB98: E10089 | AC98: St John's CE N11 | AD98: 532060 | AE98: =_xlfn.XLOOKUP(AD98, [2]Sheet3!B:B,[2]Sheet3!A:A) -> I08 | AF98: Hire of Rooms and Halls Income | AG98: 99999 | AH98: Default Analysis | AI98: 9999999 | AJ98: Project Default | AK98: 999999 | AL98: Default - Reserved for future use | AM98: A1-E10089-532060-99999-9999999-999999 | AN98: PER13-24-25 | AO98: 0 | AP98: 36999.84 | AQ98: -36999.84 | AR98: CFS2425100200 Spreadsheet A 300000006796056 4054311 N | AS98: CFS2425100200 JV01 - Transfer Journal | AT98: Q4 M1-M12 Actuals Journal - Batch 4 (S-W) | AU98: Q4 | AV98: Spreadsheet | AW98: JV01 - Transfer Journal | AX98: 165 | AY98: M1-M12 Actuals - I08a - E10089 | BJ98: 2025-05-13T15:28:39 | BK98: Rema Tiba | BL98: 2025-05-13 | BM98: rema.tiba@barnet.gov.uk | BN98: 2025-05-13T15:56:40 | BO98: 300000005088675:Q4 M1-M12 Actuals Journal - Batch 4 (S-W):M1-M12 Actuals - I08a - E10089
A99: A1 | B99: A0000A | C99: L1 BARNET System Hierarchy | D99: B0000A | E99: L2 LBB Hierarchy | F99: B2000B | G99: L3 LBB Revenue | H99: B3010C | I99: L4 LBB SchoolDM | J99: B3010D | K99: L5 SCHOOLDM | L99: B3011E | M99: L6 Primary Schools Direct Managem | N99: B3012F | O99: L7 Primary Schools Direct Managem | P99: 10000X | Q99: All Subjective | R99: 50000A | S99: Total Net Expenditure CIES | T99: 50000B | U99: Total Income | V99: 53000C | W99: Customer and Client Receipts | X99: 53200D | Y99: Fees and Charges | Z99: 53210E | AA99: Fees and Charges Summary | AB99: E10095 | AC99: St Paul's CE NW7 | AD99: 532060 | AE99: =_xlfn.XLOOKUP(AD99, [2]Sheet3!B:B,[2]Sheet3!A:A) -> I08 | AF99: Hire of Rooms and Halls Income | AG99: 99999 | AH99: Default Analysis | AI99: 9999999 | AJ99: Project Default | AK99: 999999 | AL99: Default - Reserved for future use | AM99: A1-E10095-532060-99999-9999999-999999 | AN99: PER13-24-25 | AO99: 0 | AP99: 41475.27 | AQ99: -41475.27 | AR99: CFS2425100200 Spreadsheet A 300000006796056 4054311 N | AS99: CFS2425100200 JV01 - Transfer Journal | AT99: Q4 M1-M12 Actuals Journal - Batch 4 (S-W) | AU99: Q4 | AV99: Spreadsheet | AW99: JV01 - Transfer Journal | AX99: 171 | AY99: M1-M12 Actuals - I08b - E10095 | BJ99: 2025-05-13T15:28:39 | BK99: Rema Tiba | BL99: 2025-05-13 | BM99: rema.tiba@barnet.gov.uk | BN99: 2025-05-13T15:56:40 | BO99: 300000005088675:Q4 M1-M12 Actuals Journal - Batch 4 (S-W):M1-M12 Actuals - I08b - E10095
A100: A1 | B100: A0000A | C100: L1 BARNET System Hierarchy | D100: B0000A | E100: L2 LBB Hierarchy | F100: B2000B | G100: L3 LBB Revenue | H100: B3010C | I100: L4 LBB SchoolDM | J100: B3010D | K100: L5 SCHOOLDM | L100: B3011E | M100: L6 Primary Schools Direct Managem | N100: B3012F | O100: L7 Primary Schools Direct Managem | P100: 10000X | Q100: All Subjective | R100: 50000A | S100: Total Net Expenditure CIES | T100: 50000B | U100: Total Income | V100: 53000C | W100: Customer and Client Receipts | X100: 53200D | Y100: Fees and Charges | Z100: 53210E | AA100: Fees and Charges Summary | AB100: E10097 | AC100: Sunnyfields School | AD100: 532060 | AE100: =_xlfn.XLOOKUP(AD100, [2]Sheet3!B:B,[2]Sheet3!A:A) -> I08 | AF100: Hire of Rooms and Halls Income | AG100: 99999 | AH100: Default Analysis | AI100: 9999999 | AJ100: Project Default | AK100: 999999 | AL100: Default - Reserved for future use | AM100: A1-E10097-532060-99999-9999999-999999 | AN100: PER13-24-25 | AO100: 0 | AP100: 13583.45 | AQ100: -13583.45 | AR100: CFS2425100200 Spreadsheet A 300000006796056 4054311 N | AS100: CFS2425100200 JV01 - Transfer Journal | AT100: Q4 M1-M12 Actuals Journal - Batch 4 (S-W) | AU100: Q4 | AV100: Spreadsheet | AW100: JV01 - Transfer Journal | AX100: 174 | AY100: M1-M12 Actuals - I08b - E10097 | BJ100: 2025-05-13T15:28:39 | BK100: Rema Tiba | BL100: 2025-05-13 | BM100: rema.tiba@barnet.gov.uk | BN100: 2025-05-13T15:56:40 | BO100: 300000005088675:Q4 M1-M12 Actuals Journal - Batch 4 (S-W):M1-M12 Actuals - I08b - E10097
A101: A1 | B101: A0000A | C101: L1 BARNET System Hierarchy | D101: B0000A | E101: L2 LBB Hierarchy | F101: B2000B | G101: L3 LBB Revenue | H101: B3010C | I101: L4 LBB SchoolDM | J101: B3010D | K101: L5 SCHOOLDM | L101: B3011E | M101: L6 Primary Schools Direct Managem | N101: B3012F | O101: L7 Primary Schools Direct Managem | P101: 10000X | Q101: All Subjective | R101: 50000A | S101: Total Net Expenditure CIES | T101: 50000B | U101: Total Income | V101: 53000C | W101: Customer and Client Receipts | X101: 53200D | Y101: Fees and Charges | Z101: 53210E | AA101: Fees and Charges Summary | AB101: E10108 | AC101: St Theresa's RC School | AD101: 532060 | AE101: =_xlfn.XLOOKUP(AD101, [2]Sheet3!B:B,[2]Sheet3!A:A) -> I08 | AF101: Hire of Rooms and Halls Income | AG101: 99999 | AH101: Default Analysis | AI101: 9999999 | AJ101: Project Default | AK101: 999999 | AL101: Default - Reserved for future use | AM101: A1-E10108-532060-99999-9999999-999999 | AN101: PER13-24-25 | AO101: 0 | AP101: 1707.6 | AQ101: -1707.6 | AR101: CFS2425100200 Spreadsheet A 300000006796056 4054311 N | AS101: CFS2425100200 JV01 - Transfer Journal | AT101: Q4 M1-M12 Actuals Journal - Batch 4 (S-W) | AU101: Q4 | AV101: Spreadsheet | AW101: JV01 - Transfer Journal | AX101: 184 | AY101: M1-M12 Actuals - I08a - E10108 | BJ101: 2025-05-13T15:28:39 | BK101: Rema Tiba | BL101: 2025-05-13 | BM101: rema.tiba@barnet.gov.uk | BN101: 2025-05-13T15:56:40 | BO101: 300000005088675:Q4 M1-M12 Actuals Journal - Batch 4 (S-W):M1-M12 Actuals - I08a - E10108
A102: A1 | B102: A0000A | C102: L1 BARNET System Hierarchy | D102: B0000A | E102: L2 LBB Hierarchy | F102: B2000B | G102: L3 LBB Revenue | H102: B3010C | I102: L4 LBB SchoolDM | J102: B3010D | K102: L5 SCHOOLDM | L102: B3011E | M102: L6 Primary Schools Direct Managem | N102: B3012F | O102: L7 Primary Schools Direct Managem | P102: 10000X | Q102: All Subjective | R102: 50000A | S102: Total Net Expenditure CIES | T102: 50000B | U102: Total Income | V102: 53000C | W102: Customer and Client Receipts | X102: 53200D | Y102: Fees and Charges | Z102: 53210E | AA102: Fees and Charges Summary | AB102: E10110 | AC102: Sacred Heart RC School | AD102: 532060 | AE102: =_xlfn.XLOOKUP(AD102, [2]Sheet3!B:B,[2]Sheet3!A:A) -> I08 | AF102: Hire of Rooms and Halls Income | AG102: 99999 | AH102: Default Analysis | AI102: 9999999 | AJ102: Project Default | AK102: 999999 | AL102: Default - Reserved for future use | AM102: A1-E10110-532060-99999-9999999-999999 | AN102: PER13-24-25 | AO102: 0 | AP102: 3844.88 | AQ102: -3844.88 | AR102: CFS2425100200 Spreadsheet A 300000006796056 4054311 N | AS102: CFS2425100200 JV01 - Transfer Journal | AT102: Q4 M1-M12 Actuals Journal - Batch 4 (S-W) | AU102: Q4 | AV102: Spreadsheet | AW102: JV01 - Transfer Journal | AX102: 188 | AY102: M1-M12 Actuals - I08b - E10110 | BJ102: 2025-05-13T15:28:39 | BK102: Rema Tiba | BL102: 2025-05-13 | BM102: rema.tiba@barnet.gov.uk | BN102: 2025-05-13T15:56:40 | BO102: 300000005088675:Q4 M1-M12 Actuals Journal - Batch 4 (S-W):M1-M12 Actuals - I08b - E10110
A103: A1 | B103: A0000A | C103: L1 BARNET System Hierarchy | D103: B0000A | E103: L2 LBB Hierarchy | F103: B2000B | G103: L3 LBB Revenue | H103: B3010C | I103: L4 LBB SchoolDM | J103: B3010D | K103: L5 SCHOOLDM | L103: B3011E | M103: L6 Primary Schools Direct Managem | N103: B3012F | O103: L7 Primary Schools Direct Managem | P103: 10000X | Q103: All Subjective | R103: 50000A | S103: Total Net Expenditure CIES | T103: 50000B | U103: Total Income | V103: 53000C | W103: Customer and Client Receipts | X103: 53200D | Y103: Fees and Charges | Z103: 53210E | AA103: Fees and Charges Summary | AB103: E10112 | AC103: Rosh Pinah School | AD103: 532060 | AE103: =_xlfn.XLOOKUP(AD103, [2]Sheet3!B:B,[2]Sheet3!A:A) -> I08 | AF103: Hire of Rooms and Halls Income | AG103: 99999 | AH103: Default Analysis | AI103: 9999999 | AJ103: Project Default | AK103: 999999 | AL103: Default - Reserved for future use | AM103: A1-E10112-532060-99999-9999999-999999 | AN103: PER13-24-25 | AO103: 0 | AP103: 51761 | AQ103: -51761 | AR103: CFS2425100199 Spreadsheet A 300000006796056 4054266 N | AS103: CFS2425100199 JV01 - Transfer Journal | AT103: Q4 M1-M12 Actuals Journal - Batch 3 (G-R) | AU103: Q4 | AV103: Spreadsheet | AW103: JV01 - Transfer Journal | AX103: 204 | AY103: M1-M12 Actuals - I08b - E10112 | BJ103: 2025-05-13T15:25:09 | BK103: Rema Tiba | BL103: 2025-05-13 | BM103: rema.tiba@barnet.gov.uk | BN103: 2025-05-13T15:56:34 | BO103: 300000005088675:Q4 M1-M12 Actuals Journal - Batch 3 (G-R):M1-M12 Actuals - I08b - E10112
A104: A1 | B104: A0000A | C104: L1 BARNET System Hierarchy | D104: B0000A | E104: L2 LBB Hierarchy | F104: B2000B | G104: L3 LBB Revenue | H104: B3010C | I104: L4 LBB SchoolDM | J104: B3010D | K104: L5 SCHOOLDM | L104: B3011E | M104: L6 Primary Schools Direct Managem | N104: B3012F | O104: L7 Primary Schools Direct Managem | P104: 10000X | Q104: All Subjective | R104: 50000A | S104: Total Net Expenditure CIES | T104: 50000B | U104: Total Income | V104: 53000C | W104: Customer and Client Receipts | X104: 53200D | Y104: Fees and Charges | Z104: 53210E | AA104: Fees and Charges Summary | AB104: E10123 | AC104: Woodcroft Primary | AD104: 532060 | AE104: =_xlfn.XLOOKUP(AD104, [2]Sheet3!B:B,[2]Sheet3!A:A) -> I08 | AF104: Hire of Rooms and Halls Income | AG104: 99999 | AH104: Default Analysis | AI104: 9999999 | AJ104: Project Default | AK104: 999999 | AL104: Default - Reserved for future use | AM104: A1-E10123-532060-99999-9999999-999999 | AN104: PER13-24-25 | AO104: 0 | AP104: 10865 | AQ104: -10865 | AR104: CFS2425100200 Spreadsheet A 300000006796056 4054311 N | AS104: CFS2425100200 JV01 - Transfer Journal | AT104: Q4 M1-M12 Actuals Journal - Batch 4 (S-W) | AU104: Q4 | AV104: Spreadsheet | AW104: JV01 - Transfer Journal | AX104: 193 | AY104: M1-M12 Actuals - I08a - E10123 | BJ104: 2025-05-13T15:28:39 | BK104: Rema Tiba | BL104: 2025-05-13 | BM104: rema.tiba@barnet.gov.uk | BN104: 2025-05-13T15:56:40 | BO104: 300000005088675:Q4 M1-M12 Actuals Journal - Batch 4 (S-W):M1-M12 Actuals - I08a - E10123
A105: A1 | B105: A0000A | C105: L1 BARNET System Hierarchy | D105: B0000A | E105: L2 LBB Hierarchy | F105: B2000B | G105: L3 LBB Revenue | H105: B3010C | I105: L4 LBB SchoolDM | J105: B3010D | K105: L5 SCHOOLDM | L105: B3011E | M105: L6 Primary Schools Direct Managem | N105: B3012F | O105: L7 Primary Schools Direct Managem | P105: 10000X | Q105: All Subjective | R105: 50000A | S105: Total Net Expenditure CIES | T105: 50000B | U105: Total Income | V105: 53000C | W105: Customer and Client Receipts | X105: 53200D | Y105: Fees and Charges | Z105: 53210E | AA105: Fees and Charges Summary | AB105: E10124 | AC105: Wessex Gardens School | AD105: 532060 | AE105: =_xlfn.XLOOKUP(AD105, [2]Sheet3!B:B,[2]Sheet3!A:A) -> I08 | AF105: Hire of Rooms and Halls Income | AG105: D1120 | AH105: Schools DM | AI105: 9999999 | AJ105: Project Default | AK105: 999999 | AL105: Default - Reserved for future use | AM105: A1-E10124-532060-D1120-9999999-999999 | AN105: PER13-24-25 | AO105: 0 | AP105: 7725 | AQ105: -7725 | AR105: SCH2425P13-DEB0004 Spreadsheet A 300000006713123 4043078 N | AS105: SCH2425P13-DEB0004 YE01 - Accrual Journal | AT105: BATCH 4 Debtors | AU105: Q4 | AV105: Spreadsheet | AW105: YE01 - Accrual Journal | AX105: 44 | AY105: BATCH 4 Debtors | BJ105: 2025-05-12T12:07:46 | BK105: Rema Tiba | BL105: 2025-05-12 | BM105: rema.tiba@barnet.gov.uk | BN105: 2025-05-12T12:22:15 | BO105: 300000005088676:BATCH 4 Debtors:BATCH 4 Debtors
